Workbook

Sheet fill_data
A1: โครงการ | H1: สำนักชลประทานที่
B2: ปริมาณน้ำจัดสรร ณ วันที่ 1 พฤศจิกายน 2552 | H2: ล้าน ม.3 | I2: ประสิทธิภาพโครงการ | K2: 45 | L2: %
A4: จังหวัด
A5: ใช้ค่า ETo ของจังหวัด | C5: =VLOOKUP(C4,Prv!$D$3:$E$79,2,FALSE) -> 
A6: ปริมาณน้ำรั่วซึม, มม./สัปดาห์
A9: ข้าวนาปี | E9: สัปดาห์ | F9: พื้นที่ (ไร่) | H9: ข้าวนาปรัง | L9: สัปดาห์ | M9: พื้นที่ (ไร่)
E10: 1 | L10: 1
A11: ชนิดพืช | C11: ข้าว กข.(นาดำ) | E11: =IF(E10="","",IF(E10+1<=$D$14,E10+1,"")) -> 2 | H11: ชนิดพืช | J11: ข้าว กข.(นาดำ) | L11: =IF(L10="","",IF(L10+1<=$K$14,L10+1,"")) -> 2
A12: สัปดาห์เริ่มต้น | C12: =VLOOKUP(C11,Crop!$B$3:$C$35,2,FALSE) -> 13 | D12: 33 | E12: 3 | H12: สัปดาห์เริ่มต้น | J12: =VLOOKUP(J11,Crop!$B$3:$C$35,2,FALSE) -> 13 | K12: 9 | L12: =IF(L11="","",IF(L11+1<=$K$14,L11+1,"")) -> 3
A13: พื้นที่ปลูกทั้งหมด, ไร่ | D13: =SUM(F10:F29) -> 0 | E13: 4 | H13: พื้นที่ปลูกทั้งหมด, ไร่ | K13: =SUM(M10:M29) -> 0 | L13: =IF(L12="","",IF(L12+1<=$K$14,L12+1,"")) -> 4
A14: เวลาปลูกจนเต็มพื้นที่, สัปดาห์ | D14: 7 | E14: 5 | H14: เวลาปลูกจนเต็มพื้นที่, สัปดาห์ | K14: 4 | L14: =IF(L13="","",IF(L13+1<=$K$14,L13+1,"")) -> 
A15: ปริมาณน้ำเตรียมแปลง, มม./สัปดาห์ | D15: 240 | E15: 6 | H15: ปริมาณน้ำเตรียมแปลง, มม./สัปดาห์ | K15: 240 | L15: =IF(L14="","",IF(L14+1<=$K$14,L14+1,"")) -> 
E16: 7
E20: =IF(E19="","",IF(E19+1<=$D$14,E19+1,"")) -> 
E29: =IF(E28="","",IF(E28+1<=$D$14,E28+1,"")) -> 
A31: พืชไร่-พืชผักฤดูฝน | E31: สัปดาห์ | F31: พื้นที่ (ไร่) | H31: พืชไร่-พืชผักฤดูแล้ง | L31: สัปดาห์ | M31: พื้นที่ (ไร่)
E32: 1 | L32: 1
A33: ชนิดพืช | C33: ข้าวโพดเลี้ยงสัตว์ | E33: =IF(E32="","",IF(E32+1<=$D$36,E32+1,"")) -> 2 | H33: ชนิดพืช | J33: ถั่ว เขียว | L33: =IF(L32="","",IF(L32+1<=$K$36,L32+1,"")) -> 2
A34: สัปดาห์เริ่มต้น | C34: =VLOOKUP(C33,Crop!$B$3:$C$35,2,FALSE) -> 14 | D34: 27 | E34: =IF(E33="","",IF(E33+1<=$D$36,E33+1,"")) -> 3 | H34: สัปดาห์เริ่มต้น | J34: =VLOOKUP(J33,Crop!$B$3:$C$35,2,FALSE) -> 9 | K34: 10 | L34: =IF(L33="","",IF(L33+1<=$K$36,L33+1,"")) -> 3
A35: พื้นที่ปลูกทั้งหมด, ไร่ | D35: =SUM(F32:F51) -> 0 | E35: 4 | H35: พื้นที่ปลูกทั้งหมด, ไร่ | K35: =SUM(M32:M51) -> 0
A36: เวลาปลูกจนเต็มพื้นที่, สัปดาห์ | D36: 5 | E36: 5 | H36: เวลาปลูกจนเต็มพื้นที่, สัปดาห์ | K36: 3
A37: ปริมาณน้ำเตรียมแปลง, มม./สัปดาห์ | D37: 30 | H37: ปริมาณน้ำเตรียมแปลง, มม./สัปดาห์ | K37: 30
L41: =IF(L40="","",IF(L40+1<=$K$36,L40+1,"")) -> 
E42: =IF(E41="","",IF(E41+1<=$D$36,E41+1,"")) -> 
A52: ไม้ผล | H52: บ่อปลา - บ่อกุ้ง
A54: ชนิดพืช | C54: ยางพารา** | H54: พื้นที่บ่อปลา, ไร่
A55: พื้นที่ปลูกทั้งหมด, ไร่ | H55: พื้นที่บ่อกุ้ง, ไร่
A57: ข้อมูลรายวัน
A59: วันที่ | B59: ความต้องการใช้น้ำ
B60: อุปโภค บริโภค ประปา | C60: อุตสาหกรรม | D60: รักษาระบบนิเวศน์ | E60: อื่น ๆ
A61: 2008-11-01
A62: =+A61+1 -> 2008-11-02
A63: 2008-11-03
A64: 2008-11-04
A65: 2008-11-05
A66: 2008-11-06
A67: 2008-11-07
A68: 2008-11-08
A69: 2008-11-09
A70: 2008-11-10
A71: 2008-11-11
A72: 2008-11-12
A73: 2008-11-13
A74: 2008-11-14
A75: 2008-11-15
A76: 2008-11-16
A77: 2008-11-17
A78: 2008-11-18
A79: 2008-11-19
A80: 2008-11-20
A81: 2008-11-21
A82: 2008-11-22
A83: 2008-11-23
A84: 2008-11-24
A85: 2008-11-25
A86: 2008-11-26
A87: 2008-11-27
A88: 2008-11-28
A89: 2008-11-29
A90: 2008-11-30
A91: 2008-12-01
A92: 2008-12-02
A93: 2008-12-03
A94: 2008-12-04
A95: 2008-12-05
A96: 2008-12-06
A97: 2008-12-07
A98: 2008-12-08
A99: 2008-12-09
A100: 2008-12-10
A101: 2008-12-11
A102: 2008-12-12
A103: 2008-12-13
A104: 2008-12-14
A105: 2008-12-15
A106: 2008-12-16
A107: 2008-12-17
A108: 2008-12-18
A109: 2008-12-19
A110: 2008-12-20
A111: 2008-12-21
A112: 2008-12-22
A113: 2008-12-23
A114: 2008-12-24
A115: 2008-12-25
A116: 2008-12-26
A117: 2008-12-27
A118: 2008-12-28
A119: 2008-12-29
A120: 2008-12-30
A121: 2008-12-31
A122: 2009-01-01
A123: 2009-01-02
A124: 2009-01-03
A125: 2009-01-04
A126: =+A125+1 -> 2009-01-05
A127: 2009-01-06
A128: 2009-01-07
A129: 2009-01-08
A130: 2009-01-09
A131: 2009-01-10
A132: 2009-01-11
A133: 2009-01-12
A134: 2009-01-13
A135: 2009-01-14
A136: 2009-01-15
A137: 2009-01-16
A138: 2009-01-17
A139: 2009-01-18
A140: 2009-01-19
A141: 2009-01-20
A142: 2009-01-21
A143: 2009-01-22
A144: 2009-01-23
A145: 2009-01-24
A146: 2009-01-25
A147: 2009-01-26
A148: 2009-01-27
A149: 2009-01-28
A150: 2009-01-29
A151: 2009-01-30
A152: 2009-01-31
A153: 2009-02-01
A154: 2009-02-02
A155: 2009-02-03
A156: 2009-02-04
A157: 2009-02-05
A158: 2009-02-06
A159: 2009-02-07
A160: 2009-02-08
A161: 2009-02-09
A162: 2009-02-10
A163: 2009-02-11
A164: 2009-02-12
A165: 2009-02-13
A166: 2009-02-14
A167: 2009-02-15
A168: 2009-02-16
A169: 2009-02-17
A170: 2009-02-18
A171: 2009-02-19
A172: 2009-02-20
A173: 2009-02-21
A174: 2009-02-22
A175: 2009-02-23
A176: 2009-02-24
A177: 2009-02-25
A178: 2009-02-26
A179: 2009-02-27
A180: 2009-02-28
A181: 2009-03-01
A182: 2009-03-02
A183: 2009-03-03
A184: 2009-03-04
A185: 2009-03-05
A186: 2009-03-06
A187: 2009-03-07
A188: 2009-03-08
A189: 2009-03-09
A190: =+A189+1 -> 2009-03-10
A191: 2009-03-11
A192: 2009-03-12
A193: 2009-03-13
A194: 2009-03-14
A195: 2009-03-15
A196: 2009-03-16
A197: 2009-03-17
A198: 2009-03-18
A199: 2009-03-19
A200: 2009-03-20
A201: 2009-03-21
A202: 2009-03-22
A203: 2009-03-23
A204: 2009-03-24
A205: 2009-03-25
A206: 2009-03-26
A207: 2009-03-27
A208: 2009-03-28
A209: 2009-03-29
A210: 2009-03-30
A211: 2009-03-31
A212: 2009-04-01
A213: 2009-04-02
A214: 2009-04-03
A215: 2009-04-04
A216: 2009-04-05
A217: 2009-04-06
A218: 2009-04-07
A219: 2009-04-08
A220: 2009-04-09
A221: 2009-04-10
A222: 2009-04-11
A223: 2009-04-12
A224: 2009-04-13
A225: 2009-04-14
A226: 2009-04-15
A227: 2009-04-16
A228: 2009-04-17
A229: 2009-04-18
A230: 2009-04-19
... 195 more rows

Sheet ROS
A1: ="การวางแผนใช้น้ำเพื่อกิจกรรมต่าง ๆ ของโครงการ"&fill_data!D1&" จังหวัด"& fill_data!$C$4& " สำนักชลประทานที่ "&fill_data!I1 -> การวางแผนใช้น้ำเพื่อกิจกรรมต่าง ๆ ของโครงการ จังหวัด สำนักชลประทานที่
C3: การเกษตรฤดูแล้งรวม(ไร่) | D3: =+C4+G4+K4+M4 -> 0 | G3: การเกษตรฤดูฝนรวม(ไร่) | H3: =+C5+G5+K4+M4 -> 0 | J3: =fill_data!B2 -> ปริมาณน้ำจัดสรร ณ วันที่ 1 พฤศจิกายน 2552 | M3: =+fill_data!G2 -> 0 | N3: ล้าน ม.3
B4: ข้าวนาปรัง(ไร่ ) | C4: =+fill_data!K13 -> 0 | E4: พืชไร่-ผัก(ไร่) | G4: =+fill_data!K35 -> 0 | I4: ไม้ผล-ไม้ยืนต้น่(ไร่) | K4: =+fill_data!D55 -> 0 | L4: บ่อกุ้ง-บ่อปลา(ไร่) | M4: =+fill_data!K54+fill_data!K55 -> 0
B5: ข้าวนาปี(ไร่ ) | C5: =+fill_data!D13 -> 0 | E5: พืชไร่-ผักฤดูฝน(ไร่) | G5: =+fill_data!D35 -> 0
A6: (1) | B6: (2) | C6: (3) | D6: (4) | E6: (5) | F6: (6) | G6: (7) | H6: (8) | I6: (9) | J6: (10) | K6: (11) | L6: (12) | M6: (13)
A7: สัปดาห์ | B7: วันที่ | C7: อุปโภค | D7: น้ำใช้ | E7: อุตสาหกรรม | F7: รักษาระบบ | G7: การเกษตร | H7: ฝนใช้การ | I7: ปสภ | J7: ความต้องการ | K7: ปริมาณการ | L7: ปริมาณการ | M7: ปริมาณความต้องการน้ำ
C8: บริโภค | D8: อื่นๆ | F8: นิเวศน์ | J8: น้ำ ชป. | K8: ส่งน้ำ | L8: ส่งน้ำสะสม | M8: ตามทฤษฎี
A9: ที่ | B9: วันที่ | C9: mcm. | D9: mcm. | E9: mcm. | F9: mcm. | G9: mcm. | H9: mcm. | I9: % | J9: mcm. | K9: ปริมาณการส่งน้ำ | L9: ปริมาณการส่งน้ำสะสม | M9: mcm.
A10: 1 | B10: =DATE(สอน.จน.1!$O$1-543,11,1) -> 2012-11-01 | C10: =+fill_data!B61 -> 0 | D10: =+fill_data!E61 -> 0 | E10: =+fill_data!C61 -> 0 | F10: =++fill_data!D61 -> 0 | G10: =VLOOKUP($A10,ความต้องการน้ำ,3)/7 ->  | H10: =VLOOKUP($A10,ฝนใช้การ,3)/7 ->  | I10: =+fill_data!K2 -> 45 | J10: =IF((G10-H10)<=0,0,+(G10-H10)/(I10/100)) ->  | K10: =C10+D10+E10+F10+J10 ->  | L10: =+K10 ->  | M10: =+C10+D10+E10+F10+G10 -> 
A11: =+A10 -> 1 | B11: =+B10+1 -> 2012-11-02 | C11: =+fill_data!B62 -> 0 | D11: =+fill_data!E62 -> 0 | E11: =+fill_data!C62 -> 0 | F11: =++fill_data!D62 -> 0 | H11: =VLOOKUP($A11,ฝนใช้การ,3)/7 ->  | I11: =+I10 -> 45 | J11: =IF((G11-H11)<=0,0,+(G11-H11)/(I11/100)) ->  | L11: =+L10+K11 -> 
A12: =+A11 -> 1 | B12: 2012-11-03 | C12: =+fill_data!B63 -> 0 | D12: =+fill_data!E63 -> 0 | E12: =+fill_data!C63 -> 0 | F12: =++fill_data!D63 -> 0 | H12: =VLOOKUP($A12,ฝนใช้การ,3)/7 ->  | I12: =+I11 -> 45 | L12: =+L11+K12 -> 
A13: =+A12 -> 1 | B13: 2012-11-04 | C13: =+fill_data!B64 -> 0 | D13: =+fill_data!E64 -> 0 | E13: =+fill_data!C64 -> 0 | F13: =++fill_data!D64 -> 0 | H13: =VLOOKUP($A13,ฝนใช้การ,3)/7 ->  | I13: 45
A14: =+A13 -> 1 | B14: 2012-11-05 | C14: =+fill_data!B65 -> 0 | D14: =+fill_data!E65 -> 0 | E14: =+fill_data!C65 -> 0 | F14: =++fill_data!D65 -> 0 | H14: =VLOOKUP($A14,ฝนใช้การ,3)/7 ->  | I14: 45
A15: 1 | B15: 2012-11-06 | C15: =+fill_data!B66 -> 0 | D15: =+fill_data!E66 -> 0 | E15: =+fill_data!C66 -> 0 | F15: =++fill_data!D66 -> 0 | H15: =VLOOKUP($A15,ฝนใช้การ,3)/7 ->  | I15: 45
A16: =+A15 -> 1 | B16: 2012-11-07 | C16: =+fill_data!B67 -> 0 | D16: =+fill_data!E67 -> 0 | E16: =+fill_data!C67 -> 0 | F16: =++fill_data!D67 -> 0 | H16: =VLOOKUP($A16,ฝนใช้การ,3)/7 ->  | I16: 45 | M16: =+C16+D16+E16+F16+G16 -> 
A17: 2 | B17: 2012-11-08 | C17: =+fill_data!B68 -> 0 | D17: =+fill_data!E68 -> 0 | E17: =+fill_data!C68 -> 0 | F17: =++fill_data!D68 -> 0 | H17: =VLOOKUP($A17,ฝนใช้การ,3)/7 ->  | I17: 45
A18: 2 | B18: 2012-11-09 | C18: =+fill_data!B69 -> 0 | D18: =+fill_data!E69 -> 0 | E18: =+fill_data!C69 -> 0 | F18: =++fill_data!D69 -> 0 | H18: =VLOOKUP($A18,ฝนใช้การ,3)/7 ->  | I18: 45
A19: 2 | B19: 2012-11-10 | C19: =fill_data!B70 -> 0 | D19: =+fill_data!E70 -> 0 | E19: =+fill_data!C70 -> 0 | F19: =++fill_data!D70 -> 0 | H19: =VLOOKUP($A19,ฝนใช้การ,3)/7 ->  | I19: 45
A20: 2 | B20: 2012-11-11 | C20: =+fill_data!B71 -> 0 | D20: =+fill_data!E71 -> 0 | E20: =+fill_data!C71 -> 0 | F20: =++fill_data!D71 -> 0 | H20: =VLOOKUP($A20,ฝนใช้การ,3)/7 ->  | I20: 45
A21: 2 | B21: 2012-11-12 | C21: =+fill_data!B72 -> 0 | D21: =+fill_data!E72 -> 0 | E21: =+fill_data!C72 -> 0 | F21: =++fill_data!D72 -> 0 | H21: =VLOOKUP($A21,ฝนใช้การ,3)/7 ->  | I21: 45
A22: 2 | B22: 2012-11-13 | C22: =+fill_data!B73 -> 0 | D22: =+fill_data!E73 -> 0 | E22: =+fill_data!C73 -> 0 | F22: =++fill_data!D73 -> 0 | H22: =VLOOKUP($A22,ฝนใช้การ,3)/7 ->  | I22: 45
A23: 2 | B23: 2012-11-14 | C23: =+fill_data!B74 -> 0 | D23: =+fill_data!E74 -> 0 | E23: =+fill_data!C74 -> 0 | F23: =++fill_data!D74 -> 0 | H23: =VLOOKUP($A23,ฝนใช้การ,3)/7 ->  | I23: 45
A24: 3 | B24: 2012-11-15 | C24: =+fill_data!B75 -> 0 | D24: =+fill_data!E75 -> 0 | E24: =+fill_data!C75 -> 0 | F24: =++fill_data!D75 -> 0 | H24: =VLOOKUP($A24,ฝนใช้การ,3)/7 ->  | I24: 45
A25: 3 | B25: 2012-11-16 | C25: =+fill_data!B76 -> 0 | D25: =+fill_data!E76 -> 0 | E25: =+fill_data!C76 -> 0 | F25: =++fill_data!D76 -> 0 | H25: =VLOOKUP($A25,ฝนใช้การ,3)/7 ->  | I25: 45
A26: 3 | B26: 2012-11-17 | C26: =+fill_data!B77 -> 0 | D26: =+fill_data!E77 -> 0 | E26: =+fill_data!C77 -> 0 | F26: =++fill_data!D77 -> 0 | H26: =VLOOKUP($A26,ฝนใช้การ,3)/7 ->  | I26: 45
A27: 3 | B27: 2012-11-18 | C27: =+fill_data!B78 -> 0 | D27: =+fill_data!E78 -> 0 | E27: =+fill_data!C78 -> 0 | F27: =++fill_data!D78 -> 0 | H27: =VLOOKUP($A27,ฝนใช้การ,3)/7 ->  | I27: 45
A28: 3 | B28: 2012-11-19 | C28: =+fill_data!B79 -> 0 | D28: =+fill_data!E79 -> 0 | E28: =+fill_data!C79 -> 0 | F28: =++fill_data!D79 -> 0 | H28: =VLOOKUP($A28,ฝนใช้การ,3)/7 ->  | I28: 45
A29: 3 | B29: 2012-11-20 | C29: =+fill_data!B80 -> 0 | D29: =+fill_data!E80 -> 0 | E29: =+fill_data!C80 -> 0 | F29: =++fill_data!D80 -> 0 | H29: =VLOOKUP($A29,ฝนใช้การ,3)/7 ->  | I29: 45
A30: 3 | B30: 2012-11-21 | C30: =+fill_data!B81 -> 0 | D30: =+fill_data!E81 -> 0 | E30: =+fill_data!C81 -> 0 | F30: =++fill_data!D81 -> 0 | H30: =VLOOKUP($A30,ฝนใช้การ,3)/7 ->  | I30: 45
A31: 4 | B31: 2012-11-22 | C31: =+fill_data!B82 -> 0 | D31: =+fill_data!E82 -> 0 | E31: =+fill_data!C82 -> 0 | F31: =++fill_data!D82 -> 0 | H31: =VLOOKUP($A31,ฝนใช้การ,3)/7 ->  | I31: 45
A32: 4 | B32: 2012-11-23 | C32: =+fill_data!B83 -> 0 | D32: =+fill_data!E83 -> 0 | E32: =+fill_data!C83 -> 0 | F32: =++fill_data!D83 -> 0 | H32: =VLOOKUP($A32,ฝนใช้การ,3)/7 ->  | I32: 45
A33: 4 | B33: 2012-11-24 | C33: =+fill_data!B84 -> 0 | D33: =+fill_data!E84 -> 0 | E33: =+fill_data!C84 -> 0 | F33: =++fill_data!D84 -> 0 | H33: =VLOOKUP($A33,ฝนใช้การ,3)/7 ->  | I33: 45
A34: 4 | B34: 2012-11-25 | C34: =+fill_data!B85 -> 0 | D34: =+fill_data!E85 -> 0 | E34: =+fill_data!C85 -> 0 | F34: =++fill_data!D85 -> 0 | H34: =VLOOKUP($A34,ฝนใช้การ,3)/7 ->  | I34: 45
A35: 4 | B35: 2012-11-26 | C35: =+fill_data!B86 -> 0 | D35: =+fill_data!E86 -> 0 | E35: =+fill_data!C86 -> 0 | F35: =++fill_data!D86 -> 0 | H35: =VLOOKUP($A35,ฝนใช้การ,3)/7 ->  | I35: 45
A36: 4 | B36: 2012-11-27 | C36: =+fill_data!B87 -> 0 | D36: =+fill_data!E87 -> 0 | E36: =+fill_data!C87 -> 0 | F36: =++fill_data!D87 -> 0 | H36: =VLOOKUP($A36,ฝนใช้การ,3)/7 ->  | I36: 45
A37: 4 | B37: 2012-11-28 | C37: =+fill_data!B88 -> 0 | D37: =+fill_data!E88 -> 0 | E37: =+fill_data!C88 -> 0 | F37: =++fill_data!D88 -> 0 | H37: =VLOOKUP($A37,ฝนใช้การ,3)/7 ->  | I37: 45
A38: 5 | B38: 2012-11-29 | C38: =+fill_data!B89 -> 0 | D38: =+fill_data!E89 -> 0 | E38: =+fill_data!C89 -> 0 | F38: =++fill_data!D89 -> 0 | H38: =VLOOKUP($A38,ฝนใช้การ,3)/7 ->  | I38: 45
A39: 5 | B39: 2012-11-30 | C39: =+fill_data!B90 -> 0 | D39: =+fill_data!E90 -> 0 | E39: =+fill_data!C90 -> 0 | F39: =++fill_data!D90 -> 0 | H39: =VLOOKUP($A39,ฝนใช้การ,3)/7 ->  | I39: 45
A40: 5 | B40: 2012-12-01 | C40: =+fill_data!B91 -> 0 | D40: =+fill_data!E91 -> 0 | E40: =+fill_data!C91 -> 0 | F40: =++fill_data!D91 -> 0 | H40: =VLOOKUP($A40,ฝนใช้การ,3)/7 ->  | I40: 45
A41: 5 | B41: 2012-12-02 | C41: =+fill_data!B92 -> 0 | D41: =+fill_data!E92 -> 0 | E41: =+fill_data!C92 -> 0 | F41: =++fill_data!D92 -> 0 | H41: =VLOOKUP($A41,ฝนใช้การ,3)/7 ->  | I41: 45
A42: 5 | B42: 2012-12-03 | C42: =+fill_data!B93 -> 0 | D42: =+fill_data!E93 -> 0 | E42: =+fill_data!C93 -> 0 | F42: =++fill_data!D93 -> 0 | H42: =VLOOKUP($A42,ฝนใช้การ,3)/7 ->  | I42: 45
A43: 5 | B43: 2012-12-04 | C43: =+fill_data!B94 -> 0 | D43: =+fill_data!E94 -> 0 | E43: =+fill_data!C94 -> 0 | F43: =++fill_data!D94 -> 0 | H43: =VLOOKUP($A43,ฝนใช้การ,3)/7 ->  | I43: 45
A44: 5 | B44: 2012-12-05 | C44: =+fill_data!B95 -> 0 | D44: =+fill_data!E95 -> 0 | E44: =+fill_data!C95 -> 0 | F44: =++fill_data!D95 -> 0 | H44: =VLOOKUP($A44,ฝนใช้การ,3)/7 ->  | I44: 45
A45: 6 | B45: 2012-12-06 | C45: =+fill_data!B96 -> 0 | D45: =+fill_data!E96 -> 0 | E45: =+fill_data!C96 -> 0 | F45: =++fill_data!D96 -> 0 | H45: =VLOOKUP($A45,ฝนใช้การ,3)/7 ->  | I45: 45
A46: 6 | B46: 2012-12-07 | C46: =+fill_data!B97 -> 0 | D46: =+fill_data!E97 -> 0 | E46: =+fill_data!C97 -> 0 | F46: =++fill_data!D97 -> 0 | H46: =VLOOKUP($A46,ฝนใช้การ,3)/7 ->  | I46: 45
A47: 6 | B47: 2012-12-08 | C47: =+fill_data!B98 -> 0 | D47: =+fill_data!E98 -> 0 | E47: =+fill_data!C98 -> 0 | F47: =++fill_data!D98 -> 0 | H47: =VLOOKUP($A47,ฝนใช้การ,3)/7 ->  | I47: 45
A48: 6 | B48: 2012-12-09 | C48: =+fill_data!B99 -> 0 | D48: =+fill_data!E99 -> 0 | E48: =+fill_data!C99 -> 0 | F48: =++fill_data!D99 -> 0 | H48: =VLOOKUP($A48,ฝนใช้การ,3)/7 ->  | I48: 45
A49: 6 | B49: 2012-12-10 | C49: =+fill_data!B100 -> 0 | D49: =+fill_data!E100 -> 0 | E49: =+fill_data!C100 -> 0 | F49: =++fill_data!D100 -> 0 | H49: =VLOOKUP($A49,ฝนใช้การ,3)/7 ->  | I49: 45 | M49: =+C49+D49+E49+F49+G49 -> 
A50: 6 | B50: 2012-12-11 | C50: =+fill_data!B101 -> 0 | D50: =+fill_data!E101 -> 0 | E50: =+fill_data!C101 -> 0 | F50: =++fill_data!D101 -> 0 | H50: =VLOOKUP($A50,ฝนใช้การ,3)/7 ->  | I50: 45 | M50: =+C50+D50+E50+F50+G50 -> 
A51: 6 | B51: 2012-12-12 | C51: =+fill_data!B102 -> 0 | D51: =+fill_data!E102 -> 0 | E51: =+fill_data!C102 -> 0 | F51: =++fill_data!D102 -> 0 | H51: =VLOOKUP($A51,ฝนใช้การ,3)/7 ->  | I51: 45
A52: 7 | B52: 2012-12-13 | C52: =+fill_data!B103 -> 0 | D52: =+fill_data!E103 -> 0 | E52: =+fill_data!C103 -> 0 | F52: =++fill_data!D103 -> 0 | H52: =VLOOKUP($A52,ฝนใช้การ,3)/7 ->  | I52: 45
A53: 7 | B53: 2012-12-14 | C53: =+fill_data!B104 -> 0 | D53: =+fill_data!E104 -> 0 | E53: =+fill_data!C104 -> 0 | F53: =++fill_data!D104 -> 0 | H53: =VLOOKUP($A53,ฝนใช้การ,3)/7 ->  | I53: 45
A54: 7 | B54: 2012-12-15 | C54: =+fill_data!B105 -> 0 | D54: =+fill_data!E105 -> 0 | E54: =+fill_data!C105 -> 0 | F54: =++fill_data!D105 -> 0 | H54: =VLOOKUP($A54,ฝนใช้การ,3)/7 ->  | I54: 45
A55: 7 | B55: 2012-12-16 | C55: =+fill_data!B106 -> 0 | D55: =+fill_data!E106 -> 0 | E55: =+fill_data!C106 -> 0 | F55: =++fill_data!D106 -> 0 | H55: =VLOOKUP($A55,ฝนใช้การ,3)/7 ->  | I55: 45
A56: 7 | B56: 2012-12-17 | C56: =+fill_data!B107 -> 0 | D56: =+fill_data!E107 -> 0 | E56: =+fill_data!C107 -> 0 | F56: =++fill_data!D107 -> 0 | H56: =VLOOKUP($A56,ฝนใช้การ,3)/7 ->  | I56: 45
A57: 7 | B57: 2012-12-18 | C57: =+fill_data!B108 -> 0 | D57: =+fill_data!E108 -> 0 | E57: =+fill_data!C108 -> 0 | F57: =++fill_data!D108 -> 0 | H57: =VLOOKUP($A57,ฝนใช้การ,3)/7 ->  | I57: 45
A58: 7 | B58: 2012-12-19 | C58: =+fill_data!B109 -> 0 | D58: =+fill_data!E109 -> 0 | E58: =+fill_data!C109 -> 0 | F58: =++fill_data!D109 -> 0 | H58: =VLOOKUP($A58,ฝนใช้การ,3)/7 ->  | I58: 45
A59: 8 | B59: 2012-12-20 | C59: =+fill_data!B110 -> 0 | D59: =+fill_data!E110 -> 0 | E59: =+fill_data!C110 -> 0 | F59: =++fill_data!D110 -> 0 | H59: =VLOOKUP($A59,ฝนใช้การ,3)/7 ->  | I59: 45
A60: 8 | B60: 2012-12-21 | C60: =+fill_data!B111 -> 0 | D60: =+fill_data!E111 -> 0 | E60: =+fill_data!C111 -> 0 | F60: =++fill_data!D111 -> 0 | H60: =VLOOKUP($A60,ฝนใช้การ,3)/7 ->  | I60: 45
A61: 8 | B61: 2012-12-22 | C61: =+fill_data!B112 -> 0 | D61: =+fill_data!E112 -> 0 | E61: =+fill_data!C112 -> 0 | F61: =++fill_data!D112 -> 0 | H61: =VLOOKUP($A61,ฝนใช้การ,3)/7 ->  | I61: 45
A62: 8 | B62: 2012-12-23 | C62: =+fill_data!B113 -> 0 | D62: =+fill_data!E113 -> 0 | E62: =+fill_data!C113 -> 0 | F62: =++fill_data!D113 -> 0 | H62: =VLOOKUP($A62,ฝนใช้การ,3)/7 ->  | I62: 45
A63: 8 | B63: 2012-12-24 | C63: =+fill_data!B114 -> 0 | D63: =+fill_data!E114 -> 0 | E63: =+fill_data!C114 -> 0 | F63: =++fill_data!D114 -> 0 | H63: =VLOOKUP($A63,ฝนใช้การ,3)/7 ->  | I63: 45
A64: 8 | B64: 2012-12-25 | C64: =+fill_data!B115 -> 0 | D64: =+fill_data!E115 -> 0 | E64: =+fill_data!C115 -> 0 | F64: =++fill_data!D115 -> 0 | H64: =VLOOKUP($A64,ฝนใช้การ,3)/7 ->  | I64: 45
A65: 8 | B65: 2012-12-26 | C65: =+fill_data!B116 -> 0 | D65: =+fill_data!E116 -> 0 | E65: =+fill_data!C116 -> 0 | F65: =++fill_data!D116 -> 0 | H65: =VLOOKUP($A65,ฝนใช้การ,3)/7 ->  | I65: 45
A66: 9 | B66: 2012-12-27 | C66: =+fill_data!B117 -> 0 | D66: =+fill_data!E117 -> 0 | E66: =+fill_data!C117 -> 0 | F66: =++fill_data!D117 -> 0 | H66: =VLOOKUP($A66,ฝนใช้การ,3)/7 ->  | I66: 45
A67: 9 | B67: 2012-12-28 | C67: =+fill_data!B118 -> 0 | D67: =+fill_data!E118 -> 0 | E67: =+fill_data!C118 -> 0 | F67: =++fill_data!D118 -> 0 | H67: =VLOOKUP($A67,ฝนใช้การ,3)/7 ->  | I67: 45
A68: 9 | B68: 2012-12-29 | C68: =+fill_data!B119 -> 0 | D68: =+fill_data!E119 -> 0 | E68: =+fill_data!C119 -> 0 | F68: =++fill_data!D119 -> 0 | H68: =VLOOKUP($A68,ฝนใช้การ,3)/7 ->  | I68: 45
A69: 9 | B69: 2012-12-30 | C69: =+fill_data!B120 -> 0 | D69: =+fill_data!E120 -> 0 | E69: =+fill_data!C120 -> 0 | F69: =++fill_data!D120 -> 0 | H69: =VLOOKUP($A69,ฝนใช้การ,3)/7 ->  | I69: 45
A70: 9 | B70: 2012-12-31 | C70: =+fill_data!B121 -> 0 | D70: =+fill_data!E121 -> 0 | E70: =+fill_data!C121 -> 0 | F70: =++fill_data!D121 -> 0 | H70: =VLOOKUP($A70,ฝนใช้การ,3)/7 ->  | I70: 45
A71: 9 | B71: 2013-01-01 | C71: =+fill_data!B122 -> 0 | D71: =+fill_data!E122 -> 0 | E71: =+fill_data!C122 -> 0 | F71: =++fill_data!D122 -> 0 | H71: =VLOOKUP($A71,ฝนใช้การ,3)/7 ->  | I71: 45
A72: 9 | B72: 2013-01-02 | C72: =+fill_data!B123 -> 0 | D72: =+fill_data!E123 -> 0 | E72: =+fill_data!C123 -> 0 | F72: =++fill_data!D123 -> 0 | H72: =VLOOKUP($A72,ฝนใช้การ,3)/7 ->  | I72: 45
A73: 10 | B73: 2013-01-03 | C73: =+fill_data!B124 -> 0 | D73: =+fill_data!E124 -> 0 | E73: =+fill_data!C124 -> 0 | F73: =++fill_data!D124 -> 0 | H73: =VLOOKUP($A73,ฝนใช้การ,3)/7 ->  | I73: 45
A74: 10 | B74: 2013-01-04 | C74: =+fill_data!B125 -> 0 | D74: =+fill_data!E125 -> 0 | E74: =+fill_data!C125 -> 0 | F74: =++fill_data!D125 -> 0 | G74: =VLOOKUP($A74,ความต้องการน้ำ,3)/7 ->  | H74: =VLOOKUP($A74,ฝนใช้การ,3)/7 ->  | I74: 45 | K74: =C74+D74+E74+F74+J74 -> 
A75: 10 | B75: =+B74+1 -> 2013-01-05 | C75: =+fill_data!B126 -> 0 | D75: =+fill_data!E126 -> 0 | E75: =+fill_data!C126 -> 0 | F75: =++fill_data!D126 -> 0 | H75: =VLOOKUP($A75,ฝนใช้การ,3)/7 ->  | I75: 45 | J75: =IF((G75-H75)<=0,0,+(G75-H75)/(I75/100)) -> 
A76: 10 | B76: 2013-01-06 | C76: =+fill_data!B127 -> 0 | D76: =+fill_data!E127 -> 0 | E76: =+fill_data!C127 -> 0 | F76: =++fill_data!D127 -> 0 | H76: =VLOOKUP($A76,ฝนใช้การ,3)/7 ->  | I76: =+I75 -> 45 | L76: =+L75+K76 -> 
A77: 10 | B77: 2013-01-07 | C77: =+fill_data!B128 -> 0 | D77: =+fill_data!E128 -> 0 | E77: =+fill_data!C128 -> 0 | F77: =++fill_data!D128 -> 0 | H77: =VLOOKUP($A77,ฝนใช้การ,3)/7 ->  | I77: 45
A78: 10 | B78: 2013-01-08 | C78: =+fill_data!B129 -> 0 | D78: =+fill_data!E129 -> 0 | E78: =+fill_data!C129 -> 0 | F78: =++fill_data!D129 -> 0 | H78: =VLOOKUP($A78,ฝนใช้การ,3)/7 ->  | I78: 45
A79: 10 | B79: 2013-01-09 | C79: =+fill_data!B130 -> 0 | D79: =+fill_data!E130 -> 0 | E79: =+fill_data!C130 -> 0 | F79: =++fill_data!D130 -> 0 | H79: =VLOOKUP($A79,ฝนใช้การ,3)/7 ->  | I79: 45
A80: 11 | B80: 2013-01-10 | C80: =+fill_data!B131 -> 0 | D80: =+fill_data!E131 -> 0 | E80: =+fill_data!C131 -> 0 | F80: =++fill_data!D131 -> 0 | H80: =VLOOKUP($A80,ฝนใช้การ,3)/7 ->  | I80: 45
A81: =+A80 -> 11 | B81: 2013-01-11 | C81: =+fill_data!B132 -> 0 | D81: =+fill_data!E132 -> 0 | E81: =+fill_data!C132 -> 0 | F81: =++fill_data!D132 -> 0 | H81: =VLOOKUP($A81,ฝนใช้การ,3)/7 ->  | I81: 45
A82: 11 | B82: 2013-01-12 | C82: =+fill_data!B133 -> 0 | D82: =+fill_data!E133 -> 0 | E82: =+fill_data!C133 -> 0 | F82: =++fill_data!D133 -> 0 | H82: =VLOOKUP($A82,ฝนใช้การ,3)/7 ->  | I82: 45
A83: 11 | B83: 2013-01-13 | C83: =+fill_data!B134 -> 0 | D83: =+fill_data!E134 -> 0 | E83: =+fill_data!C134 -> 0 | F83: =++fill_data!D134 -> 0 | H83: =VLOOKUP($A83,ฝนใช้การ,3)/7 ->  | I83: 45
A84: 11 | B84: 2013-01-14 | C84: =+fill_data!B135 -> 0 | D84: =+fill_data!E135 -> 0 | E84: =+fill_data!C135 -> 0 | F84: =++fill_data!D135 -> 0 | H84: =VLOOKUP($A84,ฝนใช้การ,3)/7 ->  | I84: 45
A85: 11 | B85: 2013-01-15 | C85: =+fill_data!B136 -> 0 | D85: =+fill_data!E136 -> 0 | E85: =+fill_data!C136 -> 0 | F85: =++fill_data!D136 -> 0 | H85: =VLOOKUP($A85,ฝนใช้การ,3)/7 ->  | I85: 45
A86: 11 | B86: 2013-01-16 | C86: =+fill_data!B137 -> 0 | D86: =+fill_data!E137 -> 0 | E86: =+fill_data!C137 -> 0 | F86: =++fill_data!D137 -> 0 | H86: =VLOOKUP($A86,ฝนใช้การ,3)/7 ->  | I86: 45
A87: 12 | B87: 2013-01-17 | C87: =+fill_data!B138 -> 0 | D87: =+fill_data!E138 -> 0 | E87: =+fill_data!C138 -> 0 | F87: =++fill_data!D138 -> 0 | H87: =VLOOKUP($A87,ฝนใช้การ,3)/7 ->  | I87: 45
A88: 12 | B88: 2013-01-18 | C88: =+fill_data!B139 -> 0 | D88: =+fill_data!E139 -> 0 | E88: =+fill_data!C139 -> 0 | F88: =++fill_data!D139 -> 0 | H88: =VLOOKUP($A88,ฝนใช้การ,3)/7 ->  | I88: 45
A89: 12 | B89: 2013-01-19 | C89: =+fill_data!B140 -> 0 | D89: =+fill_data!E140 -> 0 | E89: =+fill_data!C140 -> 0 | F89: =++fill_data!D140 -> 0 | H89: =VLOOKUP($A89,ฝนใช้การ,3)/7 ->  | I89: 45
A90: 12 | B90: 2013-01-20 | C90: =+fill_data!B141 -> 0 | D90: =+fill_data!E141 -> 0 | E90: =+fill_data!C141 -> 0 | F90: =++fill_data!D141 -> 0 | H90: =VLOOKUP($A90,ฝนใช้การ,3)/7 ->  | I90: 45
A91: 12 | B91: 2013-01-21 | C91: =+fill_data!B142 -> 0 | D91: =+fill_data!E142 -> 0 | E91: =+fill_data!C142 -> 0 | F91: =++fill_data!D142 -> 0 | H91: =VLOOKUP($A91,ฝนใช้การ,3)/7 ->  | I91: 45
A92: 12 | B92: 2013-01-22 | C92: =+fill_data!B143 -> 0 | D92: =+fill_data!E143 -> 0 | E92: =+fill_data!C143 -> 0 | F92: =++fill_data!D143 -> 0 | H92: =VLOOKUP($A92,ฝนใช้การ,3)/7 ->  | I92: 45
A93: 12 | B93: 2013-01-23 | C93: =+fill_data!B144 -> 0 | D93: =+fill_data!E144 -> 0 | E93: =+fill_data!C144 -> 0 | F93: =++fill_data!D144 -> 0 | H93: =VLOOKUP($A93,ฝนใช้การ,3)/7 ->  | I93: 45
A94: 13 | B94: 2013-01-24 | C94: =+fill_data!B145 -> 0 | D94: =+fill_data!E145 -> 0 | E94: =+fill_data!C145 -> 0 | F94: =++fill_data!D145 -> 0 | H94: =VLOOKUP($A94,ฝนใช้การ,3)/7 ->  | I94: 45
A95: 13 | B95: 2013-01-25 | C95: =+fill_data!B146 -> 0 | D95: =+fill_data!E146 -> 0 | E95: =+fill_data!C146 -> 0 | F95: =++fill_data!D146 -> 0 | H95: =VLOOKUP($A95,ฝนใช้การ,3)/7 ->  | I95: 45
A96: 13 | B96: 2013-01-26 | C96: =+fill_data!B147 -> 0 | D96: =+fill_data!E147 -> 0 | E96: =+fill_data!C147 -> 0 | F96: =++fill_data!D147 -> 0 | H96: =VLOOKUP($A96,ฝนใช้การ,3)/7 ->  | I96: 45
A97: 13 | B97: 2013-01-27 | C97: =+fill_data!B148 -> 0 | D97: =+fill_data!E148 -> 0 | E97: =+fill_data!C148 -> 0 | F97: =++fill_data!D148 -> 0 | H97: =VLOOKUP($A97,ฝนใช้การ,3)/7 ->  | I97: 45
A98: 13 | B98: 2013-01-28 | C98: =+fill_data!B149 -> 0 | D98: =+fill_data!E149 -> 0 | E98: =+fill_data!C149 -> 0 | F98: =++fill_data!D149 -> 0 | H98: =VLOOKUP($A98,ฝนใช้การ,3)/7 ->  | I98: 45
A99: 13 | B99: 2013-01-29 | C99: =+fill_data!B150 -> 0 | D99: =+fill_data!E150 -> 0 | E99: =+fill_data!C150 -> 0 | F99: =++fill_data!D150 -> 0 | H99: =VLOOKUP($A99,ฝนใช้การ,3)/7 ->  | I99: 45
A100: 13 | B100: 2013-01-30 | C100: =+fill_data!B151 -> 0 | D100: =+fill_data!E151 -> 0 | E100: =+fill_data!C151 -> 0 | F100: =++fill_data!D151 -> 0 | H100: =VLOOKUP($A100,ฝนใช้การ,3)/7 ->  | I100: 45
A101: 14 | B101: 2013-01-31 | C101: =+fill_data!B152 -> 0 | D101: =+fill_data!E152 -> 0 | E101: =+fill_data!C152 -> 0 | F101: =++fill_data!D152 -> 0 | H101: =VLOOKUP($A101,ฝนใช้การ,3)/7 ->  | I101: 45
A102: 14 | B102: 2013-02-01 | C102: =+fill_data!B153 -> 0 | D102: =+fill_data!E153 -> 0 | E102: =+fill_data!C153 -> 0 | F102: =++fill_data!D153 -> 0 | H102: =VLOOKUP($A102,ฝนใช้การ,3)/7 ->  | I102: 45
A103: 14 | B103: 2013-02-02 | C103: =+fill_data!B154 -> 0 | D103: =+fill_data!E154 -> 0 | E103: =+fill_data!C154 -> 0 | F103: =++fill_data!D154 -> 0 | H103: =VLOOKUP($A103,ฝนใช้การ,3)/7 ->  | I103: 45
A104: 14 | B104: 2013-02-03 | C104: =+fill_data!B155 -> 0 | D104: =+fill_data!E155 -> 0 | E104: =+fill_data!C155 -> 0 | F104: =++fill_data!D155 -> 0 | H104: =VLOOKUP($A104,ฝนใช้การ,3)/7 ->  | I104: 45
A105: 14 | B105: 2013-02-04 | C105: =+fill_data!B156 -> 0 | D105: =+fill_data!E156 -> 0 | E105: =+fill_data!C156 -> 0 | F105: =++fill_data!D156 -> 0 | H105: =VLOOKUP($A105,ฝนใช้การ,3)/7 ->  | I105: 45
A106: 14 | B106: 2013-02-05 | C106: =+fill_data!B157 -> 0 | D106: =+fill_data!E157 -> 0 | E106: =+fill_data!C157 -> 0 | F106: =++fill_data!D157 -> 0 | H106: =VLOOKUP($A106,ฝนใช้การ,3)/7 ->  | I106: 45
A107: 14 | B107: 2013-02-06 | C107: =+fill_data!B158 -> 0 | D107: =+fill_data!E158 -> 0 | E107: =+fill_data!C158 -> 0 | F107: =++fill_data!D158 -> 0 | H107: =VLOOKUP($A107,ฝนใช้การ,3)/7 ->  | I107: 45
A108: 15 | B108: 2013-02-07 | C108: =+fill_data!B159 -> 0 | D108: =+fill_data!E159 -> 0 | E108: =+fill_data!C159 -> 0 | F108: =++fill_data!D159 -> 0 | H108: =VLOOKUP($A108,ฝนใช้การ,3)/7 ->  | I108: 45
A109: 15 | B109: 2013-02-08 | C109: =+fill_data!B160 -> 0 | D109: =+fill_data!E160 -> 0 | E109: =+fill_data!C160 -> 0 | F109: =++fill_data!D160 -> 0 | H109: =VLOOKUP($A109,ฝนใช้การ,3)/7 ->  | I109: 45
A110: 15 | B110: 2013-02-09 | C110: =+fill_data!B161 -> 0 | D110: =+fill_data!E161 -> 0 | E110: =+fill_data!C161 -> 0 | F110: =++fill_data!D161 -> 0 | H110: =VLOOKUP($A110,ฝนใช้การ,3)/7 ->  | I110: 45
A111: 15 | B111: 2013-02-10 | C111: =+fill_data!B162 -> 0 | D111: =+fill_data!E162 -> 0 | E111: =+fill_data!C162 -> 0 | F111: =++fill_data!D162 -> 0 | H111: =VLOOKUP($A111,ฝนใช้การ,3)/7 ->  | I111: 45
A112: 15 | B112: 2013-02-11 | C112: =+fill_data!B163 -> 0 | D112: =+fill_data!E163 -> 0 | E112: =+fill_data!C163 -> 0 | F112: =++fill_data!D163 -> 0 | H112: =VLOOKUP($A112,ฝนใช้การ,3)/7 ->  | I112: 45
A113: 15 | B113: 2013-02-12 | C113: =+fill_data!B164 -> 0 | D113: =+fill_data!E164 -> 0 | E113: =+fill_data!C164 -> 0 | F113: =++fill_data!D164 -> 0 | H113: =VLOOKUP($A113,ฝนใช้การ,3)/7 ->  | I113: 45
A114: 15 | B114: 2013-02-13 | C114: =+fill_data!B165 -> 0 | D114: =+fill_data!E165 -> 0 | E114: =+fill_data!C165 -> 0 | F114: =++fill_data!D165 -> 0 | H114: =VLOOKUP($A114,ฝนใช้การ,3)/7 ->  | I114: 45 | M114: =+C114+D114+E114+F114+G114 -> 
A115: 16 | B115: 2013-02-14 | C115: =+fill_data!B166 -> 0 | D115: =+fill_data!E166 -> 0 | E115: =+fill_data!C166 -> 0 | F115: =++fill_data!D166 -> 0 | H115: =VLOOKUP($A115,ฝนใช้การ,3)/7 ->  | I115: 45
A116: 16 | B116: 2013-02-15 | C116: =+fill_data!B167 -> 0 | D116: =+fill_data!E167 -> 0 | E116: =+fill_data!C167 -> 0 | F116: =++fill_data!D167 -> 0 | H116: =VLOOKUP($A116,ฝนใช้การ,3)/7 ->  | I116: 45
A117: 16 | B117: 2013-02-16 | C117: =+fill_data!B168 -> 0 | D117: =+fill_data!E168 -> 0 | E117: =+fill_data!C168 -> 0 | F117: =++fill_data!D168 -> 0 | H117: =VLOOKUP($A117,ฝนใช้การ,3)/7 ->  | I117: 45
A118: 16 | B118: 2013-02-17 | C118: =+fill_data!B169 -> 0 | D118: =+fill_data!E169 -> 0 | E118: =+fill_data!C169 -> 0 | F118: =++fill_data!D169 -> 0 | H118: =VLOOKUP($A118,ฝนใช้การ,3)/7 ->  | I118: 45
A119: 16 | B119: 2013-02-18 | C119: =+fill_data!B170 -> 0 | D119: =+fill_data!E170 -> 0 | E119: =+fill_data!C170 -> 0 | F119: =++fill_data!D170 -> 0 | H119: =VLOOKUP($A119,ฝนใช้การ,3)/7 ->  | I119: 45
A120: 16 | B120: 2013-02-19 | C120: =+fill_data!B171 -> 0 | D120: =+fill_data!E171 -> 0 | E120: =+fill_data!C171 -> 0 | F120: =++fill_data!D171 -> 0 | H120: =VLOOKUP($A120,ฝนใช้การ,3)/7 ->  | I120: 45
A121: 16 | B121: 2013-02-20 | C121: =+fill_data!B172 -> 0 | D121: =+fill_data!E172 -> 0 | E121: =+fill_data!C172 -> 0 | F121: =++fill_data!D172 -> 0 | H121: =VLOOKUP($A121,ฝนใช้การ,3)/7 ->  | I121: 45
A122: 17 | B122: 2013-02-21 | C122: =+fill_data!B173 -> 0 | D122: =+fill_data!E173 -> 0 | E122: =+fill_data!C173 -> 0 | F122: =++fill_data!D173 -> 0 | H122: =VLOOKUP($A122,ฝนใช้การ,3)/7 ->  | I122: 45
A123: 17 | B123: 2013-02-22 | C123: =+fill_data!B174 -> 0 | D123: =+fill_data!E174 -> 0 | E123: =+fill_data!C174 -> 0 | F123: =++fill_data!D174 -> 0 | H123: =VLOOKUP($A123,ฝนใช้การ,3)/7 ->  | I123: 45
A124: 17 | B124: 2013-02-23 | C124: =+fill_data!B175 -> 0 | D124: =+fill_data!E175 -> 0 | E124: =+fill_data!C175 -> 0 | F124: =++fill_data!D175 -> 0 | H124: =VLOOKUP($A124,ฝนใช้การ,3)/7 ->  | I124: 45
A125: 17 | B125: 2013-02-24 | C125: =+fill_data!B176 -> 0 | D125: =+fill_data!E176 -> 0 | E125: =+fill_data!C176 -> 0 | F125: =++fill_data!D176 -> 0 | H125: =VLOOKUP($A125,ฝนใช้การ,3)/7 ->  | I125: 45
A126: 17 | B126: 2013-02-25 | C126: =+fill_data!B177 -> 0 | D126: =+fill_data!E177 -> 0 | E126: =+fill_data!C177 -> 0 | F126: =++fill_data!D177 -> 0 | H126: =VLOOKUP($A126,ฝนใช้การ,3)/7 ->  | I126: 45
A127: 17 | B127: 2013-02-26 | C127: =+fill_data!B178 -> 0 | D127: =+fill_data!E178 -> 0 | E127: =+fill_data!C178 -> 0 | F127: =++fill_data!D178 -> 0 | H127: =VLOOKUP($A127,ฝนใช้การ,3)/7 ->  | I127: 45
A128: 17 | B128: 2013-02-27 | C128: =+fill_data!B179 -> 0 | D128: =+fill_data!E179 -> 0 | E128: =+fill_data!C179 -> 0 | F128: =++fill_data!D179 -> 0 | H128: =VLOOKUP($A128,ฝนใช้การ,3)/7 ->  | I128: 45
A129: 18 | B129: 2013-02-28 | C129: =+fill_data!B180 -> 0 | D129: =+fill_data!E180 -> 0 | E129: =+fill_data!C180 -> 0 | F129: =++fill_data!D180 -> 0 | H129: =VLOOKUP($A129,ฝนใช้การ,3)/7 ->  | I129: 45
A130: 18 | B130: 2013-03-01 | C130: =+fill_data!B181 -> 0 | D130: =+fill_data!E181 -> 0 | E130: =+fill_data!C181 -> 0 | F130: =++fill_data!D181 -> 0 | H130: =VLOOKUP($A130,ฝนใช้การ,3)/7 ->  | I130: 45
A131: 18 | B131: 2013-03-02 | C131: =+fill_data!B182 -> 0 | D131: =+fill_data!E182 -> 0 | E131: =+fill_data!C182 -> 0 | F131: =++fill_data!D182 -> 0 | H131: =VLOOKUP($A131,ฝนใช้การ,3)/7 ->  | I131: 45
A132: 18 | B132: 2013-03-03 | C132: =+fill_data!B183 -> 0 | D132: =+fill_data!E183 -> 0 | E132: =+fill_data!C183 -> 0 | F132: =++fill_data!D183 -> 0 | H132: =VLOOKUP($A132,ฝนใช้การ,3)/7 ->  | I132: 45
A133: 18 | B133: 2013-03-04 | C133: =+fill_data!B184 -> 0 | D133: =+fill_data!E184 -> 0 | E133: =+fill_data!C184 -> 0 | F133: =++fill_data!D184 -> 0 | H133: =VLOOKUP($A133,ฝนใช้การ,3)/7 ->  | I133: 45
A134: 18 | B134: 2013-03-05 | C134: =+fill_data!B185 -> 0 | D134: =+fill_data!E185 -> 0 | E134: =+fill_data!C185 -> 0 | F134: =++fill_data!D185 -> 0 | H134: =VLOOKUP($A134,ฝนใช้การ,3)/7 ->  | I134: 45
A135: 18 | B135: 2013-03-06 | C135: =+fill_data!B186 -> 0 | D135: =+fill_data!E186 -> 0 | E135: =+fill_data!C186 -> 0 | F135: =++fill_data!D186 -> 0 | H135: =VLOOKUP($A135,ฝนใช้การ,3)/7 ->  | I135: 45
A136: 19 | B136: 2013-03-07 | C136: =+fill_data!B187 -> 0 | D136: =+fill_data!E187 -> 0 | E136: =+fill_data!C187 -> 0 | F136: =++fill_data!D187 -> 0 | H136: =VLOOKUP($A136,ฝนใช้การ,3)/7 ->  | I136: 45
A137: 19 | B137: 2013-03-08 | C137: =+fill_data!B188 -> 0 | D137: =+fill_data!E188 -> 0 | E137: =+fill_data!C188 -> 0 | F137: =++fill_data!D188 -> 0 | H137: =VLOOKUP($A137,ฝนใช้การ,3)/7 ->  | I137: 45
A138: 19 | B138: 2013-03-09 | C138: =+fill_data!B189 -> 0 | D138: =+fill_data!E189 -> 0 | E138: =+fill_data!C189 -> 0 | F138: =++fill_data!D189 -> 0 | G138: =VLOOKUP($A138,ความต้องการน้ำ,3)/7 ->  | H138: =VLOOKUP($A138,ฝนใช้การ,3)/7 ->  | I138: 45 | K138: =C138+D138+E138+F138+J138 -> 
A139: 19 | B139: =+B138+1 -> 2013-03-10 | C139: =+fill_data!B190 -> 0 | D139: =+fill_data!E190 -> 0 | E139: =+fill_data!C190 -> 0 | F139: =++fill_data!D190 -> 0 | H139: =VLOOKUP($A139,ฝนใช้การ,3)/7 ->  | I139: 45 | J139: =IF((G139-H139)<=0,0,+(G139-H139)/(I139/100)) -> 
A140: 19 | B140: 2013-03-11 | C140: =+fill_data!B191 -> 0 | D140: =+fill_data!E191 -> 0 | E140: =+fill_data!C191 -> 0 | F140: =++fill_data!D191 -> 0 | H140: =VLOOKUP($A140,ฝนใช้การ,3)/7 ->  | I140: =+I139 -> 45 | L140: =+L139+K140 -> 
A141: 19 | B141: 2013-03-12 | C141: =+fill_data!B192 -> 0 | D141: =+fill_data!E192 -> 0 | E141: =+fill_data!C192 -> 0 | F141: =++fill_data!D192 -> 0 | H141: =VLOOKUP($A141,ฝนใช้การ,3)/7 ->  | I141: 45
A142: 19 | B142: 2013-03-13 | C142: =+fill_data!B193 -> 0 | D142: =+fill_data!E193 -> 0 | E142: =+fill_data!C193 -> 0 | F142: =++fill_data!D193 -> 0 | H142: =VLOOKUP($A142,ฝนใช้การ,3)/7 ->  | I142: 45
A143: 20 | B143: 2013-03-14 | C143: =+fill_data!B194 -> 0 | D143: =+fill_data!E194 -> 0 | E143: =+fill_data!C194 -> 0 | F143: =++fill_data!D194 -> 0 | H143: =VLOOKUP($A143,ฝนใช้การ,3)/7 ->  | I143: 45
A144: =+A143 -> 20 | B144: 2013-03-15 | C144: =+fill_data!B195 -> 0 | D144: =+fill_data!E195 -> 0 | E144: =+fill_data!C195 -> 0 | F144: =++fill_data!D195 -> 0 | H144: =VLOOKUP($A144,ฝนใช้การ,3)/7 ->  | I144: 45
A145: 20 | B145: 2013-03-16 | C145: =+fill_data!B196 -> 0 | D145: =+fill_data!E196 -> 0 | E145: =+fill_data!C196 -> 0 | F145: =++fill_data!D196 -> 0 | H145: =VLOOKUP($A145,ฝนใช้การ,3)/7 ->  | I145: 45
A146: 20 | B146: 2013-03-17 | C146: =+fill_data!B197 -> 0 | D146: =+fill_data!E197 -> 0 | E146: =+fill_data!C197 -> 0 | F146: =++fill_data!D197 -> 0 | H146: =VLOOKUP($A146,ฝนใช้การ,3)/7 ->  | I146: 45
A147: 20 | B147: 2013-03-18 | C147: =+fill_data!B198 -> 0 | D147: =+fill_data!E198 -> 0 | E147: =+fill_data!C198 -> 0 | F147: =++fill_data!D198 -> 0 | H147: =VLOOKUP($A147,ฝนใช้การ,3)/7 ->  | I147: 45
A148: 20 | B148: 2013-03-19 | C148: =+fill_data!B199 -> 0 | D148: =+fill_data!E199 -> 0 | E148: =+fill_data!C199 -> 0 | F148: =++fill_data!D199 -> 0 | H148: =VLOOKUP($A148,ฝนใช้การ,3)/7 ->  | I148: 45
A149: 20 | B149: 2013-03-20 | C149: =+fill_data!B200 -> 0 | D149: =+fill_data!E200 -> 0 | E149: =+fill_data!C200 -> 0 | F149: =++fill_data!D200 -> 0 | H149: =VLOOKUP($A149,ฝนใช้การ,3)/7 ->  | I149: 45
A150: 21 | B150: 2013-03-21 | C150: =+fill_data!B201 -> 0 | D150: =+fill_data!E201 -> 0 | E150: =+fill_data!C201 -> 0 | F150: =++fill_data!D201 -> 0 | H150: =VLOOKUP($A150,ฝนใช้การ,3)/7 ->  | I150: 45
A151: 21 | B151: 2013-03-22 | C151: =+fill_data!B202 -> 0 | D151: =+fill_data!E202 -> 0 | E151: =+fill_data!C202 -> 0 | F151: =++fill_data!D202 -> 0 | H151: =VLOOKUP($A151,ฝนใช้การ,3)/7 ->  | I151: 45
A152: 21 | B152: 2013-03-23 | C152: =+fill_data!B203 -> 0 | D152: =+fill_data!E203 -> 0 | E152: =+fill_data!C203 -> 0 | F152: =++fill_data!D203 -> 0 | H152: =VLOOKUP($A152,ฝนใช้การ,3)/7 ->  | I152: 45
A153: 21 | B153: 2013-03-24 | C153: =+fill_data!B204 -> 0 | D153: =+fill_data!E204 -> 0 | E153: =+fill_data!C204 -> 0 | F153: =++fill_data!D204 -> 0 | H153: =VLOOKUP($A153,ฝนใช้การ,3)/7 ->  | I153: 45
A154: 21 | B154: 2013-03-25 | C154: =+fill_data!B205 -> 0 | D154: =+fill_data!E205 -> 0 | E154: =+fill_data!C205 -> 0 | F154: =++fill_data!D205 -> 0 | H154: =VLOOKUP($A154,ฝนใช้การ,3)/7 ->  | I154: 45
A155: 21 | B155: 2013-03-26 | C155: =+fill_data!B206 -> 0 | D155: =+fill_data!E206 -> 0 | E155: =+fill_data!C206 -> 0 | F155: =++fill_data!D206 -> 0 | H155: =VLOOKUP($A155,ฝนใช้การ,3)/7 ->  | I155: 45
A156: 21 | B156: 2013-03-27 | C156: =+fill_data!B207 -> 0 | D156: =+fill_data!E207 -> 0 | E156: =+fill_data!C207 -> 0 | F156: =++fill_data!D207 -> 0 | H156: =VLOOKUP($A156,ฝนใช้การ,3)/7 ->  | I156: 45
A157: 22 | B157: 2013-03-28 | C157: =+fill_data!B208 -> 0 | D157: =+fill_data!E208 -> 0 | E157: =+fill_data!C208 -> 0 | F157: =++fill_data!D208 -> 0 | H157: =VLOOKUP($A157,ฝนใช้การ,3)/7 ->  | I157: 45
A158: 22 | B158: 2013-03-29 | C158: =+fill_data!B209 -> 0 | D158: =+fill_data!E209 -> 0 | E158: =+fill_data!C209 -> 0 | F158: =++fill_data!D209 -> 0 | H158: =VLOOKUP($A158,ฝนใช้การ,3)/7 ->  | I158: 45
A159: 22 | B159: 2013-03-30 | C159: =+fill_data!B210 -> 0 | D159: =+fill_data!E210 -> 0 | E159: =+fill_data!C210 -> 0 | F159: =++fill_data!D210 -> 0 | H159: =VLOOKUP($A159,ฝนใช้การ,3)/7 ->  | I159: 45
A160: 22 | B160: 2013-03-31 | C160: =+fill_data!B211 -> 0 | D160: =+fill_data!E211 -> 0 | E160: =+fill_data!C211 -> 0 | F160: =++fill_data!D211 -> 0 | H160: =VLOOKUP($A160,ฝนใช้การ,3)/7 ->  | I160: 45
A161: 22 | B161: 2013-04-01 | C161: =+fill_data!B212 -> 0 | D161: =+fill_data!E212 -> 0 | E161: =+fill_data!C212 -> 0 | F161: =++fill_data!D212 -> 0 | H161: =VLOOKUP($A161,ฝนใช้การ,3)/7 ->  | I161: 45
A162: 22 | B162: 2013-04-02 | C162: =+fill_data!B213 -> 0 | D162: =+fill_data!E213 -> 0 | E162: =+fill_data!C213 -> 0 | F162: =++fill_data!D213 -> 0 | H162: =VLOOKUP($A162,ฝนใช้การ,3)/7 ->  | I162: 45
A163: 22 | B163: 2013-04-03 | C163: =+fill_data!B214 -> 0 | D163: =+fill_data!E214 -> 0 | E163: =+fill_data!C214 -> 0 | F163: =++fill_data!D214 -> 0 | H163: =VLOOKUP($A163,ฝนใช้การ,3)/7 ->  | I163: 45
A164: 23 | B164: 2013-04-04 | C164: =+fill_data!B215 -> 0 | D164: =+fill_data!E215 -> 0 | E164: =+fill_data!C215 -> 0 | F164: =++fill_data!D215 -> 0 | H164: =VLOOKUP($A164,ฝนใช้การ,3)/7 ->  | I164: 45
A165: 23 | B165: 2013-04-05 | C165: =+fill_data!B216 -> 0 | D165: =+fill_data!E216 -> 0 | E165: =+fill_data!C216 -> 0 | F165: =++fill_data!D216 -> 0 | H165: =VLOOKUP($A165,ฝนใช้การ,3)/7 ->  | I165: 45
A166: 23 | B166: 2013-04-06 | C166: =+fill_data!B217 -> 0 | D166: =+fill_data!E217 -> 0 | E166: =+fill_data!C217 -> 0 | F166: =++fill_data!D217 -> 0 | H166: =VLOOKUP($A166,ฝนใช้การ,3)/7 ->  | I166: 45
A167: 23 | B167: 2013-04-07 | C167: =+fill_data!B218 -> 0 | D167: =+fill_data!E218 -> 0 | E167: =+fill_data!C218 -> 0 | F167: =++fill_data!D218 -> 0 | H167: =VLOOKUP($A167,ฝนใช้การ,3)/7 ->  | I167: 45
A168: 23 | B168: 2013-04-08 | C168: =+fill_data!B219 -> 0 | D168: =+fill_data!E219 -> 0 | E168: =+fill_data!C219 -> 0 | F168: =++fill_data!D219 -> 0 | H168: =VLOOKUP($A168,ฝนใช้การ,3)/7 ->  | I168: 45
A169: 23 | B169: 2013-04-09 | C169: =+fill_data!B220 -> 0 | D169: =+fill_data!E220 -> 0 | E169: =+fill_data!C220 -> 0 | F169: =++fill_data!D220 -> 0 | H169: =VLOOKUP($A169,ฝนใช้การ,3)/7 ->  | I169: 45
A170: 23 | B170: 2013-04-10 | C170: =+fill_data!B221 -> 0 | D170: =+fill_data!E221 -> 0 | E170: =+fill_data!C221 -> 0 | F170: =++fill_data!D221 -> 0 | H170: =VLOOKUP($A170,ฝนใช้การ,3)/7 ->  | I170: 45
A171: 24 | B171: 2013-04-11 | C171: =+fill_data!B222 -> 0 | D171: =+fill_data!E222 -> 0 | E171: =+fill_data!C222 -> 0 | F171: =++fill_data!D222 -> 0 | H171: =VLOOKUP($A171,ฝนใช้การ,3)/7 ->  | I171: 45
A172: 24 | B172: 2013-04-12 | C172: =++fill_data!B223 -> 0 | D172: =+fill_data!E223 -> 0 | E172: =+fill_data!C223 -> 0 | F172: =++fill_data!D223 -> 0 | H172: =VLOOKUP($A172,ฝนใช้การ,3)/7 ->  | I172: 45
A173: 24 | B173: 2013-04-13 | C173: =+fill_data!B224 -> 0 | D173: =+fill_data!E224 -> 0 | E173: =+fill_data!C224 -> 0 | F173: =++fill_data!D224 -> 0 | H173: =VLOOKUP($A173,ฝนใช้การ,3)/7 ->  | I173: 45
A174: 24 | B174: 2013-04-14 | C174: =+fill_data!B225 -> 0 | D174: =+fill_data!E225 -> 0 | E174: =+fill_data!C225 -> 0 | F174: =++fill_data!D225 -> 0 | H174: =VLOOKUP($A174,ฝนใช้การ,3)/7 ->  | I174: 45
A175: 24 | B175: 2013-04-15 | C175: =+fill_data!B226 -> 0 | D175: =+fill_data!E226 -> 0 | E175: =+fill_data!C226 -> 0 | F175: =++fill_data!D226 -> 0 | H175: =VLOOKUP($A175,ฝนใช้การ,3)/7 ->  | I175: 45
A176: 24 | B176: 2013-04-16 | C176: =+fill_data!B227 -> 0 | D176: =+fill_data!E227 -> 0 | E176: =+fill_data!C227 -> 0 | F176: =++fill_data!D227 -> 0 | H176: =VLOOKUP($A176,ฝนใช้การ,3)/7 ->  | I176: 45
A177: 24 | B177: 2013-04-17 | C177: =+fill_data!B228 -> 0 | D177: =+fill_data!E228 -> 0 | E177: =+fill_data!C228 -> 0 | F177: =++fill_data!D228 -> 0 | H177: =VLOOKUP($A177,ฝนใช้การ,3)/7 ->  | I177: 45
A178: 25 | B178: 2013-04-18 | C178: =+fill_data!B229 -> 0 | D178: =+fill_data!E229 -> 0 | E178: =+fill_data!C229 -> 0 | F178: =++fill_data!D229 -> 0 | H178: =VLOOKUP($A178,ฝนใช้การ,3)/7 ->  | I178: 45 | M178: =+C178+D178+E178+F178+G178 -> 
A179: 25 | B179: 2013-04-19 | C179: =+fill_data!B230 -> 0 | D179: =+fill_data!E230 -> 0 | E179: =+fill_data!C230 -> 0 | F179: =++fill_data!D230 -> 0 | H179: =VLOOKUP($A179,ฝนใช้การ,3)/7 ->  | I179: 45
A180: 25 | B180: 2013-04-20 | C180: =+fill_data!B231 -> 0 | D180: =+fill_data!E231 -> 0 | E180: =+fill_data!C231 -> 0 | F180: =++fill_data!D231 -> 0 | H180: =VLOOKUP($A180,ฝนใช้การ,3)/7 ->  | I180: 45
A181: 25 | B181: 2013-04-21 | C181: =+fill_data!B232 -> 0 | D181: =+fill_data!E232 -> 0 | E181: =+fill_data!C232 -> 0 | F181: =++fill_data!D232 -> 0 | H181: =VLOOKUP($A181,ฝนใช้การ,3)/7 ->  | I181: 45
A182: 25 | B182: 2013-04-22 | C182: =+fill_data!B233 -> 0 | D182: =+fill_data!E233 -> 0 | E182: =+fill_data!C233 -> 0 | F182: =++fill_data!D233 -> 0 | H182: =VLOOKUP($A182,ฝนใช้การ,3)/7 ->  | I182: 45
A183: 25 | B183: 2013-04-23 | C183: =+fill_data!B234 -> 0 | D183: =+fill_data!E234 -> 0 | E183: =+fill_data!C234 -> 0 | F183: =++fill_data!D234 -> 0 | H183: =VLOOKUP($A183,ฝนใช้การ,3)/7 ->  | I183: 45
A184: 25 | B184: 2013-04-24 | C184: =+fill_data!B235 -> 0 | D184: =+fill_data!E235 -> 0 | E184: =+fill_data!C235 -> 0 | F184: =++fill_data!D235 -> 0 | H184: =VLOOKUP($A184,ฝนใช้การ,3)/7 ->  | I184: 45
A185: 26 | B185: 2013-04-25 | C185: =+fill_data!B236 -> 0 | D185: =+fill_data!E236 -> 0 | E185: =+fill_data!C236 -> 0 | F185: =++fill_data!D236 -> 0 | H185: =VLOOKUP($A185,ฝนใช้การ,3)/7 ->  | I185: 45
A186: 26 | B186: 2013-04-26 | C186: =+fill_data!B237 -> 0 | D186: =+fill_data!E237 -> 0 | E186: =+fill_data!C237 -> 0 | F186: =++fill_data!D237 -> 0 | H186: =VLOOKUP($A186,ฝนใช้การ,3)/7 ->  | I186: 45
A187: 26 | B187: 2013-04-27 | C187: =+fill_data!B238 -> 0 | D187: =+fill_data!E238 -> 0 | E187: =+fill_data!C238 -> 0 | F187: =++fill_data!D238 -> 0 | H187: =VLOOKUP($A187,ฝนใช้การ,3)/7 ->  | I187: 45
A188: 26 | B188: 2013-04-28 | C188: =+fill_data!B239 -> 0 | D188: =+fill_data!E239 -> 0 | E188: =+fill_data!C239 -> 0 | F188: =++fill_data!D239 -> 0 | H188: =VLOOKUP($A188,ฝนใช้การ,3)/7 ->  | I188: 45
A189: 26 | B189: 2013-04-29 | C189: =+fill_data!B240 -> 0 | D189: =+fill_data!E240 -> 0 | E189: =+fill_data!C240 -> 0 | F189: =++fill_data!D240 -> 0 | H189: =VLOOKUP($A189,ฝนใช้การ,3)/7 ->  | I189: 45
A190: 26 | B190: 2013-04-30 | C190: =+fill_data!B241 -> 0 | D190: =+fill_data!E241 -> 0 | E190: =+fill_data!C241 -> 0 | F190: =++fill_data!D241 -> 0 | H190: =VLOOKUP($A190,ฝนใช้การ,3)/7 ->  | I190: 45
A191: 26 | B191: 2013-05-01 | C191: =+fill_data!B242 -> 0 | D191: =+fill_data!E242 -> 0 | E191: =+fill_data!C242 -> 0 | F191: =++fill_data!D242 -> 0 | H191: =VLOOKUP($A191,ฝนใช้การ,3)/7 ->  | I191: 45
A192: 27 | B192: 2013-05-02 | C192: =+fill_data!B243 -> 0 | D192: =+fill_data!E243 -> 0 | E192: =+fill_data!C243 -> 0 | F192: =++fill_data!D243 -> 0 | H192: =VLOOKUP($A192,ฝนใช้การ,3)/7 ->  | I192: 45
A193: 27 | B193: 2013-05-03 | C193: =+fill_data!B244 -> 0 | D193: =+fill_data!E244 -> 0 | E193: =+fill_data!C244 -> 0 | F193: =++fill_data!D244 -> 0 | H193: =VLOOKUP($A193,ฝนใช้การ,3)/7 ->  | I193: 45
A194: 27 | B194: 2013-05-04 | C194: =+fill_data!B245 -> 0 | D194: =+fill_data!E245 -> 0 | E194: =+fill_data!C245 -> 0 | F194: =++fill_data!D245 -> 0 | H194: =VLOOKUP($A194,ฝนใช้การ,3)/7 ->  | I194: 45
A195: 27 | B195: 2013-05-05 | C195: =+fill_data!B246 -> 0 | D195: =+fill_data!E246 -> 0 | E195: =+fill_data!C246 -> 0 | F195: =++fill_data!D246 -> 0 | H195: =VLOOKUP($A195,ฝนใช้การ,3)/7 ->  | I195: 45
A196: 27 | B196: 2013-05-06 | C196: =+fill_data!B247 -> 0 | D196: =+fill_data!E247 -> 0 | E196: =+fill_data!C247 -> 0 | F196: =++fill_data!D247 -> 0 | H196: =VLOOKUP($A196,ฝนใช้การ,3)/7 ->  | I196: 45
A197: 27 | B197: 2013-05-07 | C197: =+fill_data!B248 -> 0 | D197: =+fill_data!E248 -> 0 | E197: =+fill_data!C248 -> 0 | F197: =++fill_data!D248 -> 0 | H197: =VLOOKUP($A197,ฝนใช้การ,3)/7 ->  | I197: 45
A198: 27 | B198: 2013-05-08 | C198: =+fill_data!B249 -> 0 | D198: =+fill_data!E249 -> 0 | E198: =+fill_data!C249 -> 0 | F198: =++fill_data!D249 -> 0 | H198: =VLOOKUP($A198,ฝนใช้การ,3)/7 ->  | I198: 45
A199: 28 | B199: 2013-05-09 | C199: =+fill_data!B250 -> 0 | D199: =+fill_data!E250 -> 0 | E199: =+fill_data!C250 -> 0 | F199: =++fill_data!D250 -> 0 | H199: =VLOOKUP($A199,ฝนใช้การ,3)/7 ->  | I199: 45
A200: 28 | B200: 2013-05-10 | C200: =+fill_data!B251 -> 0 | D200: =+fill_data!E251 -> 0 | E200: =+fill_data!C251 -> 0 | F200: =++fill_data!D251 -> 0 | H200: =VLOOKUP($A200,ฝนใช้การ,3)/7 ->  | I200: 45
A201: 28 | B201: 2013-05-11 | C201: =+fill_data!B252 -> 0 | D201: =+fill_data!E252 -> 0 | E201: =+fill_data!C252 -> 0 | F201: =++fill_data!D252 -> 0 | H201: =VLOOKUP($A201,ฝนใช้การ,3)/7 ->  | I201: 45
... 199 more rows

Sheet สอน.จน.1
A1: แบบฟอร์ม สอน.จน. - 1 | N1: ประจำปี(พ.ศ.) | O1: 2555 | Q1: เริ่ม | R1: เดือนที่ | Z1: =DATE(O1-543,11,1) -> 2012-11-01
A2: ="ตารางที่ 1 แผนการจัดสรรน้ำรายสัปดาห์จากอ่างเก็บน้ำ โครงการฯ "&fill_data!D1&" จังหวัด "&fill_data!C4 -> ตารางที่ 1 แผนการจัดสรรน้ำรายสัปดาห์จากอ่างเก็บน้ำ โครงการฯ จังหวัด | N2: เริ่มวันที่ | O2: 2012-11-01 | Q2: =MATCH(O2,ROS!B10:B374,0) -> 1 | R2: =MONTH(O2) -> 11
A3: ="ประจำปี พ.ศ. "&O1&"/"&O1+1 -> ประจำปี พ.ศ. 2555/2556 | N3: สิ้นสุดวันที่ | O3: 2013-10-31
N4: รูปแบบการป้อนวัน วัน/เดือน/ปี ค.ศ.
A5: สัปดาห์ | B5: ช่วงวันที่ | C5: ความต้องการน้ำจากอ่างฯ ล้าน ม.3 | I5: หมายเหตุ
A6: ที่ | C6: การเกษตร | D6: อุปโภค-บริโภค | E6: อุตสาหกรรม | F6: รักษาระบบนิเวศ | G6: อื่นๆ | H6: รวม | AH6: =+Q2 -> 1
A7: 1 | B7: =Z7 -> 1 - 7 พ.ย. 55 | C7: =IF(B7<>"",SUM(OFFSET(ROS!$J$9,$Q$2+((A7-1)*7),0,7,1)),"") ->  | D7: =IF(C7<>"",SUM(OFFSET(ROS!$C$9,$Q$2+((A7-1)*7),0,7,1)),"") ->  | E7: =IF(C7<>"",SUM(OFFSET(ROS!$E$9,$Q$2+((A7-1)*7),0,7,1)),"") ->  | F7: =IF(C7<>"",SUM(OFFSET(ROS!$F$9,$Q$2+((A7-1)*7),0,7,1)),"") ->  | G7: =IF(C7<>"",SUM(OFFSET(ROS!$D$9,$Q$2+((A7-1)*7),0,7,1)),"") ->  | H7: =SUM(C7:G7) ->  | I7: ความต้องการน้ำรายเดือน - ล้าน ม.3 | Q7: =+O2 -> 41214 | R7: =IF($O$3>Q7+6,Q7+6,$O$3) -> 41220 | T7: =+DAY(Q7) -> 1 | U7: =OFFSET($AB$6,MONTH(Q7),0,1,1) -> พ.ย. | V7: =YEAR(Q7)+543-2500 -> 55 | W7: =+DAY(R7) -> 7 | X7: =OFFSET($AB$6,MONTH(R7),0,1,1) -> พ.ย. | Y7: =YEAR(R7)+543-2500 -> 55 | Z7: =IF(Q7<>R7,IF(U7=X7,T7&" - "&W7&" "&U7&" "&V7,T7&" "&U7&IF(V7=Y7,""," "&V7)&" - "&W7&" "&X7&Y7),"") -> 1 - 7 พ.ย. 55 | AA7: 1 | AB7: ม.ค. | AC7: =O2 -> 2012-11-01 | AE7: =+O2 -> 2012-11-01 | AF7: =IF(DATE(YEAR(AC7),MONTH(AC7)+1,1)<$O$3,DATE(YEAR(AC7),MONTH(AC7)+1,1),$O$3+1) -> 2012-12-01 | AG7: =IF(AE7<>"",AF7-AE7,-1) -> 30 | AH7: =+AH6+AG7 -> 31
A8: =A7+1 -> 2 | B8: =Z8 -> 8 - 14 พ.ย. 55 | C8: =IF(B8<>"",SUM(OFFSET(ROS!$J$9,$Q$2+((A8-1)*7),0,7,1)),"") ->  | D8: =IF(C8<>"",SUM(OFFSET(ROS!$C$9,$Q$2+((A8-1)*7),0,7,1)),"") ->  | E8: =IF(C8<>"",SUM(OFFSET(ROS!$E$9,$Q$2+((A8-1)*7),0,7,1)),"") ->  | F8: =IF(C8<>"",SUM(OFFSET(ROS!$F$9,$Q$2+((A8-1)*7),0,7,1)),"") ->  | G8: =IF(C8<>"",SUM(OFFSET(ROS!$D$9,$Q$2+((A8-1)*7),0,7,1)),"") ->  | H8: =SUM(C8:G8) ->  | I8: =IF(AG7>0,+AC7,"") -> 2012-11-01 | J8: =IF(AG7>0,"=","") -> = | K8: =IF(AG7>0,SUM(OFFSET(ROS!$K$9,AH6,0,AG7,1)),"") ->  | Q8: =IF($O$3>Q7+7,Q7+7,$O$3) -> 41221 | R8: =IF($O$3>Q8+6,Q8+6,$O$3) -> 41227 | T8: =+DAY(Q8) -> 8 | U8: =OFFSET($AB$6,MONTH(Q8),0,1,1) -> พ.ย. | V8: =YEAR(Q8)+543-2500 -> 55 | W8: =+DAY(R8) -> 14 | X8: =OFFSET($AB$6,MONTH(R8),0,1,1) -> พ.ย. | Y8: =YEAR(R8)+543-2500 -> 55 | Z8: 8 - 14 พ.ย. 55 | AA8: 2 | AB8: ก.พ. | AC8: =DATE(YEAR(AC7),MONTH(AC7)+1,1) -> 2012-12-01 | AE8: =IF(AF7<$O$3,AF7,"") -> 2012-12-01 | AF8: =IF(AE8<>"",IF(DATE(YEAR(AC8),MONTH(AC8)+1,1)<$O$3,DATE(YEAR(AC8),MONTH(AC8)+1,1),$O$3+1),"") -> 2013-01-01 | AG8: =IF(AE8<>"",AF8-AE8,-1) -> 31 | AH8: 62
A9: =A8+1 -> 3 | B9: 15 - 21 พ.ย. 55 | C9: =IF(B9<>"",SUM(OFFSET(ROS!$J$9,$Q$2+((A9-1)*7),0,7,1)),"") ->  | D9: =IF(C9<>"",SUM(OFFSET(ROS!$C$9,$Q$2+((A9-1)*7),0,7,1)),"") ->  | E9: =IF(C9<>"",SUM(OFFSET(ROS!$E$9,$Q$2+((A9-1)*7),0,7,1)),"") ->  | F9: =IF(C9<>"",SUM(OFFSET(ROS!$F$9,$Q$2+((A9-1)*7),0,7,1)),"") ->  | G9: =IF(C9<>"",SUM(OFFSET(ROS!$D$9,$Q$2+((A9-1)*7),0,7,1)),"") ->  | H9: =SUM(C9:G9) ->  | I9: =IF(AG8>0,+AC8,"") -> 2012-12-01 | J9: =IF(AG8>0,"=","") -> = | K9: =IF(AG8>0,SUM(OFFSET(ROS!$K$9,AH7,0,AG8,1)),"") ->  | Q9: =IF($O$3>Q8+7,Q8+7,$O$3) -> 41228 | R9: 41234 | T9: 15 | U9: พ.ย. | V9: 55 | W9: 21 | X9: พ.ย. | Y9: 55 | Z9: 15 - 21 พ.ย. 55 | AA9: 3 | AB9: มี.ค. | AC9: =DATE(YEAR(AC8),MONTH(AC8)+1,1) -> 2013-01-01 | AE9: 2013-01-01 | AF9: =IF(AE9<>"",IF(DATE(YEAR(AC9),MONTH(AC9)+1,1)<$O$3,DATE(YEAR(AC9),MONTH(AC9)+1,1),$O$3+1),"") -> 2013-02-01 | AG9: 31 | AH9: 93
A10: 4 | B10: 22 - 28 พ.ย. 55 | C10: =IF(B10<>"",SUM(OFFSET(ROS!$J$9,$Q$2+((A10-1)*7),0,7,1)),"") ->  | D10: =IF(C10<>"",SUM(OFFSET(ROS!$C$9,$Q$2+((A10-1)*7),0,7,1)),"") ->  | E10: =IF(C10<>"",SUM(OFFSET(ROS!$E$9,$Q$2+((A10-1)*7),0,7,1)),"") ->  | F10: =IF(C10<>"",SUM(OFFSET(ROS!$F$9,$Q$2+((A10-1)*7),0,7,1)),"") ->  | G10: =IF(C10<>"",SUM(OFFSET(ROS!$D$9,$Q$2+((A10-1)*7),0,7,1)),"") ->  | I10: 2013-01-01 | J10: = | K10: =IF(AG9>0,SUM(OFFSET(ROS!$K$9,AH8,0,AG9,1)),"") ->  | Q10: 41235 | R10: 41241 | T10: 22 | U10: พ.ย. | V10: 55 | W10: 28 | X10: พ.ย. | Y10: 55 | Z10: 22 - 28 พ.ย. 55 | AA10: 4 | AB10: เม.ย. | AC10: 2013-02-01 | AE10: 2013-02-01 | AF10: 2013-03-01 | AG10: 28 | AH10: 121
A11: 5 | B11: 29 พ.ย. - 5 ธ.ค.55 | C11: =IF(B11<>"",SUM(OFFSET(ROS!$J$9,$Q$2+((A11-1)*7),0,7,1)),"") ->  | D11: =IF(C11<>"",SUM(OFFSET(ROS!$C$9,$Q$2+((A11-1)*7),0,7,1)),"") ->  | E11: =IF(C11<>"",SUM(OFFSET(ROS!$E$9,$Q$2+((A11-1)*7),0,7,1)),"") ->  | F11: =IF(C11<>"",SUM(OFFSET(ROS!$F$9,$Q$2+((A11-1)*7),0,7,1)),"") ->  | G11: =IF(C11<>"",SUM(OFFSET(ROS!$D$9,$Q$2+((A11-1)*7),0,7,1)),"") ->  | I11: 2013-02-01 | J11: = | K11: =IF(AG10>0,SUM(OFFSET(ROS!$K$9,AH9,0,AG10,1)),"") ->  | Q11: 41242 | R11: 41248 | T11: 29 | U11: พ.ย. | V11: 55 | W11: 5 | X11: ธ.ค. | Y11: 55 | Z11: 29 พ.ย. - 5 ธ.ค.55 | AA11: 5 | AB11: พ.ค. | AC11: 2013-03-01 | AE11: 2013-03-01 | AF11: 2013-04-01 | AG11: 31 | AH11: 152
A12: 6 | B12: 6 - 12 ธ.ค. 55 | C12: =IF(B12<>"",SUM(OFFSET(ROS!$J$9,$Q$2+((A12-1)*7),0,7,1)),"") ->  | D12: =IF(C12<>"",SUM(OFFSET(ROS!$C$9,$Q$2+((A12-1)*7),0,7,1)),"") ->  | E12: =IF(C12<>"",SUM(OFFSET(ROS!$E$9,$Q$2+((A12-1)*7),0,7,1)),"") ->  | F12: =IF(C12<>"",SUM(OFFSET(ROS!$F$9,$Q$2+((A12-1)*7),0,7,1)),"") ->  | G12: =IF(C12<>"",SUM(OFFSET(ROS!$D$9,$Q$2+((A12-1)*7),0,7,1)),"") ->  | I12: 2013-03-01 | J12: = | K12: =IF(AG11>0,SUM(OFFSET(ROS!$K$9,AH10,0,AG11,1)),"") ->  | Q12: 41249 | R12: 41255 | T12: 6 | U12: ธ.ค. | V12: 55 | W12: 12 | X12: ธ.ค. | Y12: 55 | Z12: 6 - 12 ธ.ค. 55 | AA12: 6 | AB12: มิ.ย. | AC12: 2013-04-01 | AE12: 2013-04-01 | AF12: =IF(AE12<>"",IF(DATE(YEAR(AC12),MONTH(AC12)+1,1)<$O$3,DATE(YEAR(AC12),MONTH(AC12)+1,1),$O$3+1),"") -> 2013-05-01 | AG12: 30 | AH12: 182
A13: 7 | B13: 13 - 19 ธ.ค. 55 | C13: =IF(B13<>"",SUM(OFFSET(ROS!$J$9,$Q$2+((A13-1)*7),0,7,1)),"") ->  | D13: =IF(C13<>"",SUM(OFFSET(ROS!$C$9,$Q$2+((A13-1)*7),0,7,1)),"") ->  | E13: =IF(C13<>"",SUM(OFFSET(ROS!$E$9,$Q$2+((A13-1)*7),0,7,1)),"") ->  | F13: =IF(C13<>"",SUM(OFFSET(ROS!$F$9,$Q$2+((A13-1)*7),0,7,1)),"") ->  | G13: =IF(C13<>"",SUM(OFFSET(ROS!$D$9,$Q$2+((A13-1)*7),0,7,1)),"") ->  | I13: 2013-04-01 | J13: = | K13: =IF(AG12>0,SUM(OFFSET(ROS!$K$9,AH11,0,AG12,1)),"") ->  | Q13: 41256 | R13: 41262 | T13: 13 | U13: ธ.ค. | V13: 55 | W13: 19 | X13: ธ.ค. | Y13: 55 | Z13: 13 - 19 ธ.ค. 55 | AA13: 7 | AB13: ก.ค. | AC13: 2013-05-01 | AE13: 2013-05-01 | AF13: 2013-06-01 | AG13: 31 | AH13: 213
A14: 8 | B14: 20 - 26 ธ.ค. 55 | C14: =IF(B14<>"",SUM(OFFSET(ROS!$J$9,$Q$2+((A14-1)*7),0,7,1)),"") ->  | D14: =IF(C14<>"",SUM(OFFSET(ROS!$C$9,$Q$2+((A14-1)*7),0,7,1)),"") ->  | E14: =IF(C14<>"",SUM(OFFSET(ROS!$E$9,$Q$2+((A14-1)*7),0,7,1)),"") ->  | F14: =IF(C14<>"",SUM(OFFSET(ROS!$F$9,$Q$2+((A14-1)*7),0,7,1)),"") ->  | G14: =IF(C14<>"",SUM(OFFSET(ROS!$D$9,$Q$2+((A14-1)*7),0,7,1)),"") ->  | I14: 2013-05-01 | J14: = | K14: =IF(AG13>0,SUM(OFFSET(ROS!$K$9,AH12,0,AG13,1)),"") ->  | Q14: 41263 | R14: 41269 | T14: 20 | U14: ธ.ค. | V14: 55 | W14: 26 | X14: ธ.ค. | Y14: 55 | Z14: 20 - 26 ธ.ค. 55 | AA14: 8 | AB14: ส.ค. | AC14: 2013-06-01 | AE14: =IF(AF13<>$O$3,AF13,"") -> 2013-06-01 | AF14: 2013-07-01 | AG14: 30 | AH14: 243
A15: 9 | B15: 27 ธ.ค. 55 - 2 ม.ค.56 | C15: =IF(B15<>"",SUM(OFFSET(ROS!$J$9,$Q$2+((A15-1)*7),0,7,1)),"") ->  | D15: =IF(C15<>"",SUM(OFFSET(ROS!$C$9,$Q$2+((A15-1)*7),0,7,1)),"") ->  | E15: =IF(C15<>"",SUM(OFFSET(ROS!$E$9,$Q$2+((A15-1)*7),0,7,1)),"") ->  | F15: =IF(C15<>"",SUM(OFFSET(ROS!$F$9,$Q$2+((A15-1)*7),0,7,1)),"") ->  | G15: =IF(C15<>"",SUM(OFFSET(ROS!$D$9,$Q$2+((A15-1)*7),0,7,1)),"") ->  | I15: 2013-06-01 | J15: = | K15: =IF(AG14>0,SUM(OFFSET(ROS!$K$9,AH13,0,AG14,1)),"") ->  | Q15: 41270 | R15: 41276 | T15: 27 | U15: ธ.ค. | V15: 55 | W15: 2 | X15: ม.ค. | Y15: 56 | Z15: 27 ธ.ค. 55 - 2 ม.ค.56 | AA15: 9 | AB15: ก.ย. | AC15: 2013-07-01 | AE15: =IF(AF14<>$O$3,AF14,"") -> 2013-07-01 | AF15: 2013-08-01 | AG15: 31 | AH15: 274
A16: 10 | B16: 3 - 9 ม.ค. 56 | C16: =IF(B16<>"",SUM(OFFSET(ROS!$J$9,$Q$2+((A16-1)*7),0,7,1)),"") ->  | D16: =IF(C16<>"",SUM(OFFSET(ROS!$C$9,$Q$2+((A16-1)*7),0,7,1)),"") ->  | E16: =IF(C16<>"",SUM(OFFSET(ROS!$E$9,$Q$2+((A16-1)*7),0,7,1)),"") ->  | F16: =IF(C16<>"",SUM(OFFSET(ROS!$F$9,$Q$2+((A16-1)*7),0,7,1)),"") ->  | G16: =IF(C16<>"",SUM(OFFSET(ROS!$D$9,$Q$2+((A16-1)*7),0,7,1)),"") ->  | I16: 2013-07-01 | J16: = | K16: =IF(AG15>0,SUM(OFFSET(ROS!$K$9,AH14,0,AG15,1)),"") ->  | Q16: 41277 | R16: 41283 | T16: 3 | U16: ม.ค. | V16: 56 | W16: 9 | X16: ม.ค. | Y16: 56 | Z16: 3 - 9 ม.ค. 56 | AA16: 10 | AB16: ต.ค. | AC16: 2013-08-01 | AE16: =IF(AF15<>$O$3,AF15,"") -> 2013-08-01 | AF16: 2013-09-01 | AG16: 31 | AH16: 305
A17: 11 | B17: 10 - 16 ม.ค. 56 | C17: =IF(B17<>"",SUM(OFFSET(ROS!$J$9,$Q$2+((A17-1)*7),0,7,1)),"") ->  | D17: =IF(C17<>"",SUM(OFFSET(ROS!$C$9,$Q$2+((A17-1)*7),0,7,1)),"") ->  | E17: =IF(C17<>"",SUM(OFFSET(ROS!$E$9,$Q$2+((A17-1)*7),0,7,1)),"") ->  | F17: =IF(C17<>"",SUM(OFFSET(ROS!$F$9,$Q$2+((A17-1)*7),0,7,1)),"") ->  | G17: =IF(C17<>"",SUM(OFFSET(ROS!$D$9,$Q$2+((A17-1)*7),0,7,1)),"") ->  | I17: 2013-08-01 | J17: = | K17: =IF(AG16>0,SUM(OFFSET(ROS!$K$9,AH15,0,AG16,1)),"") ->  | Q17: 41284 | R17: 41290 | T17: 10 | U17: ม.ค. | V17: 56 | W17: 16 | X17: ม.ค. | Y17: 56 | Z17: 10 - 16 ม.ค. 56 | AA17: 11 | AB17: พ.ย. | AC17: 2013-09-01 | AE17: =IF(AF16<>$O$3,AF16,"") -> 2013-09-01 | AF17: 2013-10-01 | AG17: 30 | AH17: 335
A18: 12 | B18: 17 - 23 ม.ค. 56 | C18: =IF(B18<>"",SUM(OFFSET(ROS!$J$9,$Q$2+((A18-1)*7),0,7,1)),"") ->  | D18: =IF(C18<>"",SUM(OFFSET(ROS!$C$9,$Q$2+((A18-1)*7),0,7,1)),"") ->  | E18: =IF(C18<>"",SUM(OFFSET(ROS!$E$9,$Q$2+((A18-1)*7),0,7,1)),"") ->  | F18: =IF(C18<>"",SUM(OFFSET(ROS!$F$9,$Q$2+((A18-1)*7),0,7,1)),"") ->  | G18: =IF(C18<>"",SUM(OFFSET(ROS!$D$9,$Q$2+((A18-1)*7),0,7,1)),"") ->  | I18: 2013-09-01 | J18: = | K18: =IF(AG17>0,SUM(OFFSET(ROS!$K$9,AH16,0,AG17,1)),"") ->  | Q18: 41291 | R18: 41297 | T18: 17 | U18: ม.ค. | V18: 56 | W18: 23 | X18: ม.ค. | Y18: 56 | Z18: 17 - 23 ม.ค. 56 | AA18: 12 | AB18: ธ.ค. | AC18: =DATE(YEAR(AC17),MONTH(AC17)+1,1) -> 2013-10-01 | AE18: =IF(AF17<>$O$3,AF17,"") -> 2013-10-01 | AF18: =IF(AE18<>"",IF(DATE(YEAR(AC18),MONTH(AC18)+1,1)<$O$3,DATE(YEAR(AC18),MONTH(AC18)+1,1),$O$3+1),"") -> 2013-11-01 | AG18: =IF(AE18<>"",AF18-AE18,-1) -> 31 | AH18: =+AH17+AG18 -> 366
A19: 13 | B19: 24 - 30 ม.ค. 56 | C19: =IF(B19<>"",SUM(OFFSET(ROS!$J$9,$Q$2+((A19-1)*7),0,7,1)),"") ->  | D19: =IF(C19<>"",SUM(OFFSET(ROS!$C$9,$Q$2+((A19-1)*7),0,7,1)),"") ->  | E19: =IF(C19<>"",SUM(OFFSET(ROS!$E$9,$Q$2+((A19-1)*7),0,7,1)),"") ->  | F19: =IF(C19<>"",SUM(OFFSET(ROS!$F$9,$Q$2+((A19-1)*7),0,7,1)),"") ->  | G19: =IF(C19<>"",SUM(OFFSET(ROS!$D$9,$Q$2+((A19-1)*7),0,7,1)),"") ->  | I19: 2013-10-01 | J19: = | K19: =IF(AG18>0,SUM(OFFSET(ROS!$K$9,AH17,0,AG18,1)),"") ->  | Q19: 41298 | R19: 41304 | T19: 24 | U19: ม.ค. | V19: 56 | W19: 30 | X19: ม.ค. | Y19: 56 | Z19: 24 - 30 ม.ค. 56
A20: 14 | B20: 31 ม.ค. - 6 ก.พ.56 | C20: =IF(B20<>"",SUM(OFFSET(ROS!$J$9,$Q$2+((A20-1)*7),0,7,1)),"") ->  | D20: =IF(C20<>"",SUM(OFFSET(ROS!$C$9,$Q$2+((A20-1)*7),0,7,1)),"") ->  | E20: =IF(C20<>"",SUM(OFFSET(ROS!$E$9,$Q$2+((A20-1)*7),0,7,1)),"") ->  | F20: =IF(C20<>"",SUM(OFFSET(ROS!$F$9,$Q$2+((A20-1)*7),0,7,1)),"") ->  | G20: =IF(C20<>"",SUM(OFFSET(ROS!$D$9,$Q$2+((A20-1)*7),0,7,1)),"") ->  | I20: รวม | K20: =SUM(K8:K19) ->  | Q20: 41305 | R20: 41311 | T20: 31 | U20: ม.ค. | V20: 56 | W20: 6 | X20: ก.พ. | Y20: 56 | Z20: 31 ม.ค. - 6 ก.พ.56
A21: 15 | B21: 7 - 13 ก.พ. 56 | C21: =IF(B21<>"",SUM(OFFSET(ROS!$J$9,$Q$2+((A21-1)*7),0,7,1)),"") ->  | D21: =IF(C21<>"",SUM(OFFSET(ROS!$C$9,$Q$2+((A21-1)*7),0,7,1)),"") ->  | E21: =IF(C21<>"",SUM(OFFSET(ROS!$E$9,$Q$2+((A21-1)*7),0,7,1)),"") ->  | F21: =IF(C21<>"",SUM(OFFSET(ROS!$F$9,$Q$2+((A21-1)*7),0,7,1)),"") ->  | G21: =IF(C21<>"",SUM(OFFSET(ROS!$D$9,$Q$2+((A21-1)*7),0,7,1)),"") ->  | Q21: 41312 | R21: 41318 | T21: 7 | U21: ก.พ. | V21: 56 | W21: 13 | X21: ก.พ. | Y21: 56 | Z21: 7 - 13 ก.พ. 56
A22: 16 | B22: 14 - 20 ก.พ. 56 | C22: =IF(B22<>"",SUM(OFFSET(ROS!$J$9,$Q$2+((A22-1)*7),0,7,1)),"") ->  | D22: =IF(C22<>"",SUM(OFFSET(ROS!$C$9,$Q$2+((A22-1)*7),0,7,1)),"") ->  | E22: =IF(C22<>"",SUM(OFFSET(ROS!$E$9,$Q$2+((A22-1)*7),0,7,1)),"") ->  | F22: =IF(C22<>"",SUM(OFFSET(ROS!$F$9,$Q$2+((A22-1)*7),0,7,1)),"") ->  | G22: =IF(C22<>"",SUM(OFFSET(ROS!$D$9,$Q$2+((A22-1)*7),0,7,1)),"") ->  | Q22: 41319 | R22: 41325 | T22: 14 | U22: ก.พ. | V22: 56 | W22: 20 | X22: ก.พ. | Y22: 56 | Z22: 14 - 20 ก.พ. 56
A23: 17 | B23: 21 - 27 ก.พ. 56 | C23: =IF(B23<>"",SUM(OFFSET(ROS!$J$9,$Q$2+((A23-1)*7),0,7,1)),"") ->  | D23: =IF(C23<>"",SUM(OFFSET(ROS!$C$9,$Q$2+((A23-1)*7),0,7,1)),"") ->  | E23: =IF(C23<>"",SUM(OFFSET(ROS!$E$9,$Q$2+((A23-1)*7),0,7,1)),"") ->  | F23: =IF(C23<>"",SUM(OFFSET(ROS!$F$9,$Q$2+((A23-1)*7),0,7,1)),"") ->  | G23: =IF(C23<>"",SUM(OFFSET(ROS!$D$9,$Q$2+((A23-1)*7),0,7,1)),"") ->  | Q23: 41326 | R23: 41332 | T23: 21 | U23: ก.พ. | V23: 56 | W23: 27 | X23: ก.พ. | Y23: 56 | Z23: 21 - 27 ก.พ. 56
A24: 18 | B24: 28 ก.พ. - 6 มี.ค.56 | C24: =IF(B24<>"",SUM(OFFSET(ROS!$J$9,$Q$2+((A24-1)*7),0,7,1)),"") ->  | D24: =IF(C24<>"",SUM(OFFSET(ROS!$C$9,$Q$2+((A24-1)*7),0,7,1)),"") ->  | E24: =IF(C24<>"",SUM(OFFSET(ROS!$E$9,$Q$2+((A24-1)*7),0,7,1)),"") ->  | F24: =IF(C24<>"",SUM(OFFSET(ROS!$F$9,$Q$2+((A24-1)*7),0,7,1)),"") ->  | G24: =IF(C24<>"",SUM(OFFSET(ROS!$D$9,$Q$2+((A24-1)*7),0,7,1)),"") ->  | Q24: 41333 | R24: 41339 | T24: 28 | U24: ก.พ. | V24: 56 | W24: 6 | X24: มี.ค. | Y24: 56 | Z24: 28 ก.พ. - 6 มี.ค.56
A25: 19 | B25: 7 - 13 มี.ค. 56 | C25: =IF(B25<>"",SUM(OFFSET(ROS!$J$9,$Q$2+((A25-1)*7),0,7,1)),"") ->  | D25: =IF(C25<>"",SUM(OFFSET(ROS!$C$9,$Q$2+((A25-1)*7),0,7,1)),"") ->  | E25: =IF(C25<>"",SUM(OFFSET(ROS!$E$9,$Q$2+((A25-1)*7),0,7,1)),"") ->  | F25: =IF(C25<>"",SUM(OFFSET(ROS!$F$9,$Q$2+((A25-1)*7),0,7,1)),"") ->  | G25: =IF(C25<>"",SUM(OFFSET(ROS!$D$9,$Q$2+((A25-1)*7),0,7,1)),"") ->  | Q25: 41340 | R25: 41346 | T25: 7 | U25: มี.ค. | V25: 56 | W25: 13 | X25: มี.ค. | Y25: 56 | Z25: 7 - 13 มี.ค. 56
A26: 20 | B26: 14 - 20 มี.ค. 56 | C26: =IF(B26<>"",SUM(OFFSET(ROS!$J$9,$Q$2+((A26-1)*7),0,7,1)),"") ->  | D26: =IF(C26<>"",SUM(OFFSET(ROS!$C$9,$Q$2+((A26-1)*7),0,7,1)),"") ->  | E26: =IF(C26<>"",SUM(OFFSET(ROS!$E$9,$Q$2+((A26-1)*7),0,7,1)),"") ->  | F26: =IF(C26<>"",SUM(OFFSET(ROS!$F$9,$Q$2+((A26-1)*7),0,7,1)),"") ->  | G26: =IF(C26<>"",SUM(OFFSET(ROS!$D$9,$Q$2+((A26-1)*7),0,7,1)),"") ->  | Q26: 41347 | R26: 41353 | T26: 14 | U26: มี.ค. | V26: 56 | W26: 20 | X26: มี.ค. | Y26: 56 | Z26: 14 - 20 มี.ค. 56
A27: 21 | B27: 21 - 27 มี.ค. 56 | C27: =IF(B27<>"",SUM(OFFSET(ROS!$J$9,$Q$2+((A27-1)*7),0,7,1)),"") ->  | D27: =IF(C27<>"",SUM(OFFSET(ROS!$C$9,$Q$2+((A27-1)*7),0,7,1)),"") ->  | E27: =IF(C27<>"",SUM(OFFSET(ROS!$E$9,$Q$2+((A27-1)*7),0,7,1)),"") ->  | F27: =IF(C27<>"",SUM(OFFSET(ROS!$F$9,$Q$2+((A27-1)*7),0,7,1)),"") ->  | G27: =IF(C27<>"",SUM(OFFSET(ROS!$D$9,$Q$2+((A27-1)*7),0,7,1)),"") ->  | Q27: 41354 | R27: 41360 | T27: 21 | U27: มี.ค. | V27: 56 | W27: 27 | X27: มี.ค. | Y27: 56 | Z27: 21 - 27 มี.ค. 56
A28: 22 | B28: 28 มี.ค. - 3 เม.ย.56 | C28: =IF(B28<>"",SUM(OFFSET(ROS!$J$9,$Q$2+((A28-1)*7),0,7,1)),"") ->  | D28: =IF(C28<>"",SUM(OFFSET(ROS!$C$9,$Q$2+((A28-1)*7),0,7,1)),"") ->  | E28: =IF(C28<>"",SUM(OFFSET(ROS!$E$9,$Q$2+((A28-1)*7),0,7,1)),"") ->  | F28: =IF(C28<>"",SUM(OFFSET(ROS!$F$9,$Q$2+((A28-1)*7),0,7,1)),"") ->  | G28: =IF(C28<>"",SUM(OFFSET(ROS!$D$9,$Q$2+((A28-1)*7),0,7,1)),"") ->  | Q28: 41361 | R28: 41367 | T28: 28 | U28: มี.ค. | V28: 56 | W28: 3 | X28: เม.ย. | Y28: 56 | Z28: 28 มี.ค. - 3 เม.ย.56
A29: 23 | B29: 4 - 10 เม.ย. 56 | C29: =IF(B29<>"",SUM(OFFSET(ROS!$J$9,$Q$2+((A29-1)*7),0,7,1)),"") ->  | D29: =IF(C29<>"",SUM(OFFSET(ROS!$C$9,$Q$2+((A29-1)*7),0,7,1)),"") ->  | E29: =IF(C29<>"",SUM(OFFSET(ROS!$E$9,$Q$2+((A29-1)*7),0,7,1)),"") ->  | F29: =IF(C29<>"",SUM(OFFSET(ROS!$F$9,$Q$2+((A29-1)*7),0,7,1)),"") ->  | G29: =IF(C29<>"",SUM(OFFSET(ROS!$D$9,$Q$2+((A29-1)*7),0,7,1)),"") ->  | Q29: 41368 | R29: 41374 | T29: 4 | U29: เม.ย. | V29: 56 | W29: 10 | X29: เม.ย. | Y29: 56 | Z29: 4 - 10 เม.ย. 56
A30: 24 | B30: 11 - 17 เม.ย. 56 | C30: =IF(B30<>"",SUM(OFFSET(ROS!$J$9,$Q$2+((A30-1)*7),0,7,1)),"") ->  | D30: =IF(C30<>"",SUM(OFFSET(ROS!$C$9,$Q$2+((A30-1)*7),0,7,1)),"") ->  | E30: =IF(C30<>"",SUM(OFFSET(ROS!$E$9,$Q$2+((A30-1)*7),0,7,1)),"") ->  | F30: =IF(C30<>"",SUM(OFFSET(ROS!$F$9,$Q$2+((A30-1)*7),0,7,1)),"") ->  | G30: =IF(C30<>"",SUM(OFFSET(ROS!$D$9,$Q$2+((A30-1)*7),0,7,1)),"") ->  | Q30: 41375 | R30: 41381 | T30: 11 | U30: เม.ย. | V30: 56 | W30: 17 | X30: เม.ย. | Y30: 56 | Z30: 11 - 17 เม.ย. 56
A31: 25 | B31: 18 - 24 เม.ย. 56 | C31: =IF(B31<>"",SUM(OFFSET(ROS!$J$9,$Q$2+((A31-1)*7),0,7,1)),"") ->  | D31: =IF(C31<>"",SUM(OFFSET(ROS!$C$9,$Q$2+((A31-1)*7),0,7,1)),"") ->  | E31: =IF(C31<>"",SUM(OFFSET(ROS!$E$9,$Q$2+((A31-1)*7),0,7,1)),"") ->  | F31: =IF(C31<>"",SUM(OFFSET(ROS!$F$9,$Q$2+((A31-1)*7),0,7,1)),"") ->  | G31: =IF(C31<>"",SUM(OFFSET(ROS!$D$9,$Q$2+((A31-1)*7),0,7,1)),"") ->  | Q31: 41382 | R31: 41388 | T31: 18 | U31: เม.ย. | V31: 56 | W31: 24 | X31: เม.ย. | Y31: 56 | Z31: 18 - 24 เม.ย. 56
A32: 26 | B32: 25 เม.ย. - 1 พ.ค.56 | C32: =IF(B32<>"",SUM(OFFSET(ROS!$J$9,$Q$2+((A32-1)*7),0,7,1)),"") ->  | D32: =IF(C32<>"",SUM(OFFSET(ROS!$C$9,$Q$2+((A32-1)*7),0,7,1)),"") ->  | E32: =IF(C32<>"",SUM(OFFSET(ROS!$E$9,$Q$2+((A32-1)*7),0,7,1)),"") ->  | F32: =IF(C32<>"",SUM(OFFSET(ROS!$F$9,$Q$2+((A32-1)*7),0,7,1)),"") ->  | G32: =IF(C32<>"",SUM(OFFSET(ROS!$D$9,$Q$2+((A32-1)*7),0,7,1)),"") ->  | Q32: 41389 | R32: 41395 | T32: 25 | U32: เม.ย. | V32: 56 | W32: 1 | X32: พ.ค. | Y32: 56 | Z32: 25 เม.ย. - 1 พ.ค.56
A33: 27 | B33: 2 - 8 พ.ค. 56 | C33: =IF(B33<>"",SUM(OFFSET(ROS!$J$9,$Q$2+((A33-1)*7),0,7,1)),"") ->  | D33: =IF(C33<>"",SUM(OFFSET(ROS!$C$9,$Q$2+((A33-1)*7),0,7,1)),"") ->  | E33: =IF(C33<>"",SUM(OFFSET(ROS!$E$9,$Q$2+((A33-1)*7),0,7,1)),"") ->  | F33: =IF(C33<>"",SUM(OFFSET(ROS!$F$9,$Q$2+((A33-1)*7),0,7,1)),"") ->  | G33: =IF(C33<>"",SUM(OFFSET(ROS!$D$9,$Q$2+((A33-1)*7),0,7,1)),"") ->  | Q33: 41396 | R33: 41402 | T33: 2 | U33: พ.ค. | V33: 56 | W33: 8 | X33: พ.ค. | Y33: 56 | Z33: 2 - 8 พ.ค. 56
A34: 28 | B34: 9 - 15 พ.ค. 56 | C34: =IF(B34<>"",SUM(OFFSET(ROS!$J$9,$Q$2+((A34-1)*7),0,7,1)),"") ->  | D34: =IF(C34<>"",SUM(OFFSET(ROS!$C$9,$Q$2+((A34-1)*7),0,7,1)),"") ->  | E34: =IF(C34<>"",SUM(OFFSET(ROS!$E$9,$Q$2+((A34-1)*7),0,7,1)),"") ->  | F34: =IF(C34<>"",SUM(OFFSET(ROS!$F$9,$Q$2+((A34-1)*7),0,7,1)),"") ->  | G34: =IF(C34<>"",SUM(OFFSET(ROS!$D$9,$Q$2+((A34-1)*7),0,7,1)),"") ->  | Q34: 41403 | R34: 41409 | T34: 9 | U34: พ.ค. | V34: 56 | W34: 15 | X34: พ.ค. | Y34: 56 | Z34: 9 - 15 พ.ค. 56
A35: 29 | B35: 16 - 22 พ.ค. 56 | C35: =IF(B35<>"",SUM(OFFSET(ROS!$J$9,$Q$2+((A35-1)*7),0,7,1)),"") ->  | D35: =IF(C35<>"",SUM(OFFSET(ROS!$C$9,$Q$2+((A35-1)*7),0,7,1)),"") ->  | E35: =IF(C35<>"",SUM(OFFSET(ROS!$E$9,$Q$2+((A35-1)*7),0,7,1)),"") ->  | F35: =IF(C35<>"",SUM(OFFSET(ROS!$F$9,$Q$2+((A35-1)*7),0,7,1)),"") ->  | G35: =IF(C35<>"",SUM(OFFSET(ROS!$D$9,$Q$2+((A35-1)*7),0,7,1)),"") ->  | Q35: 41410 | R35: 41416 | T35: 16 | U35: พ.ค. | V35: 56 | W35: 22 | X35: พ.ค. | Y35: 56 | Z35: 16 - 22 พ.ค. 56
A36: 30 | B36: 23 - 29 พ.ค. 56 | C36: =IF(B36<>"",SUM(OFFSET(ROS!$J$9,$Q$2+((A36-1)*7),0,7,1)),"") ->  | D36: =IF(C36<>"",SUM(OFFSET(ROS!$C$9,$Q$2+((A36-1)*7),0,7,1)),"") ->  | E36: =IF(C36<>"",SUM(OFFSET(ROS!$E$9,$Q$2+((A36-1)*7),0,7,1)),"") ->  | F36: =IF(C36<>"",SUM(OFFSET(ROS!$F$9,$Q$2+((A36-1)*7),0,7,1)),"") ->  | G36: =IF(C36<>"",SUM(OFFSET(ROS!$D$9,$Q$2+((A36-1)*7),0,7,1)),"") ->  | Q36: 41417 | R36: 41423 | T36: 23 | U36: พ.ค. | V36: 56 | W36: 29 | X36: พ.ค. | Y36: 56 | Z36: 23 - 29 พ.ค. 56
A37: 31 | B37: 30 พ.ค. - 5 มิ.ย.56 | C37: =IF(B37<>"",SUM(OFFSET(ROS!$J$9,$Q$2+((A37-1)*7),0,7,1)),"") ->  | D37: =IF(C37<>"",SUM(OFFSET(ROS!$C$9,$Q$2+((A37-1)*7),0,7,1)),"") ->  | E37: =IF(C37<>"",SUM(OFFSET(ROS!$E$9,$Q$2+((A37-1)*7),0,7,1)),"") ->  | F37: =IF(C37<>"",SUM(OFFSET(ROS!$F$9,$Q$2+((A37-1)*7),0,7,1)),"") ->  | G37: =IF(C37<>"",SUM(OFFSET(ROS!$D$9,$Q$2+((A37-1)*7),0,7,1)),"") ->  | Q37: 41424 | R37: 41430 | T37: 30 | U37: พ.ค. | V37: 56 | W37: 5 | X37: มิ.ย. | Y37: 56 | Z37: 30 พ.ค. - 5 มิ.ย.56
A38: 32 | B38: 6 - 12 มิ.ย. 56 | C38: =IF(B38<>"",SUM(OFFSET(ROS!$J$9,$Q$2+((A38-1)*7),0,7,1)),"") ->  | D38: =IF(C38<>"",SUM(OFFSET(ROS!$C$9,$Q$2+((A38-1)*7),0,7,1)),"") ->  | E38: =IF(C38<>"",SUM(OFFSET(ROS!$E$9,$Q$2+((A38-1)*7),0,7,1)),"") ->  | F38: =IF(C38<>"",SUM(OFFSET(ROS!$F$9,$Q$2+((A38-1)*7),0,7,1)),"") ->  | G38: =IF(C38<>"",SUM(OFFSET(ROS!$D$9,$Q$2+((A38-1)*7),0,7,1)),"") ->  | Q38: 41431 | R38: 41437 | T38: 6 | U38: มิ.ย. | V38: 56 | W38: 12 | X38: มิ.ย. | Y38: 56 | Z38: 6 - 12 มิ.ย. 56
A39: 33 | B39: 13 - 19 มิ.ย. 56 | C39: =IF(B39<>"",SUM(OFFSET(ROS!$J$9,$Q$2+((A39-1)*7),0,7,1)),"") ->  | D39: =IF(C39<>"",SUM(OFFSET(ROS!$C$9,$Q$2+((A39-1)*7),0,7,1)),"") ->  | E39: =IF(C39<>"",SUM(OFFSET(ROS!$E$9,$Q$2+((A39-1)*7),0,7,1)),"") ->  | F39: =IF(C39<>"",SUM(OFFSET(ROS!$F$9,$Q$2+((A39-1)*7),0,7,1)),"") ->  | G39: =IF(C39<>"",SUM(OFFSET(ROS!$D$9,$Q$2+((A39-1)*7),0,7,1)),"") ->  | Q39: 41438 | R39: 41444 | T39: 13 | U39: มิ.ย. | V39: 56 | W39: 19 | X39: มิ.ย. | Y39: 56 | Z39: 13 - 19 มิ.ย. 56
A40: 34 | B40: 20 - 26 มิ.ย. 56 | C40: =IF(B40<>"",SUM(OFFSET(ROS!$J$9,$Q$2+((A40-1)*7),0,7,1)),"") ->  | D40: =IF(C40<>"",SUM(OFFSET(ROS!$C$9,$Q$2+((A40-1)*7),0,7,1)),"") ->  | E40: =IF(C40<>"",SUM(OFFSET(ROS!$E$9,$Q$2+((A40-1)*7),0,7,1)),"") ->  | F40: =IF(C40<>"",SUM(OFFSET(ROS!$F$9,$Q$2+((A40-1)*7),0,7,1)),"") ->  | G40: =IF(C40<>"",SUM(OFFSET(ROS!$D$9,$Q$2+((A40-1)*7),0,7,1)),"") ->  | Q40: 41445 | R40: 41451 | T40: 20 | U40: มิ.ย. | V40: 56 | W40: 26 | X40: มิ.ย. | Y40: 56 | Z40: 20 - 26 มิ.ย. 56
A41: 35 | B41: 27 มิ.ย. - 3 ก.ค.56 | C41: =IF(B41<>"",SUM(OFFSET(ROS!$J$9,$Q$2+((A41-1)*7),0,7,1)),"") ->  | D41: =IF(C41<>"",SUM(OFFSET(ROS!$C$9,$Q$2+((A41-1)*7),0,7,1)),"") ->  | E41: =IF(C41<>"",SUM(OFFSET(ROS!$E$9,$Q$2+((A41-1)*7),0,7,1)),"") ->  | F41: =IF(C41<>"",SUM(OFFSET(ROS!$F$9,$Q$2+((A41-1)*7),0,7,1)),"") ->  | G41: =IF(C41<>"",SUM(OFFSET(ROS!$D$9,$Q$2+((A41-1)*7),0,7,1)),"") ->  | Q41: 41452 | R41: 41458 | T41: 27 | U41: มิ.ย. | V41: 56 | W41: 3 | X41: ก.ค. | Y41: 56 | Z41: 27 มิ.ย. - 3 ก.ค.56
A42: 36 | B42: 4 - 10 ก.ค. 56 | C42: =IF(B42<>"",SUM(OFFSET(ROS!$J$9,$Q$2+((A42-1)*7),0,7,1)),"") ->  | D42: =IF(C42<>"",SUM(OFFSET(ROS!$C$9,$Q$2+((A42-1)*7),0,7,1)),"") ->  | E42: =IF(C42<>"",SUM(OFFSET(ROS!$E$9,$Q$2+((A42-1)*7),0,7,1)),"") ->  | F42: =IF(C42<>"",SUM(OFFSET(ROS!$F$9,$Q$2+((A42-1)*7),0,7,1)),"") ->  | G42: =IF(C42<>"",SUM(OFFSET(ROS!$D$9,$Q$2+((A42-1)*7),0,7,1)),"") ->  | Q42: 41459 | R42: 41465 | T42: 4 | U42: ก.ค. | V42: 56 | W42: 10 | X42: ก.ค. | Y42: 56 | Z42: 4 - 10 ก.ค. 56
A43: 37 | B43: 11 - 17 ก.ค. 56 | C43: =IF(B43<>"",SUM(OFFSET(ROS!$J$9,$Q$2+((A43-1)*7),0,7,1)),"") ->  | D43: =IF(C43<>"",SUM(OFFSET(ROS!$C$9,$Q$2+((A43-1)*7),0,7,1)),"") ->  | E43: =IF(C43<>"",SUM(OFFSET(ROS!$E$9,$Q$2+((A43-1)*7),0,7,1)),"") ->  | F43: =IF(C43<>"",SUM(OFFSET(ROS!$F$9,$Q$2+((A43-1)*7),0,7,1)),"") ->  | G43: =IF(C43<>"",SUM(OFFSET(ROS!$D$9,$Q$2+((A43-1)*7),0,7,1)),"") ->  | Q43: 41466 | R43: 41472 | T43: 11 | U43: ก.ค. | V43: 56 | W43: 17 | X43: ก.ค. | Y43: 56 | Z43: 11 - 17 ก.ค. 56
A44: 38 | B44: 18 - 24 ก.ค. 56 | C44: =IF(B44<>"",SUM(OFFSET(ROS!$J$9,$Q$2+((A44-1)*7),0,7,1)),"") ->  | D44: =IF(C44<>"",SUM(OFFSET(ROS!$C$9,$Q$2+((A44-1)*7),0,7,1)),"") ->  | E44: =IF(C44<>"",SUM(OFFSET(ROS!$E$9,$Q$2+((A44-1)*7),0,7,1)),"") ->  | F44: =IF(C44<>"",SUM(OFFSET(ROS!$F$9,$Q$2+((A44-1)*7),0,7,1)),"") ->  | G44: =IF(C44<>"",SUM(OFFSET(ROS!$D$9,$Q$2+((A44-1)*7),0,7,1)),"") ->  | Q44: 41473 | R44: 41479 | T44: 18 | U44: ก.ค. | V44: 56 | W44: 24 | X44: ก.ค. | Y44: 56 | Z44: 18 - 24 ก.ค. 56
A45: 39 | B45: 25 - 31 ก.ค. 56 | C45: =IF(B45<>"",SUM(OFFSET(ROS!$J$9,$Q$2+((A45-1)*7),0,7,1)),"") ->  | D45: =IF(C45<>"",SUM(OFFSET(ROS!$C$9,$Q$2+((A45-1)*7),0,7,1)),"") ->  | E45: =IF(C45<>"",SUM(OFFSET(ROS!$E$9,$Q$2+((A45-1)*7),0,7,1)),"") ->  | F45: =IF(C45<>"",SUM(OFFSET(ROS!$F$9,$Q$2+((A45-1)*7),0,7,1)),"") ->  | G45: =IF(C45<>"",SUM(OFFSET(ROS!$D$9,$Q$2+((A45-1)*7),0,7,1)),"") ->  | Q45: 41480 | R45: 41486 | T45: 25 | U45: ก.ค. | V45: 56 | W45: 31 | X45: ก.ค. | Y45: 56 | Z45: 25 - 31 ก.ค. 56
A46: 40 | B46: 1 - 7 ส.ค. 56 | C46: =IF(B46<>"",SUM(OFFSET(ROS!$J$9,$Q$2+((A46-1)*7),0,7,1)),"") ->  | D46: =IF(C46<>"",SUM(OFFSET(ROS!$C$9,$Q$2+((A46-1)*7),0,7,1)),"") ->  | E46: =IF(C46<>"",SUM(OFFSET(ROS!$E$9,$Q$2+((A46-1)*7),0,7,1)),"") ->  | F46: =IF(C46<>"",SUM(OFFSET(ROS!$F$9,$Q$2+((A46-1)*7),0,7,1)),"") ->  | G46: =IF(C46<>"",SUM(OFFSET(ROS!$D$9,$Q$2+((A46-1)*7),0,7,1)),"") ->  | Q46: 41487 | R46: 41493 | T46: 1 | U46: ส.ค. | V46: 56 | W46: 7 | X46: ส.ค. | Y46: 56 | Z46: 1 - 7 ส.ค. 56
A47: 41 | B47: 8 - 14 ส.ค. 56 | C47: =IF(B47<>"",SUM(OFFSET(ROS!$J$9,$Q$2+((A47-1)*7),0,7,1)),"") ->  | D47: =IF(C47<>"",SUM(OFFSET(ROS!$C$9,$Q$2+((A47-1)*7),0,7,1)),"") ->  | E47: =IF(C47<>"",SUM(OFFSET(ROS!$E$9,$Q$2+((A47-1)*7),0,7,1)),"") ->  | F47: =IF(C47<>"",SUM(OFFSET(ROS!$F$9,$Q$2+((A47-1)*7),0,7,1)),"") ->  | G47: =IF(C47<>"",SUM(OFFSET(ROS!$D$9,$Q$2+((A47-1)*7),0,7,1)),"") ->  | Q47: 41494 | R47: 41500 | T47: 8 | U47: ส.ค. | V47: 56 | W47: 14 | X47: ส.ค. | Y47: 56 | Z47: 8 - 14 ส.ค. 56
A48: 42 | B48: 15 - 21 ส.ค. 56 | C48: =IF(B48<>"",SUM(OFFSET(ROS!$J$9,$Q$2+((A48-1)*7),0,7,1)),"") ->  | D48: =IF(C48<>"",SUM(OFFSET(ROS!$C$9,$Q$2+((A48-1)*7),0,7,1)),"") ->  | E48: =IF(C48<>"",SUM(OFFSET(ROS!$E$9,$Q$2+((A48-1)*7),0,7,1)),"") ->  | F48: =IF(C48<>"",SUM(OFFSET(ROS!$F$9,$Q$2+((A48-1)*7),0,7,1)),"") ->  | G48: =IF(C48<>"",SUM(OFFSET(ROS!$D$9,$Q$2+((A48-1)*7),0,7,1)),"") ->  | Q48: 41501 | R48: 41507 | T48: 15 | U48: ส.ค. | V48: 56 | W48: 21 | X48: ส.ค. | Y48: 56 | Z48: 15 - 21 ส.ค. 56
A49: 43 | B49: 22 - 28 ส.ค. 56 | C49: =IF(B49<>"",SUM(OFFSET(ROS!$J$9,$Q$2+((A49-1)*7),0,7,1)),"") ->  | D49: =IF(C49<>"",SUM(OFFSET(ROS!$C$9,$Q$2+((A49-1)*7),0,7,1)),"") ->  | E49: =IF(C49<>"",SUM(OFFSET(ROS!$E$9,$Q$2+((A49-1)*7),0,7,1)),"") ->  | F49: =IF(C49<>"",SUM(OFFSET(ROS!$F$9,$Q$2+((A49-1)*7),0,7,1)),"") ->  | G49: =IF(C49<>"",SUM(OFFSET(ROS!$D$9,$Q$2+((A49-1)*7),0,7,1)),"") ->  | Q49: 41508 | R49: 41514 | T49: 22 | U49: ส.ค. | V49: 56 | W49: 28 | X49: ส.ค. | Y49: 56 | Z49: 22 - 28 ส.ค. 56
A50: 44 | B50: 29 ส.ค. - 4 ก.ย.56 | C50: =IF(B50<>"",SUM(OFFSET(ROS!$J$9,$Q$2+((A50-1)*7),0,7,1)),"") ->  | D50: =IF(C50<>"",SUM(OFFSET(ROS!$C$9,$Q$2+((A50-1)*7),0,7,1)),"") ->  | E50: =IF(C50<>"",SUM(OFFSET(ROS!$E$9,$Q$2+((A50-1)*7),0,7,1)),"") ->  | F50: =IF(C50<>"",SUM(OFFSET(ROS!$F$9,$Q$2+((A50-1)*7),0,7,1)),"") ->  | G50: =IF(C50<>"",SUM(OFFSET(ROS!$D$9,$Q$2+((A50-1)*7),0,7,1)),"") ->  | Q50: 41515 | R50: 41521 | T50: 29 | U50: ส.ค. | V50: 56 | W50: 4 | X50: ก.ย. | Y50: 56 | Z50: 29 ส.ค. - 4 ก.ย.56
A51: 45 | B51: 5 - 11 ก.ย. 56 | C51: =IF(B51<>"",SUM(OFFSET(ROS!$J$9,$Q$2+((A51-1)*7),0,7,1)),"") ->  | D51: =IF(C51<>"",SUM(OFFSET(ROS!$C$9,$Q$2+((A51-1)*7),0,7,1)),"") ->  | E51: =IF(C51<>"",SUM(OFFSET(ROS!$E$9,$Q$2+((A51-1)*7),0,7,1)),"") ->  | F51: =IF(C51<>"",SUM(OFFSET(ROS!$F$9,$Q$2+((A51-1)*7),0,7,1)),"") ->  | G51: =IF(C51<>"",SUM(OFFSET(ROS!$D$9,$Q$2+((A51-1)*7),0,7,1)),"") ->  | Q51: 41522 | R51: 41528 | T51: 5 | U51: ก.ย. | V51: 56 | W51: 11 | X51: ก.ย. | Y51: 56 | Z51: 5 - 11 ก.ย. 56
A52: 46 | B52: 12 - 18 ก.ย. 56 | C52: =IF(B52<>"",SUM(OFFSET(ROS!$J$9,$Q$2+((A52-1)*7),0,7,1)),"") ->  | D52: =IF(C52<>"",SUM(OFFSET(ROS!$C$9,$Q$2+((A52-1)*7),0,7,1)),"") ->  | E52: =IF(C52<>"",SUM(OFFSET(ROS!$E$9,$Q$2+((A52-1)*7),0,7,1)),"") ->  | F52: =IF(C52<>"",SUM(OFFSET(ROS!$F$9,$Q$2+((A52-1)*7),0,7,1)),"") ->  | G52: =IF(C52<>"",SUM(OFFSET(ROS!$D$9,$Q$2+((A52-1)*7),0,7,1)),"") ->  | Q52: 41529 | R52: 41535 | T52: 12 | U52: ก.ย. | V52: 56 | W52: 18 | X52: ก.ย. | Y52: 56 | Z52: 12 - 18 ก.ย. 56
A53: 47 | B53: 19 - 25 ก.ย. 56 | C53: =IF(B53<>"",SUM(OFFSET(ROS!$J$9,$Q$2+((A53-1)*7),0,7,1)),"") ->  | D53: =IF(C53<>"",SUM(OFFSET(ROS!$C$9,$Q$2+((A53-1)*7),0,7,1)),"") ->  | E53: =IF(C53<>"",SUM(OFFSET(ROS!$E$9,$Q$2+((A53-1)*7),0,7,1)),"") ->  | F53: =IF(C53<>"",SUM(OFFSET(ROS!$F$9,$Q$2+((A53-1)*7),0,7,1)),"") ->  | G53: =IF(C53<>"",SUM(OFFSET(ROS!$D$9,$Q$2+((A53-1)*7),0,7,1)),"") ->  | Q53: 41536 | R53: 41542 | T53: 19 | U53: ก.ย. | V53: 56 | W53: 25 | X53: ก.ย. | Y53: 56 | Z53: 19 - 25 ก.ย. 56
A54: 48 | B54: 26 ก.ย. - 2 ต.ค.56 | C54: =IF(B54<>"",SUM(OFFSET(ROS!$J$9,$Q$2+((A54-1)*7),0,7,1)),"") ->  | D54: =IF(C54<>"",SUM(OFFSET(ROS!$C$9,$Q$2+((A54-1)*7),0,7,1)),"") ->  | E54: =IF(C54<>"",SUM(OFFSET(ROS!$E$9,$Q$2+((A54-1)*7),0,7,1)),"") ->  | F54: =IF(C54<>"",SUM(OFFSET(ROS!$F$9,$Q$2+((A54-1)*7),0,7,1)),"") ->  | G54: =IF(C54<>"",SUM(OFFSET(ROS!$D$9,$Q$2+((A54-1)*7),0,7,1)),"") ->  | Q54: =IF($O$3>Q53+7,Q53+7,$O$3) -> 41543 | R54: 41549 | T54: =+DAY(Q54) -> 26 | U54: =OFFSET($AB$6,MONTH(Q54),0,1,1) -> ก.ย. | V54: =YEAR(Q54)+543-2500 -> 56 | W54: =+DAY(R54) -> 2 | X54: =OFFSET($AB$6,MONTH(R54),0,1,1) -> ต.ค. | Y54: =YEAR(R54)+543-2500 -> 56 | Z54: 26 ก.ย. - 2 ต.ค.56
A55: 49 | B55: 3 - 9 ต.ค. 56 | C55: =IF(B55<>"",SUM(OFFSET(ROS!$J$9,$Q$2+((A55-1)*7),0,7,1)),"") ->  | D55: =IF(C55<>"",SUM(OFFSET(ROS!$C$9,$Q$2+((A55-1)*7),0,7,1)),"") ->  | E55: =IF(C55<>"",SUM(OFFSET(ROS!$E$9,$Q$2+((A55-1)*7),0,7,1)),"") ->  | F55: =IF(C55<>"",SUM(OFFSET(ROS!$F$9,$Q$2+((A55-1)*7),0,7,1)),"") ->  | G55: =IF(C55<>"",SUM(OFFSET(ROS!$D$9,$Q$2+((A55-1)*7),0,7,1)),"") ->  | Q55: =IF($O$3>Q54+7,Q54+7,$O$3) -> 41550 | R55: 41556 | T55: =+DAY(Q55) -> 3 | U55: =OFFSET($AB$6,MONTH(Q55),0,1,1) -> ต.ค. | V55: =YEAR(Q55)+543-2500 -> 56 | W55: =+DAY(R55) -> 9 | X55: =OFFSET($AB$6,MONTH(R55),0,1,1) -> ต.ค. | Y55: =YEAR(R55)+543-2500 -> 56 | Z55: 3 - 9 ต.ค. 56
A56: 50 | B56: 10 - 16 ต.ค. 56 | C56: =IF(B56<>"",SUM(OFFSET(ROS!$J$9,$Q$2+((A56-1)*7),0,7,1)),"") ->  | D56: =IF(C56<>"",SUM(OFFSET(ROS!$C$9,$Q$2+((A56-1)*7),0,7,1)),"") ->  | E56: =IF(C56<>"",SUM(OFFSET(ROS!$E$9,$Q$2+((A56-1)*7),0,7,1)),"") ->  | F56: =IF(C56<>"",SUM(OFFSET(ROS!$F$9,$Q$2+((A56-1)*7),0,7,1)),"") ->  | G56: =IF(C56<>"",SUM(OFFSET(ROS!$D$9,$Q$2+((A56-1)*7),0,7,1)),"") ->  | Q56: =IF($O$3>Q55+7,Q55+7,$O$3) -> 41557 | R56: 41563 | T56: =+DAY(Q56) -> 10 | U56: =OFFSET($AB$6,MONTH(Q56),0,1,1) -> ต.ค. | V56: =YEAR(Q56)+543-2500 -> 56 | W56: =+DAY(R56) -> 16 | X56: =OFFSET($AB$6,MONTH(R56),0,1,1) -> ต.ค. | Y56: =YEAR(R56)+543-2500 -> 56 | Z56: 10 - 16 ต.ค. 56
A57: 51 | B57: 17 - 23 ต.ค. 56 | C57: =IF(B57<>"",SUM(OFFSET(ROS!$J$9,$Q$2+((A57-1)*7),0,7,1)),"") ->  | D57: =IF(C57<>"",SUM(OFFSET(ROS!$C$9,$Q$2+((A57-1)*7),0,7,1)),"") ->  | E57: =IF(C57<>"",SUM(OFFSET(ROS!$E$9,$Q$2+((A57-1)*7),0,7,1)),"") ->  | F57: =IF(C57<>"",SUM(OFFSET(ROS!$F$9,$Q$2+((A57-1)*7),0,7,1)),"") ->  | G57: =IF(C57<>"",SUM(OFFSET(ROS!$D$9,$Q$2+((A57-1)*7),0,7,1)),"") ->  | Q57: =IF($O$3>Q56+7,Q56+7,$O$3) -> 41564 | R57: 41570 | T57: =+DAY(Q57) -> 17 | U57: =OFFSET($AB$6,MONTH(Q57),0,1,1) -> ต.ค. | V57: =YEAR(Q57)+543-2500 -> 56 | W57: =+DAY(R57) -> 23 | X57: =OFFSET($AB$6,MONTH(R57),0,1,1) -> ต.ค. | Y57: =YEAR(R57)+543-2500 -> 56 | Z57: 17 - 23 ต.ค. 56
A58: 52 | B58: 24 - 31 ต.ค. 56 | C58: =IF(B58<>"",SUM(OFFSET(ROS!$J$9,$Q$2+((A58-1)*7),0,8,1)),"") ->  | D58: =IF(C58<>"",SUM(OFFSET(ROS!$C$9,$Q$2+((A58-1)*7),0,8,1)),"") ->  | E58: =IF(C58<>"",SUM(OFFSET(ROS!$E$9,$Q$2+((A58-1)*7),0,8,1)),"") ->  | F58: =IF(C58<>"",SUM(OFFSET(ROS!$F$9,$Q$2+((A58-1)*7),0,8,1)),"") ->  | G58: =IF(C58<>"",SUM(OFFSET(ROS!$D$9,$Q$2+((A58-1)*7),0,8,1)),"") ->  | H58: =SUM(C58:G58) ->  | Q58: =IF($O$3>Q57+7,Q57+7,$O$3) -> 41571 | R58: =IF($O$3>Q58+6,Q58+7,$O$3) -> 41578 | T58: =+DAY(Q58) -> 24 | U58: =OFFSET($AB$6,MONTH(Q58),0,1,1) -> ต.ค. | V58: =YEAR(Q58)+543-2500 -> 56 | W58: =+DAY(R58) -> 31 | X58: =OFFSET($AB$6,MONTH(R58),0,1,1) -> ต.ค. | Y58: =YEAR(R58)+543-2500 -> 56 | Z58: 24 - 31 ต.ค. 56
A59: รวม (ล้าน ม.3) | C59: =SUM(C7:C58) -> 
A61: หมายเหตุ : กำหนดให้วันเริ่มต้นในแต่ละสัปดาห์คือวัน

Sheet paddy_dry
B1: ตารางแสดงรายละเอียดการคำนวณความต้องการน้ำของพืช
F2: สัปดาห์ | G2: พื้นที่ (ไร่)
F3: 1 | G3: =+fill_data!M10 -> 0 | S3: =+E6 -> 9 | T3: 1
B4: จังหวัด | D4: =+fill_data!C4 -> 0 | F4: =IF(F3="","",IF(F3+1<=$E$9,F3+1,"")) -> 2 | G4: =+fill_data!M11 -> 0 | S4: =IF(+S3+1>52,+S3+1-52,S3+1) -> 10 | T4: 2
B5: ชนิดพืช | D5: =+fill_data!J11 -> ข้าว กข.(นาดำ) | F5: 3 | G5: =+fill_data!M12 -> 0 | S5: =IF(+S4+1>52,+S4+1-52,S4+1) -> 11 | T5: 3
B6: สัปดาห์เริ่มต้น | D6: =VLOOKUP(D5,Crop!B3:C35,2,FALSE) -> 13 | E6: =+fill_data!K12 -> 9 | F6: 4 | G6: =+fill_data!M13 -> 0 | S6: 12 | T6: 4
B7: ใช้ค่า ETo ของจังหวัด | D7: =+fill_data!C5 ->  | G7: =+fill_data!M14 -> 0 | S7: 13 | T7: 5
B8: พื้นที่โครงการ, ไร่ | E8: =fill_data!K13 -> 0 | G8: =+fill_data!M15 -> 0 | S8: 14 | T8: 6
B9: เวลาปลูกจนเต็มพื้นที่, สัปดาห์ | E9: =+fill_data!K14 -> 4 | G9: =+fill_data!M16 -> 0 | S9: 15 | T9: 7
B10: ปริมาณน้ำรั่วซึม, มม./สัปดาห์ | E10: =+fill_data!D6 -> 0 | G10: =+fill_data!M17 -> 0 | I10: *ภาคกลาง กำหนดให้ใช้ 1 มม./วัน ส่วนภาคอื่นๆใช้ 2 มม./วัน | S10: 16 | T10: 8
B11: ปริมาณน้ำเตรียมแปลง, มม./สัปดาห์ | E11: =+fill_data!K15 -> 240 | G11: =+fill_data!M18 -> 0 | I11: *กำหนดระยะเวลาในการเตรียมแปลง 1 สัปดาห์ | S11: 17 | T11: 9
G12: =+fill_data!M19 -> 0 | S12: 18 | T12: 10 | AD12: =+MONTH(D32) -> 12
F13: =IF(F12="","",IF(F12+1<=$E$9,F12+1,"")) ->  | G13: =+fill_data!M20 -> 0 | S13: 19 | T13: 11
G14: =+fill_data!M21 -> 0 | S14: 20 | T14: 12
G15: =+fill_data!M22 -> 0 | S15: 21 | T15: 13
G16: =+fill_data!M23 -> 0 | S16: 22 | T16: 14
G17: =+fill_data!M24 -> 0 | S17: 23 | T17: 15
G18: =+fill_data!M25 -> 0 | S18: 24 | T18: 16
G19: =+fill_data!M26 -> 0 | S19: 25 | T19: 17
G20: =+fill_data!M27 -> 0 | S20: 26 | T20: 18
G21: =+fill_data!M28 -> 0 | S21: 27 | T21: 19
F22: =IF(F21="","",IF(F21+1<=$E$9,F21+1,"")) ->  | G22: =+fill_data!M29 -> 0 | S22: 28 | T22: 20
B24: (1) | C24: (2) | D24: (3) | E24: (4) | F24: (5) | G24: (6) | H24: (7.1) | I24: (7.2) | J24: (7.3) | K24: (7.4) | L24: (7.5) | M24: (7.6) | N24: (7.7) | O24: (7.8) | P24: (7.9) | Q24: (7.10) | R24: (7.11) | S24: (7.12) | T24: (7.13) | U24: (7.14) | V24: (7.15) | W24: (7.16) | X24: (7.17) | Y24: (7.18) | Z24: (7.19) | AA24: (7.20) | AB24: (8) | AC24: (9) | AD24: (10) | AE24: (11) | AF24: (12) | AG24: (13) | AH24: (14) | AI24: (15)
B25: ช่วงเวลาสัปดาห์ | D25: เดือน | E25: สัปดาห์ | F25: สัปดาห์ | G25: Kc | H25: พื้นที่เพาะปลูกในแต่ละสัปดาห์ (ไร่) | AB25: รวมพื้นที่ | AC25: Weighted | AD25: ETo | AE25: ความต้องการน้ำ | AG25: ปริมาณน้ำเตรียมแปลง | AI25: ความต้องการน้ำ | AJ25: ฝนใช้การ
B26: เริ่มต้น | C26: สิ้นสุด | F26: ของ Kc | H26: 1 | I26: 2 | J26: 3 | K26: 4 | L26: 5 | M26: 6 | N26: 7 | O26: 8 | P26: 9 | Q26: 10 | R26: 11 | S26: 12 | T26: 13 | U26: 14 | V26: 15 | W26: 16 | X26: 17 | Y26: 18 | Z26: 19 | AA26: 20 | AB26: (ไร่) | AC26: Kc | AE26: (มม.) | AF26: (ลบ.ม.) | AG26: (ไร่) | AH26: (ลบ.ม.) | AI26: (ลบ.ม.) | AJ26: (ลบ.ม.)
B27: 2008-11-01 | C27: 2008-11-07 | D27: =+C27 -> 2008-11-07 | E27: 1 | F27: =IF(ISERROR(VLOOKUP(E27,Crop!$I$3:$J$70,2,FALSE)),0,VLOOKUP(paddy_dry!E27,Crop!$I$3:$J$71,2,FALSE)) -> 0 | G27: =IF(ISERROR(HLOOKUP($D$5,Kc!$C$3:$AI$57,paddy_dry!F27+3,FALSE)),0,HLOOKUP($D$5,Kc!$C$3:$AI$57,paddy_dry!F27+3,FALSE)) -> 0 | H27: =IF(G27>0,IF(H$26>$E$9,0,VLOOKUP(H$26,$F$3:$G$23,2,FALSE)),0) -> 0 | I27: =IF(H78>0,IF(I$26>$E$9,0,VLOOKUP(I$26,$F$3:$G$23,2,FALSE)),0) -> 0 | J27: 0 | K27: 0 | L27: 0 | M27: 0 | N27: 0 | O27: 0 | P27: 0 | Q27: 0 | R27: 0 | S27: =IF(R78>0,IF(S$26>$E$9,0,VLOOKUP(S$26,$F$3:$G$23,2,FALSE)),0) -> 0 | T27: 0 | U27: 0 | V27: 0 | W27: 0 | X27: 0 | Y27: 0 | Z27: 0 | AA27: 0 | AB27: =SUM(H27:AA27) -> 0 | AC27: =IF(ISERROR((H27*G27+I27*G78+J27*G77+K27*G76+L27*G75+M27*G74+N27*G73+O27*G72+P27*G71+Q27*G70+R27*G69+S27*G68+T27*G67+U27*G66+V27*G65+W27*G64+X27*G63+Y27*G62+Z27*G61+AA27*G60)/AB27),0,(H27*G27+I27*G78+J27*G77+K27*G76+L27*G75+M27*G74+N27*G73+O27*G72+P27*G71+Q27*G70+R27*G69+S27*G68+T27*G67+U27*G66+V27*G65+W27*G64+X27*G63+Y27*G62+Z27*G61+AA27*G60)/AB27) -> 0 | AD27: =VLOOKUP($D$7,ETo!$B$4:$P$88,MONTH(D27)+2,FALSE)/4 ->  | AE27: =IF(AC27*AD27=0,0,(AC27*AD27)+$E$10) ->  | AF27: =AE27*AB27*1.6 ->  | AG27: =IF(ISERROR(INDEX(H27:AA27,1,IF(E27<$E$6,0,VLOOKUP(E27,$S$3:$T$22,2,FALSE)))),0,INDEX(H27:AA27,1,IF(E27<$E$6,0,VLOOKUP(E27,$S$3:$T$22,2,FALSE)))) -> 0 | AH27: =AG27*$E$11*1.6 -> 0 | AI27: =AF27+AH27 ->  | AJ27: =VLOOKUP(MONTH(D27),[0]!rainforpaddy,4)/1000*AB27*1600*7 -> 
B28: =C27+1 -> 2008-11-08 | C28: =B28+6 -> 2008-11-14 | D28: =+C28 -> 2008-11-14 | E28: 2 | F28: =IF(ISERROR(VLOOKUP(E28,Crop!$I$3:$J$70,2,FALSE)),0,VLOOKUP(paddy_dry!E28,Crop!$I$3:$J$71,2,FALSE)) -> 0 | G28: =IF(ISERROR(HLOOKUP($D$5,Kc!$C$3:$AI$57,paddy_dry!F28+3,FALSE)),0,HLOOKUP($D$5,Kc!$C$3:$AI$57,paddy_dry!F28+3,FALSE)) -> 0 | H28: 0 | I28: =IF(H27>0,IF(I$26>$E$9,0,VLOOKUP(I$26,$F$3:$G$23,2,FALSE)),0) -> 0 | J28: 0 | K28: 0 | L28: 0 | M28: 0 | N28: 0 | O28: 0 | P28: 0 | Q28: 0 | R28: 0 | S28: =IF(R27>0,IF(S$26>$E$9,0,VLOOKUP(S$26,$F$3:$G$23,2,FALSE)),0) -> 0 | T28: 0 | U28: 0 | V28: 0 | W28: 0 | X28: 0 | Y28: 0 | Z28: 0 | AA28: 0 | AB28: =SUM(H28:AA28) -> 0 | AC28: =IF(ISERROR((H28*G28+I28*G27+J28*G78+K28*G77+L28*G76+M28*G75+N28*G74+O28*G73+P28*G72+Q28*G71+R28*G70+S28*G69+T28*G68+U28*G67+V28*G66+W28*G65+X28*G64+Y28*G63+Z28*G62+AA28*G61)/AB28),0,(H28*G28+I28*G27+J28*G78+K28*G77+L28*G76+M28*G75+N28*G74+O28*G73+P28*G72+Q28*G71+R28*G70+S28*G69+T28*G68+U28*G67+V28*G66+W28*G65+X28*G64+Y28*G63+Z28*G62+AA28*G61)/AB28) -> 0 | AD28: =VLOOKUP($D$7,ETo!$B$4:$P$88,MONTH(D28)+2,FALSE)/4 ->  | AE28: =IF(AC28*AD28=0,0,(AC28*AD28)+$E$10) ->  | AF28: =AE28*AB28*1.6 ->  | AG28: =IF(ISERROR(INDEX(H28:AA28,1,IF(E28<$E$6,0,VLOOKUP(E28,$S$3:$T$22,2,FALSE)))),0,INDEX(H28:AA28,1,IF(E28<$E$6,0,VLOOKUP(E28,$S$3:$T$22,2,FALSE)))) -> 0 | AH28: =AG28*$E$11*1.6 -> 0 | AI28: =AF28+AH28 ->  | AJ28: =VLOOKUP(MONTH(D28),[0]!rainforpaddy,4)/1000*AB28*1600*7 -> 
B29: =C28+1 -> 2008-11-15 | C29: =B29+6 -> 2008-11-21 | D29: =+C29 -> 2008-11-21 | E29: 3 | F29: =IF(ISERROR(VLOOKUP(E29,Crop!$I$3:$J$70,2,FALSE)),0,VLOOKUP(paddy_dry!E29,Crop!$I$3:$J$71,2,FALSE)) -> 0 | G29: =IF(ISERROR(HLOOKUP($D$5,Kc!$C$3:$AI$57,paddy_dry!F29+3,FALSE)),0,HLOOKUP($D$5,Kc!$C$3:$AI$57,paddy_dry!F29+3,FALSE)) -> 0 | H29: 0 | I29: 0 | J29: 0 | K29: 0 | L29: 0 | M29: 0 | N29: 0 | O29: 0 | P29: 0 | Q29: 0 | R29: 0 | S29: 0 | T29: 0 | U29: 0 | V29: 0 | W29: 0 | X29: 0 | Y29: 0 | Z29: 0 | AA29: 0 | AB29: 0 | AC29: =IF(ISERROR((H29*G29+I29*G28+J29*G27+K29*G78+L29*G77+M29*G76+N29*G75+O29*G74+P29*G73+Q29*G72+R29*G71+S29*G70+T29*G69+U29*G68+V29*G67+W29*G66+X29*G65+Y29*G64+Z29*G63+AA29*G62)/AB29),0,(H29*G29+I29*G28+J29*G27+K29*G78+L29*G77+M29*G76+N29*G75+O29*G74+P29*G73+Q29*G72+R29*G71+S29*G70+T29*G69+U29*G68+V29*G67+W29*G66+X29*G65+Y29*G64+Z29*G63+AA29*G62)/AB29) -> 0 | AD29: =VLOOKUP($D$7,ETo!$B$4:$P$88,MONTH(D29)+2,FALSE)/4 ->  | AG29: =IF(ISERROR(INDEX(H29:AA29,1,IF(E29<$E$6,0,VLOOKUP(E29,$S$3:$T$22,2,FALSE)))),0,INDEX(H29:AA29,1,IF(E29<$E$6,0,VLOOKUP(E29,$S$3:$T$22,2,FALSE)))) -> 0 | AH29: =AG29*$E$11*1.6 -> 0 | AJ29: =VLOOKUP(MONTH(D29),[0]!rainforpaddy,4)/1000*AB29*1600*7 -> 
B30: 2008-11-22 | C30: 2008-11-28 | D30: 2008-11-28 | E30: 4 | F30: =IF(ISERROR(VLOOKUP(E30,Crop!$I$3:$J$70,2,FALSE)),0,VLOOKUP(paddy_dry!E30,Crop!$I$3:$J$71,2,FALSE)) -> 0 | G30: =IF(ISERROR(HLOOKUP($D$5,Kc!$C$3:$AI$57,paddy_dry!F30+3,FALSE)),0,HLOOKUP($D$5,Kc!$C$3:$AI$57,paddy_dry!F30+3,FALSE)) -> 0 | H30: 0 | I30: 0 | J30: 0 | K30: 0 | L30: 0 | M30: 0 | N30: 0 | O30: 0 | P30: 0 | Q30: 0 | R30: 0 | S30: 0 | T30: 0 | U30: 0 | V30: 0 | W30: 0 | X30: 0 | Y30: 0 | Z30: 0 | AA30: 0 | AB30: 0 | AC30: =IF(ISERROR((H30*G30+I30*G29+J30*G28+K30*G27+L30*G78+M30*G77+N30*G76+O30*G75+P30*G74+Q30*G73+R30*G72+S30*G71+T30*G70+U30*G69+V30*G68+W30*G67+X30*G66+Y30*G65+Z30*G64+AA30*G63)/AB30),0,(H30*G30+I30*G29+J30*G28+K30*G27+L30*G78+M30*G77+N30*G76+O30*G75+P30*G74+Q30*G73+R30*G72+S30*G71+T30*G70+U30*G69+V30*G68+W30*G67+X30*G66+Y30*G65+Z30*G64+AA30*G63)/AB30) -> 0 | AD30: =VLOOKUP($D$7,ETo!$B$4:$P$88,MONTH(D30)+2,FALSE)/4 ->  | AG30: =IF(ISERROR(INDEX(H30:AA30,1,IF(E30<$E$6,0,VLOOKUP(E30,$S$3:$T$22,2,FALSE)))),0,INDEX(H30:AA30,1,IF(E30<$E$6,0,VLOOKUP(E30,$S$3:$T$22,2,FALSE)))) -> 0 | AH30: =AG30*$E$11*1.6 -> 0 | AJ30: =VLOOKUP(MONTH(D30),[0]!rainforpaddy,4)/1000*AB30*1600*7 -> 
B31: 2008-11-29 | C31: 2008-12-05 | D31: 2008-12-05 | E31: 5 | F31: =IF(ISERROR(VLOOKUP(E31,Crop!$I$3:$J$70,2,FALSE)),0,VLOOKUP(paddy_dry!E31,Crop!$I$3:$J$71,2,FALSE)) -> 0 | G31: =IF(ISERROR(HLOOKUP($D$5,Kc!$C$3:$AI$57,paddy_dry!F31+3,FALSE)),0,HLOOKUP($D$5,Kc!$C$3:$AI$57,paddy_dry!F31+3,FALSE)) -> 0 | H31: 0 | I31: 0 | J31: 0 | K31: 0 | L31: 0 | M31: 0 | N31: 0 | O31: 0 | P31: 0 | Q31: 0 | R31: 0 | S31: 0 | T31: 0 | U31: 0 | V31: 0 | W31: 0 | X31: 0 | Y31: 0 | Z31: 0 | AA31: 0 | AB31: 0 | AC31: =IF(ISERROR((H31*G31+I31*G30+J31*G29+K31*G28+L31*G27+M31*G78+N31*G77+O31*G76+P31*G75+Q31*G74+R31*G73+S31*G72+T31*G71+U31*G70+V31*G69+W31*G68+X31*G67+Y31*G66+Z31*G65+AA31*G64)/AB31),0,(H31*G31+I31*G30+J31*G29+K31*G28+L31*G27+M31*G78+N31*G77+O31*G76+P31*G75+Q31*G74+R31*G73+S31*G72+T31*G71+U31*G70+V31*G69+W31*G68+X31*G67+Y31*G66+Z31*G65+AA31*G64)/AB31) -> 0 | AD31: =VLOOKUP($D$7,ETo!$B$4:$P$88,MONTH(D31)+2,FALSE)/4 ->  | AG31: =IF(ISERROR(INDEX(H31:AA31,1,IF(E31<$E$6,0,VLOOKUP(E31,$S$3:$T$22,2,FALSE)))),0,INDEX(H31:AA31,1,IF(E31<$E$6,0,VLOOKUP(E31,$S$3:$T$22,2,FALSE)))) -> 0 | AH31: =AG31*$E$11*1.6 -> 0 | AJ31: =VLOOKUP(MONTH(D31),[0]!rainforpaddy,4)/1000*AB31*1600*7 -> 
B32: 2008-12-06 | C32: 2008-12-12 | D32: 2008-12-12 | E32: 6 | F32: =IF(ISERROR(VLOOKUP(E32,Crop!$I$3:$J$70,2,FALSE)),0,VLOOKUP(paddy_dry!E32,Crop!$I$3:$J$71,2,FALSE)) -> 0 | G32: =IF(ISERROR(HLOOKUP($D$5,Kc!$C$3:$AI$57,paddy_dry!F32+3,FALSE)),0,HLOOKUP($D$5,Kc!$C$3:$AI$57,paddy_dry!F32+3,FALSE)) -> 0 | H32: 0 | I32: 0 | J32: 0 | K32: 0 | L32: 0 | M32: 0 | N32: 0 | O32: 0 | P32: 0 | Q32: 0 | R32: 0 | S32: 0 | T32: 0 | U32: 0 | V32: 0 | W32: 0 | X32: 0 | Y32: 0 | Z32: 0 | AA32: 0 | AB32: 0 | AC32: =IF(ISERROR((H32*G32+I32*G31+J32*G30+K32*G29+L32*G28+M32*G27+N32*G78+O32*G77+P32*G76+Q32*G75+R32*G74+S32*G73+T32*G72+U32*G71+V32*G70+W32*G69+X32*G68+Y32*G67+Z32*G66+AA32*G65)/AB32),0,(H32*G32+I32*G31+J32*G30+K32*G29+L32*G28+M32*G27+N32*G78+O32*G77+P32*G76+Q32*G75+R32*G74+S32*G73+T32*G72+U32*G71+V32*G70+W32*G69+X32*G68+Y32*G67+Z32*G66+AA32*G65)/AB32) -> 0 | AD32: =VLOOKUP($D$7,ETo!$B$4:$P$88,MONTH(D32)+2,FALSE)/4 ->  | AG32: =IF(ISERROR(INDEX(H32:AA32,1,IF(E32<$E$6,0,VLOOKUP(E32,$S$3:$T$22,2,FALSE)))),0,INDEX(H32:AA32,1,IF(E32<$E$6,0,VLOOKUP(E32,$S$3:$T$22,2,FALSE)))) -> 0 | AH32: =AG32*$E$11*1.6 -> 0 | AJ32: =VLOOKUP(MONTH(D32),[0]!rainforpaddy,4)/1000*AB32*1600*7 -> 
B33: 2008-12-13 | C33: 2008-12-19 | D33: 2008-12-19 | E33: 7 | F33: =IF(ISERROR(VLOOKUP(E33,Crop!$I$3:$J$70,2,FALSE)),0,VLOOKUP(paddy_dry!E33,Crop!$I$3:$J$71,2,FALSE)) -> 0 | G33: =IF(ISERROR(HLOOKUP($D$5,Kc!$C$3:$AI$57,paddy_dry!F33+3,FALSE)),0,HLOOKUP($D$5,Kc!$C$3:$AI$57,paddy_dry!F33+3,FALSE)) -> 0 | H33: 0 | I33: 0 | J33: 0 | K33: 0 | L33: 0 | M33: 0 | N33: 0 | O33: 0 | P33: 0 | Q33: 0 | R33: 0 | S33: 0 | T33: 0 | U33: 0 | V33: 0 | W33: 0 | X33: 0 | Y33: 0 | Z33: 0 | AA33: 0 | AB33: 0 | AC33: =IF(ISERROR((H33*G33+I33*G32+J33*G31+K33*G30+L33*G29+M33*G28+N33*G27+O33*G78+P33*G77+Q33*G76+R33*G75+S33*G74+T33*G73+U33*G72+V33*G71+W33*G70+X33*G69+Y33*G68+Z33*G67+AA33*G66)/AB33),0,(H33*G33+I33*G32+J33*G31+K33*G30+L33*G29+M33*G28+N33*G27+O33*G78+P33*G77+Q33*G76+R33*G75+S33*G74+T33*G73+U33*G72+V33*G71+W33*G70+X33*G69+Y33*G68+Z33*G67+AA33*G66)/AB33) -> 0 | AD33: =VLOOKUP($D$7,ETo!$B$4:$P$88,MONTH(D33)+2,FALSE)/4 ->  | AG33: 0 | AH33: 0 | AJ33: =VLOOKUP(MONTH(D33),[0]!rainforpaddy,4)/1000*AB33*1600*7 -> 
B34: 2008-12-20 | C34: 2008-12-26 | D34: 2008-12-26 | E34: 8 | F34: =IF(ISERROR(VLOOKUP(E34,Crop!$I$3:$J$70,2,FALSE)),0,VLOOKUP(paddy_dry!E34,Crop!$I$3:$J$71,2,FALSE)) -> 0 | G34: =IF(ISERROR(HLOOKUP($D$5,Kc!$C$3:$AI$57,paddy_dry!F34+3,FALSE)),0,HLOOKUP($D$5,Kc!$C$3:$AI$57,paddy_dry!F34+3,FALSE)) -> 0 | H34: 0 | I34: 0 | J34: 0 | K34: 0 | L34: 0 | M34: 0 | N34: 0 | O34: 0 | P34: 0 | Q34: 0 | R34: 0 | S34: 0 | T34: 0 | U34: 0 | V34: 0 | W34: 0 | X34: 0 | Y34: 0 | Z34: 0 | AA34: 0 | AB34: 0 | AC34: =IF(ISERROR((H34*G34+I34*G33+J34*G32+K34*G31+L34*G30+M34*G29+N34*G28+O34*G27+P34*G78+Q34*G77+R34*G76+S34*G75+T34*G74+U34*G73+V34*G72+W34*G71+X34*G70+Y34*G69+Z34*G68+AA34*G67)/AB34),0,(H34*G34+I34*G33+J34*G32+K34*G31+L34*G30+M34*G29+N34*G28+O34*G27+P34*G78+Q34*G77+R34*G76+S34*G75+T34*G74+U34*G73+V34*G72+W34*G71+X34*G70+Y34*G69+Z34*G68+AA34*G67)/AB34) -> 0 | AD34: =VLOOKUP($D$7,ETo!$B$4:$P$88,MONTH(D34)+2,FALSE)/4 ->  | AG34: 0 | AH34: 0 | AJ34: =VLOOKUP(MONTH(D34),[0]!rainforpaddy,4)/1000*AB34*1600*7 -> 
B35: 2008-12-27 | C35: 2009-01-02 | D35: 2009-01-02 | E35: 9 | F35: =IF(ISERROR(VLOOKUP(E35,Crop!$I$3:$J$70,2,FALSE)),0,VLOOKUP(paddy_dry!E35,Crop!$I$3:$J$71,2,FALSE)) -> 1 | G35: =IF(ISERROR(HLOOKUP($D$5,Kc!$C$3:$AI$57,paddy_dry!F35+3,FALSE)),0,HLOOKUP($D$5,Kc!$C$3:$AI$57,paddy_dry!F35+3,FALSE)) -> 1.03 | H35: 0 | I35: 0 | J35: 0 | K35: 0 | L35: 0 | M35: 0 | N35: 0 | O35: 0 | P35: 0 | Q35: 0 | R35: 0 | S35: 0 | T35: 0 | U35: 0 | V35: 0 | W35: 0 | X35: 0 | Y35: 0 | Z35: 0 | AA35: 0 | AB35: 0 | AC35: =IF(ISERROR((H35*G35+I35*G34+J35*G33+K35*G32+L35*G31+M35*G30+N35*G29+O35*G28+P35*G27+Q35*G78+R35*G77+S35*G76+T35*G75+U35*G74+V35*G73+W35*G72+X35*G71+Y35*G70+Z35*G69+AA35*G68)/AB35),0,(H35*G35+I35*G34+J35*G33+K35*G32+L35*G31+M35*G30+N35*G29+O35*G28+P35*G27+Q35*G78+R35*G77+S35*G76+T35*G75+U35*G74+V35*G73+W35*G72+X35*G71+Y35*G70+Z35*G69+AA35*G68)/AB35) -> 0 | AD35: =VLOOKUP($D$7,ETo!$B$4:$P$88,MONTH(D35)+2,FALSE)/4 ->  | AG35: 0 | AH35: 0 | AJ35: =VLOOKUP(MONTH(D35),[0]!rainforpaddy,4)/1000*AB35*1600*7 -> 
B36: 2009-01-03 | C36: 2009-01-09 | D36: 2009-01-09 | E36: 10 | F36: =IF(ISERROR(VLOOKUP(E36,Crop!$I$3:$J$70,2,FALSE)),0,VLOOKUP(paddy_dry!E36,Crop!$I$3:$J$71,2,FALSE)) -> 2 | G36: =IF(ISERROR(HLOOKUP($D$5,Kc!$C$3:$AI$57,paddy_dry!F36+3,FALSE)),0,HLOOKUP($D$5,Kc!$C$3:$AI$57,paddy_dry!F36+3,FALSE)) -> 1.07 | H36: =IF(G36>0,IF(H$26>$E$9,0,VLOOKUP(H$26,$F$3:$G$23,2,FALSE)),0) -> 0 | I36: 0 | J36: 0 | K36: 0 | L36: 0 | M36: 0 | N36: 0 | O36: 0 | P36: 0 | Q36: 0 | R36: 0 | S36: 0 | T36: 0 | U36: 0 | V36: 0 | W36: 0 | X36: 0 | Y36: 0 | Z36: 0 | AA36: 0 | AB36: 0 | AC36: =IF(ISERROR((H36*G36+I36*G35+J36*G34+K36*G33+L36*G32+M36*G31+N36*G30+O36*G29+P36*G28+Q36*G27+R36*G78+S36*G77+T36*G76+U36*G75+V36*G74+W36*G73+X36*G72+Y36*G71+Z36*G70+AA36*G69)/AB36),0,(H36*G36+I36*G35+J36*G34+K36*G33+L36*G32+M36*G31+N36*G30+O36*G29+P36*G28+Q36*G27+R36*G78+S36*G77+T36*G76+U36*G75+V36*G74+W36*G73+X36*G72+Y36*G71+Z36*G70+AA36*G69)/AB36) -> 0 | AD36: =VLOOKUP($D$7,ETo!$B$4:$P$88,MONTH(D36)+2,FALSE)/4 ->  | AG36: 0 | AH36: 0 | AJ36: =VLOOKUP(MONTH(D36),[0]!rainforpaddy,4)/1000*AB36*1600*7 -> 
B37: 2009-01-10 | C37: 2009-01-16 | D37: 2009-01-16 | E37: 11 | F37: =IF(ISERROR(VLOOKUP(E37,Crop!$I$3:$J$70,2,FALSE)),0,VLOOKUP(paddy_dry!E37,Crop!$I$3:$J$71,2,FALSE)) -> 3 | G37: =IF(ISERROR(HLOOKUP($D$5,Kc!$C$3:$AI$57,paddy_dry!F37+3,FALSE)),0,HLOOKUP($D$5,Kc!$C$3:$AI$57,paddy_dry!F37+3,FALSE)) -> 1.12 | H37: 0 | I37: =IF(H36>0,IF(I$26>$E$9,0,VLOOKUP(I$26,$F$3:$G$23,2,FALSE)),0) -> 0 | J37: =IF(I36>0,IF(J$26>$E$9,0,VLOOKUP(J$26,$F$3:$G$12,2,FALSE)),0) -> 0 | K37: =IF(J36>0,IF(K$26>$E$9,0,VLOOKUP(K$26,$F$3:$G$23,2,FALSE)),0) -> 0 | L37: 0 | M37: 0 | N37: 0 | O37: 0 | P37: 0 | Q37: 0 | R37: 0 | S37: 0 | T37: 0 | U37: =IF(T36>0,IF(U$26>$E$9,0,VLOOKUP(U$26,$F$3:$G$23,2,FALSE)),0) -> 0 | V37: 0 | W37: 0 | X37: 0 | Y37: 0 | Z37: 0 | AA37: 0 | AB37: 0 | AC37: =IF(ISERROR((H37*G37+I37*G36+J37*G35+K37*G34+L37*G33+M37*G32+N37*G31+O37*G30+P37*G29+Q37*G28+R37*G27+S37*G78+T37*G77+U37*G76+V37*G75+W37*G74+X37*G73+Y37*G72+Z37*G71+AA37*G70)/AB37),0,(H37*G37+I37*G36+J37*G35+K37*G34+L37*G33+M37*G32+N37*G31+O37*G30+P37*G29+Q37*G28+R37*G27+S37*G78+T37*G77+U37*G76+V37*G75+W37*G74+X37*G73+Y37*G72+Z37*G71+AA37*G70)/AB37) -> 0 | AD37: =VLOOKUP($D$7,ETo!$B$4:$P$88,MONTH(D37)+2,FALSE)/4 ->  | AG37: 0 | AH37: 0 | AJ37: =VLOOKUP(MONTH(D37),[0]!rainforpaddy,4)/1000*AB37*1600*7 -> 
B38: 2009-01-17 | C38: 2009-01-23 | D38: 2009-01-23 | E38: 12 | F38: =IF(ISERROR(VLOOKUP(E38,Crop!$I$3:$J$70,2,FALSE)),0,VLOOKUP(paddy_dry!E38,Crop!$I$3:$J$71,2,FALSE)) -> 4 | G38: =IF(ISERROR(HLOOKUP($D$5,Kc!$C$3:$AI$57,paddy_dry!F38+3,FALSE)),0,HLOOKUP($D$5,Kc!$C$3:$AI$57,paddy_dry!F38+3,FALSE)) -> 1.29 | H38: 0 | I38: 0 | J38: 0 | K38: 0 | L38: 0 | M38: 0 | N38: 0 | O38: 0 | P38: 0 | Q38: 0 | R38: 0 | S38: 0 | T38: 0 | U38: 0 | V38: 0 | W38: 0 | X38: 0 | Y38: 0 | Z38: 0 | AA38: 0 | AB38: 0 | AC38: =IF(ISERROR((H38*G38+I38*G37+J38*G36+K38*G35+L38*G34+M38*G33+N38*G32+O38*G31+P38*G30+Q38*G29+R38*G28+S38*G27+T38*G78+U38*G77+V38*G76+W38*G75+X38*G74+Y38*G73+Z38*G72+AA38*G71)/AB38),0,(H38*G38+I38*G37+J38*G36+K38*G35+L38*G34+M38*G33+N38*G32+O38*G31+P38*G30+Q38*G29+R38*G28+S38*G27+T38*G78+U38*G77+V38*G76+W38*G75+X38*G74+Y38*G73+Z38*G72+AA38*G71)/AB38) -> 0 | AD38: =VLOOKUP($D$7,ETo!$B$4:$P$88,MONTH(D38)+2,FALSE)/4 ->  | AG38: 0 | AH38: 0 | AJ38: =VLOOKUP(MONTH(D38),[0]!rainforpaddy,4)/1000*AB38*1600*7 -> 
B39: 2009-01-24 | C39: 2009-01-30 | D39: 2009-01-30 | E39: 13 | F39: =IF(ISERROR(VLOOKUP(E39,Crop!$I$3:$J$70,2,FALSE)),0,VLOOKUP(paddy_dry!E39,Crop!$I$3:$J$71,2,FALSE)) -> 5 | G39: =IF(ISERROR(HLOOKUP($D$5,Kc!$C$3:$AI$57,paddy_dry!F39+3,FALSE)),0,HLOOKUP($D$5,Kc!$C$3:$AI$57,paddy_dry!F39+3,FALSE)) -> 1.38 | H39: 0 | I39: 0 | J39: 0 | K39: 0 | L39: 0 | M39: 0 | N39: 0 | O39: 0 | P39: 0 | Q39: 0 | R39: 0 | S39: 0 | T39: 0 | U39: 0 | V39: 0 | W39: 0 | X39: 0 | Y39: 0 | Z39: 0 | AA39: 0 | AB39: 0 | AC39: =IF(ISERROR((H39*G39+I39*G38+J39*G37+K39*G36+L39*G35+M39*G34+N39*G33+O39*G32+P39*G31+Q39*G30+R39*G29+S39*G28+T39*G27+U39*G78+V39*G77+W39*G76+X39*G75+Y39*G74+Z39*G73+AA39*G72)/AB39),0,(H39*G39+I39*G38+J39*G37+K39*G36+L39*G35+M39*G34+N39*G33+O39*G32+P39*G31+Q39*G30+R39*G29+S39*G28+T39*G27+U39*G78+V39*G77+W39*G76+X39*G75+Y39*G74+Z39*G73+AA39*G72)/AB39) -> 0 | AD39: =VLOOKUP($D$7,ETo!$B$4:$P$88,MONTH(D39)+2,FALSE)/4 ->  | AG39: 0 | AH39: 0 | AJ39: =VLOOKUP(MONTH(D39),[0]!rainforpaddy,4)/1000*AB39*1600*7 -> 
B40: 2009-01-31 | C40: 2009-02-06 | D40: 2009-02-06 | E40: 14 | F40: =IF(ISERROR(VLOOKUP(E40,Crop!$I$3:$J$70,2,FALSE)),0,VLOOKUP(paddy_dry!E40,Crop!$I$3:$J$71,2,FALSE)) -> 6 | G40: =IF(ISERROR(HLOOKUP($D$5,Kc!$C$3:$AI$57,paddy_dry!F40+3,FALSE)),0,HLOOKUP($D$5,Kc!$C$3:$AI$57,paddy_dry!F40+3,FALSE)) -> 1.45 | H40: 0 | I40: 0 | J40: 0 | K40: 0 | L40: 0 | M40: 0 | N40: 0 | O40: 0 | P40: 0 | Q40: 0 | R40: 0 | S40: 0 | T40: 0 | U40: 0 | V40: 0 | W40: 0 | X40: 0 | Y40: 0 | Z40: 0 | AA40: 0 | AB40: 0 | AC40: =IF(ISERROR((H40*G40+I40*G39+J40*G38+K40*G37+L40*G36+M40*G35+N40*G34+O40*G33+P40*G32+Q40*G31+R40*G30+S40*G29+T40*G28+U40*G27+V40*G78+W40*G77+X40*G76+Y40*G75+Z40*G74+AA40*G73)/AB40),0,(H40*G40+I40*G39+J40*G38+K40*G37+L40*G36+M40*G35+N40*G34+O40*G33+P40*G32+Q40*G31+R40*G30+S40*G29+T40*G28+U40*G27+V40*G78+W40*G77+X40*G76+Y40*G75+Z40*G74+AA40*G73)/AB40) -> 0 | AD40: =VLOOKUP($D$7,ETo!$B$4:$P$88,MONTH(D40)+2,FALSE)/4 ->  | AG40: 0 | AH40: 0 | AJ40: =VLOOKUP(MONTH(D40),[0]!rainforpaddy,4)/1000*AB40*1600*7 -> 
B41: 2009-02-07 | C41: 2009-02-13 | D41: 2009-02-13 | E41: 15 | F41: =IF(ISERROR(VLOOKUP(E41,Crop!$I$3:$J$70,2,FALSE)),0,VLOOKUP(paddy_dry!E41,Crop!$I$3:$J$71,2,FALSE)) -> 7 | G41: =IF(ISERROR(HLOOKUP($D$5,Kc!$C$3:$AI$57,paddy_dry!F41+3,FALSE)),0,HLOOKUP($D$5,Kc!$C$3:$AI$57,paddy_dry!F41+3,FALSE)) -> 1.5 | H41: 0 | I41: 0 | J41: 0 | K41: 0 | L41: 0 | M41: 0 | N41: 0 | O41: 0 | P41: 0 | Q41: 0 | R41: 0 | S41: 0 | T41: 0 | U41: 0 | V41: 0 | W41: 0 | X41: 0 | Y41: 0 | Z41: 0 | AA41: 0 | AB41: 0 | AC41: =IF(ISERROR((H41*G41+I41*G40+J41*G39+K41*G38+L41*G37+M41*G36+N41*G35+O41*G34+P41*G33+Q41*G32+R41*G31+S41*G30+T41*G29+U41*G28+V41*G27+W41*G78+X41*G77+Y41*G76+Z41*G75+AA41*G74)/AB41),0,(H41*G41+I41*G40+J41*G39+K41*G38+L41*G37+M41*G36+N41*G35+O41*G34+P41*G33+Q41*G32+R41*G31+S41*G30+T41*G29+U41*G28+V41*G27+W41*G78+X41*G77+Y41*G76+Z41*G75+AA41*G74)/AB41) -> 0 | AD41: =VLOOKUP($D$7,ETo!$B$4:$P$88,MONTH(D41)+2,FALSE)/4 ->  | AG41: 0 | AH41: 0 | AJ41: =VLOOKUP(MONTH(D41),[0]!rainforpaddy,4)/1000*AB41*1600*7 -> 
B42: 2009-02-14 | C42: 2009-02-20 | D42: 2009-02-20 | E42: 16 | F42: =IF(ISERROR(VLOOKUP(E42,Crop!$I$3:$J$70,2,FALSE)),0,VLOOKUP(paddy_dry!E42,Crop!$I$3:$J$71,2,FALSE)) -> 8 | G42: =IF(ISERROR(HLOOKUP($D$5,Kc!$C$3:$AI$57,paddy_dry!F42+3,FALSE)),0,HLOOKUP($D$5,Kc!$C$3:$AI$57,paddy_dry!F42+3,FALSE)) -> 1.48 | H42: 0 | I42: 0 | J42: 0 | K42: 0 | L42: 0 | M42: 0 | N42: 0 | O42: 0 | P42: 0 | Q42: 0 | R42: 0 | S42: 0 | T42: 0 | U42: 0 | V42: 0 | W42: 0 | X42: 0 | Y42: 0 | Z42: 0 | AA42: 0 | AB42: 0 | AC42: =IF(ISERROR((H42*G42+I42*G41+J42*G40+K42*G39+L42*G38+M42*G37+N42*G36+O42*G35+P42*G34+Q42*G33+R42*G32+S42*G31+T42*G30+U42*G29+V42*G28+W42*G27+X42*G78+Y42*G77+Z42*G76+AA42*G75)/AB42),0,(H42*G42+I42*G41+J42*G40+K42*G39+L42*G38+M42*G37+N42*G36+O42*G35+P42*G34+Q42*G33+R42*G32+S42*G31+T42*G30+U42*G29+V42*G28+W42*G27+X42*G78+Y42*G77+Z42*G76+AA42*G75)/AB42) -> 0 | AD42: =VLOOKUP($D$7,ETo!$B$4:$P$88,MONTH(D42)+2,FALSE)/4 ->  | AG42: 0 | AH42: 0 | AJ42: =VLOOKUP(MONTH(D42),[0]!rainforpaddy,4)/1000*AB42*1600*7 -> 
B43: 2009-02-21 | C43: 2009-02-27 | D43: 2009-02-27 | E43: 17 | F43: =IF(ISERROR(VLOOKUP(E43,Crop!$I$3:$J$70,2,FALSE)),0,VLOOKUP(paddy_dry!E43,Crop!$I$3:$J$71,2,FALSE)) -> 9 | G43: =IF(ISERROR(HLOOKUP($D$5,Kc!$C$3:$AI$57,paddy_dry!F43+3,FALSE)),0,HLOOKUP($D$5,Kc!$C$3:$AI$57,paddy_dry!F43+3,FALSE)) -> 1.42 | H43: 0 | I43: 0 | J43: 0 | K43: 0 | L43: 0 | M43: 0 | N43: 0 | O43: 0 | P43: 0 | Q43: 0 | R43: 0 | S43: 0 | T43: 0 | U43: 0 | V43: 0 | W43: 0 | X43: 0 | Y43: 0 | Z43: 0 | AA43: 0 | AB43: 0 | AC43: =IF(ISERROR((H43*G43+I43*G42+J43*G41+K43*G40+L43*G39+M43*G38+N43*G37+O43*G36+P43*G35+Q43*G34+R43*G33+S43*G32+T43*G31+U43*G30+V43*G29+W43*G28+X43*G27+Y43*G78+Z43*G77+AA43*G76)/AB43),0,(H43*G43+I43*G42+J43*G41+K43*G40+L43*G39+M43*G38+N43*G37+O43*G36+P43*G35+Q43*G34+R43*G33+S43*G32+T43*G31+U43*G30+V43*G29+W43*G28+X43*G27+Y43*G78+Z43*G77+AA43*G76)/AB43) -> 0 | AD43: =VLOOKUP($D$7,ETo!$B$4:$P$88,MONTH(D43)+2,FALSE)/4 ->  | AG43: 0 | AH43: 0 | AJ43: =VLOOKUP(MONTH(D43),[0]!rainforpaddy,4)/1000*AB43*1600*7 -> 
B44: 2009-02-28 | C44: 2009-03-06 | D44: 2009-03-06 | E44: 18 | F44: =IF(ISERROR(VLOOKUP(E44,Crop!$I$3:$J$70,2,FALSE)),0,VLOOKUP(paddy_dry!E44,Crop!$I$3:$J$71,2,FALSE)) -> 10 | G44: =IF(ISERROR(HLOOKUP($D$5,Kc!$C$3:$AI$57,paddy_dry!F44+3,FALSE)),0,HLOOKUP($D$5,Kc!$C$3:$AI$57,paddy_dry!F44+3,FALSE)) -> 1.34 | H44: 0 | I44: 0 | J44: 0 | K44: 0 | L44: 0 | M44: 0 | N44: 0 | O44: 0 | P44: 0 | Q44: 0 | R44: 0 | S44: 0 | T44: 0 | U44: 0 | V44: 0 | W44: 0 | X44: 0 | Y44: 0 | Z44: 0 | AA44: 0 | AB44: 0 | AC44: =IF(ISERROR((H44*G44+I44*G43+J44*G42+K44*G41+L44*G40+M44*G39+N44*G38+O44*G37+P44*G36+Q44*G35+R44*G34+S44*G33+T44*G32+U44*G31+V44*G30+W44*G29+X44*G28+Y44*G27+Z44*G78+AA44*G77)/AB44),0,(H44*G44+I44*G43+J44*G42+K44*G41+L44*G40+M44*G39+N44*G38+O44*G37+P44*G36+Q44*G35+R44*G34+S44*G33+T44*G32+U44*G31+V44*G30+W44*G29+X44*G28+Y44*G27+Z44*G78+AA44*G77)/AB44) -> 0 | AD44: =VLOOKUP($D$7,ETo!$B$4:$P$88,MONTH(D44)+2,FALSE)/4 ->  | AG44: 0 | AH44: 0 | AJ44: =VLOOKUP(MONTH(D44),[0]!rainforpaddy,4)/1000*AB44*1600*7 -> 
B45: 2009-03-07 | C45: 2009-03-13 | D45: 2009-03-13 | E45: 19 | F45: =IF(ISERROR(VLOOKUP(E45,Crop!$I$3:$J$70,2,FALSE)),0,VLOOKUP(paddy_dry!E45,Crop!$I$3:$J$71,2,FALSE)) -> 11 | G45: =IF(ISERROR(HLOOKUP($D$5,Kc!$C$3:$AI$57,paddy_dry!F45+3,FALSE)),0,HLOOKUP($D$5,Kc!$C$3:$AI$57,paddy_dry!F45+3,FALSE)) -> 1.23 | H45: 0 | I45: 0 | J45: 0 | K45: 0 | L45: 0 | M45: 0 | N45: 0 | O45: 0 | P45: 0 | Q45: 0 | R45: 0 | S45: 0 | T45: 0 | U45: 0 | V45: 0 | W45: 0 | X45: 0 | Y45: 0 | Z45: 0 | AA45: 0 | AB45: 0 | AC45: =IF(ISERROR((H45*G45+I45*G44+J45*G43+K45*G42+L45*G41+M45*G40+N45*G39+O45*G38+P45*G37+Q45*G36+R45*G35+S45*G34+T45*G33+U45*G32+V45*G31+W45*G30+X45*G29+Y45*G28+Z45*G27+AA45*G78)/AB45),0,(H45*G45+I45*G44+J45*G43+K45*G42+L45*G41+M45*G40+N45*G39+O45*G38+P45*G37+Q45*G36+R45*G35+S45*G34+T45*G33+U45*G32+V45*G31+W45*G30+X45*G29+Y45*G28+Z45*G27+AA45*G78)/AB45) -> 0 | AD45: =VLOOKUP($D$7,ETo!$B$4:$P$88,MONTH(D45)+2,FALSE)/4 ->  | AG45: 0 | AH45: 0 | AJ45: =VLOOKUP(MONTH(D45),[0]!rainforpaddy,4)/1000*AB45*1600*7 -> 
B46: 2009-03-14 | C46: 2009-03-20 | D46: 2009-03-20 | E46: 20 | F46: =IF(ISERROR(VLOOKUP(E46,Crop!$I$3:$J$70,2,FALSE)),0,VLOOKUP(paddy_dry!E46,Crop!$I$3:$J$71,2,FALSE)) -> 12 | G46: =IF(ISERROR(HLOOKUP($D$5,Kc!$C$3:$AI$57,paddy_dry!F46+3,FALSE)),0,HLOOKUP($D$5,Kc!$C$3:$AI$57,paddy_dry!F46+3,FALSE)) -> 0.94 | H46: 0 | I46: 0 | J46: 0 | K46: 0 | L46: 0 | M46: 0 | N46: 0 | O46: 0 | P46: 0 | Q46: 0 | R46: 0 | S46: 0 | T46: 0 | U46: 0 | V46: 0 | W46: 0 | X46: 0 | Y46: 0 | Z46: 0 | AA46: 0 | AB46: 0 | AC46: =IF(ISERROR((H46*G46+I46*G45+J46*G44+K46*G43+L46*G42+M46*G41+N46*G40+O46*G39+P46*G38+Q46*G37+R46*G36+S46*G35+T46*G34+U46*G33+V46*G32+W46*G31+X46*G30+Y46*G29+Z46*G28+AA46*G27)/AB46),0,(H46*G46+I46*G45+J46*G44+K46*G43+L46*G42+M46*G41+N46*G40+O46*G39+P46*G38+Q46*G37+R46*G36+S46*G35+T46*G34+U46*G33+V46*G32+W46*G31+X46*G30+Y46*G29+Z46*G28+AA46*G27)/AB46) -> 0 | AD46: =VLOOKUP($D$7,ETo!$B$4:$P$88,MONTH(D46)+2,FALSE)/4 ->  | AG46: 0 | AH46: 0 | AJ46: =VLOOKUP(MONTH(D46),[0]!rainforpaddy,4)/1000*AB46*1600*7 -> 
B47: 2009-03-21 | C47: 2009-03-27 | D47: 2009-03-27 | E47: 21 | F47: =IF(ISERROR(VLOOKUP(E47,Crop!$I$3:$J$70,2,FALSE)),0,VLOOKUP(paddy_dry!E47,Crop!$I$3:$J$71,2,FALSE)) -> 13 | G47: =IF(ISERROR(HLOOKUP($D$5,Kc!$C$3:$AI$57,paddy_dry!F47+3,FALSE)),0,HLOOKUP($D$5,Kc!$C$3:$AI$57,paddy_dry!F47+3,FALSE)) -> 0.86 | H47: 0 | I47: 0 | J47: 0 | K47: =IF(J46>0,IF(K$26>$E$9,0,VLOOKUP(K$26,$F$3:$G$23,2,FALSE)),0) -> 0 | L47: 0 | M47: 0 | N47: 0 | O47: 0 | P47: 0 | Q47: 0 | R47: 0 | S47: 0 | T47: 0 | U47: =IF(T46>0,IF(U$26>$E$9,0,VLOOKUP(U$26,$F$3:$G$23,2,FALSE)),0) -> 0 | V47: 0 | W47: 0 | X47: 0 | Y47: 0 | Z47: 0 | AA47: 0 | AB47: 0 | AC47: =IF(ISERROR((H47*G47+I47*G46+J47*G45+K47*G44+L47*G43+M47*G42+N47*G41+O47*G40+P47*G39+Q47*G38+R47*G37+S47*G36+T47*G35+U47*G34+V47*G33+W47*G32+X47*G31+Y47*G30+Z47*G29+AA47*G28)/AB47),0,(H47*G47+I47*G46+J47*G45+K47*G44+L47*G43+M47*G42+N47*G41+O47*G40+P47*G39+Q47*G38+R47*G37+S47*G36+T47*G35+U47*G34+V47*G33+W47*G32+X47*G31+Y47*G30+Z47*G29+AA47*G28)/AB47) -> 0 | AD47: =VLOOKUP($D$7,ETo!$B$4:$P$88,MONTH(D47)+2,FALSE)/4 ->  | AG47: 0 | AH47: 0 | AJ47: =VLOOKUP(MONTH(D47),[0]!rainforpaddy,4)/1000*AB47*1600*7 -> 
B48: 2009-03-28 | C48: 2009-04-03 | D48: 2009-04-03 | E48: 22 | F48: =IF(ISERROR(VLOOKUP(E48,Crop!$I$3:$J$70,2,FALSE)),0,VLOOKUP(paddy_dry!E48,Crop!$I$3:$J$71,2,FALSE)) -> 0 | G48: =IF(ISERROR(HLOOKUP($D$5,Kc!$C$3:$AI$57,paddy_dry!F48+3,FALSE)),0,HLOOKUP($D$5,Kc!$C$3:$AI$57,paddy_dry!F48+3,FALSE)) -> 0 | H48: 0 | I48: 0 | J48: 0 | K48: 0 | L48: 0 | M48: 0 | N48: 0 | O48: 0 | P48: 0 | Q48: 0 | R48: 0 | S48: 0 | T48: 0 | U48: 0 | V48: 0 | W48: 0 | X48: 0 | Y48: 0 | Z48: 0 | AA48: 0 | AB48: 0 | AC48: =IF(ISERROR((H48*G48+I48*G47+J48*G46+K48*G45+L48*G44+M48*G43+N48*G42+O48*G41+P48*G40+Q48*G39+R48*G38+S48*G37+T48*G36+U48*G35+V48*G34+W48*G33+X48*G32+Y48*G31+Z48*G30+AA48*G29)/AB48),0,(H48*G48+I48*G47+J48*G46+K48*G45+L48*G44+M48*G43+N48*G42+O48*G41+P48*G40+Q48*G39+R48*G38+S48*G37+T48*G36+U48*G35+V48*G34+W48*G33+X48*G32+Y48*G31+Z48*G30+AA48*G29)/AB48) -> 0 | AD48: =VLOOKUP($D$7,ETo!$B$4:$P$88,MONTH(D48)+2,FALSE)/4 ->  | AG48: 0 | AH48: 0 | AJ48: =VLOOKUP(MONTH(D48),[0]!rainforpaddy,4)/1000*AB48*1600*7 -> 
B49: 2009-04-04 | C49: 2009-04-10 | D49: 2009-04-10 | E49: 23 | F49: =IF(ISERROR(VLOOKUP(E49,Crop!$I$3:$J$70,2,FALSE)),0,VLOOKUP(paddy_dry!E49,Crop!$I$3:$J$71,2,FALSE)) -> 0 | G49: =IF(ISERROR(HLOOKUP($D$5,Kc!$C$3:$AI$57,paddy_dry!F49+3,FALSE)),0,HLOOKUP($D$5,Kc!$C$3:$AI$57,paddy_dry!F49+3,FALSE)) -> 0 | H49: 0 | I49: 0 | J49: 0 | K49: 0 | L49: 0 | M49: 0 | N49: 0 | O49: 0 | P49: 0 | Q49: 0 | R49: 0 | S49: 0 | T49: 0 | U49: 0 | V49: 0 | W49: 0 | X49: 0 | Y49: 0 | Z49: 0 | AA49: 0 | AB49: 0 | AC49: 0 | AD49: =VLOOKUP($D$7,ETo!$B$4:$P$88,MONTH(D49)+2,FALSE)/4 ->  | AG49: 0 | AH49: 0 | AJ49: =VLOOKUP(MONTH(D49),[0]!rainforpaddy,4)/1000*AB49*1600*7 -> 
B50: 2009-04-11 | C50: 2009-04-17 | D50: 2009-04-17 | E50: 24 | F50: =IF(ISERROR(VLOOKUP(E50,Crop!$I$3:$J$70,2,FALSE)),0,VLOOKUP(paddy_dry!E50,Crop!$I$3:$J$71,2,FALSE)) -> 0 | G50: =IF(ISERROR(HLOOKUP($D$5,Kc!$C$3:$AI$57,paddy_dry!F50+3,FALSE)),0,HLOOKUP($D$5,Kc!$C$3:$AI$57,paddy_dry!F50+3,FALSE)) -> 0 | H50: 0 | I50: 0 | J50: 0 | K50: 0 | L50: 0 | M50: 0 | N50: 0 | O50: 0 | P50: 0 | Q50: 0 | R50: 0 | S50: 0 | T50: 0 | U50: 0 | V50: 0 | W50: 0 | X50: 0 | Y50: 0 | Z50: 0 | AA50: 0 | AB50: 0 | AC50: 0 | AD50: =VLOOKUP($D$7,ETo!$B$4:$P$88,MONTH(D50)+2,FALSE)/4 ->  | AG50: 0 | AH50: 0 | AJ50: =VLOOKUP(MONTH(D50),[0]!rainforpaddy,4)/1000*AB50*1600*7 -> 
B51: 2009-04-18 | C51: 2009-04-24 | D51: 2009-04-24 | E51: 25 | F51: =IF(ISERROR(VLOOKUP(E51,Crop!$I$3:$J$70,2,FALSE)),0,VLOOKUP(paddy_dry!E51,Crop!$I$3:$J$71,2,FALSE)) -> 0 | G51: =IF(ISERROR(HLOOKUP($D$5,Kc!$C$3:$AI$57,paddy_dry!F51+3,FALSE)),0,HLOOKUP($D$5,Kc!$C$3:$AI$57,paddy_dry!F51+3,FALSE)) -> 0 | H51: 0 | I51: 0 | J51: 0 | K51: 0 | L51: 0 | M51: 0 | N51: 0 | O51: 0 | P51: 0 | Q51: 0 | R51: 0 | S51: 0 | T51: 0 | U51: 0 | V51: 0 | W51: 0 | X51: 0 | Y51: 0 | Z51: 0 | AA51: 0 | AB51: 0 | AC51: 0 | AD51: =VLOOKUP($D$7,ETo!$B$4:$P$88,MONTH(D51)+2,FALSE)/4 ->  | AG51: 0 | AH51: 0 | AJ51: =VLOOKUP(MONTH(D51),[0]!rainforpaddy,4)/1000*AB51*1600*7 -> 
B52: 2009-04-25 | C52: 2009-05-01 | D52: 2009-05-01 | E52: 26 | F52: =IF(ISERROR(VLOOKUP(E52,Crop!$I$3:$J$70,2,FALSE)),0,VLOOKUP(paddy_dry!E52,Crop!$I$3:$J$71,2,FALSE)) -> 0 | G52: =IF(ISERROR(HLOOKUP($D$5,Kc!$C$3:$AI$57,paddy_dry!F52+3,FALSE)),0,HLOOKUP($D$5,Kc!$C$3:$AI$57,paddy_dry!F52+3,FALSE)) -> 0 | H52: 0 | I52: 0 | J52: 0 | K52: 0 | L52: 0 | M52: 0 | N52: 0 | O52: 0 | P52: 0 | Q52: 0 | R52: 0 | S52: 0 | T52: 0 | U52: 0 | V52: 0 | W52: 0 | X52: 0 | Y52: 0 | Z52: 0 | AA52: 0 | AB52: 0 | AC52: 0 | AD52: =VLOOKUP($D$7,ETo!$B$4:$P$88,MONTH(D52)+2,FALSE)/4 ->  | AG52: 0 | AH52: 0 | AJ52: =VLOOKUP(MONTH(D52),[0]!rainforpaddy,4)/1000*AB52*1600*7 -> 
B53: 2009-05-02 | C53: 2009-05-08 | D53: 2009-05-08 | E53: 27 | F53: =IF(ISERROR(VLOOKUP(E53,Crop!$I$3:$J$70,2,FALSE)),0,VLOOKUP(paddy_dry!E53,Crop!$I$3:$J$71,2,FALSE)) -> 0 | G53: =IF(ISERROR(HLOOKUP($D$5,Kc!$C$3:$AI$57,paddy_dry!F53+3,FALSE)),0,HLOOKUP($D$5,Kc!$C$3:$AI$57,paddy_dry!F53+3,FALSE)) -> 0 | H53: 0 | I53: 0 | J53: 0 | K53: 0 | L53: 0 | M53: 0 | N53: 0 | O53: 0 | P53: 0 | Q53: 0 | R53: 0 | S53: 0 | T53: 0 | U53: 0 | V53: 0 | W53: 0 | X53: 0 | Y53: 0 | Z53: 0 | AA53: 0 | AB53: 0 | AC53: 0 | AD53: =VLOOKUP($D$7,ETo!$B$4:$P$88,MONTH(D53)+2,FALSE)/4 ->  | AG53: 0 | AH53: 0 | AJ53: =VLOOKUP(MONTH(D53),[0]!rainforpaddy,4)/1000*AB53*1600*7 -> 
B54: 2009-05-09 | C54: 2009-05-15 | D54: 2009-05-15 | E54: 28 | F54: =IF(ISERROR(VLOOKUP(E54,Crop!$I$3:$J$70,2,FALSE)),0,VLOOKUP(paddy_dry!E54,Crop!$I$3:$J$71,2,FALSE)) -> 0 | G54: =IF(ISERROR(HLOOKUP($D$5,Kc!$C$3:$AI$57,paddy_dry!F54+3,FALSE)),0,HLOOKUP($D$5,Kc!$C$3:$AI$57,paddy_dry!F54+3,FALSE)) -> 0 | H54: 0 | I54: 0 | J54: 0 | K54: 0 | L54: 0 | M54: 0 | N54: 0 | O54: 0 | P54: 0 | Q54: 0 | R54: 0 | S54: 0 | T54: 0 | U54: 0 | V54: 0 | W54: 0 | X54: 0 | Y54: 0 | Z54: 0 | AA54: 0 | AB54: 0 | AC54: 0 | AD54: =VLOOKUP($D$7,ETo!$B$4:$P$88,MONTH(D54)+2,FALSE)/4 ->  | AG54: 0 | AH54: 0 | AJ54: =VLOOKUP(MONTH(D54),[0]!rainforpaddy,4)/1000*AB54*1600*7 -> 
B55: 2009-05-16 | C55: 2009-05-22 | D55: 2009-05-22 | E55: 29 | F55: =IF(ISERROR(VLOOKUP(E55,Crop!$I$3:$J$70,2,FALSE)),0,VLOOKUP(paddy_dry!E55,Crop!$I$3:$J$71,2,FALSE)) -> 0 | G55: =IF(ISERROR(HLOOKUP($D$5,Kc!$C$3:$AI$57,paddy_dry!F55+3,FALSE)),0,HLOOKUP($D$5,Kc!$C$3:$AI$57,paddy_dry!F55+3,FALSE)) -> 0 | H55: 0 | I55: 0 | J55: 0 | K55: 0 | L55: 0 | M55: 0 | N55: 0 | O55: 0 | P55: 0 | Q55: 0 | R55: 0 | S55: 0 | T55: 0 | U55: 0 | V55: 0 | W55: 0 | X55: 0 | Y55: 0 | Z55: 0 | AA55: 0 | AB55: 0 | AC55: 0 | AD55: =VLOOKUP($D$7,ETo!$B$4:$P$88,MONTH(D55)+2,FALSE)/4 ->  | AG55: 0 | AH55: 0 | AJ55: =VLOOKUP(MONTH(D55),[0]!rainforpaddy,4)/1000*AB55*1600*7 -> 
B56: 2009-05-23 | C56: 2009-05-29 | D56: 2009-05-29 | E56: 30 | F56: =IF(ISERROR(VLOOKUP(E56,Crop!$I$3:$J$70,2,FALSE)),0,VLOOKUP(paddy_dry!E56,Crop!$I$3:$J$71,2,FALSE)) -> 0 | G56: =IF(ISERROR(HLOOKUP($D$5,Kc!$C$3:$AI$57,paddy_dry!F56+3,FALSE)),0,HLOOKUP($D$5,Kc!$C$3:$AI$57,paddy_dry!F56+3,FALSE)) -> 0 | H56: 0 | I56: 0 | J56: 0 | K56: 0 | L56: 0 | M56: 0 | N56: 0 | O56: 0 | P56: 0 | Q56: 0 | R56: 0 | S56: 0 | T56: 0 | U56: 0 | V56: 0 | W56: 0 | X56: 0 | Y56: 0 | Z56: 0 | AA56: 0 | AB56: 0 | AC56: 0 | AD56: =VLOOKUP($D$7,ETo!$B$4:$P$88,MONTH(D56)+2,FALSE)/4 ->  | AG56: 0 | AH56: 0 | AJ56: =VLOOKUP(MONTH(D56),[0]!rainforpaddy,4)/1000*AB56*1600*7 -> 
B57: 2009-05-30 | C57: 2009-06-05 | D57: 2009-06-05 | E57: 31 | F57: =IF(ISERROR(VLOOKUP(E57,Crop!$I$3:$J$70,2,FALSE)),0,VLOOKUP(paddy_dry!E57,Crop!$I$3:$J$71,2,FALSE)) -> 0 | G57: =IF(ISERROR(HLOOKUP($D$5,Kc!$C$3:$AI$57,paddy_dry!F57+3,FALSE)),0,HLOOKUP($D$5,Kc!$C$3:$AI$57,paddy_dry!F57+3,FALSE)) -> 0 | H57: 0 | I57: 0 | J57: 0 | K57: =IF(J56>0,IF(K$26>$E$9,0,VLOOKUP(K$26,$F$3:$G$23,2,FALSE)),0) -> 0 | L57: 0 | M57: 0 | N57: 0 | O57: 0 | P57: 0 | Q57: 0 | R57: 0 | S57: 0 | T57: 0 | U57: =IF(T56>0,IF(U$26>$E$9,0,VLOOKUP(U$26,$F$3:$G$23,2,FALSE)),0) -> 0 | V57: 0 | W57: 0 | X57: 0 | Y57: 0 | Z57: 0 | AA57: 0 | AB57: 0 | AC57: 0 | AD57: =VLOOKUP($D$7,ETo!$B$4:$P$88,MONTH(D57)+2,FALSE)/4 ->  | AG57: 0 | AH57: 0 | AJ57: =VLOOKUP(MONTH(D57),[0]!rainforpaddy,4)/1000*AB57*1600*7 -> 
B58: 2009-06-06 | C58: 2009-06-12 | D58: 2009-06-12 | E58: 32 | F58: =IF(ISERROR(VLOOKUP(E58,Crop!$I$3:$J$70,2,FALSE)),0,VLOOKUP(paddy_dry!E58,Crop!$I$3:$J$71,2,FALSE)) -> 0 | G58: =IF(ISERROR(HLOOKUP($D$5,Kc!$C$3:$AI$57,paddy_dry!F58+3,FALSE)),0,HLOOKUP($D$5,Kc!$C$3:$AI$57,paddy_dry!F58+3,FALSE)) -> 0 | H58: 0 | I58: 0 | J58: 0 | K58: 0 | L58: 0 | M58: 0 | N58: 0 | O58: 0 | P58: 0 | Q58: 0 | R58: 0 | S58: 0 | T58: 0 | U58: 0 | V58: 0 | W58: 0 | X58: 0 | Y58: 0 | Z58: 0 | AA58: 0 | AB58: 0 | AC58: 0 | AD58: =VLOOKUP($D$7,ETo!$B$4:$P$88,MONTH(D58)+2,FALSE)/4 ->  | AG58: 0 | AH58: 0 | AJ58: =VLOOKUP(MONTH(D58),[0]!rainforpaddy,4)/1000*AB58*1600*7 -> 
B59: 2009-06-13 | C59: 2009-06-19 | D59: 2009-06-19 | E59: 33 | F59: =IF(ISERROR(VLOOKUP(E59,Crop!$I$3:$J$70,2,FALSE)),0,VLOOKUP(paddy_dry!E59,Crop!$I$3:$J$71,2,FALSE)) -> 0 | G59: =IF(ISERROR(HLOOKUP($D$5,Kc!$C$3:$AI$57,paddy_dry!F59+3,FALSE)),0,HLOOKUP($D$5,Kc!$C$3:$AI$57,paddy_dry!F59+3,FALSE)) -> 0 | H59: 0 | I59: 0 | J59: 0 | K59: 0 | L59: 0 | M59: 0 | N59: 0 | O59: 0 | P59: 0 | Q59: 0 | R59: 0 | S59: 0 | T59: 0 | U59: 0 | V59: 0 | W59: 0 | X59: 0 | Y59: 0 | Z59: 0 | AA59: 0 | AB59: 0 | AC59: 0 | AD59: =VLOOKUP($D$7,ETo!$B$4:$P$88,MONTH(D59)+2,FALSE)/4 ->  | AG59: 0 | AH59: 0 | AJ59: =VLOOKUP(MONTH(D59),[0]!rainforpaddy,4)/1000*AB59*1600*7 -> 
B60: 2009-06-20 | C60: 2009-06-26 | D60: 2009-06-26 | E60: 34 | F60: =IF(ISERROR(VLOOKUP(E60,Crop!$I$3:$J$70,2,FALSE)),0,VLOOKUP(paddy_dry!E60,Crop!$I$3:$J$71,2,FALSE)) -> 0 | G60: =IF(ISERROR(HLOOKUP($D$5,Kc!$C$3:$AI$57,paddy_dry!F60+3,FALSE)),0,HLOOKUP($D$5,Kc!$C$3:$AI$57,paddy_dry!F60+3,FALSE)) -> 0 | H60: 0 | I60: 0 | J60: 0 | K60: 0 | L60: 0 | M60: 0 | N60: 0 | O60: 0 | P60: 0 | Q60: 0 | R60: 0 | S60: 0 | T60: 0 | U60: 0 | V60: 0 | W60: 0 | X60: 0 | Y60: 0 | Z60: 0 | AA60: 0 | AB60: 0 | AC60: 0 | AD60: =VLOOKUP($D$7,ETo!$B$4:$P$88,MONTH(D60)+2,FALSE)/4 ->  | AG60: 0 | AH60: 0 | AJ60: =VLOOKUP(MONTH(D60),[0]!rainforpaddy,4)/1000*AB60*1600*7 -> 
B61: 2009-06-27 | C61: 2009-07-03 | D61: 2009-07-03 | E61: 35 | F61: =IF(ISERROR(VLOOKUP(E61,Crop!$I$3:$J$70,2,FALSE)),0,VLOOKUP(paddy_dry!E61,Crop!$I$3:$J$71,2,FALSE)) -> 0 | G61: =IF(ISERROR(HLOOKUP($D$5,Kc!$C$3:$AI$57,paddy_dry!F61+3,FALSE)),0,HLOOKUP($D$5,Kc!$C$3:$AI$57,paddy_dry!F61+3,FALSE)) -> 0 | H61: 0 | I61: 0 | J61: 0 | K61: 0 | L61: 0 | M61: 0 | N61: 0 | O61: 0 | P61: 0 | Q61: 0 | R61: 0 | S61: 0 | T61: 0 | U61: 0 | V61: 0 | W61: 0 | X61: 0 | Y61: 0 | Z61: 0 | AA61: 0 | AB61: 0 | AC61: 0 | AD61: =VLOOKUP($D$7,ETo!$B$4:$P$88,MONTH(D61)+2,FALSE)/4 ->  | AG61: 0 | AH61: 0 | AJ61: =VLOOKUP(MONTH(D61),[0]!rainforpaddy,4)/1000*AB61*1600*7 -> 
B62: 2009-07-04 | C62: 2009-07-10 | D62: 2009-07-10 | E62: 36 | F62: =IF(ISERROR(VLOOKUP(E62,Crop!$I$3:$J$70,2,FALSE)),0,VLOOKUP(paddy_dry!E62,Crop!$I$3:$J$71,2,FALSE)) -> 0 | G62: =IF(ISERROR(HLOOKUP($D$5,Kc!$C$3:$AI$57,paddy_dry!F62+3,FALSE)),0,HLOOKUP($D$5,Kc!$C$3:$AI$57,paddy_dry!F62+3,FALSE)) -> 0 | H62: 0 | I62: 0 | J62: 0 | K62: 0 | L62: 0 | M62: 0 | N62: 0 | O62: 0 | P62: 0 | Q62: 0 | R62: 0 | S62: 0 | T62: 0 | U62: 0 | V62: 0 | W62: 0 | X62: 0 | Y62: 0 | Z62: 0 | AA62: 0 | AB62: 0 | AC62: 0 | AD62: =VLOOKUP($D$7,ETo!$B$4:$P$88,MONTH(D62)+2,FALSE)/4 ->  | AG62: 0 | AH62: 0 | AJ62: =VLOOKUP(MONTH(D62),[0]!rainforpaddy,4)/1000*AB62*1600*7 -> 
B63: 2009-07-11 | C63: 2009-07-17 | D63: 2009-07-17 | E63: 37 | F63: =IF(ISERROR(VLOOKUP(E63,Crop!$I$3:$J$70,2,FALSE)),0,VLOOKUP(paddy_dry!E63,Crop!$I$3:$J$71,2,FALSE)) -> 0 | G63: =IF(ISERROR(HLOOKUP($D$5,Kc!$C$3:$AI$57,paddy_dry!F63+3,FALSE)),0,HLOOKUP($D$5,Kc!$C$3:$AI$57,paddy_dry!F63+3,FALSE)) -> 0 | H63: 0 | I63: 0 | J63: 0 | K63: 0 | L63: 0 | M63: 0 | N63: 0 | O63: 0 | P63: 0 | Q63: 0 | R63: 0 | S63: 0 | T63: 0 | U63: 0 | V63: 0 | W63: 0 | X63: 0 | Y63: 0 | Z63: 0 | AA63: 0 | AB63: 0 | AC63: 0 | AD63: =VLOOKUP($D$7,ETo!$B$4:$P$88,MONTH(D63)+2,FALSE)/4 ->  | AG63: 0 | AH63: 0 | AJ63: =VLOOKUP(MONTH(D63),[0]!rainforpaddy,4)/1000*AB63*1600*7 -> 
B64: 2009-07-18 | C64: 2009-07-24 | D64: 2009-07-24 | E64: 38 | F64: =IF(ISERROR(VLOOKUP(E64,Crop!$I$3:$J$70,2,FALSE)),0,VLOOKUP(paddy_dry!E64,Crop!$I$3:$J$71,2,FALSE)) -> 0 | G64: =IF(ISERROR(HLOOKUP($D$5,Kc!$C$3:$AI$57,paddy_dry!F64+3,FALSE)),0,HLOOKUP($D$5,Kc!$C$3:$AI$57,paddy_dry!F64+3,FALSE)) -> 0 | H64: 0 | I64: 0 | J64: 0 | K64: 0 | L64: 0 | M64: 0 | N64: 0 | O64: 0 | P64: 0 | Q64: 0 | R64: 0 | S64: 0 | T64: 0 | U64: 0 | V64: 0 | W64: 0 | X64: 0 | Y64: 0 | Z64: 0 | AA64: 0 | AB64: 0 | AC64: 0 | AD64: =VLOOKUP($D$7,ETo!$B$4:$P$88,MONTH(D64)+2,FALSE)/4 ->  | AG64: 0 | AH64: 0 | AJ64: =VLOOKUP(MONTH(D64),[0]!rainforpaddy,4)/1000*AB64*1600*7 -> 
B65: 2009-07-25 | C65: 2009-07-31 | D65: 2009-07-31 | E65: 39 | F65: =IF(ISERROR(VLOOKUP(E65,Crop!$I$3:$J$70,2,FALSE)),0,VLOOKUP(paddy_dry!E65,Crop!$I$3:$J$71,2,FALSE)) -> 0 | G65: =IF(ISERROR(HLOOKUP($D$5,Kc!$C$3:$AI$57,paddy_dry!F65+3,FALSE)),0,HLOOKUP($D$5,Kc!$C$3:$AI$57,paddy_dry!F65+3,FALSE)) -> 0 | H65: 0 | I65: 0 | J65: 0 | K65: 0 | L65: 0 | M65: 0 | N65: 0 | O65: 0 | P65: 0 | Q65: 0 | R65: 0 | S65: 0 | T65: 0 | U65: 0 | V65: 0 | W65: 0 | X65: 0 | Y65: 0 | Z65: 0 | AA65: 0 | AB65: 0 | AC65: 0 | AD65: =VLOOKUP($D$7,ETo!$B$4:$P$88,MONTH(D65)+2,FALSE)/4 ->  | AG65: 0 | AH65: 0 | AJ65: =VLOOKUP(MONTH(D65),[0]!rainforpaddy,4)/1000*AB65*1600*7 -> 
B66: 2009-08-01 | C66: 2009-08-07 | D66: 2009-08-07 | E66: 40 | F66: =IF(ISERROR(VLOOKUP(E66,Crop!$I$3:$J$70,2,FALSE)),0,VLOOKUP(paddy_dry!E66,Crop!$I$3:$J$71,2,FALSE)) -> 0 | G66: =IF(ISERROR(HLOOKUP($D$5,Kc!$C$3:$AI$57,paddy_dry!F66+3,FALSE)),0,HLOOKUP($D$5,Kc!$C$3:$AI$57,paddy_dry!F66+3,FALSE)) -> 0 | H66: 0 | I66: 0 | J66: 0 | K66: 0 | L66: 0 | M66: 0 | N66: 0 | O66: 0 | P66: 0 | Q66: 0 | R66: 0 | S66: 0 | T66: 0 | U66: 0 | V66: 0 | W66: 0 | X66: 0 | Y66: 0 | Z66: 0 | AA66: 0 | AB66: 0 | AC66: 0 | AD66: =VLOOKUP($D$7,ETo!$B$4:$P$88,MONTH(D66)+2,FALSE)/4 ->  | AG66: 0 | AH66: 0 | AJ66: =VLOOKUP(MONTH(D66),[0]!rainforpaddy,4)/1000*AB66*1600*7 -> 
B67: 2009-08-08 | C67: 2009-08-14 | D67: 2009-08-14 | E67: 41 | F67: =IF(ISERROR(VLOOKUP(E67,Crop!$I$3:$J$70,2,FALSE)),0,VLOOKUP(paddy_dry!E67,Crop!$I$3:$J$71,2,FALSE)) -> 0 | G67: =IF(ISERROR(HLOOKUP($D$5,Kc!$C$3:$AI$57,paddy_dry!F67+3,FALSE)),0,HLOOKUP($D$5,Kc!$C$3:$AI$57,paddy_dry!F67+3,FALSE)) -> 0 | H67: 0 | I67: 0 | J67: 0 | K67: =IF(J66>0,IF(K$26>$E$9,0,VLOOKUP(K$26,$F$3:$G$23,2,FALSE)),0) -> 0 | L67: 0 | M67: 0 | N67: 0 | O67: 0 | P67: 0 | Q67: 0 | R67: 0 | S67: 0 | T67: 0 | U67: =IF(T66>0,IF(U$26>$E$9,0,VLOOKUP(U$26,$F$3:$G$23,2,FALSE)),0) -> 0 | V67: 0 | W67: 0 | X67: 0 | Y67: 0 | Z67: 0 | AA67: 0 | AB67: 0 | AC67: 0 | AD67: =VLOOKUP($D$7,ETo!$B$4:$P$88,MONTH(D67)+2,FALSE)/4 ->  | AG67: 0 | AH67: 0 | AJ67: =VLOOKUP(MONTH(D67),[0]!rainforpaddy,4)/1000*AB67*1600*7 -> 
B68: 2009-08-15 | C68: 2009-08-21 | D68: 2009-08-21 | E68: 42 | F68: =IF(ISERROR(VLOOKUP(E68,Crop!$I$3:$J$70,2,FALSE)),0,VLOOKUP(paddy_dry!E68,Crop!$I$3:$J$71,2,FALSE)) -> 0 | G68: =IF(ISERROR(HLOOKUP($D$5,Kc!$C$3:$AI$57,paddy_dry!F68+3,FALSE)),0,HLOOKUP($D$5,Kc!$C$3:$AI$57,paddy_dry!F68+3,FALSE)) -> 0 | H68: 0 | I68: 0 | J68: 0 | K68: 0 | L68: 0 | M68: 0 | N68: 0 | O68: 0 | P68: 0 | Q68: 0 | R68: 0 | S68: 0 | T68: 0 | U68: 0 | V68: 0 | W68: 0 | X68: 0 | Y68: 0 | Z68: 0 | AA68: 0 | AB68: 0 | AC68: 0 | AD68: =VLOOKUP($D$7,ETo!$B$4:$P$88,MONTH(D68)+2,FALSE)/4 ->  | AG68: 0 | AH68: 0 | AJ68: =VLOOKUP(MONTH(D68),[0]!rainforpaddy,4)/1000*AB68*1600*7 -> 
B69: 2009-08-22 | C69: 2009-08-28 | D69: 2009-08-28 | E69: 43 | F69: =IF(ISERROR(VLOOKUP(E69,Crop!$I$3:$J$70,2,FALSE)),0,VLOOKUP(paddy_dry!E69,Crop!$I$3:$J$71,2,FALSE)) -> 0 | G69: =IF(ISERROR(HLOOKUP($D$5,Kc!$C$3:$AI$57,paddy_dry!F69+3,FALSE)),0,HLOOKUP($D$5,Kc!$C$3:$AI$57,paddy_dry!F69+3,FALSE)) -> 0 | H69: 0 | I69: 0 | J69: 0 | K69: 0 | L69: 0 | M69: 0 | N69: 0 | O69: 0 | P69: 0 | Q69: 0 | R69: 0 | S69: 0 | T69: 0 | U69: 0 | V69: 0 | W69: 0 | X69: 0 | Y69: 0 | Z69: 0 | AA69: 0 | AB69: 0 | AC69: 0 | AD69: =VLOOKUP($D$7,ETo!$B$4:$P$88,MONTH(D69)+2,FALSE)/4 ->  | AG69: 0 | AH69: 0 | AJ69: =VLOOKUP(MONTH(D69),[0]!rainforpaddy,4)/1000*AB69*1600*7 -> 
B70: 2009-08-29 | C70: 2009-09-04 | D70: 2009-09-04 | E70: 44 | F70: =IF(ISERROR(VLOOKUP(E70,Crop!$I$3:$J$70,2,FALSE)),0,VLOOKUP(paddy_dry!E70,Crop!$I$3:$J$71,2,FALSE)) -> 0 | G70: =IF(ISERROR(HLOOKUP($D$5,Kc!$C$3:$AI$57,paddy_dry!F70+3,FALSE)),0,HLOOKUP($D$5,Kc!$C$3:$AI$57,paddy_dry!F70+3,FALSE)) -> 0 | H70: 0 | I70: 0 | J70: 0 | K70: 0 | L70: 0 | M70: 0 | N70: 0 | O70: 0 | P70: 0 | Q70: 0 | R70: 0 | S70: 0 | T70: 0 | U70: 0 | V70: 0 | W70: 0 | X70: 0 | Y70: 0 | Z70: 0 | AA70: 0 | AB70: 0 | AC70: 0 | AD70: =VLOOKUP($D$7,ETo!$B$4:$P$88,MONTH(D70)+2,FALSE)/4 ->  | AG70: 0 | AH70: 0 | AJ70: =VLOOKUP(MONTH(D70),[0]!rainforpaddy,4)/1000*AB70*1600*7 -> 
B71: 2009-09-05 | C71: 2009-09-11 | D71: 2009-09-11 | E71: 45 | F71: =IF(ISERROR(VLOOKUP(E71,Crop!$I$3:$J$70,2,FALSE)),0,VLOOKUP(paddy_dry!E71,Crop!$I$3:$J$71,2,FALSE)) -> 0 | G71: =IF(ISERROR(HLOOKUP($D$5,Kc!$C$3:$AI$57,paddy_dry!F71+3,FALSE)),0,HLOOKUP($D$5,Kc!$C$3:$AI$57,paddy_dry!F71+3,FALSE)) -> 0 | H71: 0 | I71: 0 | J71: 0 | K71: 0 | L71: 0 | M71: 0 | N71: 0 | O71: 0 | P71: 0 | Q71: 0 | R71: 0 | S71: 0 | T71: 0 | U71: 0 | V71: 0 | W71: 0 | X71: 0 | Y71: 0 | Z71: 0 | AA71: 0 | AB71: 0 | AC71: 0 | AD71: =VLOOKUP($D$7,ETo!$B$4:$P$88,MONTH(D71)+2,FALSE)/4 ->  | AG71: 0 | AH71: 0 | AJ71: =VLOOKUP(MONTH(D71),[0]!rainforpaddy,4)/1000*AB71*1600*7 -> 
B72: 2009-09-12 | C72: 2009-09-18 | D72: 2009-09-18 | E72: 46 | F72: =IF(ISERROR(VLOOKUP(E72,Crop!$I$3:$J$70,2,FALSE)),0,VLOOKUP(paddy_dry!E72,Crop!$I$3:$J$71,2,FALSE)) -> 0 | G72: =IF(ISERROR(HLOOKUP($D$5,Kc!$C$3:$AI$57,paddy_dry!F72+3,FALSE)),0,HLOOKUP($D$5,Kc!$C$3:$AI$57,paddy_dry!F72+3,FALSE)) -> 0 | H72: 0 | I72: 0 | J72: 0 | K72: 0 | L72: 0 | M72: 0 | N72: 0 | O72: 0 | P72: 0 | Q72: 0 | R72: 0 | S72: 0 | T72: 0 | U72: 0 | V72: 0 | W72: 0 | X72: 0 | Y72: 0 | Z72: 0 | AA72: 0 | AB72: 0 | AC72: 0 | AD72: =VLOOKUP($D$7,ETo!$B$4:$P$88,MONTH(D72)+2,FALSE)/4 ->  | AG72: 0 | AH72: 0 | AJ72: =VLOOKUP(MONTH(D72),[0]!rainforpaddy,4)/1000*AB72*1600*7 -> 
B73: 2009-09-19 | C73: 2009-09-25 | D73: 2009-09-25 | E73: 47 | F73: =IF(ISERROR(VLOOKUP(E73,Crop!$I$3:$J$70,2,FALSE)),0,VLOOKUP(paddy_dry!E73,Crop!$I$3:$J$71,2,FALSE)) -> 0 | G73: =IF(ISERROR(HLOOKUP($D$5,Kc!$C$3:$AI$57,paddy_dry!F73+3,FALSE)),0,HLOOKUP($D$5,Kc!$C$3:$AI$57,paddy_dry!F73+3,FALSE)) -> 0 | H73: 0 | I73: 0 | J73: 0 | K73: 0 | L73: 0 | M73: 0 | N73: 0 | O73: 0 | P73: 0 | Q73: 0 | R73: 0 | S73: 0 | T73: 0 | U73: 0 | V73: 0 | W73: 0 | X73: 0 | Y73: 0 | Z73: 0 | AA73: 0 | AB73: 0 | AC73: 0 | AD73: =VLOOKUP($D$7,ETo!$B$4:$P$88,MONTH(D73)+2,FALSE)/4 ->  | AG73: 0 | AH73: 0 | AJ73: =VLOOKUP(MONTH(D73),[0]!rainforpaddy,4)/1000*AB73*1600*7 -> 
B74: 2009-09-26 | C74: 2009-10-02 | D74: 2009-10-02 | E74: 48 | F74: =IF(ISERROR(VLOOKUP(E74,Crop!$I$3:$J$70,2,FALSE)),0,VLOOKUP(paddy_dry!E74,Crop!$I$3:$J$71,2,FALSE)) -> 0 | G74: =IF(ISERROR(HLOOKUP($D$5,Kc!$C$3:$AI$57,paddy_dry!F74+3,FALSE)),0,HLOOKUP($D$5,Kc!$C$3:$AI$57,paddy_dry!F74+3,FALSE)) -> 0 | H74: 0 | I74: 0 | J74: 0 | K74: 0 | L74: 0 | M74: 0 | N74: 0 | O74: 0 | P74: 0 | Q74: 0 | R74: 0 | S74: 0 | T74: 0 | U74: 0 | V74: 0 | W74: 0 | X74: 0 | Y74: 0 | Z74: 0 | AA74: 0 | AB74: 0 | AC74: 0 | AD74: =VLOOKUP($D$7,ETo!$B$4:$P$88,MONTH(D74)+2,FALSE)/4 ->  | AG74: 0 | AH74: 0 | AJ74: =VLOOKUP(MONTH(D74),[0]!rainforpaddy,4)/1000*AB74*1600*7 -> 
B75: 2009-10-03 | C75: 2009-10-09 | D75: 2009-10-09 | E75: 49 | F75: =IF(ISERROR(VLOOKUP(E75,Crop!$I$3:$J$70,2,FALSE)),0,VLOOKUP(paddy_dry!E75,Crop!$I$3:$J$71,2,FALSE)) -> 0 | G75: =IF(ISERROR(HLOOKUP($D$5,Kc!$C$3:$AI$57,paddy_dry!F75+3,FALSE)),0,HLOOKUP($D$5,Kc!$C$3:$AI$57,paddy_dry!F75+3,FALSE)) -> 0 | H75: 0 | I75: 0 | J75: 0 | K75: 0 | L75: 0 | M75: 0 | N75: 0 | O75: 0 | P75: 0 | Q75: 0 | R75: 0 | S75: 0 | T75: 0 | U75: 0 | V75: 0 | W75: 0 | X75: 0 | Y75: 0 | Z75: 0 | AA75: 0 | AB75: 0 | AC75: 0 | AD75: =VLOOKUP($D$7,ETo!$B$4:$P$88,MONTH(D75)+2,FALSE)/4 ->  | AG75: 0 | AH75: 0 | AJ75: =VLOOKUP(MONTH(D75),[0]!rainforpaddy,4)/1000*AB75*1600*7 -> 
B76: 2009-10-10 | C76: 2009-10-16 | D76: 2009-10-16 | E76: 50 | F76: =IF(ISERROR(VLOOKUP(E76,Crop!$I$3:$J$70,2,FALSE)),0,VLOOKUP(paddy_dry!E76,Crop!$I$3:$J$71,2,FALSE)) -> 0 | G76: =IF(ISERROR(HLOOKUP($D$5,Kc!$C$3:$AI$57,paddy_dry!F76+3,FALSE)),0,HLOOKUP($D$5,Kc!$C$3:$AI$57,paddy_dry!F76+3,FALSE)) -> 0 | H76: 0 | I76: 0 | J76: 0 | K76: 0 | L76: 0 | M76: 0 | N76: 0 | O76: 0 | P76: 0 | Q76: 0 | R76: 0 | S76: 0 | T76: 0 | U76: 0 | V76: 0 | W76: 0 | X76: 0 | Y76: 0 | Z76: 0 | AA76: 0 | AB76: 0 | AC76: 0 | AD76: =VLOOKUP($D$7,ETo!$B$4:$P$88,MONTH(D76)+2,FALSE)/4 ->  | AG76: 0 | AH76: 0 | AJ76: =VLOOKUP(MONTH(D76),[0]!rainforpaddy,4)/1000*AB76*1600*7 -> 
B77: 2009-10-17 | C77: 2009-10-23 | D77: 2009-10-23 | E77: 51 | F77: =IF(ISERROR(VLOOKUP(E77,Crop!$I$3:$J$70,2,FALSE)),0,VLOOKUP(paddy_dry!E77,Crop!$I$3:$J$71,2,FALSE)) -> 0 | G77: =IF(ISERROR(HLOOKUP($D$5,Kc!$C$3:$AI$57,paddy_dry!F77+3,FALSE)),0,HLOOKUP($D$5,Kc!$C$3:$AI$57,paddy_dry!F77+3,FALSE)) -> 0 | H77: 0 | I77: 0 | J77: 0 | K77: 0 | L77: 0 | M77: 0 | N77: 0 | O77: 0 | P77: 0 | Q77: 0 | R77: 0 | S77: 0 | T77: 0 | U77: 0 | V77: 0 | W77: 0 | X77: 0 | Y77: 0 | Z77: 0 | AA77: 0 | AB77: 0 | AC77: 0 | AD77: =VLOOKUP($D$7,ETo!$B$4:$P$88,MONTH(D77)+2,FALSE)/4 ->  | AG77: 0 | AH77: 0 | AJ77: =VLOOKUP(MONTH(D77),[0]!rainforpaddy,4)/1000*AB77*1600*7 -> 
B78: 2009-10-24 | C78: 2009-10-30 | D78: 2009-10-30 | E78: 52 | F78: =IF(ISERROR(VLOOKUP(E78,Crop!$I$3:$J$70,2,FALSE)),0,VLOOKUP(paddy_dry!E78,Crop!$I$3:$J$71,2,FALSE)) -> 0 | G78: =IF(ISERROR(HLOOKUP($D$5,Kc!$C$3:$AI$57,paddy_dry!F78+3,FALSE)),0,HLOOKUP($D$5,Kc!$C$3:$AI$57,paddy_dry!F78+3,FALSE)) -> 0 | H78: 0 | I78: 0 | J78: 0 | K78: 0 | L78: 0 | M78: 0 | N78: 0 | O78: 0 | P78: 0 | Q78: 0 | R78: 0 | S78: 0 | T78: 0 | U78: 0 | V78: 0 | W78: 0 | X78: 0 | Y78: 0 | Z78: 0 | AA78: 0 | AB78: 0 | AC78: 0 | AD78: =VLOOKUP($D$7,ETo!$B$4:$P$88,MONTH(D78)+2,FALSE)/4 ->  | AG78: 0 | AH78: 0 | AJ78: =VLOOKUP(MONTH(D78),[0]!rainforpaddy,4)/1000*AB78*1600*7 -> 
AI79: =SUM(AI27:AI78) ->  | AJ79: =SUM(AJ27:AJ78) -> 

Sheet paddy_rain
B1: ตารางแสดงรายละเอียดการคำนวณความต้องการน้ำของพืช
F2: สัปดาห์ | G2: พื้นที่ (ไร่)
F3: 1 | G3: =+fill_data!F10 -> 0 | S3: =+E6 -> 33 | T3: 1
B4: จังหวัด | D4: =+fill_data!C4 -> 0 | F4: =IF(F3="","",IF(F3+1<=$E$9,F3+1,"")) -> 2 | G4: =+fill_data!F11 -> 0 | S4: =IF(+S3+1>52,+S3+1-52,S3+1) -> 34 | T4: 2
B5: ชนิดพืช | D5: =+fill_data!C11 -> ข้าว กข.(นาดำ) | F5: 3 | G5: =+fill_data!F12 -> 0 | S5: =IF(+S4+1>52,+S4+1-52,S4+1) -> 35 | T5: 3
B6: สัปดาห์เริ่มต้น | D6: =VLOOKUP(D5,Crop!B3:C35,2,FALSE) -> 13 | E6: =+fill_data!D12 -> 33 | F6: 4 | G6: =+fill_data!F13 -> 0 | S6: 36 | T6: 4
B7: ใช้ค่า ETo ของจังหวัด | D7: =+fill_data!C5 ->  | F7: 5 | G7: =+fill_data!F14 -> 0 | S7: 37 | T7: 5
B8: พื้นที่โครงการ, ไร่ | E8: =fill_data!D13 -> 0 | F8: 6 | G8: =+fill_data!F15 -> 0 | S8: 38 | T8: 6
B9: เวลาปลูกจนเต็มพื้นที่, สัปดาห์ | E9: =+fill_data!D14 -> 7 | F9: 7 | G9: =+fill_data!F16 -> 0 | S9: 39 | T9: 7
B10: ปริมาณน้ำรั่วซึม, มม./สัปดาห์ | E10: =+fill_data!D6 -> 0 | G10: =+fill_data!F17 -> 0 | I10: *ภาคกลาง กำหนดให้ใช้ 1 มม./วัน ส่วนภาคอื่นๆใช้ 2 มม./วัน | S10: 40 | T10: 8
B11: ปริมาณน้ำเตรียมแปลง, มม./สัปดาห์ | E11: =+fill_data!D15 -> 240 | G11: =+fill_data!F18 -> 0 | I11: *กำหนดระยะเวลาในการเตรียมแปลง 1 สัปดาห์ | S11: 41 | T11: 9
G12: =+fill_data!F19 -> 0 | S12: 42 | T12: 10 | AD12: =+MONTH(D32) -> 12
F13: =IF(F12="","",IF(F12+1<=$E$9,F12+1,"")) ->  | G13: =+fill_data!F20 -> 0 | S13: 43 | T13: 11
G14: =+fill_data!F21 -> 0 | S14: 44 | T14: 12
G15: =+fill_data!F22 -> 0 | S15: 45 | T15: 13
G16: =+fill_data!F23 -> 0 | S16: 46 | T16: 14
G17: =+fill_data!F24 -> 0 | S17: 47 | T17: 15
G18: =+fill_data!F25 -> 0 | S18: 48 | T18: 16
G19: =+fill_data!F26 -> 0 | S19: 49 | T19: 17
G20: =+fill_data!F27 -> 0 | S20: 50 | T20: 18
G21: =+fill_data!F28 -> 0 | S21: 51 | T21: 19
G22: =+fill_data!F29 -> 0 | S22: 52 | T22: 20
B24: (1) | C24: (2) | D24: (3) | E24: (4) | F24: (5) | G24: (6) | H24: (7.1) | I24: (7.2) | J24: (7.3) | K24: (7.4) | L24: (7.5) | M24: (7.6) | N24: (7.7) | O24: (7.8) | P24: (7.9) | Q24: (7.10) | R24: (7.11) | S24: (7.12) | T24: (7.13) | U24: (7.14) | V24: (7.15) | W24: (7.16) | X24: (7.17) | Y24: (7.18) | Z24: (7.19) | AA24: (7.20) | AB24: (8) | AC24: (9) | AD24: (10) | AE24: (11) | AF24: (12) | AG24: (13) | AH24: (14) | AI24: (15) | AJ24: (16) | AK24: (7.20) | AL24: (8) | AM24: (9) | AN24: (10) | AO24: (11) | AP24: (12) | AQ24: (13) | AR24: (14) | AS24: (15) | AT24: (16)
B25: ช่วงเวลาสัปดาห์ | D25: เดือน | E25: สัปดาห์ | F25: สัปดาห์ | G25: Kc | H25: พื้นที่เพาะปลูกในแต่ละสัปดาห์ (ไร่) | AB25: รวมพื้นที่ | AC25: Weighted | AD25: ETo | AE25: ความต้องการน้ำ | AG25: ปริมาณน้ำเตรียมแปลง | AI25: ความต้องการน้ำ | AJ25: ฝนใช้การ
B26: เริ่มต้น | C26: สิ้นสุด | F26: ของ Kc | H26: 1 | I26: 2 | J26: 3 | K26: 4 | L26: 5 | M26: 6 | N26: 7 | O26: 8 | P26: 9 | Q26: 10 | R26: 11 | S26: 12 | T26: 13 | U26: 14 | V26: 15 | W26: 16 | X26: 17 | Y26: 18 | Z26: 19 | AA26: 20 | AB26: (ไร่) | AC26: Kc | AE26: (มม.) | AF26: (ลบ.ม.) | AG26: (ไร่) | AH26: (ลบ.ม.) | AI26: (ลบ.ม.) | AJ26: (ลบ.ม.)
B27: 2008-11-01 | C27: 2008-11-07 | D27: =+C27 -> 2008-11-07 | E27: 1 | F27: =IF(ISERROR(VLOOKUP(E27,Crop!$X$3:$Y$70,2,FALSE)),0,VLOOKUP(E27,Crop!$X$3:$Y$70,2,FALSE)) -> 0 | G27: =IF(ISERROR(HLOOKUP($D$5,Kc!$C$3:$AI$57,paddy_rain!F27+3,FALSE)),0,HLOOKUP($D$5,Kc!$C$3:$AI$57,paddy_rain!F27+3,FALSE)) -> 0 | H27: =IF(G27>0,IF(H$26>$E$9,0,VLOOKUP(H$26,$F$3:$G$23,2,FALSE)),0) -> 0 | I27: =IF(H78>0,IF(I$26>$E$9,0,VLOOKUP(I$26,$F$3:$G$23,2,FALSE)),0) -> 0 | J27: 0 | K27: 0 | L27: 0 | M27: 0 | N27: 0 | O27: 0 | P27: 0 | Q27: 0 | R27: 0 | S27: =IF(R78>0,IF(S$26>$E$9,0,VLOOKUP(S$26,$F$3:$G$23,2,FALSE)),0) -> 0 | T27: 0 | U27: 0 | V27: 0 | W27: 0 | X27: 0 | Y27: 0 | Z27: 0 | AA27: 0 | AB27: =SUM(H27:AA27) -> 0 | AC27: =IF(ISERROR((H27*G27+I27*G78+J27*G77+K27*G76+L27*G75+M27*G74+N27*G73+O27*G72+P27*G71+Q27*G70+R27*G69+S27*G68+T27*G67+U27*G66+V27*G65+W27*G64+X27*G63+Y27*G62+Z27*G61+AA27*G60)/AB27),0,(H27*G27+I27*G78+J27*G77+K27*G76+L27*G75+M27*G74+N27*G73+O27*G72+P27*G71+Q27*G70+R27*G69+S27*G68+T27*G67+U27*G66+V27*G65+W27*G64+X27*G63+Y27*G62+Z27*G61+AA27*G60)/AB27) -> 0 | AD27: =VLOOKUP($D$7,ETo!$B$4:$P$88,MONTH(D27)+2,FALSE)/4 ->  | AE27: =IF(AC27*AD27=0,0,(AC27*AD27)+$E$10) ->  | AF27: =AE27*AB27*1.6 ->  | AG27: =IF(ISERROR(INDEX(H27:AA27,1,IF(E27<$E$6,0,VLOOKUP(E27,$S$3:$T$22,2,FALSE)))),0,INDEX(H27:AA27,1,IF(E27<$E$6,0,VLOOKUP(E27,$S$3:$T$22,2,FALSE)))) -> 0 | AH27: =AG27*$E$11*1.6 -> 0 | AI27: =AF27+AH27 ->  | AJ27: =VLOOKUP(MONTH(D27),[0]!rainforpaddy,4)/1000*AB27*1600*7 -> 
B28: =C27+1 -> 2008-11-08 | C28: =B28+6 -> 2008-11-14 | D28: 2008-11-14 | E28: 2 | F28: =IF(ISERROR(VLOOKUP(E28,Crop!$X$3:$Y$70,2,FALSE)),0,VLOOKUP(E28,Crop!$X$3:$Y$70,2,FALSE)) -> 0 | G28: =IF(ISERROR(HLOOKUP($D$5,Kc!$C$3:$AI$57,paddy_rain!F28+3,FALSE)),0,HLOOKUP($D$5,Kc!$C$3:$AI$57,paddy_rain!F28+3,FALSE)) -> 0 | H28: 0 | I28: =IF(H27>0,IF(I$26>$E$9,0,VLOOKUP(I$26,$F$3:$G$23,2,FALSE)),0) -> 0 | J28: 0 | K28: 0 | L28: 0 | M28: 0 | N28: 0 | O28: 0 | P28: 0 | Q28: 0 | R28: 0 | S28: =IF(R27>0,IF(S$26>$E$9,0,VLOOKUP(S$26,$F$3:$G$23,2,FALSE)),0) -> 0 | T28: 0 | U28: 0 | V28: 0 | W28: 0 | X28: 0 | Y28: 0 | Z28: 0 | AA28: 0 | AB28: =SUM(H28:AA28) -> 0 | AC28: =IF(ISERROR((H28*G28+I28*G27+J28*G78+K28*G77+L28*G76+M28*G75+N28*G74+O28*G73+P28*G72+Q28*G71+R28*G70+S28*G69+T28*G68+U28*G67+V28*G66+W28*G65+X28*G64+Y28*G63+Z28*G62+AA28*G61)/AB28),0,(H28*G28+I28*G27+J28*G78+K28*G77+L28*G76+M28*G75+N28*G74+O28*G73+P28*G72+Q28*G71+R28*G70+S28*G69+T28*G68+U28*G67+V28*G66+W28*G65+X28*G64+Y28*G63+Z28*G62+AA28*G61)/AB28) -> 0 | AD28: =VLOOKUP($D$7,ETo!$B$4:$P$88,MONTH(D28)+2,FALSE)/4 ->  | AG28: =IF(ISERROR(INDEX(H28:AA28,1,IF(E28<$E$6,0,VLOOKUP(E28,$S$3:$T$22,2,FALSE)))),0,INDEX(H28:AA28,1,IF(E28<$E$6,0,VLOOKUP(E28,$S$3:$T$22,2,FALSE)))) -> 0 | AH28: =AG28*$E$11*1.6 -> 0 | AJ28: =VLOOKUP(MONTH(D28),[0]!rainforpaddy,4)/1000*AB28*1600*7 -> 
B29: 2008-11-15 | C29: 2008-11-21 | D29: 2008-11-21 | E29: 3 | F29: =IF(ISERROR(VLOOKUP(E29,Crop!$X$3:$Y$70,2,FALSE)),0,VLOOKUP(E29,Crop!$X$3:$Y$70,2,FALSE)) -> 0 | G29: =IF(ISERROR(HLOOKUP($D$5,Kc!$C$3:$AI$57,paddy_rain!F29+3,FALSE)),0,HLOOKUP($D$5,Kc!$C$3:$AI$57,paddy_rain!F29+3,FALSE)) -> 0 | H29: 0 | I29: 0 | J29: 0 | K29: 0 | L29: 0 | M29: 0 | N29: 0 | O29: 0 | P29: 0 | Q29: 0 | R29: 0 | S29: 0 | T29: 0 | U29: 0 | V29: 0 | W29: 0 | X29: 0 | Y29: 0 | Z29: 0 | AA29: 0 | AB29: 0 | AC29: =IF(ISERROR((H29*G29+I29*G28+J29*G27+K29*G78+L29*G77+M29*G76+N29*G75+O29*G74+P29*G73+Q29*G72+R29*G71+S29*G70+T29*G69+U29*G68+V29*G67+W29*G66+X29*G65+Y29*G64+Z29*G63+AA29*G62)/AB29),0,(H29*G29+I29*G28+J29*G27+K29*G78+L29*G77+M29*G76+N29*G75+O29*G74+P29*G73+Q29*G72+R29*G71+S29*G70+T29*G69+U29*G68+V29*G67+W29*G66+X29*G65+Y29*G64+Z29*G63+AA29*G62)/AB29) -> 0 | AD29: =VLOOKUP($D$7,ETo!$B$4:$P$88,MONTH(D29)+2,FALSE)/4 ->  | AG29: =IF(ISERROR(INDEX(H29:AA29,1,IF(E29<$E$6,0,VLOOKUP(E29,$S$3:$T$22,2,FALSE)))),0,INDEX(H29:AA29,1,IF(E29<$E$6,0,VLOOKUP(E29,$S$3:$T$22,2,FALSE)))) -> 0 | AH29: =AG29*$E$11*1.6 -> 0 | AJ29: =VLOOKUP(MONTH(D29),[0]!rainforpaddy,4)/1000*AB29*1600*7 -> 
B30: 2008-11-22 | C30: 2008-11-28 | D30: 2008-11-28 | E30: 4 | F30: =IF(ISERROR(VLOOKUP(E30,Crop!$X$3:$Y$70,2,FALSE)),0,VLOOKUP(E30,Crop!$X$3:$Y$70,2,FALSE)) -> 0 | G30: =IF(ISERROR(HLOOKUP($D$5,Kc!$C$3:$AI$57,paddy_rain!F30+3,FALSE)),0,HLOOKUP($D$5,Kc!$C$3:$AI$57,paddy_rain!F30+3,FALSE)) -> 0 | H30: 0 | I30: 0 | J30: 0 | K30: 0 | L30: 0 | M30: 0 | N30: 0 | O30: 0 | P30: 0 | Q30: 0 | R30: 0 | S30: 0 | T30: 0 | U30: 0 | V30: 0 | W30: 0 | X30: 0 | Y30: 0 | Z30: 0 | AA30: 0 | AB30: 0 | AC30: =IF(ISERROR((H30*G30+I30*G29+J30*G28+K30*G27+L30*G78+M30*G77+N30*G76+O30*G75+P30*G74+Q30*G73+R30*G72+S30*G71+T30*G70+U30*G69+V30*G68+W30*G67+X30*G66+Y30*G65+Z30*G64+AA30*G63)/AB30),0,(H30*G30+I30*G29+J30*G28+K30*G27+L30*G78+M30*G77+N30*G76+O30*G75+P30*G74+Q30*G73+R30*G72+S30*G71+T30*G70+U30*G69+V30*G68+W30*G67+X30*G66+Y30*G65+Z30*G64+AA30*G63)/AB30) -> 0 | AD30: =VLOOKUP($D$7,ETo!$B$4:$P$88,MONTH(D30)+2,FALSE)/4 ->  | AG30: =IF(ISERROR(INDEX(H30:AA30,1,IF(E30<$E$6,0,VLOOKUP(E30,$S$3:$T$22,2,FALSE)))),0,INDEX(H30:AA30,1,IF(E30<$E$6,0,VLOOKUP(E30,$S$3:$T$22,2,FALSE)))) -> 0 | AH30: =AG30*$E$11*1.6 -> 0 | AJ30: =VLOOKUP(MONTH(D30),[0]!rainforpaddy,4)/1000*AB30*1600*7 -> 
B31: 2008-11-29 | C31: 2008-12-05 | D31: 2008-12-05 | E31: 5 | F31: =IF(ISERROR(VLOOKUP(E31,Crop!$X$3:$Y$70,2,FALSE)),0,VLOOKUP(E31,Crop!$X$3:$Y$70,2,FALSE)) -> 0 | G31: =IF(ISERROR(HLOOKUP($D$5,Kc!$C$3:$AI$57,paddy_rain!F31+3,FALSE)),0,HLOOKUP($D$5,Kc!$C$3:$AI$57,paddy_rain!F31+3,FALSE)) -> 0 | H31: 0 | I31: 0 | J31: 0 | K31: 0 | L31: 0 | M31: 0 | N31: 0 | O31: 0 | P31: 0 | Q31: 0 | R31: 0 | S31: 0 | T31: 0 | U31: 0 | V31: 0 | W31: 0 | X31: 0 | Y31: 0 | Z31: 0 | AA31: 0 | AB31: 0 | AC31: =IF(ISERROR((H31*G31+I31*G30+J31*G29+K31*G28+L31*G27+M31*G78+N31*G77+O31*G76+P31*G75+Q31*G74+R31*G73+S31*G72+T31*G71+U31*G70+V31*G69+W31*G68+X31*G67+Y31*G66+Z31*G65+AA31*G64)/AB31),0,(H31*G31+I31*G30+J31*G29+K31*G28+L31*G27+M31*G78+N31*G77+O31*G76+P31*G75+Q31*G74+R31*G73+S31*G72+T31*G71+U31*G70+V31*G69+W31*G68+X31*G67+Y31*G66+Z31*G65+AA31*G64)/AB31) -> 0 | AD31: =VLOOKUP($D$7,ETo!$B$4:$P$88,MONTH(D31)+2,FALSE)/4 ->  | AG31: =IF(ISERROR(INDEX(H31:AA31,1,IF(E31<$E$6,0,VLOOKUP(E31,$S$3:$T$22,2,FALSE)))),0,INDEX(H31:AA31,1,IF(E31<$E$6,0,VLOOKUP(E31,$S$3:$T$22,2,FALSE)))) -> 0 | AH31: =AG31*$E$11*1.6 -> 0 | AJ31: =VLOOKUP(MONTH(D31),[0]!rainforpaddy,4)/1000*AB31*1600*7 -> 
B32: 2008-12-06 | C32: 2008-12-12 | D32: 2008-12-12 | E32: 6 | F32: =IF(ISERROR(VLOOKUP(E32,Crop!$X$3:$Y$70,2,FALSE)),0,VLOOKUP(E32,Crop!$X$3:$Y$70,2,FALSE)) -> 0 | G32: =IF(ISERROR(HLOOKUP($D$5,Kc!$C$3:$AI$57,paddy_rain!F32+3,FALSE)),0,HLOOKUP($D$5,Kc!$C$3:$AI$57,paddy_rain!F32+3,FALSE)) -> 0 | H32: 0 | I32: 0 | J32: 0 | K32: 0 | L32: 0 | M32: 0 | N32: 0 | O32: 0 | P32: 0 | Q32: 0 | R32: 0 | S32: 0 | T32: 0 | U32: 0 | V32: 0 | W32: 0 | X32: 0 | Y32: 0 | Z32: 0 | AA32: 0 | AB32: 0 | AC32: =IF(ISERROR((H32*G32+I32*G31+J32*G30+K32*G29+L32*G28+M32*G27+N32*G78+O32*G77+P32*G76+Q32*G75+R32*G74+S32*G73+T32*G72+U32*G71+V32*G70+W32*G69+X32*G68+Y32*G67+Z32*G66+AA32*G65)/AB32),0,(H32*G32+I32*G31+J32*G30+K32*G29+L32*G28+M32*G27+N32*G78+O32*G77+P32*G76+Q32*G75+R32*G74+S32*G73+T32*G72+U32*G71+V32*G70+W32*G69+X32*G68+Y32*G67+Z32*G66+AA32*G65)/AB32) -> 0 | AD32: =VLOOKUP($D$7,ETo!$B$4:$P$88,MONTH(D32)+2,FALSE)/4 ->  | AG32: =IF(ISERROR(INDEX(H32:AA32,1,IF(E32<$E$6,0,VLOOKUP(E32,$S$3:$T$22,2,FALSE)))),0,INDEX(H32:AA32,1,IF(E32<$E$6,0,VLOOKUP(E32,$S$3:$T$22,2,FALSE)))) -> 0 | AH32: =AG32*$E$11*1.6 -> 0 | AJ32: =VLOOKUP(MONTH(D32),[0]!rainforpaddy,4)/1000*AB32*1600*7 -> 
B33: 2008-12-13 | C33: 2008-12-19 | D33: 2008-12-19 | E33: 7 | F33: =IF(ISERROR(VLOOKUP(E33,Crop!$X$3:$Y$70,2,FALSE)),0,VLOOKUP(E33,Crop!$X$3:$Y$70,2,FALSE)) -> 0 | G33: =IF(ISERROR(HLOOKUP($D$5,Kc!$C$3:$AI$57,paddy_rain!F33+3,FALSE)),0,HLOOKUP($D$5,Kc!$C$3:$AI$57,paddy_rain!F33+3,FALSE)) -> 0 | H33: 0 | I33: 0 | J33: 0 | K33: 0 | L33: 0 | M33: 0 | N33: 0 | O33: 0 | P33: 0 | Q33: 0 | R33: 0 | S33: 0 | T33: 0 | U33: 0 | V33: 0 | W33: 0 | X33: 0 | Y33: 0 | Z33: 0 | AA33: 0 | AB33: 0 | AC33: =IF(ISERROR((H33*G33+I33*G32+J33*G31+K33*G30+L33*G29+M33*G28+N33*G27+O33*G78+P33*G77+Q33*G76+R33*G75+S33*G74+T33*G73+U33*G72+V33*G71+W33*G70+X33*G69+Y33*G68+Z33*G67+AA33*G66)/AB33),0,(H33*G33+I33*G32+J33*G31+K33*G30+L33*G29+M33*G28+N33*G27+O33*G78+P33*G77+Q33*G76+R33*G75+S33*G74+T33*G73+U33*G72+V33*G71+W33*G70+X33*G69+Y33*G68+Z33*G67+AA33*G66)/AB33) -> 0 | AD33: =VLOOKUP($D$7,ETo!$B$4:$P$88,MONTH(D33)+2,FALSE)/4 ->  | AG33: 0 | AH33: 0 | AJ33: =VLOOKUP(MONTH(D33),[0]!rainforpaddy,4)/1000*AB33*1600*7 -> 
B34: 2008-12-20 | C34: 2008-12-26 | D34: 2008-12-26 | E34: 8 | F34: =IF(ISERROR(VLOOKUP(E34,Crop!$X$3:$Y$70,2,FALSE)),0,VLOOKUP(E34,Crop!$X$3:$Y$70,2,FALSE)) -> 0 | G34: =IF(ISERROR(HLOOKUP($D$5,Kc!$C$3:$AI$57,paddy_rain!F34+3,FALSE)),0,HLOOKUP($D$5,Kc!$C$3:$AI$57,paddy_rain!F34+3,FALSE)) -> 0 | H34: 0 | I34: 0 | J34: 0 | K34: 0 | L34: 0 | M34: 0 | N34: 0 | O34: 0 | P34: 0 | Q34: 0 | R34: 0 | S34: 0 | T34: 0 | U34: 0 | V34: 0 | W34: 0 | X34: 0 | Y34: 0 | Z34: 0 | AA34: 0 | AB34: 0 | AC34: =IF(ISERROR((H34*G34+I34*G33+J34*G32+K34*G31+L34*G30+M34*G29+N34*G28+O34*G27+P34*G78+Q34*G77+R34*G76+S34*G75+T34*G74+U34*G73+V34*G72+W34*G71+X34*G70+Y34*G69+Z34*G68+AA34*G67)/AB34),0,(H34*G34+I34*G33+J34*G32+K34*G31+L34*G30+M34*G29+N34*G28+O34*G27+P34*G78+Q34*G77+R34*G76+S34*G75+T34*G74+U34*G73+V34*G72+W34*G71+X34*G70+Y34*G69+Z34*G68+AA34*G67)/AB34) -> 0 | AD34: =VLOOKUP($D$7,ETo!$B$4:$P$88,MONTH(D34)+2,FALSE)/4 ->  | AG34: 0 | AH34: 0 | AJ34: =VLOOKUP(MONTH(D34),[0]!rainforpaddy,4)/1000*AB34*1600*7 -> 
B35: 2008-12-27 | C35: 2009-01-02 | D35: 2009-01-02 | E35: 9 | F35: =IF(ISERROR(VLOOKUP(E35,Crop!$X$3:$Y$70,2,FALSE)),0,VLOOKUP(E35,Crop!$X$3:$Y$70,2,FALSE)) -> 0 | G35: =IF(ISERROR(HLOOKUP($D$5,Kc!$C$3:$AI$57,paddy_rain!F35+3,FALSE)),0,HLOOKUP($D$5,Kc!$C$3:$AI$57,paddy_rain!F35+3,FALSE)) -> 0 | H35: 0 | I35: 0 | J35: 0 | K35: 0 | L35: 0 | M35: 0 | N35: 0 | O35: 0 | P35: 0 | Q35: 0 | R35: 0 | S35: 0 | T35: 0 | U35: 0 | V35: 0 | W35: 0 | X35: 0 | Y35: 0 | Z35: 0 | AA35: 0 | AB35: 0 | AC35: =IF(ISERROR((H35*G35+I35*G34+J35*G33+K35*G32+L35*G31+M35*G30+N35*G29+O35*G28+P35*G27+Q35*G78+R35*G77+S35*G76+T35*G75+U35*G74+V35*G73+W35*G72+X35*G71+Y35*G70+Z35*G69+AA35*G68)/AB35),0,(H35*G35+I35*G34+J35*G33+K35*G32+L35*G31+M35*G30+N35*G29+O35*G28+P35*G27+Q35*G78+R35*G77+S35*G76+T35*G75+U35*G74+V35*G73+W35*G72+X35*G71+Y35*G70+Z35*G69+AA35*G68)/AB35) -> 0 | AD35: =VLOOKUP($D$7,ETo!$B$4:$P$88,MONTH(D35)+2,FALSE)/4 ->  | AG35: 0 | AH35: 0 | AJ35: =VLOOKUP(MONTH(D35),[0]!rainforpaddy,4)/1000*AB35*1600*7 -> 
B36: 2009-01-03 | C36: 2009-01-09 | D36: 2009-01-09 | E36: 10 | F36: =IF(ISERROR(VLOOKUP(E36,Crop!$X$3:$Y$70,2,FALSE)),0,VLOOKUP(E36,Crop!$X$3:$Y$70,2,FALSE)) -> 0 | G36: =IF(ISERROR(HLOOKUP($D$5,Kc!$C$3:$AI$57,paddy_rain!F36+3,FALSE)),0,HLOOKUP($D$5,Kc!$C$3:$AI$57,paddy_rain!F36+3,FALSE)) -> 0 | H36: =IF(G36>0,IF(H$26>$E$9,0,VLOOKUP(H$26,$F$3:$G$23,2,FALSE)),0) -> 0 | I36: 0 | J36: 0 | K36: 0 | L36: 0 | M36: 0 | N36: 0 | O36: 0 | P36: 0 | Q36: 0 | R36: 0 | S36: 0 | T36: 0 | U36: 0 | V36: 0 | W36: 0 | X36: 0 | Y36: 0 | Z36: 0 | AA36: 0 | AB36: 0 | AC36: =IF(ISERROR((H36*G36+I36*G35+J36*G34+K36*G33+L36*G32+M36*G31+N36*G30+O36*G29+P36*G28+Q36*G27+R36*G78+S36*G77+T36*G76+U36*G75+V36*G74+W36*G73+X36*G72+Y36*G71+Z36*G70+AA36*G69)/AB36),0,(H36*G36+I36*G35+J36*G34+K36*G33+L36*G32+M36*G31+N36*G30+O36*G29+P36*G28+Q36*G27+R36*G78+S36*G77+T36*G76+U36*G75+V36*G74+W36*G73+X36*G72+Y36*G71+Z36*G70+AA36*G69)/AB36) -> 0 | AD36: =VLOOKUP($D$7,ETo!$B$4:$P$88,MONTH(D36)+2,FALSE)/4 ->  | AG36: 0 | AH36: 0 | AJ36: =VLOOKUP(MONTH(D36),[0]!rainforpaddy,4)/1000*AB36*1600*7 -> 
B37: 2009-01-10 | C37: 2009-01-16 | D37: 2009-01-16 | E37: 11 | F37: =IF(ISERROR(VLOOKUP(E37,Crop!$X$3:$Y$70,2,FALSE)),0,VLOOKUP(E37,Crop!$X$3:$Y$70,2,FALSE)) -> 0 | G37: =IF(ISERROR(HLOOKUP($D$5,Kc!$C$3:$AI$57,paddy_rain!F37+3,FALSE)),0,HLOOKUP($D$5,Kc!$C$3:$AI$57,paddy_rain!F37+3,FALSE)) -> 0 | H37: 0 | I37: =IF(H36>0,IF(I$26>$E$9,0,VLOOKUP(I$26,$F$3:$G$23,2,FALSE)),0) -> 0 | J37: =IF(I36>0,IF(J$26>$E$9,0,VLOOKUP(J$26,$F$3:$G$12,2,FALSE)),0) -> 0 | K37: =IF(J36>0,IF(K$26>$E$9,0,VLOOKUP(K$26,$F$3:$G$23,2,FALSE)),0) -> 0 | L37: 0 | M37: 0 | N37: 0 | O37: 0 | P37: 0 | Q37: 0 | R37: 0 | S37: 0 | T37: 0 | U37: =IF(T36>0,IF(U$26>$E$9,0,VLOOKUP(U$26,$F$3:$G$23,2,FALSE)),0) -> 0 | V37: 0 | W37: 0 | X37: 0 | Y37: 0 | Z37: 0 | AA37: 0 | AB37: 0 | AC37: =IF(ISERROR((H37*G37+I37*G36+J37*G35+K37*G34+L37*G33+M37*G32+N37*G31+O37*G30+P37*G29+Q37*G28+R37*G27+S37*G78+T37*G77+U37*G76+V37*G75+W37*G74+X37*G73+Y37*G72+Z37*G71+AA37*G70)/AB37),0,(H37*G37+I37*G36+J37*G35+K37*G34+L37*G33+M37*G32+N37*G31+O37*G30+P37*G29+Q37*G28+R37*G27+S37*G78+T37*G77+U37*G76+V37*G75+W37*G74+X37*G73+Y37*G72+Z37*G71+AA37*G70)/AB37) -> 0 | AD37: =VLOOKUP($D$7,ETo!$B$4:$P$88,MONTH(D37)+2,FALSE)/4 ->  | AG37: 0 | AH37: 0 | AJ37: =VLOOKUP(MONTH(D37),[0]!rainforpaddy,4)/1000*AB37*1600*7 -> 
B38: 2009-01-17 | C38: 2009-01-23 | D38: 2009-01-23 | E38: 12 | F38: =IF(ISERROR(VLOOKUP(E38,Crop!$X$3:$Y$70,2,FALSE)),0,VLOOKUP(E38,Crop!$X$3:$Y$70,2,FALSE)) -> 0 | G38: =IF(ISERROR(HLOOKUP($D$5,Kc!$C$3:$AI$57,paddy_rain!F38+3,FALSE)),0,HLOOKUP($D$5,Kc!$C$3:$AI$57,paddy_rain!F38+3,FALSE)) -> 0 | H38: 0 | I38: 0 | J38: 0 | K38: 0 | L38: 0 | M38: 0 | N38: 0 | O38: 0 | P38: 0 | Q38: 0 | R38: 0 | S38: 0 | T38: 0 | U38: 0 | V38: 0 | W38: 0 | X38: 0 | Y38: 0 | Z38: 0 | AA38: 0 | AB38: 0 | AC38: =IF(ISERROR((H38*G38+I38*G37+J38*G36+K38*G35+L38*G34+M38*G33+N38*G32+O38*G31+P38*G30+Q38*G29+R38*G28+S38*G27+T38*G78+U38*G77+V38*G76+W38*G75+X38*G74+Y38*G73+Z38*G72+AA38*G71)/AB38),0,(H38*G38+I38*G37+J38*G36+K38*G35+L38*G34+M38*G33+N38*G32+O38*G31+P38*G30+Q38*G29+R38*G28+S38*G27+T38*G78+U38*G77+V38*G76+W38*G75+X38*G74+Y38*G73+Z38*G72+AA38*G71)/AB38) -> 0 | AD38: =VLOOKUP($D$7,ETo!$B$4:$P$88,MONTH(D38)+2,FALSE)/4 ->  | AG38: 0 | AH38: 0 | AJ38: =VLOOKUP(MONTH(D38),[0]!rainforpaddy,4)/1000*AB38*1600*7 -> 
B39: 2009-01-24 | C39: 2009-01-30 | D39: 2009-01-30 | E39: 13 | F39: =IF(ISERROR(VLOOKUP(E39,Crop!$X$3:$Y$70,2,FALSE)),0,VLOOKUP(E39,Crop!$X$3:$Y$70,2,FALSE)) -> 0 | G39: =IF(ISERROR(HLOOKUP($D$5,Kc!$C$3:$AI$57,paddy_rain!F39+3,FALSE)),0,HLOOKUP($D$5,Kc!$C$3:$AI$57,paddy_rain!F39+3,FALSE)) -> 0 | H39: 0 | I39: 0 | J39: 0 | K39: 0 | L39: 0 | M39: 0 | N39: 0 | O39: 0 | P39: 0 | Q39: 0 | R39: 0 | S39: 0 | T39: 0 | U39: 0 | V39: 0 | W39: 0 | X39: 0 | Y39: 0 | Z39: 0 | AA39: 0 | AB39: 0 | AC39: =IF(ISERROR((H39*G39+I39*G38+J39*G37+K39*G36+L39*G35+M39*G34+N39*G33+O39*G32+P39*G31+Q39*G30+R39*G29+S39*G28+T39*G27+U39*G78+V39*G77+W39*G76+X39*G75+Y39*G74+Z39*G73+AA39*G72)/AB39),0,(H39*G39+I39*G38+J39*G37+K39*G36+L39*G35+M39*G34+N39*G33+O39*G32+P39*G31+Q39*G30+R39*G29+S39*G28+T39*G27+U39*G78+V39*G77+W39*G76+X39*G75+Y39*G74+Z39*G73+AA39*G72)/AB39) -> 0 | AD39: =VLOOKUP($D$7,ETo!$B$4:$P$88,MONTH(D39)+2,FALSE)/4 ->  | AG39: 0 | AH39: 0 | AJ39: =VLOOKUP(MONTH(D39),[0]!rainforpaddy,4)/1000*AB39*1600*7 -> 
B40: 2009-01-31 | C40: 2009-02-06 | D40: 2009-02-06 | E40: 14 | F40: =IF(ISERROR(VLOOKUP(E40,Crop!$X$3:$Y$70,2,FALSE)),0,VLOOKUP(E40,Crop!$X$3:$Y$70,2,FALSE)) -> 0 | G40: =IF(ISERROR(HLOOKUP($D$5,Kc!$C$3:$AI$57,paddy_rain!F40+3,FALSE)),0,HLOOKUP($D$5,Kc!$C$3:$AI$57,paddy_rain!F40+3,FALSE)) -> 0 | H40: 0 | I40: 0 | J40: 0 | K40: 0 | L40: 0 | M40: 0 | N40: 0 | O40: 0 | P40: 0 | Q40: 0 | R40: 0 | S40: 0 | T40: 0 | U40: 0 | V40: 0 | W40: 0 | X40: 0 | Y40: 0 | Z40: 0 | AA40: 0 | AB40: 0 | AC40: =IF(ISERROR((H40*G40+I40*G39+J40*G38+K40*G37+L40*G36+M40*G35+N40*G34+O40*G33+P40*G32+Q40*G31+R40*G30+S40*G29+T40*G28+U40*G27+V40*G78+W40*G77+X40*G76+Y40*G75+Z40*G74+AA40*G73)/AB40),0,(H40*G40+I40*G39+J40*G38+K40*G37+L40*G36+M40*G35+N40*G34+O40*G33+P40*G32+Q40*G31+R40*G30+S40*G29+T40*G28+U40*G27+V40*G78+W40*G77+X40*G76+Y40*G75+Z40*G74+AA40*G73)/AB40) -> 0 | AD40: =VLOOKUP($D$7,ETo!$B$4:$P$88,MONTH(D40)+2,FALSE)/4 ->  | AG40: 0 | AH40: 0 | AJ40: =VLOOKUP(MONTH(D40),[0]!rainforpaddy,4)/1000*AB40*1600*7 -> 
B41: 2009-02-07 | C41: 2009-02-13 | D41: 2009-02-13 | E41: 15 | F41: =IF(ISERROR(VLOOKUP(E41,Crop!$X$3:$Y$70,2,FALSE)),0,VLOOKUP(E41,Crop!$X$3:$Y$70,2,FALSE)) -> 0 | G41: =IF(ISERROR(HLOOKUP($D$5,Kc!$C$3:$AI$57,paddy_rain!F41+3,FALSE)),0,HLOOKUP($D$5,Kc!$C$3:$AI$57,paddy_rain!F41+3,FALSE)) -> 0 | H41: 0 | I41: 0 | J41: 0 | K41: 0 | L41: 0 | M41: 0 | N41: 0 | O41: 0 | P41: 0 | Q41: 0 | R41: 0 | S41: 0 | T41: 0 | U41: 0 | V41: 0 | W41: 0 | X41: 0 | Y41: 0 | Z41: 0 | AA41: 0 | AB41: 0 | AC41: =IF(ISERROR((H41*G41+I41*G40+J41*G39+K41*G38+L41*G37+M41*G36+N41*G35+O41*G34+P41*G33+Q41*G32+R41*G31+S41*G30+T41*G29+U41*G28+V41*G27+W41*G78+X41*G77+Y41*G76+Z41*G75+AA41*G74)/AB41),0,(H41*G41+I41*G40+J41*G39+K41*G38+L41*G37+M41*G36+N41*G35+O41*G34+P41*G33+Q41*G32+R41*G31+S41*G30+T41*G29+U41*G28+V41*G27+W41*G78+X41*G77+Y41*G76+Z41*G75+AA41*G74)/AB41) -> 0 | AD41: =VLOOKUP($D$7,ETo!$B$4:$P$88,MONTH(D41)+2,FALSE)/4 ->  | AG41: 0 | AH41: 0 | AJ41: =VLOOKUP(MONTH(D41),[0]!rainforpaddy,4)/1000*AB41*1600*7 -> 
B42: 2009-02-14 | C42: 2009-02-20 | D42: 2009-02-20 | E42: 16 | F42: =IF(ISERROR(VLOOKUP(E42,Crop!$X$3:$Y$70,2,FALSE)),0,VLOOKUP(E42,Crop!$X$3:$Y$70,2,FALSE)) -> 0 | G42: =IF(ISERROR(HLOOKUP($D$5,Kc!$C$3:$AI$57,paddy_rain!F42+3,FALSE)),0,HLOOKUP($D$5,Kc!$C$3:$AI$57,paddy_rain!F42+3,FALSE)) -> 0 | H42: 0 | I42: 0 | J42: 0 | K42: 0 | L42: 0 | M42: 0 | N42: 0 | O42: 0 | P42: 0 | Q42: 0 | R42: 0 | S42: 0 | T42: 0 | U42: 0 | V42: 0 | W42: 0 | X42: 0 | Y42: 0 | Z42: 0 | AA42: 0 | AB42: 0 | AC42: =IF(ISERROR((H42*G42+I42*G41+J42*G40+K42*G39+L42*G38+M42*G37+N42*G36+O42*G35+P42*G34+Q42*G33+R42*G32+S42*G31+T42*G30+U42*G29+V42*G28+W42*G27+X42*G78+Y42*G77+Z42*G76+AA42*G75)/AB42),0,(H42*G42+I42*G41+J42*G40+K42*G39+L42*G38+M42*G37+N42*G36+O42*G35+P42*G34+Q42*G33+R42*G32+S42*G31+T42*G30+U42*G29+V42*G28+W42*G27+X42*G78+Y42*G77+Z42*G76+AA42*G75)/AB42) -> 0 | AD42: =VLOOKUP($D$7,ETo!$B$4:$P$88,MONTH(D42)+2,FALSE)/4 ->  | AG42: 0 | AH42: 0 | AJ42: =VLOOKUP(MONTH(D42),[0]!rainforpaddy,4)/1000*AB42*1600*7 -> 
B43: 2009-02-21 | C43: 2009-02-27 | D43: 2009-02-27 | E43: 17 | F43: =IF(ISERROR(VLOOKUP(E43,Crop!$X$3:$Y$70,2,FALSE)),0,VLOOKUP(E43,Crop!$X$3:$Y$70,2,FALSE)) -> 0 | G43: =IF(ISERROR(HLOOKUP($D$5,Kc!$C$3:$AI$57,paddy_rain!F43+3,FALSE)),0,HLOOKUP($D$5,Kc!$C$3:$AI$57,paddy_rain!F43+3,FALSE)) -> 0 | H43: 0 | I43: 0 | J43: 0 | K43: 0 | L43: 0 | M43: 0 | N43: 0 | O43: 0 | P43: 0 | Q43: 0 | R43: 0 | S43: 0 | T43: 0 | U43: 0 | V43: 0 | W43: 0 | X43: 0 | Y43: 0 | Z43: 0 | AA43: 0 | AB43: 0 | AC43: =IF(ISERROR((H43*G43+I43*G42+J43*G41+K43*G40+L43*G39+M43*G38+N43*G37+O43*G36+P43*G35+Q43*G34+R43*G33+S43*G32+T43*G31+U43*G30+V43*G29+W43*G28+X43*G27+Y43*G78+Z43*G77+AA43*G76)/AB43),0,(H43*G43+I43*G42+J43*G41+K43*G40+L43*G39+M43*G38+N43*G37+O43*G36+P43*G35+Q43*G34+R43*G33+S43*G32+T43*G31+U43*G30+V43*G29+W43*G28+X43*G27+Y43*G78+Z43*G77+AA43*G76)/AB43) -> 0 | AD43: =VLOOKUP($D$7,ETo!$B$4:$P$88,MONTH(D43)+2,FALSE)/4 ->  | AG43: 0 | AH43: 0 | AJ43: =VLOOKUP(MONTH(D43),[0]!rainforpaddy,4)/1000*AB43*1600*7 -> 
B44: 2009-02-28 | C44: 2009-03-06 | D44: 2009-03-06 | E44: 18 | F44: =IF(ISERROR(VLOOKUP(E44,Crop!$X$3:$Y$70,2,FALSE)),0,VLOOKUP(E44,Crop!$X$3:$Y$70,2,FALSE)) -> 0 | G44: =IF(ISERROR(HLOOKUP($D$5,Kc!$C$3:$AI$57,paddy_rain!F44+3,FALSE)),0,HLOOKUP($D$5,Kc!$C$3:$AI$57,paddy_rain!F44+3,FALSE)) -> 0 | H44: 0 | I44: 0 | J44: 0 | K44: 0 | L44: 0 | M44: 0 | N44: 0 | O44: 0 | P44: 0 | Q44: 0 | R44: 0 | S44: 0 | T44: 0 | U44: 0 | V44: 0 | W44: 0 | X44: 0 | Y44: 0 | Z44: 0 | AA44: 0 | AB44: 0 | AC44: =IF(ISERROR((H44*G44+I44*G43+J44*G42+K44*G41+L44*G40+M44*G39+N44*G38+O44*G37+P44*G36+Q44*G35+R44*G34+S44*G33+T44*G32+U44*G31+V44*G30+W44*G29+X44*G28+Y44*G27+Z44*G78+AA44*G77)/AB44),0,(H44*G44+I44*G43+J44*G42+K44*G41+L44*G40+M44*G39+N44*G38+O44*G37+P44*G36+Q44*G35+R44*G34+S44*G33+T44*G32+U44*G31+V44*G30+W44*G29+X44*G28+Y44*G27+Z44*G78+AA44*G77)/AB44) -> 0 | AD44: =VLOOKUP($D$7,ETo!$B$4:$P$88,MONTH(D44)+2,FALSE)/4 ->  | AG44: 0 | AH44: 0 | AJ44: =VLOOKUP(MONTH(D44),[0]!rainforpaddy,4)/1000*AB44*1600*7 -> 
B45: 2009-03-07 | C45: 2009-03-13 | D45: 2009-03-13 | E45: 19 | F45: =IF(ISERROR(VLOOKUP(E45,Crop!$X$3:$Y$70,2,FALSE)),0,VLOOKUP(E45,Crop!$X$3:$Y$70,2,FALSE)) -> 0 | G45: =IF(ISERROR(HLOOKUP($D$5,Kc!$C$3:$AI$57,paddy_rain!F45+3,FALSE)),0,HLOOKUP($D$5,Kc!$C$3:$AI$57,paddy_rain!F45+3,FALSE)) -> 0 | H45: 0 | I45: 0 | J45: 0 | K45: 0 | L45: 0 | M45: 0 | N45: 0 | O45: 0 | P45: 0 | Q45: 0 | R45: 0 | S45: 0 | T45: 0 | U45: 0 | V45: 0 | W45: 0 | X45: 0 | Y45: 0 | Z45: 0 | AA45: 0 | AB45: 0 | AC45: =IF(ISERROR((H45*G45+I45*G44+J45*G43+K45*G42+L45*G41+M45*G40+N45*G39+O45*G38+P45*G37+Q45*G36+R45*G35+S45*G34+T45*G33+U45*G32+V45*G31+W45*G30+X45*G29+Y45*G28+Z45*G27+AA45*G78)/AB45),0,(H45*G45+I45*G44+J45*G43+K45*G42+L45*G41+M45*G40+N45*G39+O45*G38+P45*G37+Q45*G36+R45*G35+S45*G34+T45*G33+U45*G32+V45*G31+W45*G30+X45*G29+Y45*G28+Z45*G27+AA45*G78)/AB45) -> 0 | AD45: =VLOOKUP($D$7,ETo!$B$4:$P$88,MONTH(D45)+2,FALSE)/4 ->  | AG45: 0 | AH45: 0 | AJ45: =VLOOKUP(MONTH(D45),[0]!rainforpaddy,4)/1000*AB45*1600*7 -> 
B46: 2009-03-14 | C46: 2009-03-20 | D46: 2009-03-20 | E46: 20 | F46: =IF(ISERROR(VLOOKUP(E46,Crop!$X$3:$Y$70,2,FALSE)),0,VLOOKUP(E46,Crop!$X$3:$Y$70,2,FALSE)) -> 0 | G46: =IF(ISERROR(HLOOKUP($D$5,Kc!$C$3:$AI$57,paddy_rain!F46+3,FALSE)),0,HLOOKUP($D$5,Kc!$C$3:$AI$57,paddy_rain!F46+3,FALSE)) -> 0 | H46: 0 | I46: 0 | J46: 0 | K46: 0 | L46: 0 | M46: 0 | N46: 0 | O46: 0 | P46: 0 | Q46: 0 | R46: 0 | S46: 0 | T46: 0 | U46: 0 | V46: 0 | W46: 0 | X46: 0 | Y46: 0 | Z46: 0 | AA46: 0 | AB46: 0 | AC46: =IF(ISERROR((H46*G46+I46*G45+J46*G44+K46*G43+L46*G42+M46*G41+N46*G40+O46*G39+P46*G38+Q46*G37+R46*G36+S46*G35+T46*G34+U46*G33+V46*G32+W46*G31+X46*G30+Y46*G29+Z46*G28+AA46*G27)/AB46),0,(H46*G46+I46*G45+J46*G44+K46*G43+L46*G42+M46*G41+N46*G40+O46*G39+P46*G38+Q46*G37+R46*G36+S46*G35+T46*G34+U46*G33+V46*G32+W46*G31+X46*G30+Y46*G29+Z46*G28+AA46*G27)/AB46) -> 0 | AD46: =VLOOKUP($D$7,ETo!$B$4:$P$88,MONTH(D46)+2,FALSE)/4 ->  | AG46: 0 | AH46: 0 | AJ46: =VLOOKUP(MONTH(D46),[0]!rainforpaddy,4)/1000*AB46*1600*7 -> 
B47: 2009-03-21 | C47: 2009-03-27 | D47: 2009-03-27 | E47: 21 | F47: =IF(ISERROR(VLOOKUP(E47,Crop!$X$3:$Y$70,2,FALSE)),0,VLOOKUP(E47,Crop!$X$3:$Y$70,2,FALSE)) -> 0 | G47: =IF(ISERROR(HLOOKUP($D$5,Kc!$C$3:$AI$57,paddy_rain!F47+3,FALSE)),0,HLOOKUP($D$5,Kc!$C$3:$AI$57,paddy_rain!F47+3,FALSE)) -> 0 | H47: 0 | I47: 0 | J47: 0 | K47: =IF(J46>0,IF(K$26>$E$9,0,VLOOKUP(K$26,$F$3:$G$23,2,FALSE)),0) -> 0 | L47: 0 | M47: 0 | N47: 0 | O47: 0 | P47: 0 | Q47: 0 | R47: 0 | S47: 0 | T47: 0 | U47: =IF(T46>0,IF(U$26>$E$9,0,VLOOKUP(U$26,$F$3:$G$23,2,FALSE)),0) -> 0 | V47: 0 | W47: 0 | X47: 0 | Y47: 0 | Z47: 0 | AA47: 0 | AB47: 0 | AC47: =IF(ISERROR((H47*G47+I47*G46+J47*G45+K47*G44+L47*G43+M47*G42+N47*G41+O47*G40+P47*G39+Q47*G38+R47*G37+S47*G36+T47*G35+U47*G34+V47*G33+W47*G32+X47*G31+Y47*G30+Z47*G29+AA47*G28)/AB47),0,(H47*G47+I47*G46+J47*G45+K47*G44+L47*G43+M47*G42+N47*G41+O47*G40+P47*G39+Q47*G38+R47*G37+S47*G36+T47*G35+U47*G34+V47*G33+W47*G32+X47*G31+Y47*G30+Z47*G29+AA47*G28)/AB47) -> 0 | AD47: =VLOOKUP($D$7,ETo!$B$4:$P$88,MONTH(D47)+2,FALSE)/4 ->  | AG47: 0 | AH47: 0 | AJ47: =VLOOKUP(MONTH(D47),[0]!rainforpaddy,4)/1000*AB47*1600*7 -> 
B48: 2009-03-28 | C48: 2009-04-03 | D48: 2009-04-03 | E48: 22 | F48: =IF(ISERROR(VLOOKUP(E48,Crop!$X$3:$Y$70,2,FALSE)),0,VLOOKUP(E48,Crop!$X$3:$Y$70,2,FALSE)) -> 0 | G48: =IF(ISERROR(HLOOKUP($D$5,Kc!$C$3:$AI$57,paddy_rain!F48+3,FALSE)),0,HLOOKUP($D$5,Kc!$C$3:$AI$57,paddy_rain!F48+3,FALSE)) -> 0 | H48: 0 | I48: 0 | J48: 0 | K48: 0 | L48: 0 | M48: 0 | N48: 0 | O48: 0 | P48: 0 | Q48: 0 | R48: 0 | S48: 0 | T48: 0 | U48: 0 | V48: 0 | W48: 0 | X48: 0 | Y48: 0 | Z48: 0 | AA48: 0 | AB48: 0 | AC48: =IF(ISERROR((H48*G48+I48*G47+J48*G46+K48*G45+L48*G44+M48*G43+N48*G42+O48*G41+P48*G40+Q48*G39+R48*G38+S48*G37+T48*G36+U48*G35+V48*G34+W48*G33+X48*G32+Y48*G31+Z48*G30+AA48*G29)/AB48),0,(H48*G48+I48*G47+J48*G46+K48*G45+L48*G44+M48*G43+N48*G42+O48*G41+P48*G40+Q48*G39+R48*G38+S48*G37+T48*G36+U48*G35+V48*G34+W48*G33+X48*G32+Y48*G31+Z48*G30+AA48*G29)/AB48) -> 0 | AD48: =VLOOKUP($D$7,ETo!$B$4:$P$88,MONTH(D48)+2,FALSE)/4 ->  | AG48: 0 | AH48: 0 | AJ48: =VLOOKUP(MONTH(D48),[0]!rainforpaddy,4)/1000*AB48*1600*7 -> 
B49: 2009-04-04 | C49: 2009-04-10 | D49: 2009-04-10 | E49: 23 | F49: =IF(ISERROR(VLOOKUP(E49,Crop!$X$3:$Y$70,2,FALSE)),0,VLOOKUP(E49,Crop!$X$3:$Y$70,2,FALSE)) -> 0 | G49: =IF(ISERROR(HLOOKUP($D$5,Kc!$C$3:$AI$57,paddy_rain!F49+3,FALSE)),0,HLOOKUP($D$5,Kc!$C$3:$AI$57,paddy_rain!F49+3,FALSE)) -> 0 | H49: 0 | I49: 0 | J49: 0 | K49: 0 | L49: 0 | M49: 0 | N49: 0 | O49: 0 | P49: 0 | Q49: 0 | R49: 0 | S49: 0 | T49: 0 | U49: 0 | V49: 0 | W49: 0 | X49: 0 | Y49: 0 | Z49: 0 | AA49: 0 | AB49: 0 | AC49: 0 | AD49: =VLOOKUP($D$7,ETo!$B$4:$P$88,MONTH(D49)+2,FALSE)/4 ->  | AG49: 0 | AH49: 0 | AJ49: =VLOOKUP(MONTH(D49),[0]!rainforpaddy,4)/1000*AB49*1600*7 -> 
B50: 2009-04-11 | C50: 2009-04-17 | D50: 2009-04-17 | E50: 24 | F50: =IF(ISERROR(VLOOKUP(E50,Crop!$X$3:$Y$70,2,FALSE)),0,VLOOKUP(E50,Crop!$X$3:$Y$70,2,FALSE)) -> 0 | G50: =IF(ISERROR(HLOOKUP($D$5,Kc!$C$3:$AI$57,paddy_rain!F50+3,FALSE)),0,HLOOKUP($D$5,Kc!$C$3:$AI$57,paddy_rain!F50+3,FALSE)) -> 0 | H50: 0 | I50: 0 | J50: 0 | K50: 0 | L50: 0 | M50: 0 | N50: 0 | O50: 0 | P50: 0 | Q50: 0 | R50: 0 | S50: 0 | T50: 0 | U50: 0 | V50: 0 | W50: 0 | X50: 0 | Y50: 0 | Z50: 0 | AA50: 0 | AB50: 0 | AC50: 0 | AD50: =VLOOKUP($D$7,ETo!$B$4:$P$88,MONTH(D50)+2,FALSE)/4 ->  | AG50: 0 | AH50: 0 | AJ50: =VLOOKUP(MONTH(D50),[0]!rainforpaddy,4)/1000*AB50*1600*7 -> 
B51: 2009-04-18 | C51: 2009-04-24 | D51: 2009-04-24 | E51: 25 | F51: =IF(ISERROR(VLOOKUP(E51,Crop!$X$3:$Y$70,2,FALSE)),0,VLOOKUP(E51,Crop!$X$3:$Y$70,2,FALSE)) -> 0 | G51: =IF(ISERROR(HLOOKUP($D$5,Kc!$C$3:$AI$57,paddy_rain!F51+3,FALSE)),0,HLOOKUP($D$5,Kc!$C$3:$AI$57,paddy_rain!F51+3,FALSE)) -> 0 | H51: 0 | I51: 0 | J51: 0 | K51: 0 | L51: 0 | M51: 0 | N51: 0 | O51: 0 | P51: 0 | Q51: 0 | R51: 0 | S51: 0 | T51: 0 | U51: 0 | V51: 0 | W51: 0 | X51: 0 | Y51: 0 | Z51: 0 | AA51: 0 | AB51: 0 | AC51: 0 | AD51: =VLOOKUP($D$7,ETo!$B$4:$P$88,MONTH(D51)+2,FALSE)/4 ->  | AG51: 0 | AH51: 0 | AJ51: =VLOOKUP(MONTH(D51),[0]!rainforpaddy,4)/1000*AB51*1600*7 -> 
B52: 2009-04-25 | C52: 2009-05-01 | D52: 2009-05-01 | E52: 26 | F52: =IF(ISERROR(VLOOKUP(E52,Crop!$X$3:$Y$70,2,FALSE)),0,VLOOKUP(E52,Crop!$X$3:$Y$70,2,FALSE)) -> 0 | G52: =IF(ISERROR(HLOOKUP($D$5,Kc!$C$3:$AI$57,paddy_rain!F52+3,FALSE)),0,HLOOKUP($D$5,Kc!$C$3:$AI$57,paddy_rain!F52+3,FALSE)) -> 0 | H52: 0 | I52: 0 | J52: 0 | K52: 0 | L52: 0 | M52: 0 | N52: 0 | O52: 0 | P52: 0 | Q52: 0 | R52: 0 | S52: 0 | T52: 0 | U52: 0 | V52: 0 | W52: 0 | X52: 0 | Y52: 0 | Z52: 0 | AA52: 0 | AB52: 0 | AC52: 0 | AD52: =VLOOKUP($D$7,ETo!$B$4:$P$88,MONTH(D52)+2,FALSE)/4 ->  | AG52: 0 | AH52: 0 | AJ52: =VLOOKUP(MONTH(D52),[0]!rainforpaddy,4)/1000*AB52*1600*7 -> 
B53: 2009-05-02 | C53: 2009-05-08 | D53: 2009-05-08 | E53: 27 | F53: =IF(ISERROR(VLOOKUP(E53,Crop!$X$3:$Y$70,2,FALSE)),0,VLOOKUP(E53,Crop!$X$3:$Y$70,2,FALSE)) -> 0 | G53: =IF(ISERROR(HLOOKUP($D$5,Kc!$C$3:$AI$57,paddy_rain!F53+3,FALSE)),0,HLOOKUP($D$5,Kc!$C$3:$AI$57,paddy_rain!F53+3,FALSE)) -> 0 | H53: 0 | I53: 0 | J53: 0 | K53: 0 | L53: 0 | M53: 0 | N53: 0 | O53: 0 | P53: 0 | Q53: 0 | R53: 0 | S53: 0 | T53: 0 | U53: 0 | V53: 0 | W53: 0 | X53: 0 | Y53: 0 | Z53: 0 | AA53: 0 | AB53: 0 | AC53: 0 | AD53: =VLOOKUP($D$7,ETo!$B$4:$P$88,MONTH(D53)+2,FALSE)/4 ->  | AG53: 0 | AH53: 0 | AJ53: =VLOOKUP(MONTH(D53),[0]!rainforpaddy,4)/1000*AB53*1600*7 -> 
B54: 2009-05-09 | C54: 2009-05-15 | D54: 2009-05-15 | E54: 28 | F54: =IF(ISERROR(VLOOKUP(E54,Crop!$X$3:$Y$70,2,FALSE)),0,VLOOKUP(E54,Crop!$X$3:$Y$70,2,FALSE)) -> 0 | G54: =IF(ISERROR(HLOOKUP($D$5,Kc!$C$3:$AI$57,paddy_rain!F54+3,FALSE)),0,HLOOKUP($D$5,Kc!$C$3:$AI$57,paddy_rain!F54+3,FALSE)) -> 0 | H54: 0 | I54: 0 | J54: 0 | K54: 0 | L54: 0 | M54: 0 | N54: 0 | O54: 0 | P54: 0 | Q54: 0 | R54: 0 | S54: 0 | T54: 0 | U54: 0 | V54: 0 | W54: 0 | X54: 0 | Y54: 0 | Z54: 0 | AA54: 0 | AB54: 0 | AC54: 0 | AD54: =VLOOKUP($D$7,ETo!$B$4:$P$88,MONTH(D54)+2,FALSE)/4 ->  | AG54: 0 | AH54: 0 | AJ54: =VLOOKUP(MONTH(D54),[0]!rainforpaddy,4)/1000*AB54*1600*7 -> 
B55: 2009-05-16 | C55: 2009-05-22 | D55: 2009-05-22 | E55: 29 | F55: =IF(ISERROR(VLOOKUP(E55,Crop!$X$3:$Y$70,2,FALSE)),0,VLOOKUP(E55,Crop!$X$3:$Y$70,2,FALSE)) -> 0 | G55: =IF(ISERROR(HLOOKUP($D$5,Kc!$C$3:$AI$57,paddy_rain!F55+3,FALSE)),0,HLOOKUP($D$5,Kc!$C$3:$AI$57,paddy_rain!F55+3,FALSE)) -> 0 | H55: 0 | I55: 0 | J55: 0 | K55: 0 | L55: 0 | M55: 0 | N55: 0 | O55: 0 | P55: 0 | Q55: 0 | R55: 0 | S55: 0 | T55: 0 | U55: 0 | V55: 0 | W55: 0 | X55: 0 | Y55: 0 | Z55: 0 | AA55: 0 | AB55: 0 | AC55: 0 | AD55: =VLOOKUP($D$7,ETo!$B$4:$P$88,MONTH(D55)+2,FALSE)/4 ->  | AG55: 0 | AH55: 0 | AJ55: =VLOOKUP(MONTH(D55),[0]!rainforpaddy,4)/1000*AB55*1600*7 -> 
B56: 2009-05-23 | C56: 2009-05-29 | D56: 2009-05-29 | E56: 30 | F56: =IF(ISERROR(VLOOKUP(E56,Crop!$X$3:$Y$70,2,FALSE)),0,VLOOKUP(E56,Crop!$X$3:$Y$70,2,FALSE)) -> 0 | G56: =IF(ISERROR(HLOOKUP($D$5,Kc!$C$3:$AI$57,paddy_rain!F56+3,FALSE)),0,HLOOKUP($D$5,Kc!$C$3:$AI$57,paddy_rain!F56+3,FALSE)) -> 0 | H56: 0 | I56: 0 | J56: 0 | K56: 0 | L56: 0 | M56: 0 | N56: 0 | O56: 0 | P56: 0 | Q56: 0 | R56: 0 | S56: 0 | T56: 0 | U56: 0 | V56: 0 | W56: 0 | X56: 0 | Y56: 0 | Z56: 0 | AA56: 0 | AB56: 0 | AC56: 0 | AD56: =VLOOKUP($D$7,ETo!$B$4:$P$88,MONTH(D56)+2,FALSE)/4 ->  | AG56: 0 | AH56: 0 | AJ56: =VLOOKUP(MONTH(D56),[0]!rainforpaddy,4)/1000*AB56*1600*7 -> 
B57: 2009-05-30 | C57: 2009-06-05 | D57: 2009-06-05 | E57: 31 | F57: =IF(ISERROR(VLOOKUP(E57,Crop!$X$3:$Y$70,2,FALSE)),0,VLOOKUP(E57,Crop!$X$3:$Y$70,2,FALSE)) -> 0 | G57: =IF(ISERROR(HLOOKUP($D$5,Kc!$C$3:$AI$57,paddy_rain!F57+3,FALSE)),0,HLOOKUP($D$5,Kc!$C$3:$AI$57,paddy_rain!F57+3,FALSE)) -> 0 | H57: 0 | I57: 0 | J57: 0 | K57: =IF(J56>0,IF(K$26>$E$9,0,VLOOKUP(K$26,$F$3:$G$23,2,FALSE)),0) -> 0 | L57: 0 | M57: 0 | N57: 0 | O57: 0 | P57: 0 | Q57: 0 | R57: 0 | S57: 0 | T57: 0 | U57: =IF(T56>0,IF(U$26>$E$9,0,VLOOKUP(U$26,$F$3:$G$23,2,FALSE)),0) -> 0 | V57: 0 | W57: 0 | X57: 0 | Y57: 0 | Z57: 0 | AA57: 0 | AB57: 0 | AC57: 0 | AD57: =VLOOKUP($D$7,ETo!$B$4:$P$88,MONTH(D57)+2,FALSE)/4 ->  | AG57: 0 | AH57: 0 | AJ57: =VLOOKUP(MONTH(D57),[0]!rainforpaddy,4)/1000*AB57*1600*7 -> 
B58: 2009-06-06 | C58: 2009-06-12 | D58: 2009-06-12 | E58: 32 | F58: =IF(ISERROR(VLOOKUP(E58,Crop!$X$3:$Y$70,2,FALSE)),0,VLOOKUP(E58,Crop!$X$3:$Y$70,2,FALSE)) -> 0 | G58: =IF(ISERROR(HLOOKUP($D$5,Kc!$C$3:$AI$57,paddy_rain!F58+3,FALSE)),0,HLOOKUP($D$5,Kc!$C$3:$AI$57,paddy_rain!F58+3,FALSE)) -> 0 | H58: 0 | I58: 0 | J58: 0 | K58: 0 | L58: 0 | M58: 0 | N58: 0 | O58: 0 | P58: 0 | Q58: 0 | R58: 0 | S58: 0 | T58: 0 | U58: 0 | V58: 0 | W58: 0 | X58: 0 | Y58: 0 | Z58: 0 | AA58: 0 | AB58: 0 | AC58: 0 | AD58: =VLOOKUP($D$7,ETo!$B$4:$P$88,MONTH(D58)+2,FALSE)/4 ->  | AG58: 0 | AH58: 0 | AJ58: =VLOOKUP(MONTH(D58),[0]!rainforpaddy,4)/1000*AB58*1600*7 -> 
B59: 2009-06-13 | C59: 2009-06-19 | D59: =+C59 -> 2009-06-19 | E59: 33 | F59: =IF(ISERROR(VLOOKUP(E59,Crop!$X$3:$Y$70,2,FALSE)),0,VLOOKUP(E59,Crop!$X$3:$Y$70,2,FALSE)) -> 1 | G59: =IF(ISERROR(HLOOKUP($D$5,Kc!$C$3:$AI$57,paddy_rain!F59+3,FALSE)),0,HLOOKUP($D$5,Kc!$C$3:$AI$57,paddy_rain!F59+3,FALSE)) -> 1.03 | H59: 0 | I59: 0 | J59: 0 | K59: 0 | L59: 0 | M59: 0 | N59: 0 | O59: 0 | P59: 0 | Q59: 0 | R59: 0 | S59: 0 | T59: 0 | U59: 0 | V59: 0 | W59: 0 | X59: 0 | Y59: 0 | Z59: 0 | AA59: 0 | AB59: 0 | AC59: 0 | AD59: =VLOOKUP($D$7,ETo!$B$4:$P$88,MONTH(D59)+2,FALSE)/4 ->  | AE59: =IF(AC59*AD59=0,0,(AC59*AD59)+$E$10) ->  | AF59: =AE59*AB59*1.6 ->  | AG59: 0 | AH59: 0 | AI59: =AF59+AH59 ->  | AJ59: =VLOOKUP(MONTH(D59),[0]!rainforpaddy,4)/1000*AB59*1600*7 -> 
B60: =C59+1 -> 2009-06-20 | C60: =B60+6 -> 2009-06-26 | D60: 2009-06-26 | E60: 34 | F60: =IF(ISERROR(VLOOKUP(E60,Crop!$X$3:$Y$70,2,FALSE)),0,VLOOKUP(E60,Crop!$X$3:$Y$70,2,FALSE)) -> 2 | G60: =IF(ISERROR(HLOOKUP($D$5,Kc!$C$3:$AI$57,paddy_rain!F60+3,FALSE)),0,HLOOKUP($D$5,Kc!$C$3:$AI$57,paddy_rain!F60+3,FALSE)) -> 1.07 | H60: 0 | I60: 0 | J60: 0 | K60: 0 | L60: 0 | M60: 0 | N60: 0 | O60: 0 | P60: 0 | Q60: 0 | R60: 0 | S60: 0 | T60: 0 | U60: 0 | V60: 0 | W60: 0 | X60: 0 | Y60: 0 | Z60: 0 | AA60: 0 | AB60: 0 | AC60: 0 | AD60: =VLOOKUP($D$7,ETo!$B$4:$P$88,MONTH(D60)+2,FALSE)/4 ->  | AG60: 0 | AH60: 0 | AJ60: =VLOOKUP(MONTH(D60),[0]!rainforpaddy,4)/1000*AB60*1600*7 -> 
B61: 2009-06-27 | C61: 2009-07-03 | D61: 2009-07-03 | E61: 35 | F61: =IF(ISERROR(VLOOKUP(E61,Crop!$X$3:$Y$70,2,FALSE)),0,VLOOKUP(E61,Crop!$X$3:$Y$70,2,FALSE)) -> 3 | G61: =IF(ISERROR(HLOOKUP($D$5,Kc!$C$3:$AI$57,paddy_rain!F61+3,FALSE)),0,HLOOKUP($D$5,Kc!$C$3:$AI$57,paddy_rain!F61+3,FALSE)) -> 1.12 | H61: 0 | I61: 0 | J61: 0 | K61: 0 | L61: 0 | M61: 0 | N61: 0 | O61: 0 | P61: 0 | Q61: 0 | R61: 0 | S61: 0 | T61: 0 | U61: 0 | V61: 0 | W61: 0 | X61: 0 | Y61: 0 | Z61: 0 | AA61: 0 | AB61: 0 | AC61: 0 | AD61: =VLOOKUP($D$7,ETo!$B$4:$P$88,MONTH(D61)+2,FALSE)/4 ->  | AG61: 0 | AH61: 0 | AJ61: =VLOOKUP(MONTH(D61),[0]!rainforpaddy,4)/1000*AB61*1600*7 -> 
B62: 2009-07-04 | C62: 2009-07-10 | D62: 2009-07-10 | E62: 36 | F62: =IF(ISERROR(VLOOKUP(E62,Crop!$X$3:$Y$70,2,FALSE)),0,VLOOKUP(E62,Crop!$X$3:$Y$70,2,FALSE)) -> 4 | G62: =IF(ISERROR(HLOOKUP($D$5,Kc!$C$3:$AI$57,paddy_rain!F62+3,FALSE)),0,HLOOKUP($D$5,Kc!$C$3:$AI$57,paddy_rain!F62+3,FALSE)) -> 1.29 | H62: 0 | I62: 0 | J62: 0 | K62: 0 | L62: 0 | M62: 0 | N62: 0 | O62: 0 | P62: 0 | Q62: 0 | R62: 0 | S62: 0 | T62: 0 | U62: 0 | V62: 0 | W62: 0 | X62: 0 | Y62: 0 | Z62: 0 | AA62: 0 | AB62: 0 | AC62: 0 | AD62: =VLOOKUP($D$7,ETo!$B$4:$P$88,MONTH(D62)+2,FALSE)/4 ->  | AG62: 0 | AH62: 0 | AJ62: =VLOOKUP(MONTH(D62),[0]!rainforpaddy,4)/1000*AB62*1600*7 -> 
B63: 2009-07-11 | C63: 2009-07-17 | D63: 2009-07-17 | E63: 37 | F63: =IF(ISERROR(VLOOKUP(E63,Crop!$X$3:$Y$70,2,FALSE)),0,VLOOKUP(E63,Crop!$X$3:$Y$70,2,FALSE)) -> 5 | G63: =IF(ISERROR(HLOOKUP($D$5,Kc!$C$3:$AI$57,paddy_rain!F63+3,FALSE)),0,HLOOKUP($D$5,Kc!$C$3:$AI$57,paddy_rain!F63+3,FALSE)) -> 1.38 | H63: 0 | I63: 0 | J63: 0 | K63: 0 | L63: 0 | M63: 0 | N63: 0 | O63: 0 | P63: 0 | Q63: 0 | R63: 0 | S63: 0 | T63: 0 | U63: 0 | V63: 0 | W63: 0 | X63: 0 | Y63: 0 | Z63: 0 | AA63: 0 | AB63: 0 | AC63: 0 | AD63: =VLOOKUP($D$7,ETo!$B$4:$P$88,MONTH(D63)+2,FALSE)/4 ->  | AG63: 0 | AH63: 0 | AJ63: =VLOOKUP(MONTH(D63),[0]!rainforpaddy,4)/1000*AB63*1600*7 -> 
B64: 2009-07-18 | C64: 2009-07-24 | D64: 2009-07-24 | E64: 38 | F64: =IF(ISERROR(VLOOKUP(E64,Crop!$X$3:$Y$70,2,FALSE)),0,VLOOKUP(E64,Crop!$X$3:$Y$70,2,FALSE)) -> 6 | G64: =IF(ISERROR(HLOOKUP($D$5,Kc!$C$3:$AI$57,paddy_rain!F64+3,FALSE)),0,HLOOKUP($D$5,Kc!$C$3:$AI$57,paddy_rain!F64+3,FALSE)) -> 1.45 | H64: 0 | I64: 0 | J64: 0 | K64: 0 | L64: 0 | M64: 0 | N64: 0 | O64: 0 | P64: 0 | Q64: 0 | R64: 0 | S64: 0 | T64: 0 | U64: 0 | V64: 0 | W64: 0 | X64: 0 | Y64: 0 | Z64: 0 | AA64: 0 | AB64: 0 | AC64: 0 | AD64: =VLOOKUP($D$7,ETo!$B$4:$P$88,MONTH(D64)+2,FALSE)/4 ->  | AG64: 0 | AH64: 0 | AJ64: =VLOOKUP(MONTH(D64),[0]!rainforpaddy,4)/1000*AB64*1600*7 -> 
B65: 2009-07-25 | C65: 2009-07-31 | D65: 2009-07-31 | E65: 39 | F65: =IF(ISERROR(VLOOKUP(E65,Crop!$X$3:$Y$70,2,FALSE)),0,VLOOKUP(E65,Crop!$X$3:$Y$70,2,FALSE)) -> 7 | G65: =IF(ISERROR(HLOOKUP($D$5,Kc!$C$3:$AI$57,paddy_rain!F65+3,FALSE)),0,HLOOKUP($D$5,Kc!$C$3:$AI$57,paddy_rain!F65+3,FALSE)) -> 1.5 | H65: 0 | I65: 0 | J65: 0 | K65: 0 | L65: 0 | M65: 0 | N65: 0 | O65: 0 | P65: 0 | Q65: 0 | R65: 0 | S65: 0 | T65: 0 | U65: 0 | V65: 0 | W65: 0 | X65: 0 | Y65: 0 | Z65: 0 | AA65: 0 | AB65: 0 | AC65: 0 | AD65: =VLOOKUP($D$7,ETo!$B$4:$P$88,MONTH(D65)+2,FALSE)/4 ->  | AG65: 0 | AH65: 0 | AJ65: =VLOOKUP(MONTH(D65),[0]!rainforpaddy,4)/1000*AB65*1600*7 -> 
B66: 2009-08-01 | C66: 2009-08-07 | D66: 2009-08-07 | E66: 40 | F66: =IF(ISERROR(VLOOKUP(E66,Crop!$X$3:$Y$70,2,FALSE)),0,VLOOKUP(E66,Crop!$X$3:$Y$70,2,FALSE)) -> 8 | G66: =IF(ISERROR(HLOOKUP($D$5,Kc!$C$3:$AI$57,paddy_rain!F66+3,FALSE)),0,HLOOKUP($D$5,Kc!$C$3:$AI$57,paddy_rain!F66+3,FALSE)) -> 1.48 | H66: 0 | I66: 0 | J66: 0 | K66: 0 | L66: 0 | M66: 0 | N66: 0 | O66: 0 | P66: 0 | Q66: 0 | R66: 0 | S66: 0 | T66: 0 | U66: 0 | V66: 0 | W66: 0 | X66: 0 | Y66: 0 | Z66: 0 | AA66: 0 | AB66: 0 | AC66: 0 | AD66: =VLOOKUP($D$7,ETo!$B$4:$P$88,MONTH(D66)+2,FALSE)/4 ->  | AG66: 0 | AH66: 0 | AJ66: =VLOOKUP(MONTH(D66),[0]!rainforpaddy,4)/1000*AB66*1600*7 -> 
B67: 2009-08-08 | C67: 2009-08-14 | D67: 2009-08-14 | E67: 41 | F67: =IF(ISERROR(VLOOKUP(E67,Crop!$X$3:$Y$70,2,FALSE)),0,VLOOKUP(E67,Crop!$X$3:$Y$70,2,FALSE)) -> 9 | G67: =IF(ISERROR(HLOOKUP($D$5,Kc!$C$3:$AI$57,paddy_rain!F67+3,FALSE)),0,HLOOKUP($D$5,Kc!$C$3:$AI$57,paddy_rain!F67+3,FALSE)) -> 1.42 | H67: 0 | I67: 0 | J67: 0 | K67: =IF(J66>0,IF(K$26>$E$9,0,VLOOKUP(K$26,$F$3:$G$23,2,FALSE)),0) -> 0 | L67: 0 | M67: 0 | N67: 0 | O67: 0 | P67: 0 | Q67: 0 | R67: 0 | S67: 0 | T67: 0 | U67: =IF(T66>0,IF(U$26>$E$9,0,VLOOKUP(U$26,$F$3:$G$23,2,FALSE)),0) -> 0 | V67: 0 | W67: 0 | X67: 0 | Y67: 0 | Z67: 0 | AA67: 0 | AB67: 0 | AC67: 0 | AD67: =VLOOKUP($D$7,ETo!$B$4:$P$88,MONTH(D67)+2,FALSE)/4 ->  | AG67: 0 | AH67: 0 | AJ67: =VLOOKUP(MONTH(D67),[0]!rainforpaddy,4)/1000*AB67*1600*7 -> 
B68: 2009-08-15 | C68: 2009-08-21 | D68: 2009-08-21 | E68: 42 | F68: =IF(ISERROR(VLOOKUP(E68,Crop!$X$3:$Y$70,2,FALSE)),0,VLOOKUP(E68,Crop!$X$3:$Y$70,2,FALSE)) -> 10 | G68: =IF(ISERROR(HLOOKUP($D$5,Kc!$C$3:$AI$57,paddy_rain!F68+3,FALSE)),0,HLOOKUP($D$5,Kc!$C$3:$AI$57,paddy_rain!F68+3,FALSE)) -> 1.34 | H68: 0 | I68: 0 | J68: 0 | K68: 0 | L68: 0 | M68: 0 | N68: 0 | O68: 0 | P68: 0 | Q68: 0 | R68: 0 | S68: 0 | T68: 0 | U68: 0 | V68: 0 | W68: 0 | X68: 0 | Y68: 0 | Z68: 0 | AA68: 0 | AB68: 0 | AC68: 0 | AD68: =VLOOKUP($D$7,ETo!$B$4:$P$88,MONTH(D68)+2,FALSE)/4 ->  | AG68: 0 | AH68: 0 | AJ68: =VLOOKUP(MONTH(D68),[0]!rainforpaddy,4)/1000*AB68*1600*7 -> 
B69: 2009-08-22 | C69: 2009-08-28 | D69: 2009-08-28 | E69: 43 | F69: =IF(ISERROR(VLOOKUP(E69,Crop!$X$3:$Y$70,2,FALSE)),0,VLOOKUP(E69,Crop!$X$3:$Y$70,2,FALSE)) -> 11 | G69: =IF(ISERROR(HLOOKUP($D$5,Kc!$C$3:$AI$57,paddy_rain!F69+3,FALSE)),0,HLOOKUP($D$5,Kc!$C$3:$AI$57,paddy_rain!F69+3,FALSE)) -> 1.23 | H69: 0 | I69: 0 | J69: 0 | K69: 0 | L69: 0 | M69: 0 | N69: 0 | O69: 0 | P69: 0 | Q69: 0 | R69: 0 | S69: 0 | T69: 0 | U69: 0 | V69: 0 | W69: 0 | X69: 0 | Y69: 0 | Z69: 0 | AA69: 0 | AB69: 0 | AC69: 0 | AD69: =VLOOKUP($D$7,ETo!$B$4:$P$88,MONTH(D69)+2,FALSE)/4 ->  | AG69: 0 | AH69: 0 | AJ69: =VLOOKUP(MONTH(D69),[0]!rainforpaddy,4)/1000*AB69*1600*7 -> 
B70: 2009-08-29 | C70: 2009-09-04 | D70: 2009-09-04 | E70: 44 | F70: =IF(ISERROR(VLOOKUP(E70,Crop!$X$3:$Y$70,2,FALSE)),0,VLOOKUP(E70,Crop!$X$3:$Y$70,2,FALSE)) -> 12 | G70: =IF(ISERROR(HLOOKUP($D$5,Kc!$C$3:$AI$57,paddy_rain!F70+3,FALSE)),0,HLOOKUP($D$5,Kc!$C$3:$AI$57,paddy_rain!F70+3,FALSE)) -> 0.94 | H70: 0 | I70: 0 | J70: 0 | K70: 0 | L70: 0 | M70: 0 | N70: 0 | O70: 0 | P70: 0 | Q70: 0 | R70: 0 | S70: 0 | T70: 0 | U70: 0 | V70: 0 | W70: 0 | X70: 0 | Y70: 0 | Z70: 0 | AA70: 0 | AB70: 0 | AC70: 0 | AD70: =VLOOKUP($D$7,ETo!$B$4:$P$88,MONTH(D70)+2,FALSE)/4 ->  | AG70: 0 | AH70: 0 | AJ70: =VLOOKUP(MONTH(D70),[0]!rainforpaddy,4)/1000*AB70*1600*7 -> 
B71: 2009-09-05 | C71: 2009-09-11 | D71: 2009-09-11 | E71: 45 | F71: =IF(ISERROR(VLOOKUP(E71,Crop!$X$3:$Y$70,2,FALSE)),0,VLOOKUP(E71,Crop!$X$3:$Y$70,2,FALSE)) -> 13 | G71: =IF(ISERROR(HLOOKUP($D$5,Kc!$C$3:$AI$57,paddy_rain!F71+3,FALSE)),0,HLOOKUP($D$5,Kc!$C$3:$AI$57,paddy_rain!F71+3,FALSE)) -> 0.86 | H71: 0 | I71: 0 | J71: 0 | K71: 0 | L71: 0 | M71: 0 | N71: 0 | O71: 0 | P71: 0 | Q71: 0 | R71: 0 | S71: 0 | T71: 0 | U71: 0 | V71: 0 | W71: 0 | X71: 0 | Y71: 0 | Z71: 0 | AA71: 0 | AB71: 0 | AC71: 0 | AD71: =VLOOKUP($D$7,ETo!$B$4:$P$88,MONTH(D71)+2,FALSE)/4 ->  | AG71: 0 | AH71: 0 | AJ71: =VLOOKUP(MONTH(D71),[0]!rainforpaddy,4)/1000*AB71*1600*7 -> 
B72: 2009-09-12 | C72: 2009-09-18 | D72: 2009-09-18 | E72: 46 | F72: =IF(ISERROR(VLOOKUP(E72,Crop!$X$3:$Y$70,2,FALSE)),0,VLOOKUP(E72,Crop!$X$3:$Y$70,2,FALSE)) -> 0 | G72: =IF(ISERROR(HLOOKUP($D$5,Kc!$C$3:$AI$57,paddy_rain!F72+3,FALSE)),0,HLOOKUP($D$5,Kc!$C$3:$AI$57,paddy_rain!F72+3,FALSE)) -> 0 | H72: 0 | I72: 0 | J72: 0 | K72: 0 | L72: 0 | M72: 0 | N72: 0 | O72: 0 | P72: 0 | Q72: 0 | R72: 0 | S72: 0 | T72: 0 | U72: 0 | V72: 0 | W72: 0 | X72: 0 | Y72: 0 | Z72: 0 | AA72: 0 | AB72: 0 | AC72: 0 | AD72: =VLOOKUP($D$7,ETo!$B$4:$P$88,MONTH(D72)+2,FALSE)/4 ->  | AG72: 0 | AH72: 0 | AJ72: =VLOOKUP(MONTH(D72),[0]!rainforpaddy,4)/1000*AB72*1600*7 -> 
B73: 2009-09-19 | C73: 2009-09-25 | D73: 2009-09-25 | E73: 47 | F73: =IF(ISERROR(VLOOKUP(E73,Crop!$X$3:$Y$70,2,FALSE)),0,VLOOKUP(E73,Crop!$X$3:$Y$70,2,FALSE)) -> 0 | G73: =IF(ISERROR(HLOOKUP($D$5,Kc!$C$3:$AI$57,paddy_rain!F73+3,FALSE)),0,HLOOKUP($D$5,Kc!$C$3:$AI$57,paddy_rain!F73+3,FALSE)) -> 0 | H73: 0 | I73: 0 | J73: 0 | K73: 0 | L73: 0 | M73: 0 | N73: 0 | O73: 0 | P73: 0 | Q73: 0 | R73: 0 | S73: 0 | T73: 0 | U73: 0 | V73: 0 | W73: 0 | X73: 0 | Y73: 0 | Z73: 0 | AA73: 0 | AB73: 0 | AC73: 0 | AD73: =VLOOKUP($D$7,ETo!$B$4:$P$88,MONTH(D73)+2,FALSE)/4 ->  | AG73: 0 | AH73: 0 | AJ73: =VLOOKUP(MONTH(D73),[0]!rainforpaddy,4)/1000*AB73*1600*7 -> 
B74: 2009-09-26 | C74: 2009-10-02 | D74: 2009-10-02 | E74: 48 | F74: =IF(ISERROR(VLOOKUP(E74,Crop!$X$3:$Y$70,2,FALSE)),0,VLOOKUP(E74,Crop!$X$3:$Y$70,2,FALSE)) -> 0 | G74: =IF(ISERROR(HLOOKUP($D$5,Kc!$C$3:$AI$57,paddy_rain!F74+3,FALSE)),0,HLOOKUP($D$5,Kc!$C$3:$AI$57,paddy_rain!F74+3,FALSE)) -> 0 | H74: 0 | I74: 0 | J74: 0 | K74: 0 | L74: 0 | M74: 0 | N74: 0 | O74: 0 | P74: 0 | Q74: 0 | R74: 0 | S74: 0 | T74: 0 | U74: 0 | V74: 0 | W74: 0 | X74: 0 | Y74: 0 | Z74: 0 | AA74: 0 | AB74: 0 | AC74: 0 | AD74: =VLOOKUP($D$7,ETo!$B$4:$P$88,MONTH(D74)+2,FALSE)/4 ->  | AG74: 0 | AH74: 0 | AJ74: =VLOOKUP(MONTH(D74),[0]!rainforpaddy,4)/1000*AB74*1600*7 -> 
B75: 2009-10-03 | C75: 2009-10-09 | D75: 2009-10-09 | E75: 49 | F75: =IF(ISERROR(VLOOKUP(E75,Crop!$X$3:$Y$70,2,FALSE)),0,VLOOKUP(E75,Crop!$X$3:$Y$70,2,FALSE)) -> 0 | G75: =IF(ISERROR(HLOOKUP($D$5,Kc!$C$3:$AI$57,paddy_rain!F75+3,FALSE)),0,HLOOKUP($D$5,Kc!$C$3:$AI$57,paddy_rain!F75+3,FALSE)) -> 0 | H75: 0 | I75: 0 | J75: 0 | K75: 0 | L75: 0 | M75: 0 | N75: 0 | O75: 0 | P75: 0 | Q75: 0 | R75: 0 | S75: 0 | T75: 0 | U75: 0 | V75: 0 | W75: 0 | X75: 0 | Y75: 0 | Z75: 0 | AA75: 0 | AB75: 0 | AC75: 0 | AD75: =VLOOKUP($D$7,ETo!$B$4:$P$88,MONTH(D75)+2,FALSE)/4 ->  | AG75: 0 | AH75: 0 | AJ75: =VLOOKUP(MONTH(D75),[0]!rainforpaddy,4)/1000*AB75*1600*7 -> 
B76: 2009-10-10 | C76: 2009-10-16 | D76: 2009-10-16 | E76: 50 | F76: =IF(ISERROR(VLOOKUP(E76,Crop!$X$3:$Y$70,2,FALSE)),0,VLOOKUP(E76,Crop!$X$3:$Y$70,2,FALSE)) -> 0 | G76: =IF(ISERROR(HLOOKUP($D$5,Kc!$C$3:$AI$57,paddy_rain!F76+3,FALSE)),0,HLOOKUP($D$5,Kc!$C$3:$AI$57,paddy_rain!F76+3,FALSE)) -> 0 | H76: 0 | I76: 0 | J76: 0 | K76: 0 | L76: 0 | M76: 0 | N76: 0 | O76: 0 | P76: 0 | Q76: 0 | R76: 0 | S76: 0 | T76: 0 | U76: 0 | V76: 0 | W76: 0 | X76: 0 | Y76: 0 | Z76: 0 | AA76: 0 | AB76: 0 | AC76: 0 | AD76: =VLOOKUP($D$7,ETo!$B$4:$P$88,MONTH(D76)+2,FALSE)/4 ->  | AG76: 0 | AH76: 0 | AJ76: =VLOOKUP(MONTH(D76),[0]!rainforpaddy,4)/1000*AB76*1600*7 -> 
B77: 2009-10-17 | C77: 2009-10-23 | D77: 2009-10-23 | E77: 51 | F77: =IF(ISERROR(VLOOKUP(E77,Crop!$X$3:$Y$70,2,FALSE)),0,VLOOKUP(E77,Crop!$X$3:$Y$70,2,FALSE)) -> 0 | G77: =IF(ISERROR(HLOOKUP($D$5,Kc!$C$3:$AI$57,paddy_rain!F77+3,FALSE)),0,HLOOKUP($D$5,Kc!$C$3:$AI$57,paddy_rain!F77+3,FALSE)) -> 0 | H77: 0 | I77: 0 | J77: 0 | K77: 0 | L77: 0 | M77: 0 | N77: 0 | O77: 0 | P77: 0 | Q77: 0 | R77: 0 | S77: 0 | T77: 0 | U77: 0 | V77: 0 | W77: 0 | X77: 0 | Y77: 0 | Z77: 0 | AA77: 0 | AB77: 0 | AC77: 0 | AD77: =VLOOKUP($D$7,ETo!$B$4:$P$88,MONTH(D77)+2,FALSE)/4 ->  | AG77: 0 | AH77: 0 | AJ77: =VLOOKUP(MONTH(D77),[0]!rainforpaddy,4)/1000*AB77*1600*7 -> 
B78: 2009-10-24 | C78: 2009-10-30 | D78: 2009-10-30 | E78: 52 | F78: =IF(ISERROR(VLOOKUP(E78,Crop!$X$3:$Y$70,2,FALSE)),0,VLOOKUP(E78,Crop!$X$3:$Y$70,2,FALSE)) -> 0 | G78: =IF(ISERROR(HLOOKUP($D$5,Kc!$C$3:$AI$57,paddy_rain!F78+3,FALSE)),0,HLOOKUP($D$5,Kc!$C$3:$AI$57,paddy_rain!F78+3,FALSE)) -> 0 | H78: 0 | I78: 0 | J78: 0 | K78: 0 | L78: 0 | M78: 0 | N78: 0 | O78: 0 | P78: 0 | Q78: 0 | R78: 0 | S78: 0 | T78: 0 | U78: 0 | V78: 0 | W78: 0 | X78: 0 | Y78: 0 | Z78: 0 | AA78: 0 | AB78: 0 | AC78: 0 | AD78: =VLOOKUP($D$7,ETo!$B$4:$P$88,MONTH(D78)+2,FALSE)/4 ->  | AG78: 0 | AH78: 0 | AJ78: =VLOOKUP(MONTH(D78),[0]!rainforpaddy,4)/1000*AB78*1600*7 -> 
AI79: =SUM(AI27:AI78) ->  | AJ79: =SUM(AJ27:AJ78) -> 

Sheet upland_dry
B1: ตารางแสดงรายละเอียดการคำนวณความต้องการน้ำของพืช
F2: สัปดาห์ | G2: พื้นที่ (ไร่)
F3: 1 | G3: =+fill_data!M32 -> 0 | S3: =+E6 -> 10 | T3: 1
B4: จังหวัด | D4: =+fill_data!C4 -> 0 | F4: =IF(F3="","",IF(F3+1<=$E$9,F3+1,"")) -> 2 | G4: =+fill_data!M33 -> 0 | S4: =IF(+S3+1>52,+S3+1-52,S3+1) -> 11 | T4: 2
B5: ชนิดพืช | D5: =+fill_data!J33 -> ถั่ว เขียว | F5: 3 | G5: =+fill_data!M34 -> 0 | S5: =IF(+S4+1>52,+S4+1-52,S4+1) -> 12 | T5: 3
B6: สัปดาห์เริ่มต้น | D6: =VLOOKUP(D5,Crop!$B$3:$C$35,2,FALSE) -> 9 | E6: =+fill_data!K34 -> 10 | G6: =+fill_data!M35 -> 0 | S6: 13 | T6: 4
B7: ใช้ค่า ETo ของจังหวัด | D7: =+fill_data!C5 ->  | G7: =+fill_data!M36 -> 0 | S7: 14 | T7: 5
B8: พื้นที่โครงการ, ไร่ | E8: =fill_data!K35 -> 0 | G8: =+fill_data!M37 -> 0 | S8: 15 | T8: 6
B9: เวลาปลูกจนเต็มพื้นที่, สัปดาห์ | E9: =+fill_data!K36 -> 3 | G9: =+fill_data!M38 -> 0 | S9: 16 | T9: 7
B10: ปริมาณน้ำรั่วซึม, มม./สัปดาห์ | E10: =+fill_data!D6 -> 0 | G10: =+fill_data!M39 -> 0 | I10: *ภาคกลาง กำหนดให้ใช้ 1 มม./วัน ส่วนภาคอื่นๆใช้ 2 มม./วัน | S10: 17 | T10: 8
B11: ปริมาณน้ำเตรียมแปลง, มม./สัปดาห์ | E11: =+fill_data!K37 -> 30 | G11: =+fill_data!M40 -> 0 | I11: *กำหนดระยะเวลาในการเตรียมแปลง 1 สัปดาห์ | S11: 18 | T11: 9
G12: =+fill_data!M41 -> 0 | S12: 19 | T12: 10 | Y12: =IF(ISERROR((H26*G26+I26*G77+J26*G76+K26*G75+L26*G74+M26*G73+N26*G72+O26*G71+P26*G70+Q26*G69)/AB26),0,(H26*G26+I26*G77+J26*G76+K26*G75+L26*G74+M26*G73+N26*G72+O26*G71+P26*G70+Q26*G69)/AB26)
G13: =+fill_data!M42 -> 0 | S13: 20 | T13: 11
G14: =+fill_data!M43 -> 0 | S14: 21 | T14: 12
G15: =+fill_data!M44 -> 0 | S15: 22 | T15: 13
G16: =+fill_data!M45 -> 0 | S16: 23 | T16: 14
G17: =+fill_data!M46 -> 0 | S17: 24 | T17: 15
G18: =+fill_data!M47 -> 0 | S18: 25 | T18: 16
G19: =+fill_data!M48 -> 0 | S19: 26 | T19: 17
G20: =+fill_data!M49 -> 0 | S20: 27 | T20: 18
G21: =+fill_data!M50 -> 0 | S21: 28 | T21: 19
F22: =IF(F21="","",IF(F21+1<=$E$9,F21+1,"")) ->  | G22: =+fill_data!M51 -> 0 | S22: 29 | T22: 20
B24: (1) | C24: (2) | D24: (3) | E24: (4) | F24: (5) | G24: (6) | H24: (7.1) | I24: (7.2) | J24: (7.3) | K24: (7.4) | L24: (7.5) | M24: (7.6) | N24: (7.7) | O24: (7.8) | P24: (7.9) | Q24: (7.10) | R24: (7.11) | S24: (7.12) | T24: (7.13) | U24: (7.14) | V24: (7.15) | W24: (7.16) | X24: (7.17) | Y24: (7.18) | Z24: (7.19) | AA24: (7.20) | AB24: (8) | AC24: (9) | AD24: (10) | AE24: (11) | AF24: (12) | AG24: (13) | AH24: (14) | AI24: (15) | AJ24: (16)
B25: ช่วงเวลาสัปดาห์ | D25: เดือน | E25: สัปดาห์ | F25: สัปดาห์ | G25: Kc | H25: พื้นที่เพาะปลูกในแต่ละสัปดาห์ (ไร่) | AB25: รวมพื้นที่ | AC25: Weighted | AD25: ETo | AE25: ความต้องการน้ำ | AG25: ปริมาณน้ำเตรียมแปลง | AI25: ความต้องการน้ำ | AJ25: ฝนใช้การ
B26: เริ่มต้น | C26: สิ้นสุด | F26: ของ Kc | H26: 1 | I26: 2 | J26: 3 | K26: 4 | L26: 5 | M26: 6 | N26: 7 | O26: 8 | P26: 9 | Q26: 10 | R26: 11 | S26: 12 | T26: 13 | U26: 14 | V26: 15 | W26: 16 | X26: 17 | Y26: 18 | Z26: 19 | AA26: 20 | AB26: (ไร่) | AC26: Kc | AE26: (มม.) | AF26: (ลบ.ม.) | AG26: (ไร่) | AH26: (ลบ.ม.) | AI26: (ลบ.ม.) | AJ26: (ลบ.ม.)
B27: 2008-11-01 | C27: =B27+6 -> 2008-11-07 | D27: =+C27 -> 2008-11-07 | E27: 1 | F27: =IF(ISERROR(VLOOKUP(E27,Crop!$N$3:$O$70,2,FALSE)),0,VLOOKUP(E27,Crop!$N$3:$O$70,2,FALSE)) -> 0 | G27: =IF(ISERROR(HLOOKUP($D$5,Kc!$C$3:$AI$57,upland_dry!F27+3,FALSE)),0,HLOOKUP($D$5,Kc!$C$3:$AI$57,upland_dry!F27+3,FALSE)) -> 0 | H27: =IF(G27>0,IF(H$26>$E$9,0,VLOOKUP(H$26,$F$3:$G$23,2,FALSE)),0) -> 0 | I27: =IF(H78>0,IF(I$26>$E$9,0,VLOOKUP(I$26,$F$3:$G$23,2,FALSE)),0) -> 0 | J27: 0 | K27: 0 | L27: 0 | M27: 0 | N27: 0 | O27: 0 | P27: 0 | Q27: 0 | R27: 0 | S27: =IF(R78>0,IF(S$26>$E$9,0,VLOOKUP(S$26,$F$3:$G$23,2,FALSE)),0) -> 0 | T27: 0 | U27: 0 | V27: 0 | W27: 0 | X27: 0 | Y27: 0 | Z27: 0 | AA27: 0 | AB27: =SUM(H27:AA27) -> 0 | AC27: =IF(ISERROR((H27*G27+I27*G78+J27*G77+K27*G76+L27*G75+M27*G74+N27*G73+O27*G72+P27*G71+Q27*G70+R27*G69+S27*G68+T27*G67+U27*G66+V27*G65+W27*G64+X27*G63+Y27*G62+Z27*G61+AA27*G60)/AB27),0,(H27*G27+I27*G78+J27*G77+K27*G76+L27*G75+M27*G74+N27*G73+O27*G72+P27*G71+Q27*G70+R27*G69+S27*G68+T27*G67+U27*G66+V27*G65+W27*G64+X27*G63+Y27*G62+Z27*G61+AA27*G60)/AB27) -> 0 | AD27: =VLOOKUP($D$7,ETo!$B$4:$P$88,MONTH(D27)+2,FALSE)/4 ->  | AE27: =IF(AC27*AD27=0,0,(AC27*AD27)+$E$10) ->  | AF27: =AE27*AB27*1.6 ->  | AG27: =IF(ISERROR(INDEX(H27:AA27,1,IF(E27<$E$6,0,VLOOKUP(E27,$S$3:$T$22,2,FALSE)))),0,INDEX(H27:AA27,1,IF(E27<$E$6,0,VLOOKUP(E27,$S$3:$T$22,2,FALSE)))) -> 0 | AH27: =AG27*$E$11*1.6 -> 0 | AI27: =AF27+AH27 ->  | AJ27: =VLOOKUP(MONTH(D27),[0]!rainforuplandcrop,4)/1000*AB27*1600*7 -> 
B28: =C27+1 -> 2008-11-08 | C28: =B28+6 -> 2008-11-14 | D28: =+C28 -> 2008-11-14 | E28: 2 | F28: =IF(ISERROR(VLOOKUP(E28,Crop!$N$3:$O$70,2,FALSE)),0,VLOOKUP(E28,Crop!$N$3:$O$70,2,FALSE)) -> 0 | G28: =IF(ISERROR(HLOOKUP($D$5,Kc!$C$3:$AI$57,upland_dry!F28+3,FALSE)),0,HLOOKUP($D$5,Kc!$C$3:$AI$57,upland_dry!F28+3,FALSE)) -> 0 | H28: 0 | I28: =IF(H27>0,IF(I$26>$E$9,0,VLOOKUP(I$26,$F$3:$G$23,2,FALSE)),0) -> 0 | J28: 0 | K28: 0 | L28: 0 | M28: 0 | N28: 0 | O28: 0 | P28: 0 | Q28: 0 | R28: 0 | S28: =IF(R27>0,IF(S$26>$E$9,0,VLOOKUP(S$26,$F$3:$G$23,2,FALSE)),0) -> 0 | T28: 0 | U28: 0 | V28: 0 | W28: 0 | X28: 0 | Y28: 0 | Z28: 0 | AA28: 0 | AB28: =SUM(H28:AA28) -> 0 | AC28: =IF(ISERROR((H28*G28+I28*G27+J28*G78+K28*G77+L28*G76+M28*G75+N28*G74+O28*G73+P28*G72+Q28*G71+R28*G70+S28*G69+T28*G68+U28*G67+V28*G66+W28*G65+X28*G64+Y28*G63+Z28*G62+AA28*G61)/AB28),0,(H28*G28+I28*G27+J28*G78+K28*G77+L28*G76+M28*G75+N28*G74+O28*G73+P28*G72+Q28*G71+R28*G70+S28*G69+T28*G68+U28*G67+V28*G66+W28*G65+X28*G64+Y28*G63+Z28*G62+AA28*G61)/AB28) -> 0 | AD28: =VLOOKUP($D$7,ETo!$B$4:$P$88,MONTH(D28)+2,FALSE)/4 ->  | AG28: =IF(ISERROR(INDEX(H28:AA28,1,IF(E28<$E$6,0,VLOOKUP(E28,$S$3:$T$22,2,FALSE)))),0,INDEX(H28:AA28,1,IF(E28<$E$6,0,VLOOKUP(E28,$S$3:$T$22,2,FALSE)))) -> 0 | AH28: =AG28*$E$11*1.6 -> 0 | AJ28: =VLOOKUP(MONTH(D28),[0]!rainforuplandcrop,4)/1000*AB28*1600*7 -> 
B29: 2008-11-15 | C29: 2008-11-21 | D29: =+C29 -> 2008-11-21 | E29: 3 | F29: =IF(ISERROR(VLOOKUP(E29,Crop!$N$3:$O$70,2,FALSE)),0,VLOOKUP(E29,Crop!$N$3:$O$70,2,FALSE)) -> 0 | G29: =IF(ISERROR(HLOOKUP($D$5,Kc!$C$3:$AI$57,upland_dry!F29+3,FALSE)),0,HLOOKUP($D$5,Kc!$C$3:$AI$57,upland_dry!F29+3,FALSE)) -> 0 | H29: 0 | I29: 0 | J29: 0 | K29: 0 | L29: 0 | M29: 0 | N29: 0 | O29: 0 | P29: 0 | Q29: 0 | R29: 0 | S29: 0 | T29: 0 | U29: 0 | V29: 0 | W29: 0 | X29: 0 | Y29: 0 | Z29: 0 | AA29: 0 | AB29: 0 | AC29: =IF(ISERROR((H29*G29+I29*G28+J29*G27+K29*G78+L29*G77+M29*G76+N29*G75+O29*G74+P29*G73+Q29*G72+R29*G71+S29*G70+T29*G69+U29*G68+V29*G67+W29*G66+X29*G65+Y29*G64+Z29*G63+AA29*G62)/AB29),0,(H29*G29+I29*G28+J29*G27+K29*G78+L29*G77+M29*G76+N29*G75+O29*G74+P29*G73+Q29*G72+R29*G71+S29*G70+T29*G69+U29*G68+V29*G67+W29*G66+X29*G65+Y29*G64+Z29*G63+AA29*G62)/AB29) -> 0 | AD29: =VLOOKUP($D$7,ETo!$B$4:$P$88,MONTH(D29)+2,FALSE)/4 ->  | AG29: =IF(ISERROR(INDEX(H29:AA29,1,IF(E29<$E$6,0,VLOOKUP(E29,$S$3:$T$22,2,FALSE)))),0,INDEX(H29:AA29,1,IF(E29<$E$6,0,VLOOKUP(E29,$S$3:$T$22,2,FALSE)))) -> 0 | AH29: =AG29*$E$11*1.6 -> 0 | AJ29: =VLOOKUP(MONTH(D29),[0]!rainforuplandcrop,4)/1000*AB29*1600*7 -> 
B30: 2008-11-22 | C30: 2008-11-28 | D30: 2008-11-28 | E30: 4 | F30: =IF(ISERROR(VLOOKUP(E30,Crop!$N$3:$O$70,2,FALSE)),0,VLOOKUP(E30,Crop!$N$3:$O$70,2,FALSE)) -> 0 | G30: =IF(ISERROR(HLOOKUP($D$5,Kc!$C$3:$AI$57,upland_dry!F30+3,FALSE)),0,HLOOKUP($D$5,Kc!$C$3:$AI$57,upland_dry!F30+3,FALSE)) -> 0 | H30: 0 | I30: 0 | J30: 0 | K30: 0 | L30: 0 | M30: 0 | N30: 0 | O30: 0 | P30: 0 | Q30: 0 | R30: 0 | S30: 0 | T30: 0 | U30: 0 | V30: 0 | W30: 0 | X30: 0 | Y30: 0 | Z30: 0 | AA30: 0 | AB30: 0 | AC30: =IF(ISERROR((H30*G30+I30*G29+J30*G28+K30*G27+L30*G78+M30*G77+N30*G76+O30*G75+P30*G74+Q30*G73+R30*G72+S30*G71+T30*G70+U30*G69+V30*G68+W30*G67+X30*G66+Y30*G65+Z30*G64+AA30*G63)/AB30),0,(H30*G30+I30*G29+J30*G28+K30*G27+L30*G78+M30*G77+N30*G76+O30*G75+P30*G74+Q30*G73+R30*G72+S30*G71+T30*G70+U30*G69+V30*G68+W30*G67+X30*G66+Y30*G65+Z30*G64+AA30*G63)/AB30) -> 0 | AD30: =VLOOKUP($D$7,ETo!$B$4:$P$88,MONTH(D30)+2,FALSE)/4 ->  | AG30: =IF(ISERROR(INDEX(H30:AA30,1,IF(E30<$E$6,0,VLOOKUP(E30,$S$3:$T$22,2,FALSE)))),0,INDEX(H30:AA30,1,IF(E30<$E$6,0,VLOOKUP(E30,$S$3:$T$22,2,FALSE)))) -> 0 | AH30: =AG30*$E$11*1.6 -> 0 | AJ30: =VLOOKUP(MONTH(D30),[0]!rainforuplandcrop,4)/1000*AB30*1600*7 -> 
B31: 2008-11-29 | C31: 2008-12-05 | D31: 2008-12-05 | E31: 5 | F31: =IF(ISERROR(VLOOKUP(E31,Crop!$N$3:$O$70,2,FALSE)),0,VLOOKUP(E31,Crop!$N$3:$O$70,2,FALSE)) -> 0 | G31: =IF(ISERROR(HLOOKUP($D$5,Kc!$C$3:$AI$57,upland_dry!F31+3,FALSE)),0,HLOOKUP($D$5,Kc!$C$3:$AI$57,upland_dry!F31+3,FALSE)) -> 0 | H31: 0 | I31: 0 | J31: 0 | K31: 0 | L31: 0 | M31: 0 | N31: 0 | O31: 0 | P31: 0 | Q31: 0 | R31: 0 | S31: 0 | T31: 0 | U31: 0 | V31: 0 | W31: 0 | X31: 0 | Y31: 0 | Z31: 0 | AA31: 0 | AB31: 0 | AC31: =IF(ISERROR((H31*G31+I31*G30+J31*G29+K31*G28+L31*G27+M31*G78+N31*G77+O31*G76+P31*G75+Q31*G74+R31*G73+S31*G72+T31*G71+U31*G70+V31*G69+W31*G68+X31*G67+Y31*G66+Z31*G65+AA31*G64)/AB31),0,(H31*G31+I31*G30+J31*G29+K31*G28+L31*G27+M31*G78+N31*G77+O31*G76+P31*G75+Q31*G74+R31*G73+S31*G72+T31*G71+U31*G70+V31*G69+W31*G68+X31*G67+Y31*G66+Z31*G65+AA31*G64)/AB31) -> 0 | AD31: =VLOOKUP($D$7,ETo!$B$4:$P$88,MONTH(D31)+2,FALSE)/4 ->  | AG31: =IF(ISERROR(INDEX(H31:AA31,1,IF(E31<$E$6,0,VLOOKUP(E31,$S$3:$T$22,2,FALSE)))),0,INDEX(H31:AA31,1,IF(E31<$E$6,0,VLOOKUP(E31,$S$3:$T$22,2,FALSE)))) -> 0 | AH31: =AG31*$E$11*1.6 -> 0 | AJ31: =VLOOKUP(MONTH(D31),[0]!rainforuplandcrop,4)/1000*AB31*1600*7 -> 
B32: 2008-12-06 | C32: 2008-12-12 | D32: 2008-12-12 | E32: 6 | F32: =IF(ISERROR(VLOOKUP(E32,Crop!$N$3:$O$70,2,FALSE)),0,VLOOKUP(E32,Crop!$N$3:$O$70,2,FALSE)) -> 0 | G32: =IF(ISERROR(HLOOKUP($D$5,Kc!$C$3:$AI$57,upland_dry!F32+3,FALSE)),0,HLOOKUP($D$5,Kc!$C$3:$AI$57,upland_dry!F32+3,FALSE)) -> 0 | H32: 0 | I32: 0 | J32: 0 | K32: 0 | L32: 0 | M32: 0 | N32: 0 | O32: 0 | P32: 0 | Q32: 0 | R32: 0 | S32: 0 | T32: 0 | U32: 0 | V32: 0 | W32: 0 | X32: 0 | Y32: 0 | Z32: 0 | AA32: 0 | AB32: 0 | AC32: =IF(ISERROR((H32*G32+I32*G31+J32*G30+K32*G29+L32*G28+M32*G27+N32*G78+O32*G77+P32*G76+Q32*G75+R32*G74+S32*G73+T32*G72+U32*G71+V32*G70+W32*G69+X32*G68+Y32*G67+Z32*G66+AA32*G65)/AB32),0,(H32*G32+I32*G31+J32*G30+K32*G29+L32*G28+M32*G27+N32*G78+O32*G77+P32*G76+Q32*G75+R32*G74+S32*G73+T32*G72+U32*G71+V32*G70+W32*G69+X32*G68+Y32*G67+Z32*G66+AA32*G65)/AB32) -> 0 | AD32: =VLOOKUP($D$7,ETo!$B$4:$P$88,MONTH(D32)+2,FALSE)/4 ->  | AG32: =IF(ISERROR(INDEX(H32:AA32,1,IF(E32<$E$6,0,VLOOKUP(E32,$S$3:$T$22,2,FALSE)))),0,INDEX(H32:AA32,1,IF(E32<$E$6,0,VLOOKUP(E32,$S$3:$T$22,2,FALSE)))) -> 0 | AH32: =AG32*$E$11*1.6 -> 0 | AJ32: =VLOOKUP(MONTH(D32),[0]!rainforuplandcrop,4)/1000*AB32*1600*7 -> 
B33: 2008-12-13 | C33: 2008-12-19 | D33: 2008-12-19 | E33: 7 | F33: =IF(ISERROR(VLOOKUP(E33,Crop!$N$3:$O$70,2,FALSE)),0,VLOOKUP(E33,Crop!$N$3:$O$70,2,FALSE)) -> 0 | G33: =IF(ISERROR(HLOOKUP($D$5,Kc!$C$3:$AI$57,upland_dry!F33+3,FALSE)),0,HLOOKUP($D$5,Kc!$C$3:$AI$57,upland_dry!F33+3,FALSE)) -> 0 | H33: 0 | I33: 0 | J33: 0 | K33: 0 | L33: 0 | M33: 0 | N33: 0 | O33: 0 | P33: 0 | Q33: 0 | R33: 0 | S33: 0 | T33: 0 | U33: 0 | V33: 0 | W33: 0 | X33: 0 | Y33: 0 | Z33: 0 | AA33: 0 | AB33: 0 | AC33: =IF(ISERROR((H33*G33+I33*G32+J33*G31+K33*G30+L33*G29+M33*G28+N33*G27+O33*G78+P33*G77+Q33*G76+R33*G75+S33*G74+T33*G73+U33*G72+V33*G71+W33*G70+X33*G69+Y33*G68+Z33*G67+AA33*G66)/AB33),0,(H33*G33+I33*G32+J33*G31+K33*G30+L33*G29+M33*G28+N33*G27+O33*G78+P33*G77+Q33*G76+R33*G75+S33*G74+T33*G73+U33*G72+V33*G71+W33*G70+X33*G69+Y33*G68+Z33*G67+AA33*G66)/AB33) -> 0 | AD33: =VLOOKUP($D$7,ETo!$B$4:$P$88,MONTH(D33)+2,FALSE)/4 ->  | AG33: 0 | AH33: 0 | AJ33: =VLOOKUP(MONTH(D33),[0]!rainforuplandcrop,4)/1000*AB33*1600*7 -> 
B34: 2008-12-20 | C34: 2008-12-26 | D34: 2008-12-26 | E34: 8 | F34: =IF(ISERROR(VLOOKUP(E34,Crop!$N$3:$O$70,2,FALSE)),0,VLOOKUP(E34,Crop!$N$3:$O$70,2,FALSE)) -> 0 | G34: =IF(ISERROR(HLOOKUP($D$5,Kc!$C$3:$AI$57,upland_dry!F34+3,FALSE)),0,HLOOKUP($D$5,Kc!$C$3:$AI$57,upland_dry!F34+3,FALSE)) -> 0 | H34: 0 | I34: 0 | J34: 0 | K34: 0 | L34: 0 | M34: 0 | N34: 0 | O34: 0 | P34: 0 | Q34: 0 | R34: 0 | S34: 0 | T34: 0 | U34: 0 | V34: 0 | W34: 0 | X34: 0 | Y34: 0 | Z34: 0 | AA34: 0 | AB34: 0 | AC34: =IF(ISERROR((H34*G34+I34*G33+J34*G32+K34*G31+L34*G30+M34*G29+N34*G28+O34*G27+P34*G78+Q34*G77+R34*G76+S34*G75+T34*G74+U34*G73+V34*G72+W34*G71+X34*G70+Y34*G69+Z34*G68+AA34*G67)/AB34),0,(H34*G34+I34*G33+J34*G32+K34*G31+L34*G30+M34*G29+N34*G28+O34*G27+P34*G78+Q34*G77+R34*G76+S34*G75+T34*G74+U34*G73+V34*G72+W34*G71+X34*G70+Y34*G69+Z34*G68+AA34*G67)/AB34) -> 0 | AD34: =VLOOKUP($D$7,ETo!$B$4:$P$88,MONTH(D34)+2,FALSE)/4 ->  | AG34: 0 | AH34: 0 | AJ34: =VLOOKUP(MONTH(D34),[0]!rainforuplandcrop,4)/1000*AB34*1600*7 -> 
B35: 2008-12-27 | C35: 2009-01-02 | D35: 2009-01-02 | E35: 9 | F35: =IF(ISERROR(VLOOKUP(E35,Crop!$N$3:$O$70,2,FALSE)),0,VLOOKUP(E35,Crop!$N$3:$O$70,2,FALSE)) -> 0 | G35: =IF(ISERROR(HLOOKUP($D$5,Kc!$C$3:$AI$57,upland_dry!F35+3,FALSE)),0,HLOOKUP($D$5,Kc!$C$3:$AI$57,upland_dry!F35+3,FALSE)) -> 0 | H35: 0 | I35: 0 | J35: 0 | K35: 0 | L35: 0 | M35: 0 | N35: 0 | O35: 0 | P35: 0 | Q35: 0 | R35: 0 | S35: 0 | T35: 0 | U35: 0 | V35: 0 | W35: 0 | X35: 0 | Y35: 0 | Z35: 0 | AA35: 0 | AB35: 0 | AC35: =IF(ISERROR((H35*G35+I35*G34+J35*G33+K35*G32+L35*G31+M35*G30+N35*G29+O35*G28+P35*G27+Q35*G78+R35*G77+S35*G76+T35*G75+U35*G74+V35*G73+W35*G72+X35*G71+Y35*G70+Z35*G69+AA35*G68)/AB35),0,(H35*G35+I35*G34+J35*G33+K35*G32+L35*G31+M35*G30+N35*G29+O35*G28+P35*G27+Q35*G78+R35*G77+S35*G76+T35*G75+U35*G74+V35*G73+W35*G72+X35*G71+Y35*G70+Z35*G69+AA35*G68)/AB35) -> 0 | AD35: =VLOOKUP($D$7,ETo!$B$4:$P$88,MONTH(D35)+2,FALSE)/4 ->  | AG35: 0 | AH35: 0 | AJ35: =VLOOKUP(MONTH(D35),[0]!rainforuplandcrop,4)/1000*AB35*1600*7 -> 
B36: 2009-01-03 | C36: 2009-01-09 | D36: 2009-01-09 | E36: 10 | F36: =IF(ISERROR(VLOOKUP(E36,Crop!$N$3:$O$70,2,FALSE)),0,VLOOKUP(E36,Crop!$N$3:$O$70,2,FALSE)) -> 1 | G36: =IF(ISERROR(HLOOKUP($D$5,Kc!$C$3:$AI$57,upland_dry!F36+3,FALSE)),0,HLOOKUP($D$5,Kc!$C$3:$AI$57,upland_dry!F36+3,FALSE)) -> 0.58 | H36: =IF(G36>0,IF(H$26>$E$9,0,VLOOKUP(H$26,$F$3:$G$23,2,FALSE)),0) -> 0 | I36: 0 | J36: 0 | K36: 0 | L36: 0 | M36: 0 | N36: 0 | O36: 0 | P36: 0 | Q36: 0 | R36: 0 | S36: 0 | T36: 0 | U36: 0 | V36: 0 | W36: 0 | X36: 0 | Y36: 0 | Z36: 0 | AA36: 0 | AB36: 0 | AC36: =IF(ISERROR((H36*G36+I36*G35+J36*G34+K36*G33+L36*G32+M36*G31+N36*G30+O36*G29+P36*G28+Q36*G27+R36*G78+S36*G77+T36*G76+U36*G75+V36*G74+W36*G73+X36*G72+Y36*G71+Z36*G70+AA36*G69)/AB36),0,(H36*G36+I36*G35+J36*G34+K36*G33+L36*G32+M36*G31+N36*G30+O36*G29+P36*G28+Q36*G27+R36*G78+S36*G77+T36*G76+U36*G75+V36*G74+W36*G73+X36*G72+Y36*G71+Z36*G70+AA36*G69)/AB36) -> 0 | AD36: =VLOOKUP($D$7,ETo!$B$4:$P$88,MONTH(D36)+2,FALSE)/4 ->  | AG36: 0 | AH36: 0 | AJ36: =VLOOKUP(MONTH(D36),[0]!rainforuplandcrop,4)/1000*AB36*1600*7 -> 
B37: 2009-01-10 | C37: 2009-01-16 | D37: 2009-01-16 | E37: 11 | F37: =IF(ISERROR(VLOOKUP(E37,Crop!$N$3:$O$70,2,FALSE)),0,VLOOKUP(E37,Crop!$N$3:$O$70,2,FALSE)) -> 2 | G37: =IF(ISERROR(HLOOKUP($D$5,Kc!$C$3:$AI$57,upland_dry!F37+3,FALSE)),0,HLOOKUP($D$5,Kc!$C$3:$AI$57,upland_dry!F37+3,FALSE)) -> 0.87 | H37: 0 | I37: =IF(H36>0,IF(I$26>$E$9,0,VLOOKUP(I$26,$F$3:$G$23,2,FALSE)),0) -> 0 | J37: =IF(I36>0,IF(J$26>$E$9,0,VLOOKUP(J$26,$F$3:$G$12,2,FALSE)),0) -> 0 | K37: =IF(J36>0,IF(K$26>$E$9,0,VLOOKUP(K$26,$F$3:$G$23,2,FALSE)),0) -> 0 | L37: 0 | M37: 0 | N37: 0 | O37: 0 | P37: 0 | Q37: 0 | R37: 0 | S37: 0 | T37: 0 | U37: =IF(T36>0,IF(U$26>$E$9,0,VLOOKUP(U$26,$F$3:$G$23,2,FALSE)),0) -> 0 | V37: 0 | W37: 0 | X37: 0 | Y37: 0 | Z37: 0 | AA37: 0 | AB37: 0 | AC37: =IF(ISERROR((H37*G37+I37*G36+J37*G35+K37*G34+L37*G33+M37*G32+N37*G31+O37*G30+P37*G29+Q37*G28+R37*G27+S37*G78+T37*G77+U37*G76+V37*G75+W37*G74+X37*G73+Y37*G72+Z37*G71+AA37*G70)/AB37),0,(H37*G37+I37*G36+J37*G35+K37*G34+L37*G33+M37*G32+N37*G31+O37*G30+P37*G29+Q37*G28+R37*G27+S37*G78+T37*G77+U37*G76+V37*G75+W37*G74+X37*G73+Y37*G72+Z37*G71+AA37*G70)/AB37) -> 0 | AD37: =VLOOKUP($D$7,ETo!$B$4:$P$88,MONTH(D37)+2,FALSE)/4 ->  | AG37: 0 | AH37: 0 | AJ37: =VLOOKUP(MONTH(D37),[0]!rainforuplandcrop,4)/1000*AB37*1600*7 -> 
B38: 2009-01-17 | C38: 2009-01-23 | D38: 2009-01-23 | E38: 12 | F38: =IF(ISERROR(VLOOKUP(E38,Crop!$N$3:$O$70,2,FALSE)),0,VLOOKUP(E38,Crop!$N$3:$O$70,2,FALSE)) -> 3 | G38: =IF(ISERROR(HLOOKUP($D$5,Kc!$C$3:$AI$57,upland_dry!F38+3,FALSE)),0,HLOOKUP($D$5,Kc!$C$3:$AI$57,upland_dry!F38+3,FALSE)) -> 1.18 | H38: 0 | I38: 0 | J38: 0 | K38: 0 | L38: 0 | M38: 0 | N38: 0 | O38: 0 | P38: 0 | Q38: 0 | R38: 0 | S38: 0 | T38: 0 | U38: 0 | V38: 0 | W38: 0 | X38: 0 | Y38: 0 | Z38: 0 | AA38: 0 | AB38: 0 | AC38: =IF(ISERROR((H38*G38+I38*G37+J38*G36+K38*G35+L38*G34+M38*G33+N38*G32+O38*G31+P38*G30+Q38*G29+R38*G28+S38*G27+T38*G78+U38*G77+V38*G76+W38*G75+X38*G74+Y38*G73+Z38*G72+AA38*G71)/AB38),0,(H38*G38+I38*G37+J38*G36+K38*G35+L38*G34+M38*G33+N38*G32+O38*G31+P38*G30+Q38*G29+R38*G28+S38*G27+T38*G78+U38*G77+V38*G76+W38*G75+X38*G74+Y38*G73+Z38*G72+AA38*G71)/AB38) -> 0 | AD38: =VLOOKUP($D$7,ETo!$B$4:$P$88,MONTH(D38)+2,FALSE)/4 ->  | AG38: 0 | AH38: 0 | AJ38: =VLOOKUP(MONTH(D38),[0]!rainforuplandcrop,4)/1000*AB38*1600*7 -> 
B39: 2009-01-24 | C39: 2009-01-30 | D39: 2009-01-30 | E39: 13 | F39: =IF(ISERROR(VLOOKUP(E39,Crop!$N$3:$O$70,2,FALSE)),0,VLOOKUP(E39,Crop!$N$3:$O$70,2,FALSE)) -> 4 | G39: =IF(ISERROR(HLOOKUP($D$5,Kc!$C$3:$AI$57,upland_dry!F39+3,FALSE)),0,HLOOKUP($D$5,Kc!$C$3:$AI$57,upland_dry!F39+3,FALSE)) -> 1.4 | H39: 0 | I39: 0 | J39: 0 | K39: 0 | L39: 0 | M39: 0 | N39: 0 | O39: 0 | P39: 0 | Q39: 0 | R39: 0 | S39: 0 | T39: 0 | U39: 0 | V39: 0 | W39: 0 | X39: 0 | Y39: 0 | Z39: 0 | AA39: 0 | AB39: 0 | AC39: =IF(ISERROR((H39*G39+I39*G38+J39*G37+K39*G36+L39*G35+M39*G34+N39*G33+O39*G32+P39*G31+Q39*G30+R39*G29+S39*G28+T39*G27+U39*G78+V39*G77+W39*G76+X39*G75+Y39*G74+Z39*G73+AA39*G72)/AB39),0,(H39*G39+I39*G38+J39*G37+K39*G36+L39*G35+M39*G34+N39*G33+O39*G32+P39*G31+Q39*G30+R39*G29+S39*G28+T39*G27+U39*G78+V39*G77+W39*G76+X39*G75+Y39*G74+Z39*G73+AA39*G72)/AB39) -> 0 | AD39: =VLOOKUP($D$7,ETo!$B$4:$P$88,MONTH(D39)+2,FALSE)/4 ->  | AG39: 0 | AH39: 0 | AJ39: =VLOOKUP(MONTH(D39),[0]!rainforuplandcrop,4)/1000*AB39*1600*7 -> 
B40: 2009-01-31 | C40: 2009-02-06 | D40: 2009-02-06 | E40: 14 | F40: =IF(ISERROR(VLOOKUP(E40,Crop!$N$3:$O$70,2,FALSE)),0,VLOOKUP(E40,Crop!$N$3:$O$70,2,FALSE)) -> 5 | G40: =IF(ISERROR(HLOOKUP($D$5,Kc!$C$3:$AI$57,upland_dry!F40+3,FALSE)),0,HLOOKUP($D$5,Kc!$C$3:$AI$57,upland_dry!F40+3,FALSE)) -> 1.28 | H40: 0 | I40: 0 | J40: 0 | K40: 0 | L40: 0 | M40: 0 | N40: 0 | O40: 0 | P40: 0 | Q40: 0 | R40: 0 | S40: 0 | T40: 0 | U40: 0 | V40: 0 | W40: 0 | X40: 0 | Y40: 0 | Z40: 0 | AA40: 0 | AB40: 0 | AC40: =IF(ISERROR((H40*G40+I40*G39+J40*G38+K40*G37+L40*G36+M40*G35+N40*G34+O40*G33+P40*G32+Q40*G31+R40*G30+S40*G29+T40*G28+U40*G27+V40*G78+W40*G77+X40*G76+Y40*G75+Z40*G74+AA40*G73)/AB40),0,(H40*G40+I40*G39+J40*G38+K40*G37+L40*G36+M40*G35+N40*G34+O40*G33+P40*G32+Q40*G31+R40*G30+S40*G29+T40*G28+U40*G27+V40*G78+W40*G77+X40*G76+Y40*G75+Z40*G74+AA40*G73)/AB40) -> 0 | AD40: =VLOOKUP($D$7,ETo!$B$4:$P$88,MONTH(D40)+2,FALSE)/4 ->  | AG40: 0 | AH40: 0 | AJ40: =VLOOKUP(MONTH(D40),[0]!rainforuplandcrop,4)/1000*AB40*1600*7 -> 
B41: 2009-02-07 | C41: 2009-02-13 | D41: 2009-02-13 | E41: 15 | F41: =IF(ISERROR(VLOOKUP(E41,Crop!$N$3:$O$70,2,FALSE)),0,VLOOKUP(E41,Crop!$N$3:$O$70,2,FALSE)) -> 6 | G41: =IF(ISERROR(HLOOKUP($D$5,Kc!$C$3:$AI$57,upland_dry!F41+3,FALSE)),0,HLOOKUP($D$5,Kc!$C$3:$AI$57,upland_dry!F41+3,FALSE)) -> 1.19 | H41: 0 | I41: 0 | J41: 0 | K41: 0 | L41: 0 | M41: 0 | N41: 0 | O41: 0 | P41: 0 | Q41: 0 | R41: 0 | S41: 0 | T41: 0 | U41: 0 | V41: 0 | W41: 0 | X41: 0 | Y41: 0 | Z41: 0 | AA41: 0 | AB41: 0 | AC41: =IF(ISERROR((H41*G41+I41*G40+J41*G39+K41*G38+L41*G37+M41*G36+N41*G35+O41*G34+P41*G33+Q41*G32+R41*G31+S41*G30+T41*G29+U41*G28+V41*G27+W41*G78+X41*G77+Y41*G76+Z41*G75+AA41*G74)/AB41),0,(H41*G41+I41*G40+J41*G39+K41*G38+L41*G37+M41*G36+N41*G35+O41*G34+P41*G33+Q41*G32+R41*G31+S41*G30+T41*G29+U41*G28+V41*G27+W41*G78+X41*G77+Y41*G76+Z41*G75+AA41*G74)/AB41) -> 0 | AD41: =VLOOKUP($D$7,ETo!$B$4:$P$88,MONTH(D41)+2,FALSE)/4 ->  | AG41: 0 | AH41: 0 | AJ41: =VLOOKUP(MONTH(D41),[0]!rainforuplandcrop,4)/1000*AB41*1600*7 -> 
B42: 2009-02-14 | C42: 2009-02-20 | D42: 2009-02-20 | E42: 16 | F42: =IF(ISERROR(VLOOKUP(E42,Crop!$N$3:$O$70,2,FALSE)),0,VLOOKUP(E42,Crop!$N$3:$O$70,2,FALSE)) -> 7 | G42: =IF(ISERROR(HLOOKUP($D$5,Kc!$C$3:$AI$57,upland_dry!F42+3,FALSE)),0,HLOOKUP($D$5,Kc!$C$3:$AI$57,upland_dry!F42+3,FALSE)) -> 0.66 | H42: 0 | I42: 0 | J42: 0 | K42: 0 | L42: 0 | M42: 0 | N42: 0 | O42: 0 | P42: 0 | Q42: 0 | R42: 0 | S42: 0 | T42: 0 | U42: 0 | V42: 0 | W42: 0 | X42: 0 | Y42: 0 | Z42: 0 | AA42: 0 | AB42: 0 | AC42: =IF(ISERROR((H42*G42+I42*G41+J42*G40+K42*G39+L42*G38+M42*G37+N42*G36+O42*G35+P42*G34+Q42*G33+R42*G32+S42*G31+T42*G30+U42*G29+V42*G28+W42*G27+X42*G78+Y42*G77+Z42*G76+AA42*G75)/AB42),0,(H42*G42+I42*G41+J42*G40+K42*G39+L42*G38+M42*G37+N42*G36+O42*G35+P42*G34+Q42*G33+R42*G32+S42*G31+T42*G30+U42*G29+V42*G28+W42*G27+X42*G78+Y42*G77+Z42*G76+AA42*G75)/AB42) -> 0 | AD42: =VLOOKUP($D$7,ETo!$B$4:$P$88,MONTH(D42)+2,FALSE)/4 ->  | AG42: 0 | AH42: 0 | AJ42: =VLOOKUP(MONTH(D42),[0]!rainforuplandcrop,4)/1000*AB42*1600*7 -> 
B43: 2009-02-21 | C43: 2009-02-27 | D43: 2009-02-27 | E43: 17 | F43: =IF(ISERROR(VLOOKUP(E43,Crop!$N$3:$O$70,2,FALSE)),0,VLOOKUP(E43,Crop!$N$3:$O$70,2,FALSE)) -> 8 | G43: =IF(ISERROR(HLOOKUP($D$5,Kc!$C$3:$AI$57,upland_dry!F43+3,FALSE)),0,HLOOKUP($D$5,Kc!$C$3:$AI$57,upland_dry!F43+3,FALSE)) -> 0.44 | H43: 0 | I43: 0 | J43: 0 | K43: 0 | L43: 0 | M43: 0 | N43: 0 | O43: 0 | P43: 0 | Q43: 0 | R43: 0 | S43: 0 | T43: 0 | U43: 0 | V43: 0 | W43: 0 | X43: 0 | Y43: 0 | Z43: 0 | AA43: 0 | AB43: 0 | AC43: =IF(ISERROR((H43*G43+I43*G42+J43*G41+K43*G40+L43*G39+M43*G38+N43*G37+O43*G36+P43*G35+Q43*G34+R43*G33+S43*G32+T43*G31+U43*G30+V43*G29+W43*G28+X43*G27+Y43*G78+Z43*G77+AA43*G76)/AB43),0,(H43*G43+I43*G42+J43*G41+K43*G40+L43*G39+M43*G38+N43*G37+O43*G36+P43*G35+Q43*G34+R43*G33+S43*G32+T43*G31+U43*G30+V43*G29+W43*G28+X43*G27+Y43*G78+Z43*G77+AA43*G76)/AB43) -> 0 | AD43: =VLOOKUP($D$7,ETo!$B$4:$P$88,MONTH(D43)+2,FALSE)/4 ->  | AG43: 0 | AH43: 0 | AJ43: =VLOOKUP(MONTH(D43),[0]!rainforuplandcrop,4)/1000*AB43*1600*7 -> 
B44: 2009-02-28 | C44: 2009-03-06 | D44: 2009-03-06 | E44: 18 | F44: =IF(ISERROR(VLOOKUP(E44,Crop!$N$3:$O$70,2,FALSE)),0,VLOOKUP(E44,Crop!$N$3:$O$70,2,FALSE)) -> 9 | G44: =IF(ISERROR(HLOOKUP($D$5,Kc!$C$3:$AI$57,upland_dry!F44+3,FALSE)),0,HLOOKUP($D$5,Kc!$C$3:$AI$57,upland_dry!F44+3,FALSE)) -> 0.34 | H44: 0 | I44: 0 | J44: 0 | K44: 0 | L44: 0 | M44: 0 | N44: 0 | O44: 0 | P44: 0 | Q44: 0 | R44: 0 | S44: 0 | T44: 0 | U44: 0 | V44: 0 | W44: 0 | X44: 0 | Y44: 0 | Z44: 0 | AA44: 0 | AB44: 0 | AC44: =IF(ISERROR((H44*G44+I44*G43+J44*G42+K44*G41+L44*G40+M44*G39+N44*G38+O44*G37+P44*G36+Q44*G35+R44*G34+S44*G33+T44*G32+U44*G31+V44*G30+W44*G29+X44*G28+Y44*G27+Z44*G78+AA44*G77)/AB44),0,(H44*G44+I44*G43+J44*G42+K44*G41+L44*G40+M44*G39+N44*G38+O44*G37+P44*G36+Q44*G35+R44*G34+S44*G33+T44*G32+U44*G31+V44*G30+W44*G29+X44*G28+Y44*G27+Z44*G78+AA44*G77)/AB44) -> 0 | AD44: =VLOOKUP($D$7,ETo!$B$4:$P$88,MONTH(D44)+2,FALSE)/4 ->  | AG44: 0 | AH44: 0 | AJ44: =VLOOKUP(MONTH(D44),[0]!rainforuplandcrop,4)/1000*AB44*1600*7 -> 
B45: 2009-03-07 | C45: 2009-03-13 | D45: 2009-03-13 | E45: 19 | F45: =IF(ISERROR(VLOOKUP(E45,Crop!$N$3:$O$70,2,FALSE)),0,VLOOKUP(E45,Crop!$N$3:$O$70,2,FALSE)) -> 0 | G45: =IF(ISERROR(HLOOKUP($D$5,Kc!$C$3:$AI$57,upland_dry!F45+3,FALSE)),0,HLOOKUP($D$5,Kc!$C$3:$AI$57,upland_dry!F45+3,FALSE)) -> 0 | H45: 0 | I45: 0 | J45: 0 | K45: 0 | L45: 0 | M45: 0 | N45: 0 | O45: 0 | P45: 0 | Q45: 0 | R45: 0 | S45: 0 | T45: 0 | U45: 0 | V45: 0 | W45: 0 | X45: 0 | Y45: 0 | Z45: 0 | AA45: 0 | AB45: 0 | AC45: =IF(ISERROR((H45*G45+I45*G44+J45*G43+K45*G42+L45*G41+M45*G40+N45*G39+O45*G38+P45*G37+Q45*G36+R45*G35+S45*G34+T45*G33+U45*G32+V45*G31+W45*G30+X45*G29+Y45*G28+Z45*G27+AA45*G78)/AB45),0,(H45*G45+I45*G44+J45*G43+K45*G42+L45*G41+M45*G40+N45*G39+O45*G38+P45*G37+Q45*G36+R45*G35+S45*G34+T45*G33+U45*G32+V45*G31+W45*G30+X45*G29+Y45*G28+Z45*G27+AA45*G78)/AB45) -> 0 | AD45: =VLOOKUP($D$7,ETo!$B$4:$P$88,MONTH(D45)+2,FALSE)/4 ->  | AG45: 0 | AH45: 0 | AJ45: =VLOOKUP(MONTH(D45),[0]!rainforuplandcrop,4)/1000*AB45*1600*7 -> 
B46: 2009-03-14 | C46: 2009-03-20 | D46: 2009-03-20 | E46: 20 | F46: =IF(ISERROR(VLOOKUP(E46,Crop!$N$3:$O$70,2,FALSE)),0,VLOOKUP(E46,Crop!$N$3:$O$70,2,FALSE)) -> 0 | G46: =IF(ISERROR(HLOOKUP($D$5,Kc!$C$3:$AI$57,upland_dry!F46+3,FALSE)),0,HLOOKUP($D$5,Kc!$C$3:$AI$57,upland_dry!F46+3,FALSE)) -> 0 | H46: 0 | I46: 0 | J46: 0 | K46: 0 | L46: 0 | M46: 0 | N46: 0 | O46: 0 | P46: 0 | Q46: 0 | R46: 0 | S46: 0 | T46: 0 | U46: 0 | V46: 0 | W46: 0 | X46: 0 | Y46: 0 | Z46: 0 | AA46: 0 | AB46: 0 | AC46: =IF(ISERROR((H46*G46+I46*G45+J46*G44+K46*G43+L46*G42+M46*G41+N46*G40+O46*G39+P46*G38+Q46*G37+R46*G36+S46*G35+T46*G34+U46*G33+V46*G32+W46*G31+X46*G30+Y46*G29+Z46*G28+AA46*G27)/AB46),0,(H46*G46+I46*G45+J46*G44+K46*G43+L46*G42+M46*G41+N46*G40+O46*G39+P46*G38+Q46*G37+R46*G36+S46*G35+T46*G34+U46*G33+V46*G32+W46*G31+X46*G30+Y46*G29+Z46*G28+AA46*G27)/AB46) -> 0 | AD46: =VLOOKUP($D$7,ETo!$B$4:$P$88,MONTH(D46)+2,FALSE)/4 ->  | AG46: 0 | AH46: 0 | AJ46: =VLOOKUP(MONTH(D46),[0]!rainforuplandcrop,4)/1000*AB46*1600*7 -> 
B47: 2009-03-21 | C47: 2009-03-27 | D47: 2009-03-27 | E47: 21 | F47: =IF(ISERROR(VLOOKUP(E47,Crop!$N$3:$O$70,2,FALSE)),0,VLOOKUP(E47,Crop!$N$3:$O$70,2,FALSE)) -> 0 | G47: =IF(ISERROR(HLOOKUP($D$5,Kc!$C$3:$AI$57,upland_dry!F47+3,FALSE)),0,HLOOKUP($D$5,Kc!$C$3:$AI$57,upland_dry!F47+3,FALSE)) -> 0 | H47: 0 | I47: 0 | J47: 0 | K47: =IF(J46>0,IF(K$26>$E$9,0,VLOOKUP(K$26,$F$3:$G$23,2,FALSE)),0) -> 0 | L47: 0 | M47: 0 | N47: 0 | O47: 0 | P47: 0 | Q47: 0 | R47: 0 | S47: 0 | T47: 0 | U47: =IF(T46>0,IF(U$26>$E$9,0,VLOOKUP(U$26,$F$3:$G$23,2,FALSE)),0) -> 0 | V47: 0 | W47: 0 | X47: 0 | Y47: 0 | Z47: 0 | AA47: 0 | AB47: 0 | AC47: =IF(ISERROR((H47*G47+I47*G46+J47*G45+K47*G44+L47*G43+M47*G42+N47*G41+O47*G40+P47*G39+Q47*G38+R47*G37+S47*G36+T47*G35+U47*G34+V47*G33+W47*G32+X47*G31+Y47*G30+Z47*G29+AA47*G28)/AB47),0,(H47*G47+I47*G46+J47*G45+K47*G44+L47*G43+M47*G42+N47*G41+O47*G40+P47*G39+Q47*G38+R47*G37+S47*G36+T47*G35+U47*G34+V47*G33+W47*G32+X47*G31+Y47*G30+Z47*G29+AA47*G28)/AB47) -> 0 | AD47: =VLOOKUP($D$7,ETo!$B$4:$P$88,MONTH(D47)+2,FALSE)/4 ->  | AG47: 0 | AH47: 0 | AJ47: =VLOOKUP(MONTH(D47),[0]!rainforuplandcrop,4)/1000*AB47*1600*7 -> 
B48: 2009-03-28 | C48: 2009-04-03 | D48: 2009-04-03 | E48: 22 | F48: =IF(ISERROR(VLOOKUP(E48,Crop!$N$3:$O$70,2,FALSE)),0,VLOOKUP(E48,Crop!$N$3:$O$70,2,FALSE)) -> 0 | G48: =IF(ISERROR(HLOOKUP($D$5,Kc!$C$3:$AI$57,upland_dry!F48+3,FALSE)),0,HLOOKUP($D$5,Kc!$C$3:$AI$57,upland_dry!F48+3,FALSE)) -> 0 | H48: 0 | I48: 0 | J48: 0 | K48: 0 | L48: 0 | M48: 0 | N48: 0 | O48: 0 | P48: 0 | Q48: 0 | R48: 0 | S48: 0 | T48: 0 | U48: 0 | V48: 0 | W48: 0 | X48: 0 | Y48: 0 | Z48: 0 | AA48: 0 | AB48: 0 | AC48: =IF(ISERROR((H48*G48+I48*G47+J48*G46+K48*G45+L48*G44+M48*G43+N48*G42+O48*G41+P48*G40+Q48*G39+R48*G38+S48*G37+T48*G36+U48*G35+V48*G34+W48*G33+X48*G32+Y48*G31+Z48*G30+AA48*G29)/AB48),0,(H48*G48+I48*G47+J48*G46+K48*G45+L48*G44+M48*G43+N48*G42+O48*G41+P48*G40+Q48*G39+R48*G38+S48*G37+T48*G36+U48*G35+V48*G34+W48*G33+X48*G32+Y48*G31+Z48*G30+AA48*G29)/AB48) -> 0 | AD48: =VLOOKUP($D$7,ETo!$B$4:$P$88,MONTH(D48)+2,FALSE)/4 ->  | AG48: 0 | AH48: 0 | AJ48: =VLOOKUP(MONTH(D48),[0]!rainforuplandcrop,4)/1000*AB48*1600*7 -> 
B49: 2009-04-04 | C49: 2009-04-10 | D49: 2009-04-10 | E49: 23 | F49: =IF(ISERROR(VLOOKUP(E49,Crop!$N$3:$O$70,2,FALSE)),0,VLOOKUP(E49,Crop!$N$3:$O$70,2,FALSE)) -> 0 | G49: =IF(ISERROR(HLOOKUP($D$5,Kc!$C$3:$AI$57,upland_dry!F49+3,FALSE)),0,HLOOKUP($D$5,Kc!$C$3:$AI$57,upland_dry!F49+3,FALSE)) -> 0 | H49: 0 | I49: 0 | J49: 0 | K49: 0 | L49: 0 | M49: 0 | N49: 0 | O49: 0 | P49: 0 | Q49: 0 | R49: 0 | S49: 0 | T49: 0 | U49: 0 | V49: 0 | W49: 0 | X49: 0 | Y49: 0 | Z49: 0 | AA49: 0 | AB49: 0 | AC49: 0 | AD49: =VLOOKUP($D$7,ETo!$B$4:$P$88,MONTH(D49)+2,FALSE)/4 ->  | AG49: 0 | AH49: 0 | AJ49: =VLOOKUP(MONTH(D49),[0]!rainforuplandcrop,4)/1000*AB49*1600*7 -> 
B50: 2009-04-11 | C50: 2009-04-17 | D50: 2009-04-17 | E50: 24 | F50: =IF(ISERROR(VLOOKUP(E50,Crop!$N$3:$O$70,2,FALSE)),0,VLOOKUP(E50,Crop!$N$3:$O$70,2,FALSE)) -> 0 | G50: =IF(ISERROR(HLOOKUP($D$5,Kc!$C$3:$AI$57,upland_dry!F50+3,FALSE)),0,HLOOKUP($D$5,Kc!$C$3:$AI$57,upland_dry!F50+3,FALSE)) -> 0 | H50: 0 | I50: 0 | J50: 0 | K50: 0 | L50: 0 | M50: 0 | N50: 0 | O50: 0 | P50: 0 | Q50: 0 | R50: 0 | S50: 0 | T50: 0 | U50: 0 | V50: 0 | W50: 0 | X50: 0 | Y50: 0 | Z50: 0 | AA50: 0 | AB50: 0 | AC50: 0 | AD50: =VLOOKUP($D$7,ETo!$B$4:$P$88,MONTH(D50)+2,FALSE)/4 ->  | AG50: 0 | AH50: 0 | AJ50: =VLOOKUP(MONTH(D50),[0]!rainforuplandcrop,4)/1000*AB50*1600*7 -> 
B51: 2009-04-18 | C51: 2009-04-24 | D51: 2009-04-24 | E51: 25 | F51: =IF(ISERROR(VLOOKUP(E51,Crop!$N$3:$O$70,2,FALSE)),0,VLOOKUP(E51,Crop!$N$3:$O$70,2,FALSE)) -> 0 | G51: =IF(ISERROR(HLOOKUP($D$5,Kc!$C$3:$AI$57,upland_dry!F51+3,FALSE)),0,HLOOKUP($D$5,Kc!$C$3:$AI$57,upland_dry!F51+3,FALSE)) -> 0 | H51: 0 | I51: 0 | J51: 0 | K51: 0 | L51: 0 | M51: 0 | N51: 0 | O51: 0 | P51: 0 | Q51: 0 | R51: 0 | S51: 0 | T51: 0 | U51: 0 | V51: 0 | W51: 0 | X51: 0 | Y51: 0 | Z51: 0 | AA51: 0 | AB51: 0 | AC51: 0 | AD51: =VLOOKUP($D$7,ETo!$B$4:$P$88,MONTH(D51)+2,FALSE)/4 ->  | AG51: 0 | AH51: 0 | AJ51: =VLOOKUP(MONTH(D51),[0]!rainforuplandcrop,4)/1000*AB51*1600*7 -> 
B52: 2009-04-25 | C52: 2009-05-01 | D52: 2009-05-01 | E52: 26 | F52: =IF(ISERROR(VLOOKUP(E52,Crop!$N$3:$O$70,2,FALSE)),0,VLOOKUP(E52,Crop!$N$3:$O$70,2,FALSE)) -> 0 | G52: =IF(ISERROR(HLOOKUP($D$5,Kc!$C$3:$AI$57,upland_dry!F52+3,FALSE)),0,HLOOKUP($D$5,Kc!$C$3:$AI$57,upland_dry!F52+3,FALSE)) -> 0 | H52: 0 | I52: 0 | J52: 0 | K52: 0 | L52: 0 | M52: 0 | N52: 0 | O52: 0 | P52: 0 | Q52: 0 | R52: 0 | S52: 0 | T52: 0 | U52: 0 | V52: 0 | W52: 0 | X52: 0 | Y52: 0 | Z52: 0 | AA52: 0 | AB52: 0 | AC52: 0 | AD52: =VLOOKUP($D$7,ETo!$B$4:$P$88,MONTH(D52)+2,FALSE)/4 ->  | AG52: 0 | AH52: 0 | AJ52: =VLOOKUP(MONTH(D52),[0]!rainforuplandcrop,4)/1000*AB52*1600*7 -> 
B53: 2009-05-02 | C53: 2009-05-08 | D53: 2009-05-08 | E53: 27 | F53: =IF(ISERROR(VLOOKUP(E53,Crop!$N$3:$O$70,2,FALSE)),0,VLOOKUP(E53,Crop!$N$3:$O$70,2,FALSE)) -> 0 | G53: =IF(ISERROR(HLOOKUP($D$5,Kc!$C$3:$AI$57,upland_dry!F53+3,FALSE)),0,HLOOKUP($D$5,Kc!$C$3:$AI$57,upland_dry!F53+3,FALSE)) -> 0 | H53: 0 | I53: 0 | J53: 0 | K53: 0 | L53: 0 | M53: 0 | N53: 0 | O53: 0 | P53: 0 | Q53: 0 | R53: 0 | S53: 0 | T53: 0 | U53: 0 | V53: 0 | W53: 0 | X53: 0 | Y53: 0 | Z53: 0 | AA53: 0 | AB53: 0 | AC53: 0 | AD53: =VLOOKUP($D$7,ETo!$B$4:$P$88,MONTH(D53)+2,FALSE)/4 ->  | AG53: 0 | AH53: 0 | AJ53: =VLOOKUP(MONTH(D53),[0]!rainforuplandcrop,4)/1000*AB53*1600*7 -> 
B54: 2009-05-09 | C54: 2009-05-15 | D54: 2009-05-15 | E54: 28 | F54: =IF(ISERROR(VLOOKUP(E54,Crop!$N$3:$O$70,2,FALSE)),0,VLOOKUP(E54,Crop!$N$3:$O$70,2,FALSE)) -> 0 | G54: =IF(ISERROR(HLOOKUP($D$5,Kc!$C$3:$AI$57,upland_dry!F54+3,FALSE)),0,HLOOKUP($D$5,Kc!$C$3:$AI$57,upland_dry!F54+3,FALSE)) -> 0 | H54: 0 | I54: 0 | J54: 0 | K54: 0 | L54: 0 | M54: 0 | N54: 0 | O54: 0 | P54: 0 | Q54: 0 | R54: 0 | S54: 0 | T54: 0 | U54: 0 | V54: 0 | W54: 0 | X54: 0 | Y54: 0 | Z54: 0 | AA54: 0 | AB54: 0 | AC54: 0 | AD54: =VLOOKUP($D$7,ETo!$B$4:$P$88,MONTH(D54)+2,FALSE)/4 ->  | AG54: 0 | AH54: 0 | AJ54: =VLOOKUP(MONTH(D54),[0]!rainforuplandcrop,4)/1000*AB54*1600*7 -> 
B55: 2009-05-16 | C55: 2009-05-22 | D55: 2009-05-22 | E55: 29 | F55: =IF(ISERROR(VLOOKUP(E55,Crop!$N$3:$O$70,2,FALSE)),0,VLOOKUP(E55,Crop!$N$3:$O$70,2,FALSE)) -> 0 | G55: =IF(ISERROR(HLOOKUP($D$5,Kc!$C$3:$AI$57,upland_dry!F55+3,FALSE)),0,HLOOKUP($D$5,Kc!$C$3:$AI$57,upland_dry!F55+3,FALSE)) -> 0 | H55: 0 | I55: 0 | J55: 0 | K55: 0 | L55: 0 | M55: 0 | N55: 0 | O55: 0 | P55: 0 | Q55: 0 | R55: 0 | S55: 0 | T55: 0 | U55: 0 | V55: 0 | W55: 0 | X55: 0 | Y55: 0 | Z55: 0 | AA55: 0 | AB55: 0 | AC55: 0 | AD55: =VLOOKUP($D$7,ETo!$B$4:$P$88,MONTH(D55)+2,FALSE)/4 ->  | AG55: 0 | AH55: 0 | AJ55: =VLOOKUP(MONTH(D55),[0]!rainforuplandcrop,4)/1000*AB55*1600*7 -> 
B56: 2009-05-23 | C56: 2009-05-29 | D56: 2009-05-29 | E56: 30 | F56: =IF(ISERROR(VLOOKUP(E56,Crop!$N$3:$O$70,2,FALSE)),0,VLOOKUP(E56,Crop!$N$3:$O$70,2,FALSE)) -> 0 | G56: =IF(ISERROR(HLOOKUP($D$5,Kc!$C$3:$AI$57,upland_dry!F56+3,FALSE)),0,HLOOKUP($D$5,Kc!$C$3:$AI$57,upland_dry!F56+3,FALSE)) -> 0 | H56: 0 | I56: 0 | J56: 0 | K56: 0 | L56: 0 | M56: 0 | N56: 0 | O56: 0 | P56: 0 | Q56: 0 | R56: 0 | S56: 0 | T56: 0 | U56: 0 | V56: 0 | W56: 0 | X56: 0 | Y56: 0 | Z56: 0 | AA56: 0 | AB56: 0 | AC56: 0 | AD56: =VLOOKUP($D$7,ETo!$B$4:$P$88,MONTH(D56)+2,FALSE)/4 ->  | AG56: 0 | AH56: 0 | AJ56: =VLOOKUP(MONTH(D56),[0]!rainforuplandcrop,4)/1000*AB56*1600*7 -> 
B57: 2009-05-30 | C57: 2009-06-05 | D57: 2009-06-05 | E57: 31 | F57: =IF(ISERROR(VLOOKUP(E57,Crop!$N$3:$O$70,2,FALSE)),0,VLOOKUP(E57,Crop!$N$3:$O$70,2,FALSE)) -> 0 | G57: =IF(ISERROR(HLOOKUP($D$5,Kc!$C$3:$AI$57,upland_dry!F57+3,FALSE)),0,HLOOKUP($D$5,Kc!$C$3:$AI$57,upland_dry!F57+3,FALSE)) -> 0 | H57: 0 | I57: 0 | J57: 0 | K57: =IF(J56>0,IF(K$26>$E$9,0,VLOOKUP(K$26,$F$3:$G$23,2,FALSE)),0) -> 0 | L57: 0 | M57: 0 | N57: 0 | O57: 0 | P57: 0 | Q57: 0 | R57: 0 | S57: 0 | T57: 0 | U57: =IF(T56>0,IF(U$26>$E$9,0,VLOOKUP(U$26,$F$3:$G$23,2,FALSE)),0) -> 0 | V57: 0 | W57: 0 | X57: 0 | Y57: 0 | Z57: 0 | AA57: 0 | AB57: 0 | AC57: 0 | AD57: =VLOOKUP($D$7,ETo!$B$4:$P$88,MONTH(D57)+2,FALSE)/4 ->  | AG57: 0 | AH57: 0 | AJ57: =VLOOKUP(MONTH(D57),[0]!rainforuplandcrop,4)/1000*AB57*1600*7 -> 
B58: 2009-06-06 | C58: 2009-06-12 | D58: 2009-06-12 | E58: 32 | F58: =IF(ISERROR(VLOOKUP(E58,Crop!$N$3:$O$70,2,FALSE)),0,VLOOKUP(E58,Crop!$N$3:$O$70,2,FALSE)) -> 0 | G58: =IF(ISERROR(HLOOKUP($D$5,Kc!$C$3:$AI$57,upland_dry!F58+3,FALSE)),0,HLOOKUP($D$5,Kc!$C$3:$AI$57,upland_dry!F58+3,FALSE)) -> 0 | H58: 0 | I58: 0 | J58: 0 | K58: 0 | L58: 0 | M58: 0 | N58: 0 | O58: 0 | P58: 0 | Q58: 0 | R58: 0 | S58: 0 | T58: 0 | U58: 0 | V58: 0 | W58: 0 | X58: 0 | Y58: 0 | Z58: 0 | AA58: 0 | AB58: 0 | AC58: 0 | AD58: =VLOOKUP($D$7,ETo!$B$4:$P$88,MONTH(D58)+2,FALSE)/4 ->  | AG58: 0 | AH58: 0 | AJ58: =VLOOKUP(MONTH(D58),[0]!rainforuplandcrop,4)/1000*AB58*1600*7 -> 
B59: 2009-06-13 | C59: 2009-06-19 | D59: 2009-06-19 | E59: 33 | F59: =IF(ISERROR(VLOOKUP(E59,Crop!$N$3:$O$70,2,FALSE)),0,VLOOKUP(E59,Crop!$N$3:$O$70,2,FALSE)) -> 0 | G59: =IF(ISERROR(HLOOKUP($D$5,Kc!$C$3:$AI$57,upland_dry!F59+3,FALSE)),0,HLOOKUP($D$5,Kc!$C$3:$AI$57,upland_dry!F59+3,FALSE)) -> 0 | H59: 0 | I59: 0 | J59: 0 | K59: 0 | L59: 0 | M59: 0 | N59: 0 | O59: 0 | P59: 0 | Q59: 0 | R59: 0 | S59: 0 | T59: 0 | U59: 0 | V59: 0 | W59: 0 | X59: 0 | Y59: 0 | Z59: 0 | AA59: 0 | AB59: 0 | AC59: 0 | AD59: =VLOOKUP($D$7,ETo!$B$4:$P$88,MONTH(D59)+2,FALSE)/4 ->  | AE59: =IF(AC59*AD59=0,0,(AC59*AD59)+$E$10) ->  | AF59: =AE59*AB59*1.6 ->  | AG59: 0 | AH59: 0 | AI59: =AF59+AH59 ->  | AJ59: =VLOOKUP(MONTH(D59),[0]!rainforuplandcrop,4)/1000*AB59*1600*7 -> 
B60: =C59+1 -> 2009-06-20 | C60: =B60+6 -> 2009-06-26 | D60: 2009-06-26 | E60: 34 | F60: =IF(ISERROR(VLOOKUP(E60,Crop!$N$3:$O$70,2,FALSE)),0,VLOOKUP(E60,Crop!$N$3:$O$70,2,FALSE)) -> 0 | G60: =IF(ISERROR(HLOOKUP($D$5,Kc!$C$3:$AI$57,upland_dry!F60+3,FALSE)),0,HLOOKUP($D$5,Kc!$C$3:$AI$57,upland_dry!F60+3,FALSE)) -> 0 | H60: 0 | I60: 0 | J60: 0 | K60: 0 | L60: 0 | M60: 0 | N60: 0 | O60: 0 | P60: 0 | Q60: 0 | R60: 0 | S60: 0 | T60: 0 | U60: 0 | V60: 0 | W60: 0 | X60: 0 | Y60: 0 | Z60: 0 | AA60: 0 | AB60: 0 | AC60: 0 | AD60: =VLOOKUP($D$7,ETo!$B$4:$P$88,MONTH(D60)+2,FALSE)/4 ->  | AG60: 0 | AH60: 0 | AJ60: =VLOOKUP(MONTH(D60),[0]!rainforuplandcrop,4)/1000*AB60*1600*7 -> 
B61: 2009-06-27 | C61: 2009-07-03 | D61: 2009-07-03 | E61: 35 | F61: =IF(ISERROR(VLOOKUP(E61,Crop!$N$3:$O$70,2,FALSE)),0,VLOOKUP(E61,Crop!$N$3:$O$70,2,FALSE)) -> 0 | G61: =IF(ISERROR(HLOOKUP($D$5,Kc!$C$3:$AI$57,upland_dry!F61+3,FALSE)),0,HLOOKUP($D$5,Kc!$C$3:$AI$57,upland_dry!F61+3,FALSE)) -> 0 | H61: 0 | I61: 0 | J61: 0 | K61: 0 | L61: 0 | M61: 0 | N61: 0 | O61: 0 | P61: 0 | Q61: 0 | R61: 0 | S61: 0 | T61: 0 | U61: 0 | V61: 0 | W61: 0 | X61: 0 | Y61: 0 | Z61: 0 | AA61: 0 | AB61: 0 | AC61: 0 | AD61: =VLOOKUP($D$7,ETo!$B$4:$P$88,MONTH(D61)+2,FALSE)/4 ->  | AG61: 0 | AH61: 0 | AJ61: =VLOOKUP(MONTH(D61),[0]!rainforuplandcrop,4)/1000*AB61*1600*7 -> 
B62: 2009-07-04 | C62: 2009-07-10 | D62: 2009-07-10 | E62: 36 | F62: =IF(ISERROR(VLOOKUP(E62,Crop!$N$3:$O$70,2,FALSE)),0,VLOOKUP(E62,Crop!$N$3:$O$70,2,FALSE)) -> 0 | G62: =IF(ISERROR(HLOOKUP($D$5,Kc!$C$3:$AI$57,upland_dry!F62+3,FALSE)),0,HLOOKUP($D$5,Kc!$C$3:$AI$57,upland_dry!F62+3,FALSE)) -> 0 | H62: 0 | I62: 0 | J62: 0 | K62: 0 | L62: 0 | M62: 0 | N62: 0 | O62: 0 | P62: 0 | Q62: 0 | R62: 0 | S62: 0 | T62: 0 | U62: 0 | V62: 0 | W62: 0 | X62: 0 | Y62: 0 | Z62: 0 | AA62: 0 | AB62: 0 | AC62: 0 | AD62: =VLOOKUP($D$7,ETo!$B$4:$P$88,MONTH(D62)+2,FALSE)/4 ->  | AG62: 0 | AH62: 0 | AJ62: =VLOOKUP(MONTH(D62),[0]!rainforuplandcrop,4)/1000*AB62*1600*7 -> 
B63: 2009-07-11 | C63: 2009-07-17 | D63: 2009-07-17 | E63: 37 | F63: =IF(ISERROR(VLOOKUP(E63,Crop!$N$3:$O$70,2,FALSE)),0,VLOOKUP(E63,Crop!$N$3:$O$70,2,FALSE)) -> 0 | G63: =IF(ISERROR(HLOOKUP($D$5,Kc!$C$3:$AI$57,upland_dry!F63+3,FALSE)),0,HLOOKUP($D$5,Kc!$C$3:$AI$57,upland_dry!F63+3,FALSE)) -> 0 | H63: 0 | I63: 0 | J63: 0 | K63: 0 | L63: 0 | M63: 0 | N63: 0 | O63: 0 | P63: 0 | Q63: 0 | R63: 0 | S63: 0 | T63: 0 | U63: 0 | V63: 0 | W63: 0 | X63: 0 | Y63: 0 | Z63: 0 | AA63: 0 | AB63: 0 | AC63: 0 | AD63: =VLOOKUP($D$7,ETo!$B$4:$P$88,MONTH(D63)+2,FALSE)/4 ->  | AG63: 0 | AH63: 0 | AJ63: =VLOOKUP(MONTH(D63),[0]!rainforuplandcrop,4)/1000*AB63*1600*7 -> 
B64: 2009-07-18 | C64: 2009-07-24 | D64: 2009-07-24 | E64: 38 | F64: =IF(ISERROR(VLOOKUP(E64,Crop!$N$3:$O$70,2,FALSE)),0,VLOOKUP(E64,Crop!$N$3:$O$70,2,FALSE)) -> 0 | G64: =IF(ISERROR(HLOOKUP($D$5,Kc!$C$3:$AI$57,upland_dry!F64+3,FALSE)),0,HLOOKUP($D$5,Kc!$C$3:$AI$57,upland_dry!F64+3,FALSE)) -> 0 | H64: 0 | I64: 0 | J64: 0 | K64: 0 | L64: 0 | M64: 0 | N64: 0 | O64: 0 | P64: 0 | Q64: 0 | R64: 0 | S64: 0 | T64: 0 | U64: 0 | V64: 0 | W64: 0 | X64: 0 | Y64: 0 | Z64: 0 | AA64: 0 | AB64: 0 | AC64: 0 | AD64: =VLOOKUP($D$7,ETo!$B$4:$P$88,MONTH(D64)+2,FALSE)/4 ->  | AG64: 0 | AH64: 0 | AJ64: =VLOOKUP(MONTH(D64),[0]!rainforuplandcrop,4)/1000*AB64*1600*7 -> 
B65: 2009-07-25 | C65: 2009-07-31 | D65: 2009-07-31 | E65: 39 | F65: =IF(ISERROR(VLOOKUP(E65,Crop!$N$3:$O$70,2,FALSE)),0,VLOOKUP(E65,Crop!$N$3:$O$70,2,FALSE)) -> 0 | G65: =IF(ISERROR(HLOOKUP($D$5,Kc!$C$3:$AI$57,upland_dry!F65+3,FALSE)),0,HLOOKUP($D$5,Kc!$C$3:$AI$57,upland_dry!F65+3,FALSE)) -> 0 | H65: 0 | I65: 0 | J65: 0 | K65: 0 | L65: 0 | M65: 0 | N65: 0 | O65: 0 | P65: 0 | Q65: 0 | R65: 0 | S65: 0 | T65: 0 | U65: 0 | V65: 0 | W65: 0 | X65: 0 | Y65: 0 | Z65: 0 | AA65: 0 | AB65: 0 | AC65: 0 | AD65: =VLOOKUP($D$7,ETo!$B$4:$P$88,MONTH(D65)+2,FALSE)/4 ->  | AG65: 0 | AH65: 0 | AJ65: =VLOOKUP(MONTH(D65),[0]!rainforuplandcrop,4)/1000*AB65*1600*7 -> 
B66: 2009-08-01 | C66: 2009-08-07 | D66: 2009-08-07 | E66: 40 | F66: =IF(ISERROR(VLOOKUP(E66,Crop!$N$3:$O$70,2,FALSE)),0,VLOOKUP(E66,Crop!$N$3:$O$70,2,FALSE)) -> 0 | G66: =IF(ISERROR(HLOOKUP($D$5,Kc!$C$3:$AI$57,upland_dry!F66+3,FALSE)),0,HLOOKUP($D$5,Kc!$C$3:$AI$57,upland_dry!F66+3,FALSE)) -> 0 | H66: 0 | I66: 0 | J66: 0 | K66: 0 | L66: 0 | M66: 0 | N66: 0 | O66: 0 | P66: 0 | Q66: 0 | R66: 0 | S66: 0 | T66: 0 | U66: 0 | V66: 0 | W66: 0 | X66: 0 | Y66: 0 | Z66: 0 | AA66: 0 | AB66: 0 | AC66: 0 | AD66: =VLOOKUP($D$7,ETo!$B$4:$P$88,MONTH(D66)+2,FALSE)/4 ->  | AG66: 0 | AH66: 0 | AJ66: =VLOOKUP(MONTH(D66),[0]!rainforuplandcrop,4)/1000*AB66*1600*7 -> 
B67: 2009-08-08 | C67: 2009-08-14 | D67: 2009-08-14 | E67: 41 | F67: =IF(ISERROR(VLOOKUP(E67,Crop!$N$3:$O$70,2,FALSE)),0,VLOOKUP(E67,Crop!$N$3:$O$70,2,FALSE)) -> 0 | G67: =IF(ISERROR(HLOOKUP($D$5,Kc!$C$3:$AI$57,upland_dry!F67+3,FALSE)),0,HLOOKUP($D$5,Kc!$C$3:$AI$57,upland_dry!F67+3,FALSE)) -> 0 | H67: 0 | I67: 0 | J67: 0 | K67: =IF(J66>0,IF(K$26>$E$9,0,VLOOKUP(K$26,$F$3:$G$23,2,FALSE)),0) -> 0 | L67: 0 | M67: 0 | N67: 0 | O67: 0 | P67: 0 | Q67: 0 | R67: 0 | S67: 0 | T67: 0 | U67: =IF(T66>0,IF(U$26>$E$9,0,VLOOKUP(U$26,$F$3:$G$23,2,FALSE)),0) -> 0 | V67: 0 | W67: 0 | X67: 0 | Y67: 0 | Z67: 0 | AA67: 0 | AB67: 0 | AC67: 0 | AD67: =VLOOKUP($D$7,ETo!$B$4:$P$88,MONTH(D67)+2,FALSE)/4 ->  | AG67: 0 | AH67: 0 | AJ67: =VLOOKUP(MONTH(D67),[0]!rainforuplandcrop,4)/1000*AB67*1600*7 -> 
B68: 2009-08-15 | C68: 2009-08-21 | D68: 2009-08-21 | E68: 42 | F68: =IF(ISERROR(VLOOKUP(E68,Crop!$N$3:$O$70,2,FALSE)),0,VLOOKUP(E68,Crop!$N$3:$O$70,2,FALSE)) -> 0 | G68: =IF(ISERROR(HLOOKUP($D$5,Kc!$C$3:$AI$57,upland_dry!F68+3,FALSE)),0,HLOOKUP($D$5,Kc!$C$3:$AI$57,upland_dry!F68+3,FALSE)) -> 0 | H68: 0 | I68: 0 | J68: 0 | K68: 0 | L68: 0 | M68: 0 | N68: 0 | O68: 0 | P68: 0 | Q68: 0 | R68: 0 | S68: 0 | T68: 0 | U68: 0 | V68: 0 | W68: 0 | X68: 0 | Y68: 0 | Z68: 0 | AA68: 0 | AB68: 0 | AC68: 0 | AD68: =VLOOKUP($D$7,ETo!$B$4:$P$88,MONTH(D68)+2,FALSE)/4 ->  | AG68: 0 | AH68: 0 | AJ68: =VLOOKUP(MONTH(D68),[0]!rainforuplandcrop,4)/1000*AB68*1600*7 -> 
B69: 2009-08-22 | C69: 2009-08-28 | D69: 2009-08-28 | E69: 43 | F69: =IF(ISERROR(VLOOKUP(E69,Crop!$N$3:$O$70,2,FALSE)),0,VLOOKUP(E69,Crop!$N$3:$O$70,2,FALSE)) -> 0 | G69: =IF(ISERROR(HLOOKUP($D$5,Kc!$C$3:$AI$57,upland_dry!F69+3,FALSE)),0,HLOOKUP($D$5,Kc!$C$3:$AI$57,upland_dry!F69+3,FALSE)) -> 0 | H69: 0 | I69: 0 | J69: 0 | K69: 0 | L69: 0 | M69: 0 | N69: 0 | O69: 0 | P69: 0 | Q69: 0 | R69: 0 | S69: 0 | T69: 0 | U69: 0 | V69: 0 | W69: 0 | X69: 0 | Y69: 0 | Z69: 0 | AA69: 0 | AB69: 0 | AC69: 0 | AD69: =VLOOKUP($D$7,ETo!$B$4:$P$88,MONTH(D69)+2,FALSE)/4 ->  | AG69: 0 | AH69: 0 | AJ69: =VLOOKUP(MONTH(D69),[0]!rainforuplandcrop,4)/1000*AB69*1600*7 -> 
B70: 2009-08-29 | C70: 2009-09-04 | D70: 2009-09-04 | E70: 44 | F70: =IF(ISERROR(VLOOKUP(E70,Crop!$N$3:$O$70,2,FALSE)),0,VLOOKUP(E70,Crop!$N$3:$O$70,2,FALSE)) -> 0 | G70: =IF(ISERROR(HLOOKUP($D$5,Kc!$C$3:$AI$57,upland_dry!F70+3,FALSE)),0,HLOOKUP($D$5,Kc!$C$3:$AI$57,upland_dry!F70+3,FALSE)) -> 0 | H70: 0 | I70: 0 | J70: 0 | K70: 0 | L70: 0 | M70: 0 | N70: 0 | O70: 0 | P70: 0 | Q70: 0 | R70: 0 | S70: 0 | T70: 0 | U70: 0 | V70: 0 | W70: 0 | X70: 0 | Y70: 0 | Z70: 0 | AA70: 0 | AB70: 0 | AC70: 0 | AD70: =VLOOKUP($D$7,ETo!$B$4:$P$88,MONTH(D70)+2,FALSE)/4 ->  | AG70: 0 | AH70: 0 | AJ70: =VLOOKUP(MONTH(D70),[0]!rainforuplandcrop,4)/1000*AB70*1600*7 -> 
B71: 2009-09-05 | C71: 2009-09-11 | D71: 2009-09-11 | E71: 45 | F71: =IF(ISERROR(VLOOKUP(E71,Crop!$N$3:$O$70,2,FALSE)),0,VLOOKUP(E71,Crop!$N$3:$O$70,2,FALSE)) -> 0 | G71: =IF(ISERROR(HLOOKUP($D$5,Kc!$C$3:$AI$57,upland_dry!F71+3,FALSE)),0,HLOOKUP($D$5,Kc!$C$3:$AI$57,upland_dry!F71+3,FALSE)) -> 0 | H71: 0 | I71: 0 | J71: 0 | K71: 0 | L71: 0 | M71: 0 | N71: 0 | O71: 0 | P71: 0 | Q71: 0 | R71: 0 | S71: 0 | T71: 0 | U71: 0 | V71: 0 | W71: 0 | X71: 0 | Y71: 0 | Z71: 0 | AA71: 0 | AB71: 0 | AC71: 0 | AD71: =VLOOKUP($D$7,ETo!$B$4:$P$88,MONTH(D71)+2,FALSE)/4 ->  | AG71: 0 | AH71: 0 | AJ71: =VLOOKUP(MONTH(D71),[0]!rainforuplandcrop,4)/1000*AB71*1600*7 -> 
B72: 2009-09-12 | C72: 2009-09-18 | D72: 2009-09-18 | E72: 46 | F72: =IF(ISERROR(VLOOKUP(E72,Crop!$N$3:$O$70,2,FALSE)),0,VLOOKUP(E72,Crop!$N$3:$O$70,2,FALSE)) -> 0 | G72: =IF(ISERROR(HLOOKUP($D$5,Kc!$C$3:$AI$57,upland_dry!F72+3,FALSE)),0,HLOOKUP($D$5,Kc!$C$3:$AI$57,upland_dry!F72+3,FALSE)) -> 0 | H72: 0 | I72: 0 | J72: 0 | K72: 0 | L72: 0 | M72: 0 | N72: 0 | O72: 0 | P72: 0 | Q72: 0 | R72: 0 | S72: 0 | T72: 0 | U72: 0 | V72: 0 | W72: 0 | X72: 0 | Y72: 0 | Z72: 0 | AA72: 0 | AB72: 0 | AC72: 0 | AD72: =VLOOKUP($D$7,ETo!$B$4:$P$88,MONTH(D72)+2,FALSE)/4 ->  | AG72: 0 | AH72: 0 | AJ72: =VLOOKUP(MONTH(D72),[0]!rainforuplandcrop,4)/1000*AB72*1600*7 -> 
B73: 2009-09-19 | C73: 2009-09-25 | D73: 2009-09-25 | E73: 47 | F73: =IF(ISERROR(VLOOKUP(E73,Crop!$N$3:$O$70,2,FALSE)),0,VLOOKUP(E73,Crop!$N$3:$O$70,2,FALSE)) -> 0 | G73: =IF(ISERROR(HLOOKUP($D$5,Kc!$C$3:$AI$57,upland_dry!F73+3,FALSE)),0,HLOOKUP($D$5,Kc!$C$3:$AI$57,upland_dry!F73+3,FALSE)) -> 0 | H73: 0 | I73: 0 | J73: 0 | K73: 0 | L73: 0 | M73: 0 | N73: 0 | O73: 0 | P73: 0 | Q73: 0 | R73: 0 | S73: 0 | T73: 0 | U73: 0 | V73: 0 | W73: 0 | X73: 0 | Y73: 0 | Z73: 0 | AA73: 0 | AB73: 0 | AC73: 0 | AD73: =VLOOKUP($D$7,ETo!$B$4:$P$88,MONTH(D73)+2,FALSE)/4 ->  | AG73: 0 | AH73: 0 | AJ73: =VLOOKUP(MONTH(D73),[0]!rainforuplandcrop,4)/1000*AB73*1600*7 -> 
B74: 2009-09-26 | C74: 2009-10-02 | D74: 2009-10-02 | E74: 48 | F74: =IF(ISERROR(VLOOKUP(E74,Crop!$N$3:$O$70,2,FALSE)),0,VLOOKUP(E74,Crop!$N$3:$O$70,2,FALSE)) -> 0 | G74: =IF(ISERROR(HLOOKUP($D$5,Kc!$C$3:$AI$57,upland_dry!F74+3,FALSE)),0,HLOOKUP($D$5,Kc!$C$3:$AI$57,upland_dry!F74+3,FALSE)) -> 0 | H74: 0 | I74: 0 | J74: 0 | K74: 0 | L74: 0 | M74: 0 | N74: 0 | O74: 0 | P74: 0 | Q74: 0 | R74: 0 | S74: 0 | T74: 0 | U74: 0 | V74: 0 | W74: 0 | X74: 0 | Y74: 0 | Z74: 0 | AA74: 0 | AB74: 0 | AC74: 0 | AD74: =VLOOKUP($D$7,ETo!$B$4:$P$88,MONTH(D74)+2,FALSE)/4 ->  | AG74: 0 | AH74: 0 | AJ74: =VLOOKUP(MONTH(D74),[0]!rainforuplandcrop,4)/1000*AB74*1600*7 -> 
B75: 2009-10-03 | C75: 2009-10-09 | D75: 2009-10-09 | E75: 49 | F75: =IF(ISERROR(VLOOKUP(E75,Crop!$N$3:$O$70,2,FALSE)),0,VLOOKUP(E75,Crop!$N$3:$O$70,2,FALSE)) -> 0 | G75: =IF(ISERROR(HLOOKUP($D$5,Kc!$C$3:$AI$57,upland_dry!F75+3,FALSE)),0,HLOOKUP($D$5,Kc!$C$3:$AI$57,upland_dry!F75+3,FALSE)) -> 0 | H75: 0 | I75: 0 | J75: 0 | K75: 0 | L75: 0 | M75: 0 | N75: 0 | O75: 0 | P75: 0 | Q75: 0 | R75: 0 | S75: 0 | T75: 0 | U75: 0 | V75: 0 | W75: 0 | X75: 0 | Y75: 0 | Z75: 0 | AA75: 0 | AB75: 0 | AC75: 0 | AD75: =VLOOKUP($D$7,ETo!$B$4:$P$88,MONTH(D75)+2,FALSE)/4 ->  | AG75: 0 | AH75: 0 | AJ75: =VLOOKUP(MONTH(D75),[0]!rainforuplandcrop,4)/1000*AB75*1600*7 -> 
B76: 2009-10-10 | C76: 2009-10-16 | D76: 2009-10-16 | E76: 50 | F76: =IF(ISERROR(VLOOKUP(E76,Crop!$N$3:$O$70,2,FALSE)),0,VLOOKUP(E76,Crop!$N$3:$O$70,2,FALSE)) -> 0 | G76: =IF(ISERROR(HLOOKUP($D$5,Kc!$C$3:$AI$57,upland_dry!F76+3,FALSE)),0,HLOOKUP($D$5,Kc!$C$3:$AI$57,upland_dry!F76+3,FALSE)) -> 0 | H76: 0 | I76: 0 | J76: 0 | K76: 0 | L76: 0 | M76: 0 | N76: 0 | O76: 0 | P76: 0 | Q76: 0 | R76: 0 | S76: 0 | T76: 0 | U76: 0 | V76: 0 | W76: 0 | X76: 0 | Y76: 0 | Z76: 0 | AA76: 0 | AB76: 0 | AC76: 0 | AD76: =VLOOKUP($D$7,ETo!$B$4:$P$88,MONTH(D76)+2,FALSE)/4 ->  | AG76: 0 | AH76: 0 | AJ76: =VLOOKUP(MONTH(D76),[0]!rainforuplandcrop,4)/1000*AB76*1600*7 -> 
B77: 2009-10-17 | C77: 2009-10-23 | D77: 2009-10-23 | E77: 51 | F77: =IF(ISERROR(VLOOKUP(E77,Crop!$N$3:$O$70,2,FALSE)),0,VLOOKUP(E77,Crop!$N$3:$O$70,2,FALSE)) -> 0 | G77: =IF(ISERROR(HLOOKUP($D$5,Kc!$C$3:$AI$57,upland_dry!F77+3,FALSE)),0,HLOOKUP($D$5,Kc!$C$3:$AI$57,upland_dry!F77+3,FALSE)) -> 0 | H77: 0 | I77: 0 | J77: 0 | K77: 0 | L77: 0 | M77: 0 | N77: 0 | O77: 0 | P77: 0 | Q77: 0 | R77: 0 | S77: 0 | T77: 0 | U77: 0 | V77: 0 | W77: 0 | X77: 0 | Y77: 0 | Z77: 0 | AA77: 0 | AB77: 0 | AC77: 0 | AD77: =VLOOKUP($D$7,ETo!$B$4:$P$88,MONTH(D77)+2,FALSE)/4 ->  | AG77: 0 | AH77: 0 | AJ77: =VLOOKUP(MONTH(D77),[0]!rainforuplandcrop,4)/1000*AB77*1600*7 -> 
B78: 2009-10-24 | C78: 2009-10-30 | D78: 2009-10-30 | E78: 52 | F78: =IF(ISERROR(VLOOKUP(E78,Crop!$N$3:$O$70,2,FALSE)),0,VLOOKUP(E78,Crop!$N$3:$O$70,2,FALSE)) -> 0 | G78: =IF(ISERROR(HLOOKUP($D$5,Kc!$C$3:$AI$57,upland_dry!F78+3,FALSE)),0,HLOOKUP($D$5,Kc!$C$3:$AI$57,upland_dry!F78+3,FALSE)) -> 0 | H78: 0 | I78: 0 | J78: 0 | K78: 0 | L78: 0 | M78: 0 | N78: 0 | O78: 0 | P78: 0 | Q78: 0 | R78: 0 | S78: 0 | T78: 0 | U78: 0 | V78: 0 | W78: 0 | X78: 0 | Y78: 0 | Z78: 0 | AA78: 0 | AB78: 0 | AC78: 0 | AD78: =VLOOKUP($D$7,ETo!$B$4:$P$88,MONTH(D78)+2,FALSE)/4 ->  | AG78: 0 | AH78: 0 | AJ78: =VLOOKUP(MONTH(D78),[0]!rainforuplandcrop,4)/1000*AB78*1600*7 -> 
AI79: =SUM(AI27:AI78) ->  | AJ79: =SUM(AJ27:AJ78) -> 

Sheet upland_rain
B1: ตารางแสดงรายละเอียดการคำนวณความต้องการน้ำของพืช
F2: สัปดาห์ | G2: พื้นที่ (ไร่)
F3: 1 | G3: =+fill_data!F32 -> 0 | S3: =+E6 -> 27 | T3: 1
B4: จังหวัด | D4: =+fill_data!C4 -> 0 | F4: =IF(F3="","",IF(F3+1<=$E$9,F3+1,"")) -> 2 | G4: =+fill_data!F33 -> 0 | S4: =IF(+S3+1>52,+S3+1-52,S3+1) -> 28 | T4: 2
B5: ชนิดพืช | D5: =+fill_data!C33 -> ข้าวโพดเลี้ยงสัตว์ | F5: 3 | G5: =+fill_data!F34 -> 0 | S5: =IF(+S4+1>52,+S4+1-52,S4+1) -> 29 | T5: 3
B6: สัปดาห์เริ่มต้น | D6: =VLOOKUP(D5,Crop!$B$3:$C$35,2,FALSE) -> 14 | E6: =+fill_data!D34 -> 27 | F6: 4 | G6: =+fill_data!F35 -> 0 | S6: 30 | T6: 4
B7: ใช้ค่า ETo ของจังหวัด | D7: =+fill_data!C5 ->  | F7: 5 | G7: =+fill_data!F36 -> 0 | S7: 31 | T7: 5
B8: พื้นที่โครงการ, ไร่ | E8: =fill_data!D35 -> 0 | G8: =+fill_data!F37 -> 0 | S8: 32 | T8: 6
B9: เวลาปลูกจนเต็มพื้นที่, สัปดาห์ | E9: =+fill_data!D36 -> 5 | G9: =+fill_data!F38 -> 0 | S9: 33 | T9: 7
B10: ปริมาณน้ำรั่วซึม, มม./สัปดาห์ | E10: =+fill_data!D6 -> 0 | G10: =+fill_data!F39 -> 0 | I10: *ภาคกลาง กำหนดให้ใช้ 1 มม./วัน ส่วนภาคอื่นๆใช้ 2 มม./วัน | S10: 34 | T10: 8
B11: ปริมาณน้ำเตรียมแปลง, มม./สัปดาห์ | E11: =+fill_data!D37 -> 30 | G11: =+fill_data!F40 -> 0 | I11: *กำหนดระยะเวลาในการเตรียมแปลง 1 สัปดาห์ | S11: 35 | T11: 9
G12: =+fill_data!F41 -> 0 | S12: 36 | T12: 10
F13: =IF(F12="","",IF(F12+1<=$E$9,F12+1,"")) ->  | G13: =+fill_data!F42 -> 0 | S13: 37 | T13: 11
G14: =+fill_data!F43 -> 0 | S14: 38 | T14: 12
G15: =+fill_data!F44 -> 0 | S15: 39 | T15: 13
G16: =+fill_data!F45 -> 0 | S16: 40 | T16: 14
G17: =+fill_data!F46 -> 0 | S17: 41 | T17: 15
G18: =+fill_data!F47 -> 0 | S18: 42 | T18: 16
G19: =+fill_data!F48 -> 0 | S19: 43 | T19: 17
G20: =+fill_data!F49 -> 0 | S20: 44 | T20: 18
G21: =+fill_data!F50 -> 0 | S21: 45 | T21: 19
G22: =+fill_data!F51 -> 0 | S22: 46 | T22: 20
B24: (1) | C24: (2) | D24: (3) | E24: (4) | F24: (5) | G24: (6) | H24: (7.1) | I24: (7.2) | J24: (7.3) | K24: (7.4) | L24: (7.5) | M24: (7.6) | N24: (7.7) | O24: (7.8) | P24: (7.9) | Q24: (7.10) | R24: (7.11) | S24: (7.12) | T24: (7.13) | U24: (7.14) | V24: (7.15) | W24: (7.16) | X24: (7.17) | Y24: (7.18) | Z24: (7.19) | AA24: (7.20) | AB24: (8) | AC24: (9) | AD24: (10) | AE24: (11) | AF24: (12) | AG24: (13) | AH24: (14) | AI24: (15) | AJ24: (16)
B25: ช่วงเวลาสัปดาห์ | D25: เดือน | E25: สัปดาห์ | F25: สัปดาห์ | G25: Kc | H25: พื้นที่เพาะปลูกในแต่ละสัปดาห์ (ไร่) | AB25: รวมพื้นที่ | AC25: Weighted | AD25: ETo | AE25: ความต้องการน้ำ | AG25: ปริมาณน้ำเตรียมแปลง | AI25: ความต้องการน้ำ | AJ25: ฝนใช้การ
B26: เริ่มต้น | C26: สิ้นสุด | F26: ของ Kc | H26: 1 | I26: 2 | J26: 3 | K26: 4 | L26: 5 | M26: 6 | N26: 7 | O26: 8 | P26: 9 | Q26: 10 | R26: 11 | S26: 12 | T26: 13 | U26: 14 | V26: 15 | W26: 16 | X26: 17 | Y26: 18 | Z26: 19 | AA26: 20 | AB26: (ไร่) | AC26: Kc | AE26: (มม.) | AF26: (ลบ.ม.) | AG26: (ไร่) | AH26: (ลบ.ม.) | AI26: (ลบ.ม.) | AJ26: (ลบ.ม.)
B27: 2008-11-01 | C27: =B27+6 -> 2008-11-07 | D27: =+C27 -> 2008-11-07 | E27: 1 | F27: =IF(ISERROR(VLOOKUP(E27,Crop!$AC$3:$AD$70,2,FALSE)),0,VLOOKUP(E27,Crop!$AC$3:$AD$70,2,FALSE)) -> 0 | G27: =IF(ISERROR(HLOOKUP($D$5,Kc!$C$3:$AI$57,upland_rain!F27+3,FALSE)),0,HLOOKUP($D$5,Kc!$C$3:$AI$57,upland_rain!F27+3,FALSE)) -> 0 | H27: =IF(G27>0,IF(H$26>$E$9,0,VLOOKUP(H$26,$F$3:$G$23,2,FALSE)),0) -> 0 | I27: =IF(H78>0,IF(I$26>$E$9,0,VLOOKUP(I$26,$F$3:$G$23,2,FALSE)),0) -> 0 | J27: 0 | K27: 0 | L27: 0 | M27: 0 | N27: 0 | O27: 0 | P27: 0 | Q27: 0 | R27: 0 | S27: =IF(R78>0,IF(S$26>$E$9,0,VLOOKUP(S$26,$F$3:$G$23,2,FALSE)),0) -> 0 | T27: 0 | U27: 0 | V27: 0 | W27: 0 | X27: 0 | Y27: 0 | Z27: 0 | AA27: 0 | AB27: =SUM(H27:AA27) -> 0 | AC27: =IF(ISERROR((H27*G27+I27*G78+J27*G77+K27*G76+L27*G75+M27*G74+N27*G73+O27*G72+P27*G71+Q27*G70+R27*G69+S27*G68+T27*G67+U27*G66+V27*G65+W27*G64+X27*G63+Y27*G62+Z27*G61+AA27*G60)/AB27),0,(H27*G27+I27*G78+J27*G77+K27*G76+L27*G75+M27*G74+N27*G73+O27*G72+P27*G71+Q27*G70+R27*G69+S27*G68+T27*G67+U27*G66+V27*G65+W27*G64+X27*G63+Y27*G62+Z27*G61+AA27*G60)/AB27) -> 0 | AD27: =VLOOKUP($D$7,ETo!$B$4:$P$88,MONTH(D27)+2,FALSE)/4 ->  | AE27: =IF(AC27*AD27=0,0,(AC27*AD27)+$E$10) ->  | AF27: =AE27*AB27*1.6 ->  | AG27: =IF(ISERROR(INDEX(H27:AA27,1,IF(E27<$E$6,0,VLOOKUP(E27,$S$3:$T$22,2,FALSE)))),0,INDEX(H27:AA27,1,IF(E27<$E$6,0,VLOOKUP(E27,$S$3:$T$22,2,FALSE)))) -> 0 | AH27: =AG27*$E$11*1.6 -> 0 | AI27: =AF27+AH27 ->  | AJ27: =VLOOKUP(MONTH(D27),[0]!rainforuplandcrop,4)/1000*AB27*1600*7 -> 
B28: =C27+1 -> 2008-11-08 | C28: =B28+6 -> 2008-11-14 | D28: 2008-11-14 | E28: 2 | F28: =IF(ISERROR(VLOOKUP(E28,Crop!$AC$3:$AD$70,2,FALSE)),0,VLOOKUP(E28,Crop!$AC$3:$AD$70,2,FALSE)) -> 0 | G28: =IF(ISERROR(HLOOKUP($D$5,Kc!$C$3:$AI$57,upland_rain!F28+3,FALSE)),0,HLOOKUP($D$5,Kc!$C$3:$AI$57,upland_rain!F28+3,FALSE)) -> 0 | H28: 0 | I28: =IF(H27>0,IF(I$26>$E$9,0,VLOOKUP(I$26,$F$3:$G$23,2,FALSE)),0) -> 0 | J28: 0 | K28: 0 | L28: 0 | M28: 0 | N28: 0 | O28: 0 | P28: 0 | Q28: 0 | R28: 0 | S28: =IF(R27>0,IF(S$26>$E$9,0,VLOOKUP(S$26,$F$3:$G$23,2,FALSE)),0) -> 0 | T28: 0 | U28: 0 | V28: 0 | W28: 0 | X28: 0 | Y28: 0 | Z28: 0 | AA28: 0 | AB28: =SUM(H28:AA28) -> 0 | AC28: =IF(ISERROR((H28*G28+I28*G27+J28*G78+K28*G77+L28*G76+M28*G75+N28*G74+O28*G73+P28*G72+Q28*G71+R28*G70+S28*G69+T28*G68+U28*G67+V28*G66+W28*G65+X28*G64+Y28*G63+Z28*G62+AA28*G61)/AB28),0,(H28*G28+I28*G27+J28*G78+K28*G77+L28*G76+M28*G75+N28*G74+O28*G73+P28*G72+Q28*G71+R28*G70+S28*G69+T28*G68+U28*G67+V28*G66+W28*G65+X28*G64+Y28*G63+Z28*G62+AA28*G61)/AB28) -> 0 | AD28: =VLOOKUP($D$7,ETo!$B$4:$P$88,MONTH(D28)+2,FALSE)/4 ->  | AG28: =IF(ISERROR(INDEX(H28:AA28,1,IF(E28<$E$6,0,VLOOKUP(E28,$S$3:$T$22,2,FALSE)))),0,INDEX(H28:AA28,1,IF(E28<$E$6,0,VLOOKUP(E28,$S$3:$T$22,2,FALSE)))) -> 0 | AH28: =AG28*$E$11*1.6 -> 0 | AJ28: =VLOOKUP(MONTH(D28),[0]!rainforuplandcrop,4)/1000*AB28*1600*7 -> 
B29: 2008-11-15 | C29: 2008-11-21 | D29: 2008-11-21 | E29: 3 | F29: =IF(ISERROR(VLOOKUP(E29,Crop!$AC$3:$AD$70,2,FALSE)),0,VLOOKUP(E29,Crop!$AC$3:$AD$70,2,FALSE)) -> 0 | G29: =IF(ISERROR(HLOOKUP($D$5,Kc!$C$3:$AI$57,upland_rain!F29+3,FALSE)),0,HLOOKUP($D$5,Kc!$C$3:$AI$57,upland_rain!F29+3,FALSE)) -> 0 | H29: 0 | I29: 0 | J29: 0 | K29: 0 | L29: 0 | M29: 0 | N29: 0 | O29: 0 | P29: 0 | Q29: 0 | R29: 0 | S29: 0 | T29: 0 | U29: 0 | V29: 0 | W29: 0 | X29: 0 | Y29: 0 | Z29: 0 | AA29: 0 | AB29: 0 | AC29: =IF(ISERROR((H29*G29+I29*G28+J29*G27+K29*G78+L29*G77+M29*G76+N29*G75+O29*G74+P29*G73+Q29*G72+R29*G71+S29*G70+T29*G69+U29*G68+V29*G67+W29*G66+X29*G65+Y29*G64+Z29*G63+AA29*G62)/AB29),0,(H29*G29+I29*G28+J29*G27+K29*G78+L29*G77+M29*G76+N29*G75+O29*G74+P29*G73+Q29*G72+R29*G71+S29*G70+T29*G69+U29*G68+V29*G67+W29*G66+X29*G65+Y29*G64+Z29*G63+AA29*G62)/AB29) -> 0 | AD29: =VLOOKUP($D$7,ETo!$B$4:$P$88,MONTH(D29)+2,FALSE)/4 ->  | AG29: =IF(ISERROR(INDEX(H29:AA29,1,IF(E29<$E$6,0,VLOOKUP(E29,$S$3:$T$22,2,FALSE)))),0,INDEX(H29:AA29,1,IF(E29<$E$6,0,VLOOKUP(E29,$S$3:$T$22,2,FALSE)))) -> 0 | AH29: =AG29*$E$11*1.6 -> 0 | AJ29: =VLOOKUP(MONTH(D29),[0]!rainforuplandcrop,4)/1000*AB29*1600*7 -> 
B30: 2008-11-22 | C30: 2008-11-28 | D30: 2008-11-28 | E30: 4 | F30: =IF(ISERROR(VLOOKUP(E30,Crop!$AC$3:$AD$70,2,FALSE)),0,VLOOKUP(E30,Crop!$AC$3:$AD$70,2,FALSE)) -> 0 | G30: =IF(ISERROR(HLOOKUP($D$5,Kc!$C$3:$AI$57,upland_rain!F30+3,FALSE)),0,HLOOKUP($D$5,Kc!$C$3:$AI$57,upland_rain!F30+3,FALSE)) -> 0 | H30: 0 | I30: 0 | J30: 0 | K30: 0 | L30: 0 | M30: 0 | N30: 0 | O30: 0 | P30: 0 | Q30: 0 | R30: 0 | S30: 0 | T30: 0 | U30: 0 | V30: 0 | W30: 0 | X30: 0 | Y30: 0 | Z30: 0 | AA30: 0 | AB30: 0 | AC30: =IF(ISERROR((H30*G30+I30*G29+J30*G28+K30*G27+L30*G78+M30*G77+N30*G76+O30*G75+P30*G74+Q30*G73+R30*G72+S30*G71+T30*G70+U30*G69+V30*G68+W30*G67+X30*G66+Y30*G65+Z30*G64+AA30*G63)/AB30),0,(H30*G30+I30*G29+J30*G28+K30*G27+L30*G78+M30*G77+N30*G76+O30*G75+P30*G74+Q30*G73+R30*G72+S30*G71+T30*G70+U30*G69+V30*G68+W30*G67+X30*G66+Y30*G65+Z30*G64+AA30*G63)/AB30) -> 0 | AD30: =VLOOKUP($D$7,ETo!$B$4:$P$88,MONTH(D30)+2,FALSE)/4 ->  | AG30: =IF(ISERROR(INDEX(H30:AA30,1,IF(E30<$E$6,0,VLOOKUP(E30,$S$3:$T$22,2,FALSE)))),0,INDEX(H30:AA30,1,IF(E30<$E$6,0,VLOOKUP(E30,$S$3:$T$22,2,FALSE)))) -> 0 | AH30: =AG30*$E$11*1.6 -> 0 | AJ30: =VLOOKUP(MONTH(D30),[0]!rainforuplandcrop,4)/1000*AB30*1600*7 -> 
B31: 2008-11-29 | C31: 2008-12-05 | D31: 2008-12-05 | E31: 5 | F31: =IF(ISERROR(VLOOKUP(E31,Crop!$AC$3:$AD$70,2,FALSE)),0,VLOOKUP(E31,Crop!$AC$3:$AD$70,2,FALSE)) -> 0 | G31: =IF(ISERROR(HLOOKUP($D$5,Kc!$C$3:$AI$57,upland_rain!F31+3,FALSE)),0,HLOOKUP($D$5,Kc!$C$3:$AI$57,upland_rain!F31+3,FALSE)) -> 0 | H31: 0 | I31: 0 | J31: 0 | K31: 0 | L31: 0 | M31: 0 | N31: 0 | O31: 0 | P31: 0 | Q31: 0 | R31: 0 | S31: 0 | T31: 0 | U31: 0 | V31: 0 | W31: 0 | X31: 0 | Y31: 0 | Z31: 0 | AA31: 0 | AB31: 0 | AC31: =IF(ISERROR((H31*G31+I31*G30+J31*G29+K31*G28+L31*G27+M31*G78+N31*G77+O31*G76+P31*G75+Q31*G74+R31*G73+S31*G72+T31*G71+U31*G70+V31*G69+W31*G68+X31*G67+Y31*G66+Z31*G65+AA31*G64)/AB31),0,(H31*G31+I31*G30+J31*G29+K31*G28+L31*G27+M31*G78+N31*G77+O31*G76+P31*G75+Q31*G74+R31*G73+S31*G72+T31*G71+U31*G70+V31*G69+W31*G68+X31*G67+Y31*G66+Z31*G65+AA31*G64)/AB31) -> 0 | AD31: =VLOOKUP($D$7,ETo!$B$4:$P$88,MONTH(D31)+2,FALSE)/4 ->  | AG31: =IF(ISERROR(INDEX(H31:AA31,1,IF(E31<$E$6,0,VLOOKUP(E31,$S$3:$T$22,2,FALSE)))),0,INDEX(H31:AA31,1,IF(E31<$E$6,0,VLOOKUP(E31,$S$3:$T$22,2,FALSE)))) -> 0 | AH31: =AG31*$E$11*1.6 -> 0 | AJ31: =VLOOKUP(MONTH(D31),[0]!rainforuplandcrop,4)/1000*AB31*1600*7 -> 
B32: 2008-12-06 | C32: 2008-12-12 | D32: 2008-12-12 | E32: 6 | F32: =IF(ISERROR(VLOOKUP(E32,Crop!$AC$3:$AD$70,2,FALSE)),0,VLOOKUP(E32,Crop!$AC$3:$AD$70,2,FALSE)) -> 0 | G32: =IF(ISERROR(HLOOKUP($D$5,Kc!$C$3:$AI$57,upland_rain!F32+3,FALSE)),0,HLOOKUP($D$5,Kc!$C$3:$AI$57,upland_rain!F32+3,FALSE)) -> 0 | H32: 0 | I32: 0 | J32: 0 | K32: 0 | L32: 0 | M32: 0 | N32: 0 | O32: 0 | P32: 0 | Q32: 0 | R32: 0 | S32: 0 | T32: 0 | U32: 0 | V32: 0 | W32: 0 | X32: 0 | Y32: 0 | Z32: 0 | AA32: 0 | AB32: 0 | AC32: =IF(ISERROR((H32*G32+I32*G31+J32*G30+K32*G29+L32*G28+M32*G27+N32*G78+O32*G77+P32*G76+Q32*G75+R32*G74+S32*G73+T32*G72+U32*G71+V32*G70+W32*G69+X32*G68+Y32*G67+Z32*G66+AA32*G65)/AB32),0,(H32*G32+I32*G31+J32*G30+K32*G29+L32*G28+M32*G27+N32*G78+O32*G77+P32*G76+Q32*G75+R32*G74+S32*G73+T32*G72+U32*G71+V32*G70+W32*G69+X32*G68+Y32*G67+Z32*G66+AA32*G65)/AB32) -> 0 | AD32: =VLOOKUP($D$7,ETo!$B$4:$P$88,MONTH(D32)+2,FALSE)/4 ->  | AG32: =IF(ISERROR(INDEX(H32:AA32,1,IF(E32<$E$6,0,VLOOKUP(E32,$S$3:$T$22,2,FALSE)))),0,INDEX(H32:AA32,1,IF(E32<$E$6,0,VLOOKUP(E32,$S$3:$T$22,2,FALSE)))) -> 0 | AH32: =AG32*$E$11*1.6 -> 0 | AJ32: =VLOOKUP(MONTH(D32),[0]!rainforuplandcrop,4)/1000*AB32*1600*7 -> 
B33: 2008-12-13 | C33: 2008-12-19 | D33: 2008-12-19 | E33: 7 | F33: =IF(ISERROR(VLOOKUP(E33,Crop!$AC$3:$AD$70,2,FALSE)),0,VLOOKUP(E33,Crop!$AC$3:$AD$70,2,FALSE)) -> 0 | G33: =IF(ISERROR(HLOOKUP($D$5,Kc!$C$3:$AI$57,upland_rain!F33+3,FALSE)),0,HLOOKUP($D$5,Kc!$C$3:$AI$57,upland_rain!F33+3,FALSE)) -> 0 | H33: 0 | I33: 0 | J33: 0 | K33: 0 | L33: 0 | M33: 0 | N33: 0 | O33: 0 | P33: 0 | Q33: 0 | R33: 0 | S33: 0 | T33: 0 | U33: 0 | V33: 0 | W33: 0 | X33: 0 | Y33: 0 | Z33: 0 | AA33: 0 | AB33: 0 | AC33: =IF(ISERROR((H33*G33+I33*G32+J33*G31+K33*G30+L33*G29+M33*G28+N33*G27+O33*G78+P33*G77+Q33*G76+R33*G75+S33*G74+T33*G73+U33*G72+V33*G71+W33*G70+X33*G69+Y33*G68+Z33*G67+AA33*G66)/AB33),0,(H33*G33+I33*G32+J33*G31+K33*G30+L33*G29+M33*G28+N33*G27+O33*G78+P33*G77+Q33*G76+R33*G75+S33*G74+T33*G73+U33*G72+V33*G71+W33*G70+X33*G69+Y33*G68+Z33*G67+AA33*G66)/AB33) -> 0 | AD33: =VLOOKUP($D$7,ETo!$B$4:$P$88,MONTH(D33)+2,FALSE)/4 ->  | AG33: 0 | AH33: 0 | AJ33: =VLOOKUP(MONTH(D33),[0]!rainforuplandcrop,4)/1000*AB33*1600*7 -> 
B34: 2008-12-20 | C34: 2008-12-26 | D34: 2008-12-26 | E34: 8 | F34: =IF(ISERROR(VLOOKUP(E34,Crop!$AC$3:$AD$70,2,FALSE)),0,VLOOKUP(E34,Crop!$AC$3:$AD$70,2,FALSE)) -> 0 | G34: =IF(ISERROR(HLOOKUP($D$5,Kc!$C$3:$AI$57,upland_rain!F34+3,FALSE)),0,HLOOKUP($D$5,Kc!$C$3:$AI$57,upland_rain!F34+3,FALSE)) -> 0 | H34: 0 | I34: 0 | J34: 0 | K34: 0 | L34: 0 | M34: 0 | N34: 0 | O34: 0 | P34: 0 | Q34: 0 | R34: 0 | S34: 0 | T34: 0 | U34: 0 | V34: 0 | W34: 0 | X34: 0 | Y34: 0 | Z34: 0 | AA34: 0 | AB34: 0 | AC34: =IF(ISERROR((H34*G34+I34*G33+J34*G32+K34*G31+L34*G30+M34*G29+N34*G28+O34*G27+P34*G78+Q34*G77+R34*G76+S34*G75+T34*G74+U34*G73+V34*G72+W34*G71+X34*G70+Y34*G69+Z34*G68+AA34*G67)/AB34),0,(H34*G34+I34*G33+J34*G32+K34*G31+L34*G30+M34*G29+N34*G28+O34*G27+P34*G78+Q34*G77+R34*G76+S34*G75+T34*G74+U34*G73+V34*G72+W34*G71+X34*G70+Y34*G69+Z34*G68+AA34*G67)/AB34) -> 0 | AD34: =VLOOKUP($D$7,ETo!$B$4:$P$88,MONTH(D34)+2,FALSE)/4 ->  | AG34: 0 | AH34: 0 | AJ34: =VLOOKUP(MONTH(D34),[0]!rainforuplandcrop,4)/1000*AB34*1600*7 -> 
B35: 2008-12-27 | C35: 2009-01-02 | D35: 2009-01-02 | E35: 9 | F35: =IF(ISERROR(VLOOKUP(E35,Crop!$AC$3:$AD$70,2,FALSE)),0,VLOOKUP(E35,Crop!$AC$3:$AD$70,2,FALSE)) -> 0 | G35: =IF(ISERROR(HLOOKUP($D$5,Kc!$C$3:$AI$57,upland_rain!F35+3,FALSE)),0,HLOOKUP($D$5,Kc!$C$3:$AI$57,upland_rain!F35+3,FALSE)) -> 0 | H35: 0 | I35: 0 | J35: 0 | K35: 0 | L35: 0 | M35: 0 | N35: 0 | O35: 0 | P35: 0 | Q35: 0 | R35: 0 | S35: 0 | T35: 0 | U35: 0 | V35: 0 | W35: 0 | X35: 0 | Y35: 0 | Z35: 0 | AA35: 0 | AB35: 0 | AC35: =IF(ISERROR((H35*G35+I35*G34+J35*G33+K35*G32+L35*G31+M35*G30+N35*G29+O35*G28+P35*G27+Q35*G78+R35*G77+S35*G76+T35*G75+U35*G74+V35*G73+W35*G72+X35*G71+Y35*G70+Z35*G69+AA35*G68)/AB35),0,(H35*G35+I35*G34+J35*G33+K35*G32+L35*G31+M35*G30+N35*G29+O35*G28+P35*G27+Q35*G78+R35*G77+S35*G76+T35*G75+U35*G74+V35*G73+W35*G72+X35*G71+Y35*G70+Z35*G69+AA35*G68)/AB35) -> 0 | AD35: =VLOOKUP($D$7,ETo!$B$4:$P$88,MONTH(D35)+2,FALSE)/4 ->  | AG35: 0 | AH35: 0 | AJ35: =VLOOKUP(MONTH(D35),[0]!rainforuplandcrop,4)/1000*AB35*1600*7 -> 
B36: 2009-01-03 | C36: 2009-01-09 | D36: 2009-01-09 | E36: 10 | F36: =IF(ISERROR(VLOOKUP(E36,Crop!$AC$3:$AD$70,2,FALSE)),0,VLOOKUP(E36,Crop!$AC$3:$AD$70,2,FALSE)) -> 0 | G36: =IF(ISERROR(HLOOKUP($D$5,Kc!$C$3:$AI$57,upland_rain!F36+3,FALSE)),0,HLOOKUP($D$5,Kc!$C$3:$AI$57,upland_rain!F36+3,FALSE)) -> 0 | H36: =IF(G36>0,IF(H$26>$E$9,0,VLOOKUP(H$26,$F$3:$G$23,2,FALSE)),0) -> 0 | I36: 0 | J36: 0 | K36: 0 | L36: 0 | M36: 0 | N36: 0 | O36: 0 | P36: 0 | Q36: 0 | R36: 0 | S36: 0 | T36: 0 | U36: 0 | V36: 0 | W36: 0 | X36: 0 | Y36: 0 | Z36: 0 | AA36: 0 | AB36: 0 | AC36: =IF(ISERROR((H36*G36+I36*G35+J36*G34+K36*G33+L36*G32+M36*G31+N36*G30+O36*G29+P36*G28+Q36*G27+R36*G78+S36*G77+T36*G76+U36*G75+V36*G74+W36*G73+X36*G72+Y36*G71+Z36*G70+AA36*G69)/AB36),0,(H36*G36+I36*G35+J36*G34+K36*G33+L36*G32+M36*G31+N36*G30+O36*G29+P36*G28+Q36*G27+R36*G78+S36*G77+T36*G76+U36*G75+V36*G74+W36*G73+X36*G72+Y36*G71+Z36*G70+AA36*G69)/AB36) -> 0 | AD36: =VLOOKUP($D$7,ETo!$B$4:$P$88,MONTH(D36)+2,FALSE)/4 ->  | AG36: 0 | AH36: 0 | AJ36: =VLOOKUP(MONTH(D36),[0]!rainforuplandcrop,4)/1000*AB36*1600*7 -> 
B37: 2009-01-10 | C37: 2009-01-16 | D37: 2009-01-16 | E37: 11 | F37: =IF(ISERROR(VLOOKUP(E37,Crop!$AC$3:$AD$70,2,FALSE)),0,VLOOKUP(E37,Crop!$AC$3:$AD$70,2,FALSE)) -> 0 | G37: =IF(ISERROR(HLOOKUP($D$5,Kc!$C$3:$AI$57,upland_rain!F37+3,FALSE)),0,HLOOKUP($D$5,Kc!$C$3:$AI$57,upland_rain!F37+3,FALSE)) -> 0 | H37: 0 | I37: =IF(H36>0,IF(I$26>$E$9,0,VLOOKUP(I$26,$F$3:$G$23,2,FALSE)),0) -> 0 | J37: =IF(I36>0,IF(J$26>$E$9,0,VLOOKUP(J$26,$F$3:$G$12,2,FALSE)),0) -> 0 | K37: =IF(J36>0,IF(K$26>$E$9,0,VLOOKUP(K$26,$F$3:$G$23,2,FALSE)),0) -> 0 | L37: 0 | M37: 0 | N37: 0 | O37: 0 | P37: 0 | Q37: 0 | R37: 0 | S37: 0 | T37: 0 | U37: =IF(T36>0,IF(U$26>$E$9,0,VLOOKUP(U$26,$F$3:$G$23,2,FALSE)),0) -> 0 | V37: 0 | W37: 0 | X37: 0 | Y37: 0 | Z37: 0 | AA37: 0 | AB37: 0 | AC37: =IF(ISERROR((H37*G37+I37*G36+J37*G35+K37*G34+L37*G33+M37*G32+N37*G31+O37*G30+P37*G29+Q37*G28+R37*G27+S37*G78+T37*G77+U37*G76+V37*G75+W37*G74+X37*G73+Y37*G72+Z37*G71+AA37*G70)/AB37),0,(H37*G37+I37*G36+J37*G35+K37*G34+L37*G33+M37*G32+N37*G31+O37*G30+P37*G29+Q37*G28+R37*G27+S37*G78+T37*G77+U37*G76+V37*G75+W37*G74+X37*G73+Y37*G72+Z37*G71+AA37*G70)/AB37) -> 0 | AD37: =VLOOKUP($D$7,ETo!$B$4:$P$88,MONTH(D37)+2,FALSE)/4 ->  | AG37: 0 | AH37: 0 | AJ37: =VLOOKUP(MONTH(D37),[0]!rainforuplandcrop,4)/1000*AB37*1600*7 -> 
B38: 2009-01-17 | C38: 2009-01-23 | D38: 2009-01-23 | E38: 12 | F38: =IF(ISERROR(VLOOKUP(E38,Crop!$AC$3:$AD$70,2,FALSE)),0,VLOOKUP(E38,Crop!$AC$3:$AD$70,2,FALSE)) -> 0 | G38: =IF(ISERROR(HLOOKUP($D$5,Kc!$C$3:$AI$57,upland_rain!F38+3,FALSE)),0,HLOOKUP($D$5,Kc!$C$3:$AI$57,upland_rain!F38+3,FALSE)) -> 0 | H38: 0 | I38: 0 | J38: 0 | K38: 0 | L38: 0 | M38: 0 | N38: 0 | O38: 0 | P38: 0 | Q38: 0 | R38: 0 | S38: 0 | T38: 0 | U38: 0 | V38: 0 | W38: 0 | X38: 0 | Y38: 0 | Z38: 0 | AA38: 0 | AB38: 0 | AC38: =IF(ISERROR((H38*G38+I38*G37+J38*G36+K38*G35+L38*G34+M38*G33+N38*G32+O38*G31+P38*G30+Q38*G29+R38*G28+S38*G27+T38*G78+U38*G77+V38*G76+W38*G75+X38*G74+Y38*G73+Z38*G72+AA38*G71)/AB38),0,(H38*G38+I38*G37+J38*G36+K38*G35+L38*G34+M38*G33+N38*G32+O38*G31+P38*G30+Q38*G29+R38*G28+S38*G27+T38*G78+U38*G77+V38*G76+W38*G75+X38*G74+Y38*G73+Z38*G72+AA38*G71)/AB38) -> 0 | AD38: =VLOOKUP($D$7,ETo!$B$4:$P$88,MONTH(D38)+2,FALSE)/4 ->  | AG38: 0 | AH38: 0 | AJ38: =VLOOKUP(MONTH(D38),[0]!rainforuplandcrop,4)/1000*AB38*1600*7 -> 
B39: 2009-01-24 | C39: 2009-01-30 | D39: 2009-01-30 | E39: 13 | F39: =IF(ISERROR(VLOOKUP(E39,Crop!$AC$3:$AD$70,2,FALSE)),0,VLOOKUP(E39,Crop!$AC$3:$AD$70,2,FALSE)) -> 0 | G39: =IF(ISERROR(HLOOKUP($D$5,Kc!$C$3:$AI$57,upland_rain!F39+3,FALSE)),0,HLOOKUP($D$5,Kc!$C$3:$AI$57,upland_rain!F39+3,FALSE)) -> 0 | H39: 0 | I39: 0 | J39: 0 | K39: 0 | L39: 0 | M39: 0 | N39: 0 | O39: 0 | P39: 0 | Q39: 0 | R39: 0 | S39: 0 | T39: 0 | U39: 0 | V39: 0 | W39: 0 | X39: 0 | Y39: 0 | Z39: 0 | AA39: 0 | AB39: 0 | AC39: =IF(ISERROR((H39*G39+I39*G38+J39*G37+K39*G36+L39*G35+M39*G34+N39*G33+O39*G32+P39*G31+Q39*G30+R39*G29+S39*G28+T39*G27+U39*G78+V39*G77+W39*G76+X39*G75+Y39*G74+Z39*G73+AA39*G72)/AB39),0,(H39*G39+I39*G38+J39*G37+K39*G36+L39*G35+M39*G34+N39*G33+O39*G32+P39*G31+Q39*G30+R39*G29+S39*G28+T39*G27+U39*G78+V39*G77+W39*G76+X39*G75+Y39*G74+Z39*G73+AA39*G72)/AB39) -> 0 | AD39: =VLOOKUP($D$7,ETo!$B$4:$P$88,MONTH(D39)+2,FALSE)/4 ->  | AG39: 0 | AH39: 0 | AJ39: =VLOOKUP(MONTH(D39),[0]!rainforuplandcrop,4)/1000*AB39*1600*7 -> 
B40: 2009-01-31 | C40: 2009-02-06 | D40: 2009-02-06 | E40: 14 | F40: =IF(ISERROR(VLOOKUP(E40,Crop!$AC$3:$AD$70,2,FALSE)),0,VLOOKUP(E40,Crop!$AC$3:$AD$70,2,FALSE)) -> 0 | G40: =IF(ISERROR(HLOOKUP($D$5,Kc!$C$3:$AI$57,upland_rain!F40+3,FALSE)),0,HLOOKUP($D$5,Kc!$C$3:$AI$57,upland_rain!F40+3,FALSE)) -> 0 | H40: 0 | I40: 0 | J40: 0 | K40: 0 | L40: 0 | M40: 0 | N40: 0 | O40: 0 | P40: 0 | Q40: 0 | R40: 0 | S40: 0 | T40: 0 | U40: 0 | V40: 0 | W40: 0 | X40: 0 | Y40: 0 | Z40: 0 | AA40: 0 | AB40: 0 | AC40: =IF(ISERROR((H40*G40+I40*G39+J40*G38+K40*G37+L40*G36+M40*G35+N40*G34+O40*G33+P40*G32+Q40*G31+R40*G30+S40*G29+T40*G28+U40*G27+V40*G78+W40*G77+X40*G76+Y40*G75+Z40*G74+AA40*G73)/AB40),0,(H40*G40+I40*G39+J40*G38+K40*G37+L40*G36+M40*G35+N40*G34+O40*G33+P40*G32+Q40*G31+R40*G30+S40*G29+T40*G28+U40*G27+V40*G78+W40*G77+X40*G76+Y40*G75+Z40*G74+AA40*G73)/AB40) -> 0 | AD40: =VLOOKUP($D$7,ETo!$B$4:$P$88,MONTH(D40)+2,FALSE)/4 ->  | AG40: 0 | AH40: 0 | AJ40: =VLOOKUP(MONTH(D40),[0]!rainforuplandcrop,4)/1000*AB40*1600*7 -> 
B41: 2009-02-07 | C41: 2009-02-13 | D41: 2009-02-13 | E41: 15 | F41: =IF(ISERROR(VLOOKUP(E41,Crop!$AC$3:$AD$70,2,FALSE)),0,VLOOKUP(E41,Crop!$AC$3:$AD$70,2,FALSE)) -> 0 | G41: =IF(ISERROR(HLOOKUP($D$5,Kc!$C$3:$AI$57,upland_rain!F41+3,FALSE)),0,HLOOKUP($D$5,Kc!$C$3:$AI$57,upland_rain!F41+3,FALSE)) -> 0 | H41: 0 | I41: 0 | J41: 0 | K41: 0 | L41: 0 | M41: 0 | N41: 0 | O41: 0 | P41: 0 | Q41: 0 | R41: 0 | S41: 0 | T41: 0 | U41: 0 | V41: 0 | W41: 0 | X41: 0 | Y41: 0 | Z41: 0 | AA41: 0 | AB41: 0 | AC41: =IF(ISERROR((H41*G41+I41*G40+J41*G39+K41*G38+L41*G37+M41*G36+N41*G35+O41*G34+P41*G33+Q41*G32+R41*G31+S41*G30+T41*G29+U41*G28+V41*G27+W41*G78+X41*G77+Y41*G76+Z41*G75+AA41*G74)/AB41),0,(H41*G41+I41*G40+J41*G39+K41*G38+L41*G37+M41*G36+N41*G35+O41*G34+P41*G33+Q41*G32+R41*G31+S41*G30+T41*G29+U41*G28+V41*G27+W41*G78+X41*G77+Y41*G76+Z41*G75+AA41*G74)/AB41) -> 0 | AD41: =VLOOKUP($D$7,ETo!$B$4:$P$88,MONTH(D41)+2,FALSE)/4 ->  | AG41: 0 | AH41: 0 | AJ41: =VLOOKUP(MONTH(D41),[0]!rainforuplandcrop,4)/1000*AB41*1600*7 -> 
B42: 2009-02-14 | C42: 2009-02-20 | D42: 2009-02-20 | E42: 16 | F42: =IF(ISERROR(VLOOKUP(E42,Crop!$AC$3:$AD$70,2,FALSE)),0,VLOOKUP(E42,Crop!$AC$3:$AD$70,2,FALSE)) -> 0 | G42: =IF(ISERROR(HLOOKUP($D$5,Kc!$C$3:$AI$57,upland_rain!F42+3,FALSE)),0,HLOOKUP($D$5,Kc!$C$3:$AI$57,upland_rain!F42+3,FALSE)) -> 0 | H42: 0 | I42: 0 | J42: 0 | K42: 0 | L42: 0 | M42: 0 | N42: 0 | O42: 0 | P42: 0 | Q42: 0 | R42: 0 | S42: 0 | T42: 0 | U42: 0 | V42: 0 | W42: 0 | X42: 0 | Y42: 0 | Z42: 0 | AA42: 0 | AB42: 0 | AC42: =IF(ISERROR((H42*G42+I42*G41+J42*G40+K42*G39+L42*G38+M42*G37+N42*G36+O42*G35+P42*G34+Q42*G33+R42*G32+S42*G31+T42*G30+U42*G29+V42*G28+W42*G27+X42*G78+Y42*G77+Z42*G76+AA42*G75)/AB42),0,(H42*G42+I42*G41+J42*G40+K42*G39+L42*G38+M42*G37+N42*G36+O42*G35+P42*G34+Q42*G33+R42*G32+S42*G31+T42*G30+U42*G29+V42*G28+W42*G27+X42*G78+Y42*G77+Z42*G76+AA42*G75)/AB42) -> 0 | AD42: =VLOOKUP($D$7,ETo!$B$4:$P$88,MONTH(D42)+2,FALSE)/4 ->  | AG42: 0 | AH42: 0 | AJ42: =VLOOKUP(MONTH(D42),[0]!rainforuplandcrop,4)/1000*AB42*1600*7 -> 
B43: 2009-02-21 | C43: 2009-02-27 | D43: 2009-02-27 | E43: 17 | F43: =IF(ISERROR(VLOOKUP(E43,Crop!$AC$3:$AD$70,2,FALSE)),0,VLOOKUP(E43,Crop!$AC$3:$AD$70,2,FALSE)) -> 0 | G43: =IF(ISERROR(HLOOKUP($D$5,Kc!$C$3:$AI$57,upland_rain!F43+3,FALSE)),0,HLOOKUP($D$5,Kc!$C$3:$AI$57,upland_rain!F43+3,FALSE)) -> 0 | H43: 0 | I43: 0 | J43: 0 | K43: 0 | L43: 0 | M43: 0 | N43: 0 | O43: 0 | P43: 0 | Q43: 0 | R43: 0 | S43: 0 | T43: 0 | U43: 0 | V43: 0 | W43: 0 | X43: 0 | Y43: 0 | Z43: 0 | AA43: 0 | AB43: 0 | AC43: =IF(ISERROR((H43*G43+I43*G42+J43*G41+K43*G40+L43*G39+M43*G38+N43*G37+O43*G36+P43*G35+Q43*G34+R43*G33+S43*G32+T43*G31+U43*G30+V43*G29+W43*G28+X43*G27+Y43*G78+Z43*G77+AA43*G76)/AB43),0,(H43*G43+I43*G42+J43*G41+K43*G40+L43*G39+M43*G38+N43*G37+O43*G36+P43*G35+Q43*G34+R43*G33+S43*G32+T43*G31+U43*G30+V43*G29+W43*G28+X43*G27+Y43*G78+Z43*G77+AA43*G76)/AB43) -> 0 | AD43: =VLOOKUP($D$7,ETo!$B$4:$P$88,MONTH(D43)+2,FALSE)/4 ->  | AG43: 0 | AH43: 0 | AJ43: =VLOOKUP(MONTH(D43),[0]!rainforuplandcrop,4)/1000*AB43*1600*7 -> 
B44: 2009-02-28 | C44: 2009-03-06 | D44: 2009-03-06 | E44: 18 | F44: =IF(ISERROR(VLOOKUP(E44,Crop!$AC$3:$AD$70,2,FALSE)),0,VLOOKUP(E44,Crop!$AC$3:$AD$70,2,FALSE)) -> 0 | G44: =IF(ISERROR(HLOOKUP($D$5,Kc!$C$3:$AI$57,upland_rain!F44+3,FALSE)),0,HLOOKUP($D$5,Kc!$C$3:$AI$57,upland_rain!F44+3,FALSE)) -> 0 | H44: 0 | I44: 0 | J44: 0 | K44: 0 | L44: 0 | M44: 0 | N44: 0 | O44: 0 | P44: 0 | Q44: 0 | R44: 0 | S44: 0 | T44: 0 | U44: 0 | V44: 0 | W44: 0 | X44: 0 | Y44: 0 | Z44: 0 | AA44: 0 | AB44: 0 | AC44: =IF(ISERROR((H44*G44+I44*G43+J44*G42+K44*G41+L44*G40+M44*G39+N44*G38+O44*G37+P44*G36+Q44*G35+R44*G34+S44*G33+T44*G32+U44*G31+V44*G30+W44*G29+X44*G28+Y44*G27+Z44*G78+AA44*G77)/AB44),0,(H44*G44+I44*G43+J44*G42+K44*G41+L44*G40+M44*G39+N44*G38+O44*G37+P44*G36+Q44*G35+R44*G34+S44*G33+T44*G32+U44*G31+V44*G30+W44*G29+X44*G28+Y44*G27+Z44*G78+AA44*G77)/AB44) -> 0 | AD44: =VLOOKUP($D$7,ETo!$B$4:$P$88,MONTH(D44)+2,FALSE)/4 ->  | AG44: 0 | AH44: 0 | AJ44: =VLOOKUP(MONTH(D44),[0]!rainforuplandcrop,4)/1000*AB44*1600*7 -> 
B45: 2009-03-07 | C45: 2009-03-13 | D45: 2009-03-13 | E45: 19 | F45: =IF(ISERROR(VLOOKUP(E45,Crop!$AC$3:$AD$70,2,FALSE)),0,VLOOKUP(E45,Crop!$AC$3:$AD$70,2,FALSE)) -> 0 | G45: =IF(ISERROR(HLOOKUP($D$5,Kc!$C$3:$AI$57,upland_rain!F45+3,FALSE)),0,HLOOKUP($D$5,Kc!$C$3:$AI$57,upland_rain!F45+3,FALSE)) -> 0 | H45: 0 | I45: 0 | J45: 0 | K45: 0 | L45: 0 | M45: 0 | N45: 0 | O45: 0 | P45: 0 | Q45: 0 | R45: 0 | S45: 0 | T45: 0 | U45: 0 | V45: 0 | W45: 0 | X45: 0 | Y45: 0 | Z45: 0 | AA45: 0 | AB45: 0 | AC45: =IF(ISERROR((H45*G45+I45*G44+J45*G43+K45*G42+L45*G41+M45*G40+N45*G39+O45*G38+P45*G37+Q45*G36+R45*G35+S45*G34+T45*G33+U45*G32+V45*G31+W45*G30+X45*G29+Y45*G28+Z45*G27+AA45*G78)/AB45),0,(H45*G45+I45*G44+J45*G43+K45*G42+L45*G41+M45*G40+N45*G39+O45*G38+P45*G37+Q45*G36+R45*G35+S45*G34+T45*G33+U45*G32+V45*G31+W45*G30+X45*G29+Y45*G28+Z45*G27+AA45*G78)/AB45) -> 0 | AD45: =VLOOKUP($D$7,ETo!$B$4:$P$88,MONTH(D45)+2,FALSE)/4 ->  | AG45: 0 | AH45: 0 | AJ45: =VLOOKUP(MONTH(D45),[0]!rainforuplandcrop,4)/1000*AB45*1600*7 -> 
B46: 2009-03-14 | C46: 2009-03-20 | D46: 2009-03-20 | E46: 20 | F46: =IF(ISERROR(VLOOKUP(E46,Crop!$AC$3:$AD$70,2,FALSE)),0,VLOOKUP(E46,Crop!$AC$3:$AD$70,2,FALSE)) -> 0 | G46: =IF(ISERROR(HLOOKUP($D$5,Kc!$C$3:$AI$57,upland_rain!F46+3,FALSE)),0,HLOOKUP($D$5,Kc!$C$3:$AI$57,upland_rain!F46+3,FALSE)) -> 0 | H46: 0 | I46: 0 | J46: 0 | K46: 0 | L46: 0 | M46: 0 | N46: 0 | O46: 0 | P46: 0 | Q46: 0 | R46: 0 | S46: 0 | T46: 0 | U46: 0 | V46: 0 | W46: 0 | X46: 0 | Y46: 0 | Z46: 0 | AA46: 0 | AB46: 0 | AC46: =IF(ISERROR((H46*G46+I46*G45+J46*G44+K46*G43+L46*G42+M46*G41+N46*G40+O46*G39+P46*G38+Q46*G37+R46*G36+S46*G35+T46*G34+U46*G33+V46*G32+W46*G31+X46*G30+Y46*G29+Z46*G28+AA46*G27)/AB46),0,(H46*G46+I46*G45+J46*G44+K46*G43+L46*G42+M46*G41+N46*G40+O46*G39+P46*G38+Q46*G37+R46*G36+S46*G35+T46*G34+U46*G33+V46*G32+W46*G31+X46*G30+Y46*G29+Z46*G28+AA46*G27)/AB46) -> 0 | AD46: =VLOOKUP($D$7,ETo!$B$4:$P$88,MONTH(D46)+2,FALSE)/4 ->  | AG46: 0 | AH46: 0 | AJ46: =VLOOKUP(MONTH(D46),[0]!rainforuplandcrop,4)/1000*AB46*1600*7 -> 
B47: 2009-03-21 | C47: 2009-03-27 | D47: 2009-03-27 | E47: 21 | F47: =IF(ISERROR(VLOOKUP(E47,Crop!$AC$3:$AD$70,2,FALSE)),0,VLOOKUP(E47,Crop!$AC$3:$AD$70,2,FALSE)) -> 0 | G47: =IF(ISERROR(HLOOKUP($D$5,Kc!$C$3:$AI$57,upland_rain!F47+3,FALSE)),0,HLOOKUP($D$5,Kc!$C$3:$AI$57,upland_rain!F47+3,FALSE)) -> 0 | H47: 0 | I47: 0 | J47: 0 | K47: =IF(J46>0,IF(K$26>$E$9,0,VLOOKUP(K$26,$F$3:$G$23,2,FALSE)),0) -> 0 | L47: 0 | M47: 0 | N47: 0 | O47: 0 | P47: 0 | Q47: 0 | R47: 0 | S47: 0 | T47: 0 | U47: =IF(T46>0,IF(U$26>$E$9,0,VLOOKUP(U$26,$F$3:$G$23,2,FALSE)),0) -> 0 | V47: 0 | W47: 0 | X47: 0 | Y47: 0 | Z47: 0 | AA47: 0 | AB47: 0 | AC47: =IF(ISERROR((H47*G47+I47*G46+J47*G45+K47*G44+L47*G43+M47*G42+N47*G41+O47*G40+P47*G39+Q47*G38+R47*G37+S47*G36+T47*G35+U47*G34+V47*G33+W47*G32+X47*G31+Y47*G30+Z47*G29+AA47*G28)/AB47),0,(H47*G47+I47*G46+J47*G45+K47*G44+L47*G43+M47*G42+N47*G41+O47*G40+P47*G39+Q47*G38+R47*G37+S47*G36+T47*G35+U47*G34+V47*G33+W47*G32+X47*G31+Y47*G30+Z47*G29+AA47*G28)/AB47) -> 0 | AD47: =VLOOKUP($D$7,ETo!$B$4:$P$88,MONTH(D47)+2,FALSE)/4 ->  | AG47: 0 | AH47: 0 | AJ47: =VLOOKUP(MONTH(D47),[0]!rainforuplandcrop,4)/1000*AB47*1600*7 -> 
B48: 2009-03-28 | C48: 2009-04-03 | D48: 2009-04-03 | E48: 22 | F48: =IF(ISERROR(VLOOKUP(E48,Crop!$AC$3:$AD$70,2,FALSE)),0,VLOOKUP(E48,Crop!$AC$3:$AD$70,2,FALSE)) -> 0 | G48: =IF(ISERROR(HLOOKUP($D$5,Kc!$C$3:$AI$57,upland_rain!F48+3,FALSE)),0,HLOOKUP($D$5,Kc!$C$3:$AI$57,upland_rain!F48+3,FALSE)) -> 0 | H48: 0 | I48: 0 | J48: 0 | K48: 0 | L48: 0 | M48: 0 | N48: 0 | O48: 0 | P48: 0 | Q48: 0 | R48: 0 | S48: 0 | T48: 0 | U48: 0 | V48: 0 | W48: 0 | X48: 0 | Y48: 0 | Z48: 0 | AA48: 0 | AB48: 0 | AC48: =IF(ISERROR((H48*G48+I48*G47+J48*G46+K48*G45+L48*G44+M48*G43+N48*G42+O48*G41+P48*G40+Q48*G39+R48*G38+S48*G37+T48*G36+U48*G35+V48*G34+W48*G33+X48*G32+Y48*G31+Z48*G30+AA48*G29)/AB48),0,(H48*G48+I48*G47+J48*G46+K48*G45+L48*G44+M48*G43+N48*G42+O48*G41+P48*G40+Q48*G39+R48*G38+S48*G37+T48*G36+U48*G35+V48*G34+W48*G33+X48*G32+Y48*G31+Z48*G30+AA48*G29)/AB48) -> 0 | AD48: =VLOOKUP($D$7,ETo!$B$4:$P$88,MONTH(D48)+2,FALSE)/4 ->  | AG48: 0 | AH48: 0 | AJ48: =VLOOKUP(MONTH(D48),[0]!rainforuplandcrop,4)/1000*AB48*1600*7 -> 
B49: 2009-04-04 | C49: 2009-04-10 | D49: 2009-04-10 | E49: 23 | F49: =IF(ISERROR(VLOOKUP(E49,Crop!$AC$3:$AD$70,2,FALSE)),0,VLOOKUP(E49,Crop!$AC$3:$AD$70,2,FALSE)) -> 0 | G49: =IF(ISERROR(HLOOKUP($D$5,Kc!$C$3:$AI$57,upland_rain!F49+3,FALSE)),0,HLOOKUP($D$5,Kc!$C$3:$AI$57,upland_rain!F49+3,FALSE)) -> 0 | H49: 0 | I49: 0 | J49: 0 | K49: 0 | L49: 0 | M49: 0 | N49: 0 | O49: 0 | P49: 0 | Q49: 0 | R49: 0 | S49: 0 | T49: 0 | U49: 0 | V49: 0 | W49: 0 | X49: 0 | Y49: 0 | Z49: 0 | AA49: 0 | AB49: 0 | AC49: 0 | AD49: =VLOOKUP($D$7,ETo!$B$4:$P$88,MONTH(D49)+2,FALSE)/4 ->  | AG49: 0 | AH49: 0 | AJ49: =VLOOKUP(MONTH(D49),[0]!rainforuplandcrop,4)/1000*AB49*1600*7 -> 
B50: 2009-04-11 | C50: 2009-04-17 | D50: 2009-04-17 | E50: 24 | F50: =IF(ISERROR(VLOOKUP(E50,Crop!$AC$3:$AD$70,2,FALSE)),0,VLOOKUP(E50,Crop!$AC$3:$AD$70,2,FALSE)) -> 0 | G50: =IF(ISERROR(HLOOKUP($D$5,Kc!$C$3:$AI$57,upland_rain!F50+3,FALSE)),0,HLOOKUP($D$5,Kc!$C$3:$AI$57,upland_rain!F50+3,FALSE)) -> 0 | H50: 0 | I50: 0 | J50: 0 | K50: 0 | L50: 0 | M50: 0 | N50: 0 | O50: 0 | P50: 0 | Q50: 0 | R50: 0 | S50: 0 | T50: 0 | U50: 0 | V50: 0 | W50: 0 | X50: 0 | Y50: 0 | Z50: 0 | AA50: 0 | AB50: 0 | AC50: 0 | AD50: =VLOOKUP($D$7,ETo!$B$4:$P$88,MONTH(D50)+2,FALSE)/4 ->  | AG50: 0 | AH50: 0 | AJ50: =VLOOKUP(MONTH(D50),[0]!rainforuplandcrop,4)/1000*AB50*1600*7 -> 
B51: 2009-04-18 | C51: 2009-04-24 | D51: 2009-04-24 | E51: 25 | F51: =IF(ISERROR(VLOOKUP(E51,Crop!$AC$3:$AD$70,2,FALSE)),0,VLOOKUP(E51,Crop!$AC$3:$AD$70,2,FALSE)) -> 0 | G51: =IF(ISERROR(HLOOKUP($D$5,Kc!$C$3:$AI$57,upland_rain!F51+3,FALSE)),0,HLOOKUP($D$5,Kc!$C$3:$AI$57,upland_rain!F51+3,FALSE)) -> 0 | H51: 0 | I51: 0 | J51: 0 | K51: 0 | L51: 0 | M51: 0 | N51: 0 | O51: 0 | P51: 0 | Q51: 0 | R51: 0 | S51: 0 | T51: 0 | U51: 0 | V51: 0 | W51: 0 | X51: 0 | Y51: 0 | Z51: 0 | AA51: 0 | AB51: 0 | AC51: 0 | AD51: =VLOOKUP($D$7,ETo!$B$4:$P$88,MONTH(D51)+2,FALSE)/4 ->  | AG51: 0 | AH51: 0 | AJ51: =VLOOKUP(MONTH(D51),[0]!rainforuplandcrop,4)/1000*AB51*1600*7 -> 
B52: 2009-04-25 | C52: 2009-05-01 | D52: 2009-05-01 | E52: 26 | F52: =IF(ISERROR(VLOOKUP(E52,Crop!$AC$3:$AD$70,2,FALSE)),0,VLOOKUP(E52,Crop!$AC$3:$AD$70,2,FALSE)) -> 0 | G52: =IF(ISERROR(HLOOKUP($D$5,Kc!$C$3:$AI$57,upland_rain!F52+3,FALSE)),0,HLOOKUP($D$5,Kc!$C$3:$AI$57,upland_rain!F52+3,FALSE)) -> 0 | H52: 0 | I52: 0 | J52: 0 | K52: 0 | L52: 0 | M52: 0 | N52: 0 | O52: 0 | P52: 0 | Q52: 0 | R52: 0 | S52: 0 | T52: 0 | U52: 0 | V52: 0 | W52: 0 | X52: 0 | Y52: 0 | Z52: 0 | AA52: 0 | AB52: 0 | AC52: 0 | AD52: =VLOOKUP($D$7,ETo!$B$4:$P$88,MONTH(D52)+2,FALSE)/4 ->  | AG52: 0 | AH52: 0 | AJ52: =VLOOKUP(MONTH(D52),[0]!rainforuplandcrop,4)/1000*AB52*1600*7 -> 
B53: 2009-05-02 | C53: 2009-05-08 | D53: 2009-05-08 | E53: 27 | F53: =IF(ISERROR(VLOOKUP(E53,Crop!$AC$3:$AD$70,2,FALSE)),0,VLOOKUP(E53,Crop!$AC$3:$AD$70,2,FALSE)) -> 1 | G53: =IF(ISERROR(HLOOKUP($D$5,Kc!$C$3:$AI$57,upland_rain!F53+3,FALSE)),0,HLOOKUP($D$5,Kc!$C$3:$AI$57,upland_rain!F53+3,FALSE)) -> 0.63 | H53: 0 | I53: 0 | J53: 0 | K53: 0 | L53: 0 | M53: 0 | N53: 0 | O53: 0 | P53: 0 | Q53: 0 | R53: 0 | S53: 0 | T53: 0 | U53: 0 | V53: 0 | W53: 0 | X53: 0 | Y53: 0 | Z53: 0 | AA53: 0 | AB53: 0 | AC53: 0 | AD53: =VLOOKUP($D$7,ETo!$B$4:$P$88,MONTH(D53)+2,FALSE)/4 ->  | AG53: 0 | AH53: 0 | AJ53: =VLOOKUP(MONTH(D53),[0]!rainforuplandcrop,4)/1000*AB53*1600*7 -> 
B54: 2009-05-09 | C54: 2009-05-15 | D54: 2009-05-15 | E54: 28 | F54: =IF(ISERROR(VLOOKUP(E54,Crop!$AC$3:$AD$70,2,FALSE)),0,VLOOKUP(E54,Crop!$AC$3:$AD$70,2,FALSE)) -> 2 | G54: =IF(ISERROR(HLOOKUP($D$5,Kc!$C$3:$AI$57,upland_rain!F54+3,FALSE)),0,HLOOKUP($D$5,Kc!$C$3:$AI$57,upland_rain!F54+3,FALSE)) -> 0.72 | H54: 0 | I54: 0 | J54: 0 | K54: 0 | L54: 0 | M54: 0 | N54: 0 | O54: 0 | P54: 0 | Q54: 0 | R54: 0 | S54: 0 | T54: 0 | U54: 0 | V54: 0 | W54: 0 | X54: 0 | Y54: 0 | Z54: 0 | AA54: 0 | AB54: 0 | AC54: 0 | AD54: =VLOOKUP($D$7,ETo!$B$4:$P$88,MONTH(D54)+2,FALSE)/4 ->  | AG54: 0 | AH54: 0 | AJ54: =VLOOKUP(MONTH(D54),[0]!rainforuplandcrop,4)/1000*AB54*1600*7 -> 
B55: 2009-05-16 | C55: 2009-05-22 | D55: 2009-05-22 | E55: 29 | F55: =IF(ISERROR(VLOOKUP(E55,Crop!$AC$3:$AD$70,2,FALSE)),0,VLOOKUP(E55,Crop!$AC$3:$AD$70,2,FALSE)) -> 3 | G55: =IF(ISERROR(HLOOKUP($D$5,Kc!$C$3:$AI$57,upland_rain!F55+3,FALSE)),0,HLOOKUP($D$5,Kc!$C$3:$AI$57,upland_rain!F55+3,FALSE)) -> 0.86 | H55: 0 | I55: 0 | J55: 0 | K55: 0 | L55: 0 | M55: 0 | N55: 0 | O55: 0 | P55: 0 | Q55: 0 | R55: 0 | S55: 0 | T55: 0 | U55: 0 | V55: 0 | W55: 0 | X55: 0 | Y55: 0 | Z55: 0 | AA55: 0 | AB55: 0 | AC55: 0 | AD55: =VLOOKUP($D$7,ETo!$B$4:$P$88,MONTH(D55)+2,FALSE)/4 ->  | AG55: 0 | AH55: 0 | AJ55: =VLOOKUP(MONTH(D55),[0]!rainforuplandcrop,4)/1000*AB55*1600*7 -> 
B56: 2009-05-23 | C56: 2009-05-29 | D56: 2009-05-29 | E56: 30 | F56: =IF(ISERROR(VLOOKUP(E56,Crop!$AC$3:$AD$70,2,FALSE)),0,VLOOKUP(E56,Crop!$AC$3:$AD$70,2,FALSE)) -> 4 | G56: =IF(ISERROR(HLOOKUP($D$5,Kc!$C$3:$AI$57,upland_rain!F56+3,FALSE)),0,HLOOKUP($D$5,Kc!$C$3:$AI$57,upland_rain!F56+3,FALSE)) -> 1.13 | H56: 0 | I56: 0 | J56: 0 | K56: 0 | L56: 0 | M56: 0 | N56: 0 | O56: 0 | P56: 0 | Q56: 0 | R56: 0 | S56: 0 | T56: 0 | U56: 0 | V56: 0 | W56: 0 | X56: 0 | Y56: 0 | Z56: 0 | AA56: 0 | AB56: 0 | AC56: 0 | AD56: =VLOOKUP($D$7,ETo!$B$4:$P$88,MONTH(D56)+2,FALSE)/4 ->  | AG56: 0 | AH56: 0 | AJ56: =VLOOKUP(MONTH(D56),[0]!rainforuplandcrop,4)/1000*AB56*1600*7 -> 
B57: 2009-05-30 | C57: 2009-06-05 | D57: 2009-06-05 | E57: 31 | F57: =IF(ISERROR(VLOOKUP(E57,Crop!$AC$3:$AD$70,2,FALSE)),0,VLOOKUP(E57,Crop!$AC$3:$AD$70,2,FALSE)) -> 5 | G57: =IF(ISERROR(HLOOKUP($D$5,Kc!$C$3:$AI$57,upland_rain!F57+3,FALSE)),0,HLOOKUP($D$5,Kc!$C$3:$AI$57,upland_rain!F57+3,FALSE)) -> 1.35 | H57: 0 | I57: 0 | J57: 0 | K57: =IF(J56>0,IF(K$26>$E$9,0,VLOOKUP(K$26,$F$3:$G$23,2,FALSE)),0) -> 0 | L57: 0 | M57: 0 | N57: 0 | O57: 0 | P57: 0 | Q57: 0 | R57: 0 | S57: 0 | T57: 0 | U57: =IF(T56>0,IF(U$26>$E$9,0,VLOOKUP(U$26,$F$3:$G$23,2,FALSE)),0) -> 0 | V57: 0 | W57: 0 | X57: 0 | Y57: 0 | Z57: 0 | AA57: 0 | AB57: 0 | AC57: 0 | AD57: =VLOOKUP($D$7,ETo!$B$4:$P$88,MONTH(D57)+2,FALSE)/4 ->  | AG57: 0 | AH57: 0 | AJ57: =VLOOKUP(MONTH(D57),[0]!rainforuplandcrop,4)/1000*AB57*1600*7 -> 
B58: 2009-06-06 | C58: 2009-06-12 | D58: 2009-06-12 | E58: 32 | F58: =IF(ISERROR(VLOOKUP(E58,Crop!$AC$3:$AD$70,2,FALSE)),0,VLOOKUP(E58,Crop!$AC$3:$AD$70,2,FALSE)) -> 6 | G58: =IF(ISERROR(HLOOKUP($D$5,Kc!$C$3:$AI$57,upland_rain!F58+3,FALSE)),0,HLOOKUP($D$5,Kc!$C$3:$AI$57,upland_rain!F58+3,FALSE)) -> 1.52 | H58: 0 | I58: 0 | J58: 0 | K58: 0 | L58: 0 | M58: 0 | N58: 0 | O58: 0 | P58: 0 | Q58: 0 | R58: 0 | S58: 0 | T58: 0 | U58: 0 | V58: 0 | W58: 0 | X58: 0 | Y58: 0 | Z58: 0 | AA58: 0 | AB58: 0 | AC58: 0 | AD58: =VLOOKUP($D$7,ETo!$B$4:$P$88,MONTH(D58)+2,FALSE)/4 ->  | AG58: 0 | AH58: 0 | AJ58: =VLOOKUP(MONTH(D58),[0]!rainforuplandcrop,4)/1000*AB58*1600*7 -> 
B59: 2009-06-13 | C59: 2009-06-19 | D59: =+C59 -> 2009-06-19 | E59: 33 | F59: =IF(ISERROR(VLOOKUP(E59,Crop!$AC$3:$AD$70,2,FALSE)),0,VLOOKUP(E59,Crop!$AC$3:$AD$70,2,FALSE)) -> 7 | G59: =IF(ISERROR(HLOOKUP($D$5,Kc!$C$3:$AI$57,upland_rain!F59+3,FALSE)),0,HLOOKUP($D$5,Kc!$C$3:$AI$57,upland_rain!F59+3,FALSE)) -> 1.61 | H59: 0 | I59: 0 | J59: 0 | K59: 0 | L59: 0 | M59: 0 | N59: 0 | O59: 0 | P59: 0 | Q59: 0 | R59: 0 | S59: 0 | T59: 0 | U59: 0 | V59: 0 | W59: 0 | X59: 0 | Y59: 0 | Z59: 0 | AA59: 0 | AB59: 0 | AC59: 0 | AD59: =VLOOKUP($D$7,ETo!$B$4:$P$88,MONTH(D59)+2,FALSE)/4 ->  | AE59: =IF(AC59*AD59=0,0,(AC59*AD59)+$E$10) ->  | AF59: =AE59*AB59*1.6 ->  | AG59: 0 | AH59: 0 | AI59: =AF59+AH59 ->  | AJ59: =VLOOKUP(MONTH(D59),[0]!rainforuplandcrop,4)/1000*AB59*1600*7 -> 
B60: =C59+1 -> 2009-06-20 | C60: =B60+6 -> 2009-06-26 | D60: 2009-06-26 | E60: 34 | F60: =IF(ISERROR(VLOOKUP(E60,Crop!$AC$3:$AD$70,2,FALSE)),0,VLOOKUP(E60,Crop!$AC$3:$AD$70,2,FALSE)) -> 8 | G60: =IF(ISERROR(HLOOKUP($D$5,Kc!$C$3:$AI$57,upland_rain!F60+3,FALSE)),0,HLOOKUP($D$5,Kc!$C$3:$AI$57,upland_rain!F60+3,FALSE)) -> 1.63 | H60: 0 | I60: 0 | J60: 0 | K60: 0 | L60: 0 | M60: 0 | N60: 0 | O60: 0 | P60: 0 | Q60: 0 | R60: 0 | S60: 0 | T60: 0 | U60: 0 | V60: 0 | W60: 0 | X60: 0 | Y60: 0 | Z60: 0 | AA60: 0 | AB60: 0 | AC60: 0 | AD60: =VLOOKUP($D$7,ETo!$B$4:$P$88,MONTH(D60)+2,FALSE)/4 ->  | AG60: 0 | AH60: 0 | AJ60: =VLOOKUP(MONTH(D60),[0]!rainforuplandcrop,4)/1000*AB60*1600*7 -> 
B61: 2009-06-27 | C61: 2009-07-03 | D61: 2009-07-03 | E61: 35 | F61: =IF(ISERROR(VLOOKUP(E61,Crop!$AC$3:$AD$70,2,FALSE)),0,VLOOKUP(E61,Crop!$AC$3:$AD$70,2,FALSE)) -> 9 | G61: =IF(ISERROR(HLOOKUP($D$5,Kc!$C$3:$AI$57,upland_rain!F61+3,FALSE)),0,HLOOKUP($D$5,Kc!$C$3:$AI$57,upland_rain!F61+3,FALSE)) -> 1.58 | H61: 0 | I61: 0 | J61: 0 | K61: 0 | L61: 0 | M61: 0 | N61: 0 | O61: 0 | P61: 0 | Q61: 0 | R61: 0 | S61: 0 | T61: 0 | U61: 0 | V61: 0 | W61: 0 | X61: 0 | Y61: 0 | Z61: 0 | AA61: 0 | AB61: 0 | AC61: 0 | AD61: =VLOOKUP($D$7,ETo!$B$4:$P$88,MONTH(D61)+2,FALSE)/4 ->  | AG61: 0 | AH61: 0 | AJ61: =VLOOKUP(MONTH(D61),[0]!rainforuplandcrop,4)/1000*AB61*1600*7 -> 
B62: 2009-07-04 | C62: 2009-07-10 | D62: 2009-07-10 | E62: 36 | F62: =IF(ISERROR(VLOOKUP(E62,Crop!$AC$3:$AD$70,2,FALSE)),0,VLOOKUP(E62,Crop!$AC$3:$AD$70,2,FALSE)) -> 10 | G62: =IF(ISERROR(HLOOKUP($D$5,Kc!$C$3:$AI$57,upland_rain!F62+3,FALSE)),0,HLOOKUP($D$5,Kc!$C$3:$AI$57,upland_rain!F62+3,FALSE)) -> 1.5 | H62: 0 | I62: 0 | J62: 0 | K62: 0 | L62: 0 | M62: 0 | N62: 0 | O62: 0 | P62: 0 | Q62: 0 | R62: 0 | S62: 0 | T62: 0 | U62: 0 | V62: 0 | W62: 0 | X62: 0 | Y62: 0 | Z62: 0 | AA62: 0 | AB62: 0 | AC62: 0 | AD62: =VLOOKUP($D$7,ETo!$B$4:$P$88,MONTH(D62)+2,FALSE)/4 ->  | AG62: 0 | AH62: 0 | AJ62: =VLOOKUP(MONTH(D62),[0]!rainforuplandcrop,4)/1000*AB62*1600*7 -> 
B63: 2009-07-11 | C63: 2009-07-17 | D63: 2009-07-17 | E63: 37 | F63: =IF(ISERROR(VLOOKUP(E63,Crop!$AC$3:$AD$70,2,FALSE)),0,VLOOKUP(E63,Crop!$AC$3:$AD$70,2,FALSE)) -> 11 | G63: =IF(ISERROR(HLOOKUP($D$5,Kc!$C$3:$AI$57,upland_rain!F63+3,FALSE)),0,HLOOKUP($D$5,Kc!$C$3:$AI$57,upland_rain!F63+3,FALSE)) -> 1.38 | H63: 0 | I63: 0 | J63: 0 | K63: 0 | L63: 0 | M63: 0 | N63: 0 | O63: 0 | P63: 0 | Q63: 0 | R63: 0 | S63: 0 | T63: 0 | U63: 0 | V63: 0 | W63: 0 | X63: 0 | Y63: 0 | Z63: 0 | AA63: 0 | AB63: 0 | AC63: 0 | AD63: =VLOOKUP($D$7,ETo!$B$4:$P$88,MONTH(D63)+2,FALSE)/4 ->  | AG63: 0 | AH63: 0 | AJ63: =VLOOKUP(MONTH(D63),[0]!rainforuplandcrop,4)/1000*AB63*1600*7 -> 
B64: 2009-07-18 | C64: 2009-07-24 | D64: 2009-07-24 | E64: 38 | F64: =IF(ISERROR(VLOOKUP(E64,Crop!$AC$3:$AD$70,2,FALSE)),0,VLOOKUP(E64,Crop!$AC$3:$AD$70,2,FALSE)) -> 12 | G64: =IF(ISERROR(HLOOKUP($D$5,Kc!$C$3:$AI$57,upland_rain!F64+3,FALSE)),0,HLOOKUP($D$5,Kc!$C$3:$AI$57,upland_rain!F64+3,FALSE)) -> 1.15 | H64: 0 | I64: 0 | J64: 0 | K64: 0 | L64: 0 | M64: 0 | N64: 0 | O64: 0 | P64: 0 | Q64: 0 | R64: 0 | S64: 0 | T64: 0 | U64: 0 | V64: 0 | W64: 0 | X64: 0 | Y64: 0 | Z64: 0 | AA64: 0 | AB64: 0 | AC64: 0 | AD64: =VLOOKUP($D$7,ETo!$B$4:$P$88,MONTH(D64)+2,FALSE)/4 ->  | AG64: 0 | AH64: 0 | AJ64: =VLOOKUP(MONTH(D64),[0]!rainforuplandcrop,4)/1000*AB64*1600*7 -> 
B65: 2009-07-25 | C65: 2009-07-31 | D65: 2009-07-31 | E65: 39 | F65: =IF(ISERROR(VLOOKUP(E65,Crop!$AC$3:$AD$70,2,FALSE)),0,VLOOKUP(E65,Crop!$AC$3:$AD$70,2,FALSE)) -> 13 | G65: =IF(ISERROR(HLOOKUP($D$5,Kc!$C$3:$AI$57,upland_rain!F65+3,FALSE)),0,HLOOKUP($D$5,Kc!$C$3:$AI$57,upland_rain!F65+3,FALSE)) -> 0.9 | H65: 0 | I65: 0 | J65: 0 | K65: 0 | L65: 0 | M65: 0 | N65: 0 | O65: 0 | P65: 0 | Q65: 0 | R65: 0 | S65: 0 | T65: 0 | U65: 0 | V65: 0 | W65: 0 | X65: 0 | Y65: 0 | Z65: 0 | AA65: 0 | AB65: 0 | AC65: 0 | AD65: =VLOOKUP($D$7,ETo!$B$4:$P$88,MONTH(D65)+2,FALSE)/4 ->  | AG65: 0 | AH65: 0 | AJ65: =VLOOKUP(MONTH(D65),[0]!rainforuplandcrop,4)/1000*AB65*1600*7 -> 
B66: 2009-08-01 | C66: 2009-08-07 | D66: 2009-08-07 | E66: 40 | F66: =IF(ISERROR(VLOOKUP(E66,Crop!$AC$3:$AD$70,2,FALSE)),0,VLOOKUP(E66,Crop!$AC$3:$AD$70,2,FALSE)) -> 14 | G66: =IF(ISERROR(HLOOKUP($D$5,Kc!$C$3:$AI$57,upland_rain!F66+3,FALSE)),0,HLOOKUP($D$5,Kc!$C$3:$AI$57,upland_rain!F66+3,FALSE)) -> 0.67 | H66: 0 | I66: 0 | J66: 0 | K66: 0 | L66: 0 | M66: 0 | N66: 0 | O66: 0 | P66: 0 | Q66: 0 | R66: 0 | S66: 0 | T66: 0 | U66: 0 | V66: 0 | W66: 0 | X66: 0 | Y66: 0 | Z66: 0 | AA66: 0 | AB66: 0 | AC66: 0 | AD66: =VLOOKUP($D$7,ETo!$B$4:$P$88,MONTH(D66)+2,FALSE)/4 ->  | AG66: 0 | AH66: 0 | AJ66: =VLOOKUP(MONTH(D66),[0]!rainforuplandcrop,4)/1000*AB66*1600*7 -> 
B67: 2009-08-08 | C67: 2009-08-14 | D67: 2009-08-14 | E67: 41 | F67: =IF(ISERROR(VLOOKUP(E67,Crop!$AC$3:$AD$70,2,FALSE)),0,VLOOKUP(E67,Crop!$AC$3:$AD$70,2,FALSE)) -> 0 | G67: =IF(ISERROR(HLOOKUP($D$5,Kc!$C$3:$AI$57,upland_rain!F67+3,FALSE)),0,HLOOKUP($D$5,Kc!$C$3:$AI$57,upland_rain!F67+3,FALSE)) -> 0 | H67: 0 | I67: 0 | J67: 0 | K67: =IF(J66>0,IF(K$26>$E$9,0,VLOOKUP(K$26,$F$3:$G$23,2,FALSE)),0) -> 0 | L67: 0 | M67: 0 | N67: 0 | O67: 0 | P67: 0 | Q67: 0 | R67: 0 | S67: 0 | T67: 0 | U67: =IF(T66>0,IF(U$26>$E$9,0,VLOOKUP(U$26,$F$3:$G$23,2,FALSE)),0) -> 0 | V67: 0 | W67: 0 | X67: 0 | Y67: 0 | Z67: 0 | AA67: 0 | AB67: 0 | AC67: 0 | AD67: =VLOOKUP($D$7,ETo!$B$4:$P$88,MONTH(D67)+2,FALSE)/4 ->  | AG67: 0 | AH67: 0 | AJ67: =VLOOKUP(MONTH(D67),[0]!rainforuplandcrop,4)/1000*AB67*1600*7 -> 
B68: 2009-08-15 | C68: 2009-08-21 | D68: 2009-08-21 | E68: 42 | F68: =IF(ISERROR(VLOOKUP(E68,Crop!$AC$3:$AD$70,2,FALSE)),0,VLOOKUP(E68,Crop!$AC$3:$AD$70,2,FALSE)) -> 0 | G68: =IF(ISERROR(HLOOKUP($D$5,Kc!$C$3:$AI$57,upland_rain!F68+3,FALSE)),0,HLOOKUP($D$5,Kc!$C$3:$AI$57,upland_rain!F68+3,FALSE)) -> 0 | H68: 0 | I68: 0 | J68: 0 | K68: 0 | L68: 0 | M68: 0 | N68: 0 | O68: 0 | P68: 0 | Q68: 0 | R68: 0 | S68: 0 | T68: 0 | U68: 0 | V68: 0 | W68: 0 | X68: 0 | Y68: 0 | Z68: 0 | AA68: 0 | AB68: 0 | AC68: 0 | AD68: =VLOOKUP($D$7,ETo!$B$4:$P$88,MONTH(D68)+2,FALSE)/4 ->  | AG68: 0 | AH68: 0 | AJ68: =VLOOKUP(MONTH(D68),[0]!rainforuplandcrop,4)/1000*AB68*1600*7 -> 
B69: 2009-08-22 | C69: 2009-08-28 | D69: 2009-08-28 | E69: 43 | F69: =IF(ISERROR(VLOOKUP(E69,Crop!$AC$3:$AD$70,2,FALSE)),0,VLOOKUP(E69,Crop!$AC$3:$AD$70,2,FALSE)) -> 0 | G69: =IF(ISERROR(HLOOKUP($D$5,Kc!$C$3:$AI$57,upland_rain!F69+3,FALSE)),0,HLOOKUP($D$5,Kc!$C$3:$AI$57,upland_rain!F69+3,FALSE)) -> 0 | H69: 0 | I69: 0 | J69: 0 | K69: 0 | L69: 0 | M69: 0 | N69: 0 | O69: 0 | P69: 0 | Q69: 0 | R69: 0 | S69: 0 | T69: 0 | U69: 0 | V69: 0 | W69: 0 | X69: 0 | Y69: 0 | Z69: 0 | AA69: 0 | AB69: 0 | AC69: 0 | AD69: =VLOOKUP($D$7,ETo!$B$4:$P$88,MONTH(D69)+2,FALSE)/4 ->  | AG69: 0 | AH69: 0 | AJ69: =VLOOKUP(MONTH(D69),[0]!rainforuplandcrop,4)/1000*AB69*1600*7 -> 
B70: 2009-08-29 | C70: 2009-09-04 | D70: 2009-09-04 | E70: 44 | F70: =IF(ISERROR(VLOOKUP(E70,Crop!$AC$3:$AD$70,2,FALSE)),0,VLOOKUP(E70,Crop!$AC$3:$AD$70,2,FALSE)) -> 0 | G70: =IF(ISERROR(HLOOKUP($D$5,Kc!$C$3:$AI$57,upland_rain!F70+3,FALSE)),0,HLOOKUP($D$5,Kc!$C$3:$AI$57,upland_rain!F70+3,FALSE)) -> 0 | H70: 0 | I70: 0 | J70: 0 | K70: 0 | L70: 0 | M70: 0 | N70: 0 | O70: 0 | P70: 0 | Q70: 0 | R70: 0 | S70: 0 | T70: 0 | U70: 0 | V70: 0 | W70: 0 | X70: 0 | Y70: 0 | Z70: 0 | AA70: 0 | AB70: 0 | AC70: 0 | AD70: =VLOOKUP($D$7,ETo!$B$4:$P$88,MONTH(D70)+2,FALSE)/4 ->  | AG70: 0 | AH70: 0 | AJ70: =VLOOKUP(MONTH(D70),[0]!rainforuplandcrop,4)/1000*AB70*1600*7 -> 
B71: 2009-09-05 | C71: 2009-09-11 | D71: 2009-09-11 | E71: 45 | F71: =IF(ISERROR(VLOOKUP(E71,Crop!$AC$3:$AD$70,2,FALSE)),0,VLOOKUP(E71,Crop!$AC$3:$AD$70,2,FALSE)) -> 0 | G71: =IF(ISERROR(HLOOKUP($D$5,Kc!$C$3:$AI$57,upland_rain!F71+3,FALSE)),0,HLOOKUP($D$5,Kc!$C$3:$AI$57,upland_rain!F71+3,FALSE)) -> 0 | H71: 0 | I71: 0 | J71: 0 | K71: 0 | L71: 0 | M71: 0 | N71: 0 | O71: 0 | P71: 0 | Q71: 0 | R71: 0 | S71: 0 | T71: 0 | U71: 0 | V71: 0 | W71: 0 | X71: 0 | Y71: 0 | Z71: 0 | AA71: 0 | AB71: 0 | AC71: 0 | AD71: =VLOOKUP($D$7,ETo!$B$4:$P$88,MONTH(D71)+2,FALSE)/4 ->  | AG71: 0 | AH71: 0 | AJ71: =VLOOKUP(MONTH(D71),[0]!rainforuplandcrop,4)/1000*AB71*1600*7 -> 
B72: 2009-09-12 | C72: 2009-09-18 | D72: 2009-09-18 | E72: 46 | F72: =IF(ISERROR(VLOOKUP(E72,Crop!$AC$3:$AD$70,2,FALSE)),0,VLOOKUP(E72,Crop!$AC$3:$AD$70,2,FALSE)) -> 0 | G72: =IF(ISERROR(HLOOKUP($D$5,Kc!$C$3:$AI$57,upland_rain!F72+3,FALSE)),0,HLOOKUP($D$5,Kc!$C$3:$AI$57,upland_rain!F72+3,FALSE)) -> 0 | H72: 0 | I72: 0 | J72: 0 | K72: 0 | L72: 0 | M72: 0 | N72: 0 | O72: 0 | P72: 0 | Q72: 0 | R72: 0 | S72: 0 | T72: 0 | U72: 0 | V72: 0 | W72: 0 | X72: 0 | Y72: 0 | Z72: 0 | AA72: 0 | AB72: 0 | AC72: 0 | AD72: =VLOOKUP($D$7,ETo!$B$4:$P$88,MONTH(D72)+2,FALSE)/4 ->  | AG72: 0 | AH72: 0 | AJ72: =VLOOKUP(MONTH(D72),[0]!rainforuplandcrop,4)/1000*AB72*1600*7 -> 
B73: 2009-09-19 | C73: 2009-09-25 | D73: 2009-09-25 | E73: 47 | F73: =IF(ISERROR(VLOOKUP(E73,Crop!$AC$3:$AD$70,2,FALSE)),0,VLOOKUP(E73,Crop!$AC$3:$AD$70,2,FALSE)) -> 0 | G73: =IF(ISERROR(HLOOKUP($D$5,Kc!$C$3:$AI$57,upland_rain!F73+3,FALSE)),0,HLOOKUP($D$5,Kc!$C$3:$AI$57,upland_rain!F73+3,FALSE)) -> 0 | H73: 0 | I73: 0 | J73: 0 | K73: 0 | L73: 0 | M73: 0 | N73: 0 | O73: 0 | P73: 0 | Q73: 0 | R73: 0 | S73: 0 | T73: 0 | U73: 0 | V73: 0 | W73: 0 | X73: 0 | Y73: 0 | Z73: 0 | AA73: 0 | AB73: 0 | AC73: 0 | AD73: =VLOOKUP($D$7,ETo!$B$4:$P$88,MONTH(D73)+2,FALSE)/4 ->  | AG73: 0 | AH73: 0 | AJ73: =VLOOKUP(MONTH(D73),[0]!rainforuplandcrop,4)/1000*AB73*1600*7 -> 
B74: 2009-09-26 | C74: 2009-10-02 | D74: 2009-10-02 | E74: 48 | F74: =IF(ISERROR(VLOOKUP(E74,Crop!$AC$3:$AD$70,2,FALSE)),0,VLOOKUP(E74,Crop!$AC$3:$AD$70,2,FALSE)) -> 0 | G74: =IF(ISERROR(HLOOKUP($D$5,Kc!$C$3:$AI$57,upland_rain!F74+3,FALSE)),0,HLOOKUP($D$5,Kc!$C$3:$AI$57,upland_rain!F74+3,FALSE)) -> 0 | H74: 0 | I74: 0 | J74: 0 | K74: 0 | L74: 0 | M74: 0 | N74: 0 | O74: 0 | P74: 0 | Q74: 0 | R74: 0 | S74: 0 | T74: 0 | U74: 0 | V74: 0 | W74: 0 | X74: 0 | Y74: 0 | Z74: 0 | AA74: 0 | AB74: 0 | AC74: 0 | AD74: =VLOOKUP($D$7,ETo!$B$4:$P$88,MONTH(D74)+2,FALSE)/4 ->  | AG74: 0 | AH74: 0 | AJ74: =VLOOKUP(MONTH(D74),[0]!rainforuplandcrop,4)/1000*AB74*1600*7 -> 
B75: 2009-10-03 | C75: 2009-10-09 | D75: 2009-10-09 | E75: 49 | F75: =IF(ISERROR(VLOOKUP(E75,Crop!$AC$3:$AD$70,2,FALSE)),0,VLOOKUP(E75,Crop!$AC$3:$AD$70,2,FALSE)) -> 0 | G75: =IF(ISERROR(HLOOKUP($D$5,Kc!$C$3:$AI$57,upland_rain!F75+3,FALSE)),0,HLOOKUP($D$5,Kc!$C$3:$AI$57,upland_rain!F75+3,FALSE)) -> 0 | H75: 0 | I75: 0 | J75: 0 | K75: 0 | L75: 0 | M75: 0 | N75: 0 | O75: 0 | P75: 0 | Q75: 0 | R75: 0 | S75: 0 | T75: 0 | U75: 0 | V75: 0 | W75: 0 | X75: 0 | Y75: 0 | Z75: 0 | AA75: 0 | AB75: 0 | AC75: 0 | AD75: =VLOOKUP($D$7,ETo!$B$4:$P$88,MONTH(D75)+2,FALSE)/4 ->  | AG75: 0 | AH75: 0 | AJ75: =VLOOKUP(MONTH(D75),[0]!rainforuplandcrop,4)/1000*AB75*1600*7 -> 
B76: 2009-10-10 | C76: 2009-10-16 | D76: 2009-10-16 | E76: 50 | F76: =IF(ISERROR(VLOOKUP(E76,Crop!$AC$3:$AD$70,2,FALSE)),0,VLOOKUP(E76,Crop!$AC$3:$AD$70,2,FALSE)) -> 0 | G76: =IF(ISERROR(HLOOKUP($D$5,Kc!$C$3:$AI$57,upland_rain!F76+3,FALSE)),0,HLOOKUP($D$5,Kc!$C$3:$AI$57,upland_rain!F76+3,FALSE)) -> 0 | H76: 0 | I76: 0 | J76: 0 | K76: 0 | L76: 0 | M76: 0 | N76: 0 | O76: 0 | P76: 0 | Q76: 0 | R76: 0 | S76: 0 | T76: 0 | U76: 0 | V76: 0 | W76: 0 | X76: 0 | Y76: 0 | Z76: 0 | AA76: 0 | AB76: 0 | AC76: 0 | AD76: =VLOOKUP($D$7,ETo!$B$4:$P$88,MONTH(D76)+2,FALSE)/4 ->  | AG76: 0 | AH76: 0 | AJ76: =VLOOKUP(MONTH(D76),[0]!rainforuplandcrop,4)/1000*AB76*1600*7 -> 
B77: 2009-10-17 | C77: 2009-10-23 | D77: 2009-10-23 | E77: 51 | F77: =IF(ISERROR(VLOOKUP(E77,Crop!$AC$3:$AD$70,2,FALSE)),0,VLOOKUP(E77,Crop!$AC$3:$AD$70,2,FALSE)) -> 0 | G77: =IF(ISERROR(HLOOKUP($D$5,Kc!$C$3:$AI$57,upland_rain!F77+3,FALSE)),0,HLOOKUP($D$5,Kc!$C$3:$AI$57,upland_rain!F77+3,FALSE)) -> 0 | H77: 0 | I77: 0 | J77: 0 | K77: 0 | L77: 0 | M77: 0 | N77: 0 | O77: 0 | P77: 0 | Q77: 0 | R77: 0 | S77: 0 | T77: 0 | U77: 0 | V77: 0 | W77: 0 | X77: 0 | Y77: 0 | Z77: 0 | AA77: 0 | AB77: 0 | AC77: 0 | AD77: =VLOOKUP($D$7,ETo!$B$4:$P$88,MONTH(D77)+2,FALSE)/4 ->  | AG77: 0 | AH77: 0 | AJ77: =VLOOKUP(MONTH(D77),[0]!rainforuplandcrop,4)/1000*AB77*1600*7 -> 
B78: 2009-10-24 | C78: 2009-10-30 | D78: 2009-10-30 | E78: 52 | F78: =IF(ISERROR(VLOOKUP(E78,Crop!$AC$3:$AD$70,2,FALSE)),0,VLOOKUP(E78,Crop!$AC$3:$AD$70,2,FALSE)) -> 0 | G78: =IF(ISERROR(HLOOKUP($D$5,Kc!$C$3:$AI$57,upland_rain!F78+3,FALSE)),0,HLOOKUP($D$5,Kc!$C$3:$AI$57,upland_rain!F78+3,FALSE)) -> 0 | H78: 0 | I78: 0 | J78: 0 | K78: 0 | L78: 0 | M78: 0 | N78: 0 | O78: 0 | P78: 0 | Q78: 0 | R78: 0 | S78: 0 | T78: 0 | U78: 0 | V78: 0 | W78: 0 | X78: 0 | Y78: 0 | Z78: 0 | AA78: 0 | AB78: 0 | AC78: 0 | AD78: =VLOOKUP($D$7,ETo!$B$4:$P$88,MONTH(D78)+2,FALSE)/4 ->  | AG78: 0 | AH78: 0 | AJ78: =VLOOKUP(MONTH(D78),[0]!rainforuplandcrop,4)/1000*AB78*1600*7 -> 
AI79: =SUM(AI27:AI78) ->  | AJ79: =SUM(AJ27:AJ78) -> 

Sheet plant
B1: ตารางแสดงรายละเอียดการคำนวณความต้องการน้ำของพืช
F2: สัปดาห์ | G2: พื้นที่ (ไร่)
F3: 1 | G3: =+E8 -> 0
B4: จังหวัด | D4: =+fill_data!C4 -> 0 | F4: =IF(F3="","",IF(F3+1<=$E$9,F3+1,"")) -> 
B5: ชนิดพืช | D5: =+fill_data!C54 -> ยางพารา**
B6: สัปดาห์เริ่มต้น | D6: =VLOOKUP(D5,Crop!$B$3:$C$35,2,FALSE) -> 52 | E6: 1
B7: ใช้ค่า ETo ของจังหวัด | D7: =VLOOKUP(D4,Prv!$D$3:$E$78,2,FALSE) -> 
B8: พื้นที่โครงการ, ไร่ | E8: =+fill_data!D55 -> 0
B9: เวลาปลูกจนเต็มพื้นที่, สัปดาห์ | E9: 1
B10: ปริมาณน้ำรั่วซึม, มม./สัปดาห์ | E10: =+fill_data!D6 -> 0 | I10: *ภาคกลาง กำหนดให้ใช้ 1 มม./วัน ส่วนภาคอื่นๆใช้ 2 มม./วัน
B11: ปริมาณน้ำเตรียมแปลง, มม./สัปดาห์ | I11: *กำหนดระยะเวลาในการเตรียมแปลง 1 สัปดาห์
B13: (1) | C13: (2) | D13: (3) | E13: (4) | F13: (5) | G13: (6) | H13: (7.1) | I13: (7.2) | J13: (7.3) | K13: (7.4) | L13: (7.5) | M13: (7.6) | N13: (7.7) | O13: (7.8) | P13: (7.9) | Q13: (7.10) | R13: (8) | S13: (9) | T13: (10) | U13: (11) | V13: (12) | W13: (13) | X13: (14) | Y13: (15)
B14: ช่วงเวลาสัปดาห์ | D14: เดือน | E14: สัปดาห์ | F14: สัปดาห์ | G14: Kc | H14: พื้นที่เพาะปลูกในแต่ละสัปดาห์ (ไร่) | R14: รวมพื้นที่ | S14: Weighted | T14: ETo | U14: ความต้องการน้ำ | W14: ปริมาณน้ำเตรียมแปลง | Y14: ความต้องการน้ำ | Z14: ฝนใช้การ
B15: เริ่มต้น | C15: สิ้นสุด | F15: ของ Kc | H15: 1 | I15: 2 | J15: 3 | K15: 4 | L15: 5 | M15: 6 | N15: 7 | O15: 8 | P15: 9 | Q15: 10 | R15: (ไร่) | S15: Kc | U15: (มม.) | V15: (ลบ.ม.) | W15: (ไร่) | X15: (ลบ.ม.) | Y15: (ลบ.ม.) | Z15: (ลบ.ม.)
B16: 2008-11-01 | C16: =B16+6 -> 2008-11-07 | D16: =+C16 -> 2008-11-07 | E16: 1 | F16: =IF(ISERROR(VLOOKUP(E16,Crop!$S$3:$T$70,2,FALSE)),0,VLOOKUP(E16,Crop!$S$3:$T$70,2,FALSE)) -> 1 | G16: =IF(ISERROR(HLOOKUP($D$5,Kc!$C$3:$AI$57,plant!F16+3,FALSE)),0,HLOOKUP($D$5,Kc!$C$3:$AI$57,plant!F16+3,FALSE)) -> 2.19 | H16: =IF(G16>0,IF(H$15>$E$9,0,VLOOKUP(H$15,$F$3:$G$12,2,FALSE)),0) -> 0 | I16: =IF(H67>0,IF(I$15>$E$9,0,VLOOKUP(I$15,$F$3:$G$12,2,FALSE)),0) -> 0 | J16: 0 | K16: 0 | L16: 0 | M16: 0 | N16: 0 | O16: 0 | P16: 0 | Q16: 0 | R16: =SUM(H16:Q16) -> 0 | S16: =IF(ISERROR((H16*G16+I16*G67+J16*G66+K16*G65+L16*G64+M16*G63+N16*G62+O16*G61+P16*G60+Q16*G59)/R16),0,(H16*G16+I16*G67+J16*G66+K16*G65+L16*G64+M16*G63+N16*G62+O16*G61+P16*G60+Q16*G59)/R16) -> 0 | T16: =VLOOKUP($D$7,ETo!$B$4:$P$88,MONTH(D16)+2,FALSE)/4 ->  | U16: =IF(S16*T16=0,0,(S16*T16)+$E$10) ->  | V16: =U16*R16*1.6*0.45 ->  | W16: =IF(ISERROR(INDEX(H16:L16,1,F16)),0,INDEX(H16:L16,1,F16)) -> 0 | X16: =W16*$E$11*1.6 -> 0 | Y16: =V16+X16 ->  | Z16: =VLOOKUP(MONTH(D16),[0]!rainforuplandcrop,4)/1000*R16*1600*7 -> 
B17: =C16+1 -> 2008-11-08 | C17: =B17+6 -> 2008-11-14 | D17: =+C17 -> 2008-11-14 | E17: 2 | F17: =IF(ISERROR(VLOOKUP(E17,Crop!$S$3:$T$70,2,FALSE)),0,VLOOKUP(E17,Crop!$S$3:$T$70,2,FALSE)) -> 2 | G17: =IF(ISERROR(HLOOKUP($D$5,Kc!$C$3:$AI$57,plant!F17+3,FALSE)),0,HLOOKUP($D$5,Kc!$C$3:$AI$57,plant!F17+3,FALSE)) -> 2.19 | H17: 0 | I17: =IF(H16>0,IF(I$15>$E$9,0,VLOOKUP(I$15,$F$3:$G$12,2,FALSE)),0) -> 0 | J17: 0 | K17: 0 | L17: 0 | M17: 0 | N17: 0 | O17: 0 | P17: 0 | Q17: 0 | R17: 0 | S17: =IF(ISERROR((H17*G17+I17*G16+J17*G67+K17*G66+L17*G65+M17*G64+N17*G63+O17*G62+P17*G61+Q17*G60)/R17),0,(H17*G17+I17*G16+J17*G67+K17*G66+L17*G65+M17*G64+N17*G63+O17*G62+P17*G61+Q17*G60)/R17) -> 0 | T17: =VLOOKUP($D$7,ETo!$B$4:$P$88,MONTH(D17)+2,FALSE)/4 ->  | W17: 0 | X17: 0 | Z17: =VLOOKUP(MONTH(D17),[0]!rainforuplandcrop,4)/1000*R17*1600*7 -> 
B18: 2008-11-15 | C18: 2008-11-21 | D18: =+C18 -> 2008-11-21 | E18: 3 | F18: =IF(ISERROR(VLOOKUP(E18,Crop!$S$3:$T$70,2,FALSE)),0,VLOOKUP(E18,Crop!$S$3:$T$70,2,FALSE)) -> 3 | G18: =IF(ISERROR(HLOOKUP($D$5,Kc!$C$3:$AI$57,plant!F18+3,FALSE)),0,HLOOKUP($D$5,Kc!$C$3:$AI$57,plant!F18+3,FALSE)) -> 2.19 | H18: 0 | I18: 0 | J18: 0 | K18: 0 | L18: 0 | M18: 0 | N18: 0 | O18: 0 | P18: 0 | Q18: 0 | R18: 0 | S18: =IF(ISERROR((H18*G18+I18*G17+J18*G16+K18*G67+L18*G66+M18*G65+N18*G64+O18*G63+P18*G62+Q18*G61)/R18),0,(H18*G18+I18*G17+J18*G16+K18*G67+L18*G66+M18*G65+N18*G64+O18*G63+P18*G62+Q18*G61)/R18) -> 0 | T18: =VLOOKUP($D$7,ETo!$B$4:$P$88,MONTH(D18)+2,FALSE)/4 ->  | W18: 0 | X18: 0 | Z18: =VLOOKUP(MONTH(D18),[0]!rainforuplandcrop,4)/1000*R18*1600*7 -> 
B19: 2008-11-22 | C19: 2008-11-28 | D19: 2008-11-28 | E19: 4 | F19: =IF(ISERROR(VLOOKUP(E19,Crop!$S$3:$T$70,2,FALSE)),0,VLOOKUP(E19,Crop!$S$3:$T$70,2,FALSE)) -> 4 | G19: =IF(ISERROR(HLOOKUP($D$5,Kc!$C$3:$AI$57,plant!F19+3,FALSE)),0,HLOOKUP($D$5,Kc!$C$3:$AI$57,plant!F19+3,FALSE)) -> 2.19 | H19: 0 | I19: 0 | J19: 0 | K19: 0 | L19: 0 | M19: 0 | N19: 0 | O19: 0 | P19: 0 | Q19: 0 | R19: 0 | S19: =IF(ISERROR((H19*G19+I19*G18+J19*G17+K19*G16+L19*G67+M19*G66+N19*G65+O19*G64+P19*G63+Q19*G62)/R19),0,(H19*G19+I19*G18+J19*G17+K19*G16+L19*G67+M19*G66+N19*G65+O19*G64+P19*G63+Q19*G62)/R19) -> 0 | T19: =VLOOKUP($D$7,ETo!$B$4:$P$88,MONTH(D19)+2,FALSE)/4 ->  | W19: 0 | X19: 0 | Z19: =VLOOKUP(MONTH(D19),[0]!rainforuplandcrop,4)/1000*R19*1600*7 -> 
B20: 2008-11-29 | C20: 2008-12-05 | D20: 2008-12-05 | E20: 5 | F20: =IF(ISERROR(VLOOKUP(E20,Crop!$S$3:$T$70,2,FALSE)),0,VLOOKUP(E20,Crop!$S$3:$T$70,2,FALSE)) -> 5 | G20: =IF(ISERROR(HLOOKUP($D$5,Kc!$C$3:$AI$57,plant!F20+3,FALSE)),0,HLOOKUP($D$5,Kc!$C$3:$AI$57,plant!F20+3,FALSE)) -> 2.19 | H20: 0 | I20: 0 | J20: 0 | K20: 0 | L20: 0 | M20: 0 | N20: 0 | O20: 0 | P20: 0 | Q20: 0 | R20: 0 | S20: =IF(ISERROR((H20*G20+I20*G19+J20*G18+K20*G17+L20*G16+M20*G67+N20*G66+O20*G65+P20*G64+Q20*G63)/R20),0,(H20*G20+I20*G19+J20*G18+K20*G17+L20*G16+M20*G67+N20*G66+O20*G65+P20*G64+Q20*G63)/R20) -> 0 | T20: =VLOOKUP($D$7,ETo!$B$4:$P$88,MONTH(D20)+2,FALSE)/4 ->  | W20: 0 | X20: 0 | Z20: =VLOOKUP(MONTH(D20),[0]!rainforuplandcrop,4)/1000*R20*1600*7 -> 
B21: 2008-12-06 | C21: 2008-12-12 | D21: 2008-12-12 | E21: 6 | F21: =IF(ISERROR(VLOOKUP(E21,Crop!$S$3:$T$70,2,FALSE)),0,VLOOKUP(E21,Crop!$S$3:$T$70,2,FALSE)) -> 6 | G21: =IF(ISERROR(HLOOKUP($D$5,Kc!$C$3:$AI$57,plant!F21+3,FALSE)),0,HLOOKUP($D$5,Kc!$C$3:$AI$57,plant!F21+3,FALSE)) -> 2.19 | H21: 0 | I21: 0 | J21: 0 | K21: 0 | L21: 0 | M21: 0 | N21: 0 | O21: 0 | P21: 0 | Q21: 0 | R21: 0 | S21: =IF(ISERROR((H21*G21+I21*G20+J21*G19+K21*G18+L21*G17+M21*G16+N21*G67+O21*G66+P21*G65+Q21*G64)/R21),0,(H21*G21+I21*G20+J21*G19+K21*G18+L21*G17+M21*G16+N21*G67+O21*G66+P21*G65+Q21*G64)/R21) -> 0 | T21: =VLOOKUP($D$7,ETo!$B$4:$P$88,MONTH(D21)+2,FALSE)/4 ->  | W21: 0 | X21: 0 | Z21: =VLOOKUP(MONTH(D21),[0]!rainforuplandcrop,4)/1000*R21*1600*7 -> 
B22: 2008-12-13 | C22: 2008-12-19 | D22: 2008-12-19 | E22: 7 | F22: =IF(ISERROR(VLOOKUP(E22,Crop!$S$3:$T$70,2,FALSE)),0,VLOOKUP(E22,Crop!$S$3:$T$70,2,FALSE)) -> 7 | G22: =IF(ISERROR(HLOOKUP($D$5,Kc!$C$3:$AI$57,plant!F22+3,FALSE)),0,HLOOKUP($D$5,Kc!$C$3:$AI$57,plant!F22+3,FALSE)) -> 2.19 | H22: 0 | I22: 0 | J22: 0 | K22: 0 | L22: 0 | M22: 0 | N22: 0 | O22: 0 | P22: 0 | Q22: 0 | R22: 0 | S22: =IF(ISERROR((H22*G22+I22*G21+J22*G20+K22*G19+L22*G18+M22*G17+N22*G16+O22*G67+P22*G66+Q22*G65)/R22),0,(H22*G22+I22*G21+J22*G20+K22*G19+L22*G18+M22*G17+N22*G16+O22*G67+P22*G66+Q22*G65)/R22) -> 0 | T22: =VLOOKUP($D$7,ETo!$B$4:$P$88,MONTH(D22)+2,FALSE)/4 ->  | W22: 0 | X22: 0 | Z22: =VLOOKUP(MONTH(D22),[0]!rainforuplandcrop,4)/1000*R22*1600*7 -> 
B23: 2008-12-20 | C23: 2008-12-26 | D23: 2008-12-26 | E23: 8 | F23: =IF(ISERROR(VLOOKUP(E23,Crop!$S$3:$T$70,2,FALSE)),0,VLOOKUP(E23,Crop!$S$3:$T$70,2,FALSE)) -> 8 | G23: =IF(ISERROR(HLOOKUP($D$5,Kc!$C$3:$AI$57,plant!F23+3,FALSE)),0,HLOOKUP($D$5,Kc!$C$3:$AI$57,plant!F23+3,FALSE)) -> 2.19 | H23: 0 | I23: 0 | J23: 0 | K23: 0 | L23: 0 | M23: 0 | N23: 0 | O23: 0 | P23: 0 | Q23: 0 | R23: 0 | S23: =IF(ISERROR((H23*G23+I23*G22+J23*G21+K23*G20+L23*G19+M23*G18+N23*G17+O23*G16+P23*G67+Q23*G66)/R23),0,(H23*G23+I23*G22+J23*G21+K23*G20+L23*G19+M23*G18+N23*G17+O23*G16+P23*G67+Q23*G66)/R23) -> 0 | T23: =VLOOKUP($D$7,ETo!$B$4:$P$88,MONTH(D23)+2,FALSE)/4 ->  | W23: 0 | X23: 0 | Z23: =VLOOKUP(MONTH(D23),[0]!rainforuplandcrop,4)/1000*R23*1600*7 -> 
B24: 2008-12-27 | C24: 2009-01-02 | D24: 2009-01-02 | E24: 9 | F24: =IF(ISERROR(VLOOKUP(E24,Crop!$S$3:$T$70,2,FALSE)),0,VLOOKUP(E24,Crop!$S$3:$T$70,2,FALSE)) -> 9 | G24: =IF(ISERROR(HLOOKUP($D$5,Kc!$C$3:$AI$57,plant!F24+3,FALSE)),0,HLOOKUP($D$5,Kc!$C$3:$AI$57,plant!F24+3,FALSE)) -> 2.19 | H24: 0 | I24: 0 | J24: 0 | K24: 0 | L24: 0 | M24: 0 | N24: 0 | O24: 0 | P24: 0 | Q24: 0 | R24: 0 | S24: =IF(ISERROR((H24*G24+I24*G23+J24*G22+K24*G21+L24*G20+M24*G19+N24*G18+O24*G17+P24*G16+Q24*G67)/R24),0,(H24*G24+I24*G23+J24*G22+K24*G21+L24*G20+M24*G19+N24*G18+O24*G17+P24*G16+Q24*G67)/R24) -> 0 | T24: =VLOOKUP($D$7,ETo!$B$4:$P$88,MONTH(D24)+2,FALSE)/4 ->  | W24: 0 | X24: 0 | Z24: =VLOOKUP(MONTH(D24),[0]!rainforuplandcrop,4)/1000*R24*1600*7 -> 
B25: 2009-01-03 | C25: 2009-01-09 | D25: 2009-01-09 | E25: 10 | F25: =IF(ISERROR(VLOOKUP(E25,Crop!$S$3:$T$70,2,FALSE)),0,VLOOKUP(E25,Crop!$S$3:$T$70,2,FALSE)) -> 10 | G25: =IF(ISERROR(HLOOKUP($D$5,Kc!$C$3:$AI$57,plant!F25+3,FALSE)),0,HLOOKUP($D$5,Kc!$C$3:$AI$57,plant!F25+3,FALSE)) -> 2.19 | H25: 0 | I25: 0 | J25: 0 | K25: 0 | L25: 0 | M25: 0 | N25: 0 | O25: 0 | P25: 0 | Q25: 0 | R25: 0 | S25: =IF(ISERROR((H25*G25+I25*G24+J25*G23+K25*G22+L25*G21+M25*G20+N25*G19+O25*G18+P25*G17+Q25*G16)/R25),0,(H25*G25+I25*G24+J25*G23+K25*G22+L25*G21+M25*G20+N25*G19+O25*G18+P25*G17+Q25*G16)/R25) -> 0 | T25: =VLOOKUP($D$7,ETo!$B$4:$P$88,MONTH(D25)+2,FALSE)/4 ->  | W25: 0 | X25: 0 | Z25: =VLOOKUP(MONTH(D25),[0]!rainforuplandcrop,4)/1000*R25*1600*7 -> 
B26: 2009-01-10 | C26: 2009-01-16 | D26: 2009-01-16 | E26: 11 | F26: =IF(ISERROR(VLOOKUP(E26,Crop!$S$3:$T$70,2,FALSE)),0,VLOOKUP(E26,Crop!$S$3:$T$70,2,FALSE)) -> 11 | G26: =IF(ISERROR(HLOOKUP($D$5,Kc!$C$3:$AI$57,plant!F26+3,FALSE)),0,HLOOKUP($D$5,Kc!$C$3:$AI$57,plant!F26+3,FALSE)) -> 2.19 | H26: 0 | I26: 0 | J26: 0 | K26: 0 | L26: 0 | M26: 0 | N26: 0 | O26: 0 | P26: 0 | Q26: 0 | R26: 0 | S26: 0 | T26: =VLOOKUP($D$7,ETo!$B$4:$P$88,MONTH(D26)+2,FALSE)/4 ->  | W26: 0 | X26: 0 | Z26: =VLOOKUP(MONTH(D26),[0]!rainforuplandcrop,4)/1000*R26*1600*7 -> 
B27: 2009-01-17 | C27: 2009-01-23 | D27: 2009-01-23 | E27: 12 | F27: =IF(ISERROR(VLOOKUP(E27,Crop!$S$3:$T$70,2,FALSE)),0,VLOOKUP(E27,Crop!$S$3:$T$70,2,FALSE)) -> 12 | G27: =IF(ISERROR(HLOOKUP($D$5,Kc!$C$3:$AI$57,plant!F27+3,FALSE)),0,HLOOKUP($D$5,Kc!$C$3:$AI$57,plant!F27+3,FALSE)) -> 2.19 | H27: 0 | I27: =IF(H26>0,IF(I$15>$E$9,0,VLOOKUP(I$15,$F$3:$G$12,2,FALSE)),0) -> 0 | J27: 0 | K27: 0 | L27: 0 | M27: 0 | N27: 0 | O27: 0 | P27: 0 | Q27: 0 | R27: 0 | S27: 0 | T27: =VLOOKUP($D$7,ETo!$B$4:$P$88,MONTH(D27)+2,FALSE)/4 ->  | W27: 0 | X27: 0 | Z27: =VLOOKUP(MONTH(D27),[0]!rainforuplandcrop,4)/1000*R27*1600*7 -> 
B28: 2009-01-24 | C28: 2009-01-30 | D28: 2009-01-30 | E28: 13 | F28: =IF(ISERROR(VLOOKUP(E28,Crop!$S$3:$T$70,2,FALSE)),0,VLOOKUP(E28,Crop!$S$3:$T$70,2,FALSE)) -> 13 | G28: =IF(ISERROR(HLOOKUP($D$5,Kc!$C$3:$AI$57,plant!F28+3,FALSE)),0,HLOOKUP($D$5,Kc!$C$3:$AI$57,plant!F28+3,FALSE)) -> 2.19 | H28: 0 | I28: 0 | J28: 0 | K28: 0 | L28: 0 | M28: 0 | N28: 0 | O28: 0 | P28: 0 | Q28: 0 | R28: 0 | S28: 0 | T28: =VLOOKUP($D$7,ETo!$B$4:$P$88,MONTH(D28)+2,FALSE)/4 ->  | W28: 0 | X28: 0 | Z28: =VLOOKUP(MONTH(D28),[0]!rainforuplandcrop,4)/1000*R28*1600*7 -> 
B29: 2009-01-31 | C29: 2009-02-06 | D29: 2009-02-06 | E29: 14 | F29: =IF(ISERROR(VLOOKUP(E29,Crop!$S$3:$T$70,2,FALSE)),0,VLOOKUP(E29,Crop!$S$3:$T$70,2,FALSE)) -> 14 | G29: =IF(ISERROR(HLOOKUP($D$5,Kc!$C$3:$AI$57,plant!F29+3,FALSE)),0,HLOOKUP($D$5,Kc!$C$3:$AI$57,plant!F29+3,FALSE)) -> 2.19 | H29: 0 | I29: 0 | J29: 0 | K29: 0 | L29: 0 | M29: 0 | N29: 0 | O29: 0 | P29: 0 | Q29: 0 | R29: 0 | S29: 0 | T29: =VLOOKUP($D$7,ETo!$B$4:$P$88,MONTH(D29)+2,FALSE)/4 ->  | W29: 0 | X29: 0 | Z29: =VLOOKUP(MONTH(D29),[0]!rainforuplandcrop,4)/1000*R29*1600*7 -> 
B30: 2009-02-07 | C30: 2009-02-13 | D30: 2009-02-13 | E30: 15 | F30: =IF(ISERROR(VLOOKUP(E30,Crop!$S$3:$T$70,2,FALSE)),0,VLOOKUP(E30,Crop!$S$3:$T$70,2,FALSE)) -> 15 | G30: =IF(ISERROR(HLOOKUP($D$5,Kc!$C$3:$AI$57,plant!F30+3,FALSE)),0,HLOOKUP($D$5,Kc!$C$3:$AI$57,plant!F30+3,FALSE)) -> 2.19 | H30: 0 | I30: 0 | J30: 0 | K30: 0 | L30: 0 | M30: 0 | N30: 0 | O30: 0 | P30: 0 | Q30: 0 | R30: 0 | S30: 0 | T30: =VLOOKUP($D$7,ETo!$B$4:$P$88,MONTH(D30)+2,FALSE)/4 ->  | W30: 0 | X30: 0 | Z30: =VLOOKUP(MONTH(D30),[0]!rainforuplandcrop,4)/1000*R30*1600*7 -> 
B31: 2009-02-14 | C31: 2009-02-20 | D31: 2009-02-20 | E31: 16 | F31: =IF(ISERROR(VLOOKUP(E31,Crop!$S$3:$T$70,2,FALSE)),0,VLOOKUP(E31,Crop!$S$3:$T$70,2,FALSE)) -> 16 | G31: =IF(ISERROR(HLOOKUP($D$5,Kc!$C$3:$AI$57,plant!F31+3,FALSE)),0,HLOOKUP($D$5,Kc!$C$3:$AI$57,plant!F31+3,FALSE)) -> 2.19 | H31: 0 | I31: 0 | J31: 0 | K31: 0 | L31: 0 | M31: 0 | N31: 0 | O31: 0 | P31: 0 | Q31: 0 | R31: 0 | S31: 0 | T31: =VLOOKUP($D$7,ETo!$B$4:$P$88,MONTH(D31)+2,FALSE)/4 ->  | W31: 0 | X31: 0 | Z31: =VLOOKUP(MONTH(D31),[0]!rainforuplandcrop,4)/1000*R31*1600*7 -> 
B32: 2009-02-21 | C32: 2009-02-27 | D32: 2009-02-27 | E32: 17 | F32: =IF(ISERROR(VLOOKUP(E32,Crop!$S$3:$T$70,2,FALSE)),0,VLOOKUP(E32,Crop!$S$3:$T$70,2,FALSE)) -> 17 | G32: =IF(ISERROR(HLOOKUP($D$5,Kc!$C$3:$AI$57,plant!F32+3,FALSE)),0,HLOOKUP($D$5,Kc!$C$3:$AI$57,plant!F32+3,FALSE)) -> 2.19 | H32: 0 | I32: 0 | J32: 0 | K32: 0 | L32: 0 | M32: 0 | N32: 0 | O32: 0 | P32: 0 | Q32: 0 | R32: 0 | S32: 0 | T32: =VLOOKUP($D$7,ETo!$B$4:$P$88,MONTH(D32)+2,FALSE)/4 ->  | W32: 0 | X32: 0 | Z32: =VLOOKUP(MONTH(D32),[0]!rainforuplandcrop,4)/1000*R32*1600*7 -> 
B33: 2009-02-28 | C33: 2009-03-06 | D33: 2009-03-06 | E33: 18 | F33: =IF(ISERROR(VLOOKUP(E33,Crop!$S$3:$T$70,2,FALSE)),0,VLOOKUP(E33,Crop!$S$3:$T$70,2,FALSE)) -> 18 | G33: =IF(ISERROR(HLOOKUP($D$5,Kc!$C$3:$AI$57,plant!F33+3,FALSE)),0,HLOOKUP($D$5,Kc!$C$3:$AI$57,plant!F33+3,FALSE)) -> 2.19 | H33: 0 | I33: 0 | J33: 0 | K33: 0 | L33: 0 | M33: 0 | N33: 0 | O33: 0 | P33: 0 | Q33: 0 | R33: 0 | S33: 0 | T33: =VLOOKUP($D$7,ETo!$B$4:$P$88,MONTH(D33)+2,FALSE)/4 ->  | W33: 0 | X33: 0 | Z33: =VLOOKUP(MONTH(D33),[0]!rainforuplandcrop,4)/1000*R33*1600*7 -> 
B34: 2009-03-07 | C34: 2009-03-13 | D34: 2009-03-13 | E34: 19 | F34: =IF(ISERROR(VLOOKUP(E34,Crop!$S$3:$T$70,2,FALSE)),0,VLOOKUP(E34,Crop!$S$3:$T$70,2,FALSE)) -> 19 | G34: =IF(ISERROR(HLOOKUP($D$5,Kc!$C$3:$AI$57,plant!F34+3,FALSE)),0,HLOOKUP($D$5,Kc!$C$3:$AI$57,plant!F34+3,FALSE)) -> 2.19 | H34: 0 | I34: 0 | J34: 0 | K34: 0 | L34: 0 | M34: 0 | N34: 0 | O34: 0 | P34: 0 | Q34: 0 | R34: 0 | S34: 0 | T34: =VLOOKUP($D$7,ETo!$B$4:$P$88,MONTH(D34)+2,FALSE)/4 ->  | W34: 0 | X34: 0 | Z34: =VLOOKUP(MONTH(D34),[0]!rainforuplandcrop,4)/1000*R34*1600*7 -> 
B35: 2009-03-14 | C35: 2009-03-20 | D35: 2009-03-20 | E35: 20 | F35: =IF(ISERROR(VLOOKUP(E35,Crop!$S$3:$T$70,2,FALSE)),0,VLOOKUP(E35,Crop!$S$3:$T$70,2,FALSE)) -> 20 | G35: =IF(ISERROR(HLOOKUP($D$5,Kc!$C$3:$AI$57,plant!F35+3,FALSE)),0,HLOOKUP($D$5,Kc!$C$3:$AI$57,plant!F35+3,FALSE)) -> 2.19 | H35: 0 | I35: 0 | J35: 0 | K35: 0 | L35: 0 | M35: 0 | N35: 0 | O35: 0 | P35: 0 | Q35: 0 | R35: 0 | S35: 0 | T35: =VLOOKUP($D$7,ETo!$B$4:$P$88,MONTH(D35)+2,FALSE)/4 ->  | W35: 0 | X35: 0 | Z35: =VLOOKUP(MONTH(D35),[0]!rainforuplandcrop,4)/1000*R35*1600*7 -> 
B36: 2009-03-21 | C36: 2009-03-27 | D36: 2009-03-27 | E36: 21 | F36: =IF(ISERROR(VLOOKUP(E36,Crop!$S$3:$T$70,2,FALSE)),0,VLOOKUP(E36,Crop!$S$3:$T$70,2,FALSE)) -> 21 | G36: =IF(ISERROR(HLOOKUP($D$5,Kc!$C$3:$AI$57,plant!F36+3,FALSE)),0,HLOOKUP($D$5,Kc!$C$3:$AI$57,plant!F36+3,FALSE)) -> 2.19 | H36: 0 | I36: 0 | J36: 0 | K36: 0 | L36: 0 | M36: 0 | N36: 0 | O36: 0 | P36: 0 | Q36: 0 | R36: 0 | S36: 0 | T36: =VLOOKUP($D$7,ETo!$B$4:$P$88,MONTH(D36)+2,FALSE)/4 ->  | W36: 0 | X36: 0 | Z36: =VLOOKUP(MONTH(D36),[0]!rainforuplandcrop,4)/1000*R36*1600*7 -> 
B37: 2009-03-28 | C37: 2009-04-03 | D37: 2009-04-03 | E37: 22 | F37: =IF(ISERROR(VLOOKUP(E37,Crop!$S$3:$T$70,2,FALSE)),0,VLOOKUP(E37,Crop!$S$3:$T$70,2,FALSE)) -> 22 | G37: =IF(ISERROR(HLOOKUP($D$5,Kc!$C$3:$AI$57,plant!F37+3,FALSE)),0,HLOOKUP($D$5,Kc!$C$3:$AI$57,plant!F37+3,FALSE)) -> 2.19 | H37: 0 | I37: =IF(H36>0,IF(I$15>$E$9,0,VLOOKUP(I$15,$F$3:$G$12,2,FALSE)),0) -> 0 | J37: 0 | K37: 0 | L37: 0 | M37: 0 | N37: 0 | O37: 0 | P37: 0 | Q37: 0 | R37: 0 | S37: 0 | T37: =VLOOKUP($D$7,ETo!$B$4:$P$88,MONTH(D37)+2,FALSE)/4 ->  | W37: 0 | X37: 0 | Z37: =VLOOKUP(MONTH(D37),[0]!rainforuplandcrop,4)/1000*R37*1600*7 -> 
B38: 2009-04-04 | C38: 2009-04-10 | D38: 2009-04-10 | E38: 23 | F38: =IF(ISERROR(VLOOKUP(E38,Crop!$S$3:$T$70,2,FALSE)),0,VLOOKUP(E38,Crop!$S$3:$T$70,2,FALSE)) -> 23 | G38: =IF(ISERROR(HLOOKUP($D$5,Kc!$C$3:$AI$57,plant!F38+3,FALSE)),0,HLOOKUP($D$5,Kc!$C$3:$AI$57,plant!F38+3,FALSE)) -> 2.19 | H38: 0 | I38: 0 | J38: 0 | K38: 0 | L38: 0 | M38: 0 | N38: 0 | O38: 0 | P38: 0 | Q38: 0 | R38: 0 | S38: 0 | T38: =VLOOKUP($D$7,ETo!$B$4:$P$88,MONTH(D38)+2,FALSE)/4 ->  | W38: 0 | X38: 0 | Z38: =VLOOKUP(MONTH(D38),[0]!rainforuplandcrop,4)/1000*R38*1600*7 -> 
B39: 2009-04-11 | C39: 2009-04-17 | D39: 2009-04-17 | E39: 24 | F39: =IF(ISERROR(VLOOKUP(E39,Crop!$S$3:$T$70,2,FALSE)),0,VLOOKUP(E39,Crop!$S$3:$T$70,2,FALSE)) -> 24 | G39: =IF(ISERROR(HLOOKUP($D$5,Kc!$C$3:$AI$57,plant!F39+3,FALSE)),0,HLOOKUP($D$5,Kc!$C$3:$AI$57,plant!F39+3,FALSE)) -> 2.19 | H39: 0 | I39: 0 | J39: 0 | K39: 0 | L39: 0 | M39: 0 | N39: 0 | O39: 0 | P39: 0 | Q39: 0 | R39: 0 | S39: 0 | T39: =VLOOKUP($D$7,ETo!$B$4:$P$88,MONTH(D39)+2,FALSE)/4 ->  | W39: 0 | X39: 0 | Z39: =VLOOKUP(MONTH(D39),[0]!rainforuplandcrop,4)/1000*R39*1600*7 -> 
B40: 2009-04-18 | C40: 2009-04-24 | D40: 2009-04-24 | E40: 25 | F40: =IF(ISERROR(VLOOKUP(E40,Crop!$S$3:$T$70,2,FALSE)),0,VLOOKUP(E40,Crop!$S$3:$T$70,2,FALSE)) -> 25 | G40: =IF(ISERROR(HLOOKUP($D$5,Kc!$C$3:$AI$57,plant!F40+3,FALSE)),0,HLOOKUP($D$5,Kc!$C$3:$AI$57,plant!F40+3,FALSE)) -> 2.19 | H40: 0 | I40: 0 | J40: 0 | K40: 0 | L40: 0 | M40: 0 | N40: 0 | O40: 0 | P40: 0 | Q40: 0 | R40: 0 | S40: 0 | T40: =VLOOKUP($D$7,ETo!$B$4:$P$88,MONTH(D40)+2,FALSE)/4 ->  | W40: 0 | X40: 0 | Z40: =VLOOKUP(MONTH(D40),[0]!rainforuplandcrop,4)/1000*R40*1600*7 -> 
B41: 2009-04-25 | C41: 2009-05-01 | D41: 2009-05-01 | E41: 26 | F41: =IF(ISERROR(VLOOKUP(E41,Crop!$S$3:$T$70,2,FALSE)),0,VLOOKUP(E41,Crop!$S$3:$T$70,2,FALSE)) -> 26 | G41: =IF(ISERROR(HLOOKUP($D$5,Kc!$C$3:$AI$57,plant!F41+3,FALSE)),0,HLOOKUP($D$5,Kc!$C$3:$AI$57,plant!F41+3,FALSE)) -> 2.19 | H41: 0 | I41: 0 | J41: 0 | K41: 0 | L41: 0 | M41: 0 | N41: 0 | O41: 0 | P41: 0 | Q41: 0 | R41: 0 | S41: 0 | T41: =VLOOKUP($D$7,ETo!$B$4:$P$88,MONTH(D41)+2,FALSE)/4 ->  | W41: 0 | X41: 0 | Z41: =VLOOKUP(MONTH(D41),[0]!rainforuplandcrop,4)/1000*R41*1600*7 -> 
B42: 2009-05-02 | C42: 2009-05-08 | D42: 2009-05-08 | E42: 27 | F42: =IF(ISERROR(VLOOKUP(E42,Crop!$S$3:$T$70,2,FALSE)),0,VLOOKUP(E42,Crop!$S$3:$T$70,2,FALSE)) -> 27 | G42: =IF(ISERROR(HLOOKUP($D$5,Kc!$C$3:$AI$57,plant!F42+3,FALSE)),0,HLOOKUP($D$5,Kc!$C$3:$AI$57,plant!F42+3,FALSE)) -> 2.19 | H42: 0 | I42: 0 | J42: 0 | K42: 0 | L42: 0 | M42: 0 | N42: 0 | O42: 0 | P42: 0 | Q42: 0 | R42: 0 | S42: 0 | T42: =VLOOKUP($D$7,ETo!$B$4:$P$88,MONTH(D42)+2,FALSE)/4 ->  | W42: 0 | X42: 0 | Z42: =VLOOKUP(MONTH(D42),[0]!rainforuplandcrop,4)/1000*R42*1600*7 -> 
B43: 2009-05-09 | C43: 2009-05-15 | D43: 2009-05-15 | E43: 28 | F43: =IF(ISERROR(VLOOKUP(E43,Crop!$S$3:$T$70,2,FALSE)),0,VLOOKUP(E43,Crop!$S$3:$T$70,2,FALSE)) -> 28 | G43: =IF(ISERROR(HLOOKUP($D$5,Kc!$C$3:$AI$57,plant!F43+3,FALSE)),0,HLOOKUP($D$5,Kc!$C$3:$AI$57,plant!F43+3,FALSE)) -> 2.19 | H43: 0 | I43: 0 | J43: 0 | K43: 0 | L43: 0 | M43: 0 | N43: 0 | O43: 0 | P43: 0 | Q43: 0 | R43: 0 | S43: 0 | T43: =VLOOKUP($D$7,ETo!$B$4:$P$88,MONTH(D43)+2,FALSE)/4 ->  | W43: 0 | X43: 0 | Z43: =VLOOKUP(MONTH(D43),[0]!rainforuplandcrop,4)/1000*R43*1600*7 -> 
B44: 2009-05-16 | C44: 2009-05-22 | D44: 2009-05-22 | E44: 29 | F44: =IF(ISERROR(VLOOKUP(E44,Crop!$S$3:$T$70,2,FALSE)),0,VLOOKUP(E44,Crop!$S$3:$T$70,2,FALSE)) -> 29 | G44: =IF(ISERROR(HLOOKUP($D$5,Kc!$C$3:$AI$57,plant!F44+3,FALSE)),0,HLOOKUP($D$5,Kc!$C$3:$AI$57,plant!F44+3,FALSE)) -> 2.19 | H44: 0 | I44: 0 | J44: 0 | K44: 0 | L44: 0 | M44: 0 | N44: 0 | O44: 0 | P44: 0 | Q44: 0 | R44: 0 | S44: 0 | T44: =VLOOKUP($D$7,ETo!$B$4:$P$88,MONTH(D44)+2,FALSE)/4 ->  | W44: 0 | X44: 0 | Z44: =VLOOKUP(MONTH(D44),[0]!rainforuplandcrop,4)/1000*R44*1600*7 -> 
B45: 2009-05-23 | C45: 2009-05-29 | D45: 2009-05-29 | E45: 30 | F45: =IF(ISERROR(VLOOKUP(E45,Crop!$S$3:$T$70,2,FALSE)),0,VLOOKUP(E45,Crop!$S$3:$T$70,2,FALSE)) -> 30 | G45: =IF(ISERROR(HLOOKUP($D$5,Kc!$C$3:$AI$57,plant!F45+3,FALSE)),0,HLOOKUP($D$5,Kc!$C$3:$AI$57,plant!F45+3,FALSE)) -> 2.19 | H45: 0 | I45: 0 | J45: 0 | K45: 0 | L45: 0 | M45: 0 | N45: 0 | O45: 0 | P45: 0 | Q45: 0 | R45: 0 | S45: 0 | T45: =VLOOKUP($D$7,ETo!$B$4:$P$88,MONTH(D45)+2,FALSE)/4 ->  | W45: 0 | X45: 0 | Z45: =VLOOKUP(MONTH(D45),[0]!rainforuplandcrop,4)/1000*R45*1600*7 -> 
B46: 2009-05-30 | C46: 2009-06-05 | D46: 2009-06-05 | E46: 31 | F46: =IF(ISERROR(VLOOKUP(E46,Crop!$S$3:$T$70,2,FALSE)),0,VLOOKUP(E46,Crop!$S$3:$T$70,2,FALSE)) -> 31 | G46: =IF(ISERROR(HLOOKUP($D$5,Kc!$C$3:$AI$57,plant!F46+3,FALSE)),0,HLOOKUP($D$5,Kc!$C$3:$AI$57,plant!F46+3,FALSE)) -> 2.19 | H46: 0 | I46: 0 | J46: 0 | K46: 0 | L46: 0 | M46: 0 | N46: 0 | O46: 0 | P46: 0 | Q46: 0 | R46: 0 | S46: 0 | T46: =VLOOKUP($D$7,ETo!$B$4:$P$88,MONTH(D46)+2,FALSE)/4 ->  | W46: 0 | X46: 0 | Z46: =VLOOKUP(MONTH(D46),[0]!rainforuplandcrop,4)/1000*R46*1600*7 -> 
B47: 2009-06-06 | C47: 2009-06-12 | D47: 2009-06-12 | E47: 32 | F47: =IF(ISERROR(VLOOKUP(E47,Crop!$S$3:$T$70,2,FALSE)),0,VLOOKUP(E47,Crop!$S$3:$T$70,2,FALSE)) -> 32 | G47: =IF(ISERROR(HLOOKUP($D$5,Kc!$C$3:$AI$57,plant!F47+3,FALSE)),0,HLOOKUP($D$5,Kc!$C$3:$AI$57,plant!F47+3,FALSE)) -> 2.19 | H47: 0 | I47: =IF(H46>0,IF(I$15>$E$9,0,VLOOKUP(I$15,$F$3:$G$12,2,FALSE)),0) -> 0 | J47: 0 | K47: 0 | L47: 0 | M47: 0 | N47: 0 | O47: 0 | P47: 0 | Q47: 0 | R47: 0 | S47: 0 | T47: =VLOOKUP($D$7,ETo!$B$4:$P$88,MONTH(D47)+2,FALSE)/4 ->  | W47: 0 | X47: 0 | Z47: =VLOOKUP(MONTH(D47),[0]!rainforuplandcrop,4)/1000*R47*1600*7 -> 
B48: 2009-06-13 | C48: 2009-06-19 | D48: 2009-06-19 | E48: 33 | F48: =IF(ISERROR(VLOOKUP(E48,Crop!$S$3:$T$70,2,FALSE)),0,VLOOKUP(E48,Crop!$S$3:$T$70,2,FALSE)) -> 33 | G48: =IF(ISERROR(HLOOKUP($D$5,Kc!$C$3:$AI$57,plant!F48+3,FALSE)),0,HLOOKUP($D$5,Kc!$C$3:$AI$57,plant!F48+3,FALSE)) -> 2.19 | H48: =IF(G48>0,IF(H$15>$E$9,0,VLOOKUP(H$15,$F$3:$G$12,2,FALSE)),0) -> 0 | I48: 0 | J48: 0 | K48: 0 | L48: 0 | M48: 0 | N48: 0 | O48: 0 | P48: 0 | Q48: 0 | R48: =SUM(H48:Q48) -> 0 | S48: 0 | T48: =VLOOKUP($D$7,ETo!$B$4:$P$88,MONTH(D48)+2,FALSE)/4 ->  | U48: =IF(S48*T48=0,0,(S48*T48)+$E$10) ->  | W48: =IF(ISERROR(INDEX(H48:L48,1,F48)),0,INDEX(H48:L48,1,F48)) -> 0 | X48: =W48*$E$11*1.6 -> 0 | Y48: =V48+X48 ->  | Z48: =VLOOKUP(MONTH(D48),[0]!rainforuplandcrop,4)/1000*R48*1600*7 -> 
B49: =C48+1 -> 2009-06-20 | C49: =B49+6 -> 2009-06-26 | D49: 2009-06-26 | E49: 34 | F49: =IF(ISERROR(VLOOKUP(E49,Crop!$S$3:$T$70,2,FALSE)),0,VLOOKUP(E49,Crop!$S$3:$T$70,2,FALSE)) -> 34 | G49: =IF(ISERROR(HLOOKUP($D$5,Kc!$C$3:$AI$57,plant!F49+3,FALSE)),0,HLOOKUP($D$5,Kc!$C$3:$AI$57,plant!F49+3,FALSE)) -> 2.19 | H49: 0 | I49: 0 | J49: 0 | K49: 0 | L49: 0 | M49: 0 | N49: 0 | O49: 0 | P49: 0 | Q49: 0 | R49: 0 | S49: 0 | T49: =VLOOKUP($D$7,ETo!$B$4:$P$88,MONTH(D49)+2,FALSE)/4 ->  | W49: 0 | X49: 0 | Z49: =VLOOKUP(MONTH(D49),[0]!rainforuplandcrop,4)/1000*R49*1600*7 -> 
B50: 2009-06-27 | C50: 2009-07-03 | D50: 2009-07-03 | E50: 35 | F50: =IF(ISERROR(VLOOKUP(E50,Crop!$S$3:$T$70,2,FALSE)),0,VLOOKUP(E50,Crop!$S$3:$T$70,2,FALSE)) -> 35 | G50: =IF(ISERROR(HLOOKUP($D$5,Kc!$C$3:$AI$57,plant!F50+3,FALSE)),0,HLOOKUP($D$5,Kc!$C$3:$AI$57,plant!F50+3,FALSE)) -> 2.19 | H50: 0 | I50: 0 | J50: 0 | K50: 0 | L50: 0 | M50: 0 | N50: 0 | O50: 0 | P50: 0 | Q50: 0 | R50: 0 | S50: 0 | T50: =VLOOKUP($D$7,ETo!$B$4:$P$88,MONTH(D50)+2,FALSE)/4 ->  | W50: 0 | X50: 0 | Z50: =VLOOKUP(MONTH(D50),[0]!rainforuplandcrop,4)/1000*R50*1600*7 -> 
B51: 2009-07-04 | C51: 2009-07-10 | D51: 2009-07-10 | E51: 36 | F51: =IF(ISERROR(VLOOKUP(E51,Crop!$S$3:$T$70,2,FALSE)),0,VLOOKUP(E51,Crop!$S$3:$T$70,2,FALSE)) -> 36 | G51: =IF(ISERROR(HLOOKUP($D$5,Kc!$C$3:$AI$57,plant!F51+3,FALSE)),0,HLOOKUP($D$5,Kc!$C$3:$AI$57,plant!F51+3,FALSE)) -> 2.19 | H51: 0 | I51: 0 | J51: 0 | K51: 0 | L51: 0 | M51: 0 | N51: 0 | O51: 0 | P51: 0 | Q51: 0 | R51: 0 | S51: 0 | T51: =VLOOKUP($D$7,ETo!$B$4:$P$88,MONTH(D51)+2,FALSE)/4 ->  | W51: 0 | X51: 0 | Z51: =VLOOKUP(MONTH(D51),[0]!rainforuplandcrop,4)/1000*R51*1600*7 -> 
B52: 2009-07-11 | C52: 2009-07-17 | D52: 2009-07-17 | E52: 37 | F52: =IF(ISERROR(VLOOKUP(E52,Crop!$S$3:$T$70,2,FALSE)),0,VLOOKUP(E52,Crop!$S$3:$T$70,2,FALSE)) -> 37 | G52: =IF(ISERROR(HLOOKUP($D$5,Kc!$C$3:$AI$57,plant!F52+3,FALSE)),0,HLOOKUP($D$5,Kc!$C$3:$AI$57,plant!F52+3,FALSE)) -> 2.19 | H52: 0 | I52: 0 | J52: 0 | K52: 0 | L52: 0 | M52: 0 | N52: 0 | O52: 0 | P52: 0 | Q52: 0 | R52: 0 | S52: 0 | T52: =VLOOKUP($D$7,ETo!$B$4:$P$88,MONTH(D52)+2,FALSE)/4 ->  | W52: 0 | X52: 0 | Z52: =VLOOKUP(MONTH(D52),[0]!rainforuplandcrop,4)/1000*R52*1600*7 -> 
B53: 2009-07-18 | C53: 2009-07-24 | D53: 2009-07-24 | E53: 38 | F53: =IF(ISERROR(VLOOKUP(E53,Crop!$S$3:$T$70,2,FALSE)),0,VLOOKUP(E53,Crop!$S$3:$T$70,2,FALSE)) -> 38 | G53: =IF(ISERROR(HLOOKUP($D$5,Kc!$C$3:$AI$57,plant!F53+3,FALSE)),0,HLOOKUP($D$5,Kc!$C$3:$AI$57,plant!F53+3,FALSE)) -> 2.19 | H53: 0 | I53: 0 | J53: 0 | K53: 0 | L53: 0 | M53: 0 | N53: 0 | O53: 0 | P53: 0 | Q53: 0 | R53: 0 | S53: 0 | T53: =VLOOKUP($D$7,ETo!$B$4:$P$88,MONTH(D53)+2,FALSE)/4 ->  | W53: 0 | X53: 0 | Z53: =VLOOKUP(MONTH(D53),[0]!rainforuplandcrop,4)/1000*R53*1600*7 -> 
B54: 2009-07-25 | C54: 2009-07-31 | D54: 2009-07-31 | E54: 39 | F54: =IF(ISERROR(VLOOKUP(E54,Crop!$S$3:$T$70,2,FALSE)),0,VLOOKUP(E54,Crop!$S$3:$T$70,2,FALSE)) -> 39 | G54: =IF(ISERROR(HLOOKUP($D$5,Kc!$C$3:$AI$57,plant!F54+3,FALSE)),0,HLOOKUP($D$5,Kc!$C$3:$AI$57,plant!F54+3,FALSE)) -> 2.19 | H54: 0 | I54: 0 | J54: 0 | K54: 0 | L54: 0 | M54: 0 | N54: 0 | O54: 0 | P54: 0 | Q54: 0 | R54: 0 | S54: 0 | T54: =VLOOKUP($D$7,ETo!$B$4:$P$88,MONTH(D54)+2,FALSE)/4 ->  | W54: 0 | X54: 0 | Z54: =VLOOKUP(MONTH(D54),[0]!rainforuplandcrop,4)/1000*R54*1600*7 -> 
B55: 2009-08-01 | C55: 2009-08-07 | D55: 2009-08-07 | E55: 40 | F55: =IF(ISERROR(VLOOKUP(E55,Crop!$S$3:$T$70,2,FALSE)),0,VLOOKUP(E55,Crop!$S$3:$T$70,2,FALSE)) -> 40 | G55: =IF(ISERROR(HLOOKUP($D$5,Kc!$C$3:$AI$57,plant!F55+3,FALSE)),0,HLOOKUP($D$5,Kc!$C$3:$AI$57,plant!F55+3,FALSE)) -> 2.19 | H55: 0 | I55: 0 | J55: 0 | K55: 0 | L55: 0 | M55: 0 | N55: 0 | O55: 0 | P55: 0 | Q55: 0 | R55: 0 | S55: 0 | T55: =VLOOKUP($D$7,ETo!$B$4:$P$88,MONTH(D55)+2,FALSE)/4 ->  | W55: 0 | X55: 0 | Z55: =VLOOKUP(MONTH(D55),[0]!rainforuplandcrop,4)/1000*R55*1600*7 -> 
B56: 2009-08-08 | C56: 2009-08-14 | D56: 2009-08-14 | E56: 41 | F56: =IF(ISERROR(VLOOKUP(E56,Crop!$S$3:$T$70,2,FALSE)),0,VLOOKUP(E56,Crop!$S$3:$T$70,2,FALSE)) -> 41 | G56: =IF(ISERROR(HLOOKUP($D$5,Kc!$C$3:$AI$57,plant!F56+3,FALSE)),0,HLOOKUP($D$5,Kc!$C$3:$AI$57,plant!F56+3,FALSE)) -> 2.19 | H56: 0 | I56: 0 | J56: 0 | K56: 0 | L56: 0 | M56: 0 | N56: 0 | O56: 0 | P56: 0 | Q56: 0 | R56: 0 | S56: 0 | T56: =VLOOKUP($D$7,ETo!$B$4:$P$88,MONTH(D56)+2,FALSE)/4 ->  | W56: 0 | X56: 0 | Z56: =VLOOKUP(MONTH(D56),[0]!rainforuplandcrop,4)/1000*R56*1600*7 -> 
B57: 2009-08-15 | C57: 2009-08-21 | D57: 2009-08-21 | E57: 42 | F57: =IF(ISERROR(VLOOKUP(E57,Crop!$S$3:$T$70,2,FALSE)),0,VLOOKUP(E57,Crop!$S$3:$T$70,2,FALSE)) -> 42 | G57: =IF(ISERROR(HLOOKUP($D$5,Kc!$C$3:$AI$57,plant!F57+3,FALSE)),0,HLOOKUP($D$5,Kc!$C$3:$AI$57,plant!F57+3,FALSE)) -> 2.19 | H57: 0 | I57: =IF(H56>0,IF(I$15>$E$9,0,VLOOKUP(I$15,$F$3:$G$12,2,FALSE)),0) -> 0 | J57: 0 | K57: 0 | L57: 0 | M57: 0 | N57: 0 | O57: 0 | P57: 0 | Q57: 0 | R57: 0 | S57: 0 | T57: =VLOOKUP($D$7,ETo!$B$4:$P$88,MONTH(D57)+2,FALSE)/4 ->  | W57: 0 | X57: 0 | Z57: =VLOOKUP(MONTH(D57),[0]!rainforuplandcrop,4)/1000*R57*1600*7 -> 
B58: 2009-08-22 | C58: 2009-08-28 | D58: 2009-08-28 | E58: 43 | F58: =IF(ISERROR(VLOOKUP(E58,Crop!$S$3:$T$70,2,FALSE)),0,VLOOKUP(E58,Crop!$S$3:$T$70,2,FALSE)) -> 43 | G58: =IF(ISERROR(HLOOKUP($D$5,Kc!$C$3:$AI$57,plant!F58+3,FALSE)),0,HLOOKUP($D$5,Kc!$C$3:$AI$57,plant!F58+3,FALSE)) -> 2.19 | H58: 0 | I58: 0 | J58: 0 | K58: 0 | L58: 0 | M58: 0 | N58: 0 | O58: 0 | P58: 0 | Q58: 0 | R58: 0 | S58: 0 | T58: =VLOOKUP($D$7,ETo!$B$4:$P$88,MONTH(D58)+2,FALSE)/4 ->  | W58: 0 | X58: 0 | Z58: =VLOOKUP(MONTH(D58),[0]!rainforuplandcrop,4)/1000*R58*1600*7 -> 
B59: 2009-08-29 | C59: 2009-09-04 | D59: 2009-09-04 | E59: 44 | F59: =IF(ISERROR(VLOOKUP(E59,Crop!$S$3:$T$70,2,FALSE)),0,VLOOKUP(E59,Crop!$S$3:$T$70,2,FALSE)) -> 44 | G59: =IF(ISERROR(HLOOKUP($D$5,Kc!$C$3:$AI$57,plant!F59+3,FALSE)),0,HLOOKUP($D$5,Kc!$C$3:$AI$57,plant!F59+3,FALSE)) -> 2.19 | H59: 0 | I59: 0 | J59: 0 | K59: 0 | L59: 0 | M59: 0 | N59: 0 | O59: 0 | P59: 0 | Q59: 0 | R59: 0 | S59: 0 | T59: =VLOOKUP($D$7,ETo!$B$4:$P$88,MONTH(D59)+2,FALSE)/4 ->  | W59: 0 | X59: 0 | Z59: =VLOOKUP(MONTH(D59),[0]!rainforuplandcrop,4)/1000*R59*1600*7 -> 
B60: 2009-09-05 | C60: 2009-09-11 | D60: 2009-09-11 | E60: 45 | F60: =IF(ISERROR(VLOOKUP(E60,Crop!$S$3:$T$70,2,FALSE)),0,VLOOKUP(E60,Crop!$S$3:$T$70,2,FALSE)) -> 45 | G60: =IF(ISERROR(HLOOKUP($D$5,Kc!$C$3:$AI$57,plant!F60+3,FALSE)),0,HLOOKUP($D$5,Kc!$C$3:$AI$57,plant!F60+3,FALSE)) -> 2.19 | H60: 0 | I60: 0 | J60: 0 | K60: 0 | L60: 0 | M60: 0 | N60: 0 | O60: 0 | P60: 0 | Q60: 0 | R60: 0 | S60: 0 | T60: =VLOOKUP($D$7,ETo!$B$4:$P$88,MONTH(D60)+2,FALSE)/4 ->  | W60: 0 | X60: 0 | Z60: =VLOOKUP(MONTH(D60),[0]!rainforuplandcrop,4)/1000*R60*1600*7 -> 
B61: 2009-09-12 | C61: 2009-09-18 | D61: 2009-09-18 | E61: 46 | F61: =IF(ISERROR(VLOOKUP(E61,Crop!$S$3:$T$70,2,FALSE)),0,VLOOKUP(E61,Crop!$S$3:$T$70,2,FALSE)) -> 46 | G61: =IF(ISERROR(HLOOKUP($D$5,Kc!$C$3:$AI$57,plant!F61+3,FALSE)),0,HLOOKUP($D$5,Kc!$C$3:$AI$57,plant!F61+3,FALSE)) -> 2.19 | H61: 0 | I61: 0 | J61: 0 | K61: 0 | L61: 0 | M61: 0 | N61: 0 | O61: 0 | P61: 0 | Q61: 0 | R61: 0 | S61: 0 | T61: =VLOOKUP($D$7,ETo!$B$4:$P$88,MONTH(D61)+2,FALSE)/4 ->  | W61: 0 | X61: 0 | Z61: =VLOOKUP(MONTH(D61),[0]!rainforuplandcrop,4)/1000*R61*1600*7 -> 
B62: 2009-09-19 | C62: 2009-09-25 | D62: 2009-09-25 | E62: 47 | F62: =IF(ISERROR(VLOOKUP(E62,Crop!$S$3:$T$70,2,FALSE)),0,VLOOKUP(E62,Crop!$S$3:$T$70,2,FALSE)) -> 47 | G62: =IF(ISERROR(HLOOKUP($D$5,Kc!$C$3:$AI$57,plant!F62+3,FALSE)),0,HLOOKUP($D$5,Kc!$C$3:$AI$57,plant!F62+3,FALSE)) -> 2.19 | H62: 0 | I62: 0 | J62: 0 | K62: 0 | L62: 0 | M62: 0 | N62: 0 | O62: 0 | P62: 0 | Q62: 0 | R62: 0 | S62: 0 | T62: =VLOOKUP($D$7,ETo!$B$4:$P$88,MONTH(D62)+2,FALSE)/4 ->  | W62: 0 | X62: 0 | Z62: =VLOOKUP(MONTH(D62),[0]!rainforuplandcrop,4)/1000*R62*1600*7 -> 
B63: 2009-09-26 | C63: 2009-10-02 | D63: 2009-10-02 | E63: 48 | F63: =IF(ISERROR(VLOOKUP(E63,Crop!$S$3:$T$70,2,FALSE)),0,VLOOKUP(E63,Crop!$S$3:$T$70,2,FALSE)) -> 48 | G63: =IF(ISERROR(HLOOKUP($D$5,Kc!$C$3:$AI$57,plant!F63+3,FALSE)),0,HLOOKUP($D$5,Kc!$C$3:$AI$57,plant!F63+3,FALSE)) -> 2.19 | H63: 0 | I63: 0 | J63: 0 | K63: 0 | L63: 0 | M63: 0 | N63: 0 | O63: 0 | P63: 0 | Q63: 0 | R63: 0 | S63: 0 | T63: =VLOOKUP($D$7,ETo!$B$4:$P$88,MONTH(D63)+2,FALSE)/4 ->  | W63: 0 | X63: 0 | Z63: =VLOOKUP(MONTH(D63),[0]!rainforuplandcrop,4)/1000*R63*1600*7 -> 
B64: 2009-10-03 | C64: 2009-10-09 | D64: 2009-10-09 | E64: 49 | F64: =IF(ISERROR(VLOOKUP(E64,Crop!$S$3:$T$70,2,FALSE)),0,VLOOKUP(E64,Crop!$S$3:$T$70,2,FALSE)) -> 49 | G64: =IF(ISERROR(HLOOKUP($D$5,Kc!$C$3:$AI$57,plant!F64+3,FALSE)),0,HLOOKUP($D$5,Kc!$C$3:$AI$57,plant!F64+3,FALSE)) -> 2.19 | H64: 0 | I64: 0 | J64: 0 | K64: 0 | L64: 0 | M64: 0 | N64: 0 | O64: 0 | P64: 0 | Q64: 0 | R64: 0 | S64: 0 | T64: =VLOOKUP($D$7,ETo!$B$4:$P$88,MONTH(D64)+2,FALSE)/4 ->  | W64: 0 | X64: 0 | Z64: =VLOOKUP(MONTH(D64),[0]!rainforuplandcrop,4)/1000*R64*1600*7 -> 
B65: 2009-10-10 | C65: 2009-10-16 | D65: 2009-10-16 | E65: 50 | F65: =IF(ISERROR(VLOOKUP(E65,Crop!$S$3:$T$70,2,FALSE)),0,VLOOKUP(E65,Crop!$S$3:$T$70,2,FALSE)) -> 50 | G65: =IF(ISERROR(HLOOKUP($D$5,Kc!$C$3:$AI$57,plant!F65+3,FALSE)),0,HLOOKUP($D$5,Kc!$C$3:$AI$57,plant!F65+3,FALSE)) -> 2.19 | H65: 0 | I65: 0 | J65: 0 | K65: 0 | L65: 0 | M65: 0 | N65: 0 | O65: 0 | P65: 0 | Q65: 0 | R65: 0 | S65: 0 | T65: =VLOOKUP($D$7,ETo!$B$4:$P$88,MONTH(D65)+2,FALSE)/4 ->  | W65: 0 | X65: 0 | Z65: =VLOOKUP(MONTH(D65),[0]!rainforuplandcrop,4)/1000*R65*1600*7 -> 
B66: 2009-10-17 | C66: 2009-10-23 | D66: 2009-10-23 | E66: 51 | F66: =IF(ISERROR(VLOOKUP(E66,Crop!$S$3:$T$70,2,FALSE)),0,VLOOKUP(E66,Crop!$S$3:$T$70,2,FALSE)) -> 51 | G66: =IF(ISERROR(HLOOKUP($D$5,Kc!$C$3:$AI$57,plant!F66+3,FALSE)),0,HLOOKUP($D$5,Kc!$C$3:$AI$57,plant!F66+3,FALSE)) -> 2.19 | H66: 0 | I66: 0 | J66: 0 | K66: 0 | L66: 0 | M66: 0 | N66: 0 | O66: 0 | P66: 0 | Q66: 0 | R66: 0 | S66: 0 | T66: =VLOOKUP($D$7,ETo!$B$4:$P$88,MONTH(D66)+2,FALSE)/4 ->  | W66: 0 | X66: 0 | Z66: =VLOOKUP(MONTH(D66),[0]!rainforuplandcrop,4)/1000*R66*1600*7 -> 
B67: 2009-10-24 | C67: 2009-10-30 | D67: 2009-10-30 | E67: 52 | F67: =IF(ISERROR(VLOOKUP(E67,Crop!$S$3:$T$70,2,FALSE)),0,VLOOKUP(E67,Crop!$S$3:$T$70,2,FALSE)) -> 52 | G67: =IF(ISERROR(HLOOKUP($D$5,Kc!$C$3:$AI$57,plant!F67+3,FALSE)),0,HLOOKUP($D$5,Kc!$C$3:$AI$57,plant!F67+3,FALSE)) -> 2.19 | H67: 0 | I67: 0 | J67: 0 | K67: 0 | L67: 0 | M67: 0 | N67: 0 | O67: 0 | P67: 0 | Q67: 0 | R67: 0 | S67: 0 | T67: =VLOOKUP($D$7,ETo!$B$4:$P$88,MONTH(D67)+2,FALSE)/4 ->  | V67: =U67*R67*1.6*0.45 ->  | W67: 0 | X67: 0 | Z67: =VLOOKUP(MONTH(D67),[0]!rainforuplandcrop,4)/1000*R67*1600*7 -> 
Y68: =SUM(Y16:Y67) ->  | Z68: =SUM(Z16:Z67) -> 

Sheet fishpond
B1: ตารางแสดงรายละเอียดการคำนวณความต้องการน้ำของบ่อปลา
B3: จังหวัด | D3: =+fill_data!C4 -> 0
B4: สัปดาห์เริ่มต้น | E4: 1
B5: ใช้ค่า ETo ของจังหวัด | D5: =VLOOKUP(D3,Prv!$D$3:$E$78,2,FALSE) -> 
B6: พื้นที่บ่อปลา, ไร่ | E6: =+fill_data!K54 -> 0
B8: (1) | C8: (2) | D8: (3) | E8: (4) | F8: (5) | G8: (6) | H8: (8)
B9: ช่วงเวลาสัปดาห์ | D9: เดือน | E9: สัปดาห์ | F9: ความต้องการน้ำ (มม.) | H9: ความต้องการน้ำ | I9: ฝนใช้การ
